Workbook

Sheet Sample Report (hidden)
A2: Date
A3: Hen
A4: Program
A5: Start at 999999
A6: Sequence component 1 | B6: Time 1 | C6: Seqeunce Component 2 | D6: Time 2 | E6: Seqeunce Component 3 | F6: Time 3 | G6: Correct 0 = No 1=Yes | J6: Seqeunce | K6: Time
A7: 12 | B7: 7 | C7: 12 | D7: 42 | E7: 13 | F7: 18 | G7: if 77 new line, if 31 or 41 = yes new line on 77, | J7: =string of Seqeunce compponent 1, 2 & 3 | K7: =time 3
A8: This continues until ther is a 1 on its own to indicate start of summary data
J9: 10-19 =1
A10: Summary Data | J10: 20-29 =2
A11: Correct | B11: Incorrect | C11: Rft | D11: total | E11: Av Correct | F11: Av Incorrect | G11: Percent correct | H11: Time | J11: in this example the seqeunce would be 111
A12: 40 | B12: 33 | C12: 40 | D12: 73 | E12: 23.95 | F12: 15 | G12: 54 | H12: 806

Sheet Summary
A2: Day | B2: Date | C2: Average Response Rate | D2: Target % | E2: RF for non correct sequence | F2: U Value | K2: Block 1 | L2: Block 2 | M2: Block 3 | N2: Block 4 | O2: Block 5 | P2: Block 6
A3: 1 | B3: ='!M621A50.Gus'!B2:C2 -> <date> | C3: =('!M621A50.Gus'!H168/60)/'!M621A50.Gus'!Q3 -> 2.46244856 | D3: ='!M621A50.Gus'!N28/'!M621A50.Gus'!Q3 -> 0.03086419753 | E3: =SUM('!M621A50.Gus'!L28:Q28)/'!M621A50.Gus'!Q3 -> 7.845679012 | F3: ='!M621A50.Gus'!Q24 -> 0.3858310047 | J3: Average Response Rate | K3: =AVERAGE(C3:C7) -> 5.122245459 | L3: =AVERAGE(C8:C12) -> 2.303299182 | M3: =AVERAGE(C13:C17) -> 1.90746414 | N3: =AVERAGE(C18:C22) -> 2.17021336 | O3: =AVERAGE(C23:C27) -> 2.216460876 | P3: =AVERAGE(C28:C32) -> 2.171960009
A4: 2 | B4: ='!M623A00.Gus'!B2:C2 -> <date> | C4: =('!M623A00.Gus'!H23/60)/'!M623A00.Gus'!Q3 -> 16.37941176 | D4: ='!M623A00.Gus'!N28/'!M623A00.Gus'!Q3 -> 0 | E4: =SUM('!M623A00.Gus'!L28:Q28)/'!M623A00.Gus'!Q3 -> 0.3529411765 | F4: ='!M623A00.Gus'!Q24 -> 0.2041234515 | J4: Target % | K4: =AVERAGE(D3:D7) -> 0.04702526221 | L4: =AVERAGE(D8:D12) -> 0.1109955589 | M4: =AVERAGE(D13:D17) -> 0.1458005387 | N4: =AVERAGE(D18:D22) -> 0.1876419749 | O4: =AVERAGE(D23:D27) -> 0.1872600581 | P4: =AVERAGE(D28:D32) -> 0.1841452337
A5: 3 | B5: ='!M624B30.Gus'!B2:C2 -> <date> | C5: =('!M624B30.Gus'!H189/60)/'!M624B30.Gus'!Q3 -> 2.182149362 | D5: ='!M624B30.Gus'!N28/'!M624B30.Gus'!Q3 -> 0.06010928962 | E5: =SUM('!M624B30.Gus'!L28:Q28)/'!M624B30.Gus'!Q3 -> 12.53551913 | F5: ='!M624B30.Gus'!Q24 -> 0.3578343777 | J5: CCRF | K5: =AVERAGE(E3:E7) -> 9.200807929 | L5: =AVERAGE(E8:E12) -> 8.648012728 | M5: =AVERAGE(E13:E17) -> 12.27411219 | N5: =AVERAGE(E18:E22) -> 10.38562642 | O5: =AVERAGE(E23:E27) -> 12.84815967 | P5: =AVERAGE(E28:E32) -> 11.39791663
A6: 4 | B6: ='!M625A50.Gus'!B2:C2 -> <date> | C6: =('!M625A50.Gus'!H178/60)/'!M625A50.Gus'!Q3 -> 2.304360465 | D6: ='!M625A50.Gus'!N28/'!M625A50.Gus'!Q3 -> 0.07558139535 | E6: =SUM('!M625A50.Gus'!L28:Q28)/'!M625A50.Gus'!Q3 -> 12.74418605 | F6: ='!M625A50.Gus'!Q24 -> 0.3253268972 | J6: U Value | K6: =AVERAGE(F3:F7) -> 0.3231442733 | L6: =AVERAGE(F8:F12) -> 0.3398800016 | M6: =AVERAGE(F13:F17) -> 0.320803718 | N6: =AVERAGE(F18:F22) -> 0.3429560138 | O6: =AVERAGE(F23:F27) -> 0.3417249693 | P6: =AVERAGE(F28:F32) -> 0.3482402298
A7: 5 | B7: ='!M626A20.Gus'!B2:C2 -> <date> | C7: =('!M626A20.Gus'!H181/60)/'!M626A20.Gus'!Q3 -> 2.282857143 | D7: ='!M626A20.Gus'!N28/'!M626A20.Gus'!Q3 -> 0.06857142857 | E7: =SUM('!M626A20.Gus'!L28:Q28)/'!M626A20.Gus'!Q3 -> 12.52571429 | F7: ='!M626A20.Gus'!Q24 -> 0.3426056352
A8: 6 | B8: ='!M627A30.Gus'!B2:C2 -> <date> | C8: =('!M627A30.Gus'!H167/60)/'!M627A30.Gus'!Q3 -> 2.390372671 | D8: ='!M627A30.Gus'!N28/'!M627A30.Gus'!Q3 -> 0.07453416149 | E8: =SUM('!M627A30.Gus'!L28:Q28)/'!M627A30.Gus'!Q3 -> 8 | F8: ='!M627A30.Gus'!Q24 -> 0.340081962
A9: 7 | B9: ='!M628930.Gus'!B2:C2 -> <date> | C9: =('!M628930.Gus'!H171/60)/'!M628930.Gus'!Q3 -> 2.423737374 | D9: ='!M628930.Gus'!N28/'!M628930.Gus'!Q3 -> 0.103030303 | E9: =SUM('!M628930.Gus'!L28:Q28)/'!M628930.Gus'!Q3 -> 13.9030303 | F9: ='!M628930.Gus'!Q24 -> 0.3241667454 | G9: =K3 -> 5.122245459 | H9: =L3 -> 2.303299182 | I9: 1.90746414 | J9: 2.17021336 | K9: 2.216460876 | L9: 2.171960009 | M9: =K4 -> 0.04702526221 | N9: =L4 -> 0.1109955589 | O9: 0.1458005387 | P9: 0.1876419749 | Q9: 0.1872600581 | R9: 0.1841452337 | S9: =K6 -> 0.3231442733 | T9: =L6 -> 0.3398800016 | U9: 0.320803718 | V9: 0.3429560138 | W9: 0.3417249693 | X9: 0.3482402298
A10: 8 | B10: ='!M629A20.Gus'!B2:C2 -> <date> | C10: =('!M629A20.Gus'!H170/60)/'!M629A20.Gus'!Q3 -> 2.430081301 | D10: ='!M629A20.Gus'!N28/'!M629A20.Gus'!Q3 -> 0.1402439024 | E10: =SUM('!M629A20.Gus'!L28:Q28)/'!M629A20.Gus'!Q3 -> 7.256097561 | F10: ='!M629A20.Gus'!Q24 -> 0.3476159138
A11: 9 | B11: ='!M630C30.Gus'!B2:C2 -> <date> | C11: =('!M630C30.Gus'!H191/60)/'!M630C30.Gus'!Q3 -> 2.131981982 | D11: ='!M630C30.Gus'!N28/'!M630C30.Gus'!Q3 -> 0.1135135135 | E11: =SUM('!M630C30.Gus'!L28:Q28)/'!M630C30.Gus'!Q3 -> 7.054054054 | F11: ='!M630C30.Gus'!Q24 -> 0.3306135924
A12: 10 | B12: ='!M701B30.Gus'!B2:C2 -> <date> | C12: =('!M701B30.Gus'!H191/60)/'!M701B30.Gus'!Q3 -> 2.140322581 | D12: ='!M701B30.Gus'!N28/'!M701B30.Gus'!Q3 -> 0.123655914 | E12: =SUM('!M701B30.Gus'!L28:Q28)/'!M701B30.Gus'!Q3 -> 7.02688172 | F12: ='!M701B30.Gus'!Q24 -> 0.3569217944
A13: 11 | B13: ='!M702A20.Gus'!B2:C2 -> <date> | C13: =('!M702A20.Gus'!H192/60)/'!M702A20.Gus'!Q3 -> 0 | D13: ='!M702A20.Gus'!N28/'!M702A20.Gus'!Q3 -> 0.1129032258 | E13: =SUM('!M702A20.Gus'!L28:Q28)/'!M702A20.Gus'!Q3 -> 7.010752688 | F13: ='!M702A20.Gus'!Q24 -> 0.3373907842
A14: 12 | B14: ='!M703B00.Gus'!B2:C2 -> <date> | C14: =('!M703B00.Gus'!H191/60)/'!M703B00.Gus'!Q3 -> 2.161351351 | D14: ='!M703B00.Gus'!N28/'!M703B00.Gus'!Q3 -> 0.1081081081 | E14: =SUM('!M703B00.Gus'!L28:Q28)/'!M703B00.Gus'!Q3 -> 12.45405405 | F14: ='!M703B00.Gus'!Q24 -> 0.2968533621
A15: 13 | B15: ='!M704A50.Gus'!B2:C2 -> <date> | C15: =('!M704A50.Gus'!H169/60)/'!M704A50.Gus'!Q3 -> 2.446932515 | D15: ='!M704A50.Gus'!N28/'!M704A50.Gus'!Q3 -> 0.1411042945 | E15: =SUM('!M704A50.Gus'!L28:Q28)/'!M704A50.Gus'!Q3 -> 13.49079755 | F15: ='!M704A50.Gus'!Q24 -> 0.3238332623
A16: 14 | B16: ='!M705A50.Gus'!B2:C2 -> <date> | C16: =('!M705A50.Gus'!H159/60)/'!M705A50.Gus'!Q3 -> 2.611982571 | D16: ='!M705A50.Gus'!N28/'!M705A50.Gus'!Q3 -> 0.1633986928 | E16: =SUM('!M705A50.Gus'!L28:Q28)/'!M705A50.Gus'!Q3 -> 15.01960784 | F16: ='!M705A50.Gus'!Q24 -> 0.321665879
A17: 15 | B17: ='!M706B20.Gus'!B2:C2 -> <date> | C17: =('!M706B20.Gus'!H178/60)/'!M706B20.Gus'!Q3 -> 2.317054264 | D17: ='!M706B20.Gus'!N28/'!M706B20.Gus'!Q3 -> 0.2034883721 | E17: =SUM('!M706B20.Gus'!L28:Q28)/'!M706B20.Gus'!Q3 -> 13.39534884 | F17: ='!M706B20.Gus'!Q24 -> 0.3242753024
A18: 16 | B18: ='!M707A30.Gus'!B2:C2 -> <date> | C18: =('!M707A30.Gus'!H172/60)/'!M707A30.Gus'!Q3 -> 2.4 | D18: ='!M707A30.Gus'!N28/'!M707A30.Gus'!Q3 -> 0.1927710843 | E18: =SUM('!M707A30.Gus'!L28:Q28)/'!M707A30.Gus'!Q3 -> 13.30722892 | F18: ='!M707A30.Gus'!Q24 -> 0.3432105031
A19: 17 | B19: ='!M708A00.Gus'!B2:C2 -> <date> | C19: =('!M708A00.Gus'!H189/60)/'!M708A00.Gus'!Q3 -> 2.179326047 | D19: ='!M708A00.Gus'!N28/'!M708A00.Gus'!Q3 -> 0.174863388 | E19: =SUM('!M708A00.Gus'!L28:Q28)/'!M708A00.Gus'!Q3 -> 12.65027322 | F19: ='!M708A00.Gus'!Q24 -> 0.3370530463
A20: 18 | B20: ='!M709A20.Gus'!B2:C2 -> <date> | C20: =('!M709A20.Gus'!H196/60)/'!M709A20.Gus'!Q3 -> 2.100350877 | D20: ='!M709A20.Gus'!N28/'!M709A20.Gus'!Q3 -> 0.1894736842 | E20: =SUM('!M709A20.Gus'!L28:Q28)/'!M709A20.Gus'!Q3 -> 12.16315789 | F20: ='!M709A20.Gus'!Q24 -> 0.3484560685
A21: 19 | B21: ='!M710A40.Gus'!B2:C2 -> <date> | C21: =('!M710A40.Gus'!H196/60)/'!M710A40.Gus'!Q3 -> 2.103859649 | D21: ='!M710A40.Gus'!N28/'!M710A40.Gus'!Q3 -> 0.1842105263 | E21: =SUM('!M710A40.Gus'!L28:Q28)/'!M710A40.Gus'!Q3 -> 6.947368421 | F21: ='!M710A40.Gus'!Q24 -> 0.355228388
A22: 20 | B22: ='!M711A10.Gus'!B2:C2 -> <date> | C22: =('!M711A10.Gus'!H199/60)/'!M711A10.Gus'!Q3 -> 2.067530225 | D22: ='!M711A10.Gus'!N28/'!M711A10.Gus'!Q3 -> 0.1968911917 | E22: =SUM('!M711A10.Gus'!L28:Q28)/'!M711A10.Gus'!Q3 -> 6.860103627 | F22: ='!M711A10.Gus'!Q24 -> 0.3308320632
A23: 21 | B23: ='!M712A40.Gus'!B2:C2 -> <date> | C23: =('!M712A40.Gus'!H189/60)/'!M712A40.Gus'!Q3 -> 2.178324226 | D23: ='!M712A40.Gus'!N28/'!M712A40.Gus'!Q3 -> 0.1857923497 | E23: =SUM('!M712A40.Gus'!L28:Q28)/'!M712A40.Gus'!Q3 -> 12.66120219 | F23: ='!M712A40.Gus'!Q24 -> 0.3533658535
A24: 22 | B24: ='!M713B10.Gus'!B2:C2 -> <date> | C24: =('!M713B10.Gus'!H190/60)/'!M713B10.Gus'!Q3 -> 2.172554348 | D24: ='!M713B10.Gus'!N28/'!M713B10.Gus'!Q3 -> 0.1739130435 | E24: =SUM('!M713B10.Gus'!L28:Q28)/'!M713B10.Gus'!Q3 -> 12.58152174 | F24: ='!M713B10.Gus'!Q24 -> 0.3556907079
A25: 23 | B25: ='!M714950.Gus'!B2:C2 -> <date> | C25: =('!M714950.Gus'!H192/60)/'!M714950.Gus'!Q3 -> 2.144354839 | D25: ='!M714950.Gus'!N28/'!M714950.Gus'!Q3 -> 0.1505376344 | E25: =SUM('!M714950.Gus'!L28:Q28)/'!M714950.Gus'!Q3 -> 12.43010753 | F25: ='!M714950.Gus'!Q24 -> 0.3428367306
A26: 24 | B26: ='!M715920.Gus'!B2:C2 -> <date> | C26: =('!M715920.Gus'!H168/60)/'!M715920.Gus'!Q3 -> 2.466769547 | D26: ='!M715920.Gus'!N28/'!M715920.Gus'!Q3 -> 0.2345679012 | E26: =SUM('!M715920.Gus'!L28:Q28)/'!M715920.Gus'!Q3 -> 14.22222222 | F26: ='!M715920.Gus'!Q24 -> 0.3384850707
A27: 25 | B27: ='!M716A10.Gus'!B2:C2 -> <date> | C27: =('!M716A10.Gus'!H194/60)/'!M716A10.Gus'!Q3 -> 2.120301418 | D27: ='!M716A10.Gus'!N28/'!M716A10.Gus'!Q3 -> 0.1914893617 | E27: =SUM('!M716A10.Gus'!L28:Q28)/'!M716A10.Gus'!Q3 -> 12.34574468 | F27: ='!M716A10.Gus'!Q24 -> 0.3182464839
A28: 26 | B28: ='!M717950.Gus'!B2:C2 -> <date> | C28: =('!M717950.Gus'!H205/60)/'!M717950.Gus'!Q3 -> 2.002512563 | D28: ='!M717950.Gus'!N28/'!M717950.Gus'!Q3 -> 0.1959798995 | E28: =SUM('!M717950.Gus'!L28:Q28)/'!M717950.Gus'!Q3 -> 11.19095477 | F28: ='!M717950.Gus'!Q24 -> 0.3375339474
A29: 27 | B29: ='!M718A50.Gus'!B2:C2 -> <date> | C29: =('!M718A50.Gus'!H185/60)/'!M718A50.Gus'!Q3 -> 2.228212291 | D29: ='!M718A50.Gus'!N28/'!M718A50.Gus'!Q3 -> 0.1675977654 | E29: =SUM('!M718A50.Gus'!L28:Q28)/'!M718A50.Gus'!Q3 -> 12.91061453 | F29: ='!M718A50.Gus'!Q24 -> 0.3549157762
A30: 28 | B30: ='!M719A50.Gus'!B2:C2 -> <date> | C30: =('!M719A50.Gus'!H182/60)/'!M719A50.Gus'!Q3 -> 2.243181818 | D30: ='!M719A50.Gus'!N28/'!M719A50.Gus'!Q3 -> 0.2272727273 | E30: =SUM('!M719A50.Gus'!L28:Q28)/'!M719A50.Gus'!Q3 -> 12.61931818 | F30: ='!M719A50.Gus'!Q24 -> 0.3412486399
A31: 29 | B31: ='!M720A30.Gus'!B2:C2 -> <date> | C31: =('!M720A30.Gus'!H189/60)/'!M720A30.Gus'!Q3 -> 2.115036232 | D31: ='!M720A30.Gus'!N28/'!M720A30.Gus'!Q3 -> 0.1413043478 | E31: =SUM('!M720A30.Gus'!L28:Q28)/'!M720A30.Gus'!Q3 -> 7.108695652 | F31: ='!M720A30.Gus'!Q24 -> 0.3539097009
A32: 30 | B32: ='!M721B50.Gus'!B2:C2 -> <date> | C32: =('!M721B50.Gus'!H181/60)/'!M721B50.Gus'!Q3 -> 2.270857143 | D32: ='!M721B50.Gus'!N28/'!M721B50.Gus'!Q3 -> 0.1885714286 | E32: =SUM('!M721B50.Gus'!L28:Q28)/'!M721B50.Gus'!Q3 -> 13.16 | F32: ='!M721B50.Gus'!Q24 -> 0.3535930846

Sheet Start
F1: Use Folder 51 | H1: Auto Clean Up | J1: Correct sequence
F2: FALSE | H2: TRUE | J2: 2212
A4: Working with Folder | G4: Process All/Or Pick A number: ALL or an integer
A5: F:\Possum Chapter\Raw Data\Gus\Phase 3 Con\ | G5: ALL
A6: Filenames:
A7: !M711A10.Gus | G7: Paint Cells
A8: !M712A40.Gus | G8: FALSE
A9: !M713B10.Gus
A10: !M714950.Gus
A11: !M715920.Gus
A12: !M621A50.Gus
A13: !M623A00.Gus
A14: !M624B30.Gus
A15: !M625A50.Gus
A16: !M626A20.Gus
A17: !M627A30.Gus
A18: !M628930.Gus
A19: !M629A20.Gus
A20: !M630C30.Gus
A21: !M701B30.Gus
A22: !M702A20.Gus
A23: !M703B00.Gus
A24: !M704A50.Gus
A25: !M705A50.Gus
A26: !M706B20.Gus
A27: !M707A30.Gus
A28: !M708A00.Gus
A29: !M709A20.Gus
A30: !M710A40.Gus
A31: !M719A50.Gus
A32: !M720A30.Gus
A33: !M721B50.Gus
A34: !M716A10.Gus
A35: !M717950.Gus
A36: !M718A50.Gus

Sheet !M621A50.Gus
A1: Report for:!M621A50.Gus
A2: Date: | B2: <date>
A3: Hen: | B3: <hen> | F3: Correct Sequence | G3: =Start!J2 -> 2212 | P3: Total Sequences in Data | Q3: =4994-COUNTBLANK(L7:L5000) -> 162 | V3: Total Sequences in Block Data | W3: =COUNTA(L7:L33) -> 27 | AA3: Total Sequences in Block Data | AB3: =COUNTA(L34:L60) -> 27 | AF3: Total Sequences in Block Data | AG3: =COUNTA(L61:L87) -> 27 | AK3: Total Sequences in Block Data | AL3: =COUNTA(L88:L114) -> 27 | AP3: Total Sequences in Block Data | AQ3: =COUNTA(L115:L141) -> 27 | AU3: Total Sequences in Block Data | AV3: =COUNTA(L142:L168) -> 27
P4: Total Sequences in Summary | Q4: =SUM(O7:O22) -> 162 | V4: Total Sequences in Block Summary | W4: =SUM(U7:U22) -> 27 | AA4: Total Sequences in Block Summary | AB4: =SUM(Z7:Z22) -> 27 | AF4: Total Sequences in Block Summary | AG4: =SUM(AE7:AE22) -> 27 | AK4: Total Sequences in Block Summary | AL4: =SUM(AJ7:AJ22) -> 27 | AP4: Total Sequences in Block Summary | AQ4: =SUM(AO7:AO22) -> 27 | AU4: Total Sequences in Block Summary | AV4: =SUM(AT7:AT22) -> 27
T5: Block 1 | Y5: Block 2 | AD5: Block 3 | AI5: Block 4 | AN5: Block 5 | AS5: Block 6
A6: Sequence Component 1 | B6: Time 1 | C6: Sequence Component 2 | D6: Time 2 | E6: Sequence Component 3 | F6: Time 3 | G6: Sequence Component 4 | H6: Time 4 | I6: Sequence Component 5 | J6: Time 5 | K6: Correct? 0=No 1=Yes | L6: Sequence | N6: Frequency | P6: Relative Frequency | Q6: Variability | T6: Frequency | V6: Relative Frequency | W6: Variability | Y6: Frequency | AA6: Relative Frequency | AB6: Variability | AD6: Frequency | AF6: Relative Frequency | AG6: Variability | AI6: Frequency | AK6: Relative Frequency | AL6: Variability | AN6: Frequency | AP6: Relative Frequency | AQ6: Variability | AS6: Frequency | AU6: Relative Frequency | AV6: Variability
A7: 21 | B7: 72 | C7: 21 | D7: 77 | E7: 22 | F7: 86 | G7: 23 | H7: 92 | K7: 0 | L7: 2222 | N7: 1111 | O7: =COUNTIF($L$7:$L$500,N7) -> 1 | P7: =O7/$Q$4 -> 0.006172839506 | Q7: =IF(P7=0,0,(P7*((LOG(P7))/LOG(2)))) -> -0.04530771607 | T7: =N7 -> 1111 | U7: =COUNTIF(L7:L33,T7) -> 0 | V7: =U7/(W4-U20) -> 0 | W7: =IF(V7=0,0,(V7*((LOG(V7))/LOG(2)))) -> 0 | Y7: =N7 -> 1111 | Z7: =COUNTIF(L34:L60,Y7) -> 0 | AA7: =Z7/(AB4-Z20) -> 0 | AB7: =IF(AA7=0,0,(AA7*((LOG(AA7))/LOG(2)))) -> 0 | AD7: =N7 -> 1111 | AE7: =COUNTIF(L61:L87,AD7) -> 0 | AF7: =AE7/(AG4-AE20) -> 0 | AG7: =IF(AF7=0,0,(AF7*((LOG(AF7))/LOG(2)))) -> 0 | AI7: =N7 -> 1111 | AJ7: =COUNTIF(L88:L114,AI7) -> 1 | AK7: =AJ7/(AL4-AJ20) -> 0.03846153846 | AL7: =IF(AK7=0,0,(AK7*((LOG(AK7))/LOG(2)))) -> -0.180786143 | AN7: =N7 -> 1111 | AO7: =COUNTIF(L115:L141,AN7) -> 0 | AP7: =AO7/(AQ4-AO20) -> 0 | AQ7: =IF(AP7=0,0,(AP7*((LOG(AP7))/LOG(2)))) -> 0 | AS7: =N7 -> 1111 | AT7: =COUNTIF(L142:L168,AS7) -> 0 | AU7: =AT7/(AV4-AT20) -> 0 | AV7: =IF(AU7=0,0,(AU7*((LOG(AU7))/LOG(2)))) -> 0
A8: 21 | B8: 198 | C8: 21 | D8: 201 | E8: 22 | F8: 205 | G8: 23 | H8: 211 | K8: 0 | L8: 2222 | N8: 1112 | O8: =COUNTIF($L$7:$L$500,N8) -> 5 | P8: =O8/$Q$4 -> 0.03086419753 | Q8: =IF(P8=0,0,(P8*((LOG(P8))/LOG(2)))) -> -0.154874133 | T8: =N8 -> 1112 | U8: =COUNTIF(L7:L33,T8) -> 0 | V8: =U8/(W4-U20) -> 0 | W8: =IF(V8=0,0,(V8*((LOG(V8))/LOG(2)))) -> 0 | Y8: =N8 -> 1112 | Z8: =COUNTIF(L34:L60,Y8) -> 1 | AA8: =Z8/(AB4-Z20) -> 0.03846153846 | AB8: =IF(AA8=0,0,(AA8*((LOG(AA8))/LOG(2)))) -> -0.180786143 | AD8: =N8 -> 1112 | AE8: =COUNTIF(L61:L87,AD8) -> 1 | AF8: =AE8/(AG4-AE20) -> 0.03846153846 | AG8: =IF(AF8=0,0,(AF8*((LOG(AF8))/LOG(2)))) -> -0.180786143 | AI8: =N8 -> 1112 | AJ8: =COUNTIF(L88:L114,AI8) -> 1 | AK8: =AJ8/(AL4-AJ20) -> 0.03846153846 | AL8: =IF(AK8=0,0,(AK8*((LOG(AK8))/LOG(2)))) -> -0.180786143 | AN8: =N8 -> 1112 | AO8: =COUNTIF(L115:L141,AN8) -> 2 | AP8: =AO8/(AQ4-AO20) -> 0.07407407407 | AQ8: =IF(AP8=0,0,(AP8*((LOG(AP8))/LOG(2)))) -> -0.278139815 | AS8: =N8 -> 1112 | AT8: =COUNTIF(L142:L168,AS8) -> 0 | AU8: =AT8/(AV4-AT20) -> 0 | AV8: =IF(AU8=0,0,(AU8*((LOG(AU8))/LOG(2)))) -> 0
A9: 12 | B9: 498 | C9: 23 | D9: 503 | E9: 24 | F9: 513 | G9: 23 | H9: 520 | K9: 0 | L9: 1222 | N9: 1121 | O9: =COUNTIF($L$7:$L$500,N9) -> 4 | P9: =O9/$Q$4 -> 0.02469135802 | Q9: =IF(P9=0,0,(P9*((LOG(P9))/LOG(2)))) -> -0.1318481482 | T9: =N9 -> 1121 | U9: =COUNTIF(L7:L33,T9) -> 0 | V9: =U9/(W4-U20) -> 0 | W9: =IF(V9=0,0,(V9*((LOG(V9))/LOG(2)))) -> 0 | Y9: =N9 -> 1121 | Z9: =COUNTIF(L34:L60,Y9) -> 1 | AA9: =Z9/(AB4-Z20) -> 0.03846153846 | AB9: =IF(AA9=0,0,(AA9*((LOG(AA9))/LOG(2)))) -> -0.180786143 | AD9: =N9 -> 1121 | AE9: =COUNTIF(L61:L87,AD9) -> 1 | AF9: =AE9/(AG4-AE20) -> 0.03846153846 | AG9: =IF(AF9=0,0,(AF9*((LOG(AF9))/LOG(2)))) -> -0.180786143 | AI9: =N9 -> 1121 | AJ9: =COUNTIF(L88:L114,AI9) -> 1 | AK9: =AJ9/(AL4-AJ20) -> 0.03846153846 | AL9: =IF(AK9=0,0,(AK9*((LOG(AK9))/LOG(2)))) -> -0.180786143 | AN9: =N9 -> 1121 | AO9: =COUNTIF(L115:L141,AN9) -> 0 | AP9: =AO9/(AQ4-AO20) -> 0 | AQ9: =IF(AP9=0,0,(AP9*((LOG(AP9))/LOG(2)))) -> 0 | AS9: =N9 -> 1121 | AT9: =COUNTIF(L142:L168,AS9) -> 1 | AU9: =AT9/(AV4-AT20) -> 0.04 | AV9: =IF(AU9=0,0,(AU9*((LOG(AU9))/LOG(2)))) -> -0.1857542476
A10: 12 | B10: 624 | C10: 23 | D10: 630 | E10: 24 | F10: 635 | G10: 23 | H10: 646 | K10: 0 | L10: 1222 | N10: 1122 | O10: =COUNTIF($L$7:$L$500,N10) -> 20 | P10: =O10/$Q$4 -> 0.1234567901 | Q10: =IF(P10=0,0,(P10*((LOG(P10))/LOG(2)))) -> -0.3725829516 | T10: =N10 -> 1122 | U10: =COUNTIF(L7:L33,T10) -> 1 | V10: =U10/(W4-U20) -> 0.03703703704 | W10: =IF(V10=0,0,(V10*((LOG(V10))/LOG(2)))) -> -0.1761069445 | Y10: =N10 -> 1122 | Z10: =COUNTIF(L34:L60,Y10) -> 4 | AA10: =Z10/(AB4-Z20) -> 0.1538461538 | AB10: =IF(AA10=0,0,(AA10*((LOG(AA10))/LOG(2)))) -> -0.4154522643 | AD10: =N10 -> 1122 | AE10: =COUNTIF(L61:L87,AD10) -> 3 | AF10: =AE10/(AG4-AE20) -> 0.1153846154 | AG10: =IF(AF10=0,0,(AF10*((LOG(AF10))/LOG(2)))) -> -0.3594781405 | AI10: =N10 -> 1122 | AJ10: =COUNTIF(L88:L114,AI10) -> 3 | AK10: =AJ10/(AL4-AJ20) -> 0.1153846154 | AL10: =IF(AK10=0,0,(AK10*((LOG(AK10))/LOG(2)))) -> -0.3594781405 | AN10: =N10 -> 1122 | AO10: =COUNTIF(L115:L141,AN10) -> 5 | AP10: =AO10/(AQ4-AO20) -> 0.1851851852 | AQ10: =IF(AP10=0,0,(AP10*((LOG(AP10))/LOG(2)))) -> -0.4505480384 | AS10: =N10 -> 1122 | AT10: =COUNTIF(L142:L168,AS10) -> 4 | AU10: =AT10/(AV4-AT20) -> 0.16 | AV10: =IF(AU10=0,0,(AU10*((LOG(AU10))/LOG(2)))) -> -0.4230169904
A11: 12 | B11: 751 | C11: 23 | D11: 761 | E11: 24 | F11: 768 | G11: 23 | H11: 774 | K11: 0 | L11: 1222 | N11: 1211 | O11: =COUNTIF($L$7:$L$500,N11) -> 0 | P11: =O11/$Q$4 -> 0 | Q11: =IF(P11=0,0,(P11*((LOG(P11))/LOG(2)))) -> 0 | T11: =N11 -> 1211 | U11: =COUNTIF(L7:L33,T11) -> 0 | V11: =U11/(W4-U20) -> 0 | W11: =IF(V11=0,0,(V11*((LOG(V11))/LOG(2)))) -> 0 | Y11: =N11 -> 1211 | Z11: =COUNTIF(L34:L60,Y11) -> 0 | AA11: =Z11/(AB4-Z20) -> 0 | AB11: =IF(AA11=0,0,(AA11*((LOG(AA11))/LOG(2)))) -> 0 | AD11: =N11 -> 1211 | AE11: =COUNTIF(L61:L87,AD11) -> 0 | AF11: =AE11/(AG4-AE20) -> 0 | AG11: =IF(AF11=0,0,(AF11*((LOG(AF11))/LOG(2)))) -> 0 | AI11: =N11 -> 1211 | AJ11: =COUNTIF(L88:L114,AI11) -> 0 | AK11: =AJ11/(AL4-AJ20) -> 0 | AL11: =IF(AK11=0,0,(AK11*((LOG(AK11))/LOG(2)))) -> 0 | AN11: =N11 -> 1211 | AO11: =COUNTIF(L115:L141,AN11) -> 0 | AP11: =AO11/(AQ4-AO20) -> 0 | AQ11: =IF(AP11=0,0,(AP11*((LOG(AP11))/LOG(2)))) -> 0 | AS11: =N11 -> 1211 | AT11: =COUNTIF(L142:L168,AS11) -> 0 | AU11: =AT11/(AV4-AT20) -> 0 | AV11: =IF(AU11=0,0,(AU11*((LOG(AU11))/LOG(2)))) -> 0
A12: 12 | B12: 868 | C12: 23 | D12: 881 | E12: 24 | F12: 888 | G12: 23 | H12: 892 | K12: 0 | L12: 1222 | N12: 1212 | O12: =COUNTIF($L$7:$L$500,N12) -> 7 | P12: =O12/$Q$4 -> 0.04320987654 | Q12: =IF(P12=0,0,(P12*((LOG(P12))/LOG(2)))) -> -0.1958485529 | T12: =N12 -> 1212 | U12: =COUNTIF(L7:L33,T12) -> 1 | V12: =U12/(W4-U20) -> 0.03703703704 | W12: =IF(V12=0,0,(V12*((LOG(V12))/LOG(2)))) -> -0.1761069445 | Y12: =N12 -> 1212 | Z12: =COUNTIF(L34:L60,Y12) -> 1 | AA12: =Z12/(AB4-Z20) -> 0.03846153846 | AB12: =IF(AA12=0,0,(AA12*((LOG(AA12))/LOG(2)))) -> -0.180786143 | AD12: =N12 -> 1212 | AE12: =COUNTIF(L61:L87,AD12) -> 1 | AF12: =AE12/(AG4-AE20) -> 0.03846153846 | AG12: =IF(AF12=0,0,(AF12*((LOG(AF12))/LOG(2)))) -> -0.180786143 | AI12: =N12 -> 1212 | AJ12: =COUNTIF(L88:L114,AI12) -> 0 | AK12: =AJ12/(AL4-AJ20) -> 0 | AL12: =IF(AK12=0,0,(AK12*((LOG(AK12))/LOG(2)))) -> 0 | AN12: =N12 -> 1212 | AO12: =COUNTIF(L115:L141,AN12) -> 1 | AP12: =AO12/(AQ4-AO20) -> 0.03703703704 | AQ12: =IF(AP12=0,0,(AP12*((LOG(AP12))/LOG(2)))) -> -0.1761069445 | AS12: =N12 -> 1212 | AT12: =COUNTIF(L142:L168,AS12) -> 3 | AU12: =AT12/(AV4-AT20) -> 0.12 | AV12: =IF(AU12=0,0,(AU12*((LOG(AU12))/LOG(2)))) -> -0.3670672427
A13: 12 | B13: 987 | C13: 23 | D13: 989 | E13: 24 | F13: 998 | G13: 23 | H13: 1006 | K13: 0 | L13: 1222 | N13: 1221 | O13: =COUNTIF($L$7:$L$500,N13) -> 6 | P13: =O13/$Q$4 -> 0.03703703704 | Q13: =IF(P13=0,0,(P13*((LOG(P13))/LOG(2)))) -> -0.1761069445 | T13: =N13 -> 1221 | U13: =COUNTIF(L7:L33,T13) -> 0 | V13: =U13/(W4-U20) -> 0 | W13: =IF(V13=0,0,(V13*((LOG(V13))/LOG(2)))) -> 0 | Y13: =N13 -> 1221 | Z13: =COUNTIF(L34:L60,Y13) -> 1 | AA13: =Z13/(AB4-Z20) -> 0.03846153846 | AB13: =IF(AA13=0,0,(AA13*((LOG(AA13))/LOG(2)))) -> -0.180786143 | AD13: =N13 -> 1221 | AE13: =COUNTIF(L61:L87,AD13) -> 1 | AF13: =AE13/(AG4-AE20) -> 0.03846153846 | AG13: =IF(AF13=0,0,(AF13*((LOG(AF13))/LOG(2)))) -> -0.180786143 | AI13: =N13 -> 1221 | AJ13: =COUNTIF(L88:L114,AI13) -> 1 | AK13: =AJ13/(AL4-AJ20) -> 0.03846153846 | AL13: =IF(AK13=0,0,(AK13*((LOG(AK13))/LOG(2)))) -> -0.180786143 | AN13: =N13 -> 1221 | AO13: =COUNTIF(L115:L141,AN13) -> 0 | AP13: =AO13/(AQ4-AO20) -> 0 | AQ13: =IF(AP13=0,0,(AP13*((LOG(AP13))/LOG(2)))) -> 0 | AS13: =N13 -> 1221 | AT13: =COUNTIF(L142:L168,AS13) -> 3 | AU13: =AT13/(AV4-AT20) -> 0.12 | AV13: =IF(AU13=0,0,(AU13*((LOG(AU13))/LOG(2)))) -> -0.3670672427
A14: 12 | B14: 1104 | C14: 23 | D14: 1130 | E14: 24 | F14: 1134 | G14: 23 | H14: 1141 | K14: 0 | L14: 1222 | N14: 1222 | O14: =COUNTIF($L$7:$L$500,N14) -> 56 | P14: =O14/$Q$4 -> 0.3456790123 | Q14: =IF(P14=0,0,(P14*((LOG(P14))/LOG(2)))) -> -0.529751386 | T14: =N14 -> 1222 | U14: =COUNTIF(L7:L33,T14) -> 14 | V14: =U14/(W4-U20) -> 0.5185185185 | W14: =IF(V14=0,0,(V14*((LOG(V14))/LOG(2)))) -> -0.4913131897 | Y14: =N14 -> 1222 | Z14: =COUNTIF(L34:L60,Y14) -> 8 | AA14: =Z14/(AB4-Z20) -> 0.3076923077 | AB14: =IF(AA14=0,0,(AA14*((LOG(AA14))/LOG(2)))) -> -0.523212221 | AD14: =N14 -> 1222 | AE14: =COUNTIF(L61:L87,AD14) -> 10 | AF14: =AE14/(AG4-AE20) -> 0.3846153846 | AG14: =IF(AF14=0,0,(AF14*((LOG(AF14))/LOG(2)))) -> -0.5301967782 | AI14: =N14 -> 1222 | AJ14: =COUNTIF(L88:L114,AI14) -> 10 | AK14: =AJ14/(AL4-AJ20) -> 0.3846153846 | AL14: =IF(AK14=0,0,(AK14*((LOG(AK14))/LOG(2)))) -> -0.5301967782 | AN14: =N14 -> 1222 | AO14: =COUNTIF(L115:L141,AN14) -> 9 | AP14: =AO14/(AQ4-AO20) -> 0.3333333333 | AQ14: =IF(AP14=0,0,(AP14*((LOG(AP14))/LOG(2)))) -> -0.5283208336 | AS14: =N14 -> 1222 | AT14: =COUNTIF(L142:L168,AS14) -> 5 | AU14: =AT14/(AV4-AT20) -> 0.2 | AV14: =IF(AU14=0,0,(AU14*((LOG(AU14))/LOG(2)))) -> -0.464385619
A15: 12 | B15: 1239 | C15: 23 | D15: 1257 | E15: 24 | F15: 1265 | G15: 23 | H15: 1276 | K15: 0 | L15: 1222 | N15: 2111 | O15: =COUNTIF($L$7:$L$500,N15) -> 0 | P15: =O15/$Q$4 -> 0 | Q15: =IF(P15=0,0,(P15*((LOG(P15))/LOG(2)))) -> 0 | T15: =N15 -> 2111 | U15: =COUNTIF(L7:L33,T15) -> 0 | V15: =U15/(W4-U20) -> 0 | W15: =IF(V15=0,0,(V15*((LOG(V15))/LOG(2)))) -> 0 | Y15: =N15 -> 2111 | Z15: =COUNTIF(L34:L60,Y15) -> 0 | AA15: =Z15/(AB4-Z20) -> 0 | AB15: =IF(AA15=0,0,(AA15*((LOG(AA15))/LOG(2)))) -> 0 | AD15: =N15 -> 2111 | AE15: =COUNTIF(L61:L87,AD15) -> 0 | AF15: =AE15/(AG4-AE20) -> 0 | AG15: =IF(AF15=0,0,(AF15*((LOG(AF15))/LOG(2)))) -> 0 | AI15: =N15 -> 2111 | AJ15: =COUNTIF(L88:L114,AI15) -> 0 | AK15: =AJ15/(AL4-AJ20) -> 0 | AL15: =IF(AK15=0,0,(AK15*((LOG(AK15))/LOG(2)))) -> 0 | AN15: =N15 -> 2111 | AO15: =COUNTIF(L115:L141,AN15) -> 0 | AP15: =AO15/(AQ4-AO20) -> 0 | AQ15: =IF(AP15=0,0,(AP15*((LOG(AP15))/LOG(2)))) -> 0 | AS15: =N15 -> 2111 | AT15: =COUNTIF(L142:L168,AS15) -> 0 | AU15: =AT15/(AV4-AT20) -> 0 | AV15: =IF(AU15=0,0,(AU15*((LOG(AU15))/LOG(2)))) -> 0
A16: 12 | B16: 1372 | C16: 14 | D16: 1382 | E16: 24 | F16: 1401 | G16: 23 | H16: 1403 | K16: 0 | L16: 1122 | N16: 2112 | O16: =COUNTIF($L$7:$L$500,N16) -> 5 | P16: =O16/$Q$4 -> 0.03086419753 | Q16: =IF(P16=0,0,(P16*((LOG(P16))/LOG(2)))) -> -0.154874133 | T16: =N16 -> 2112 | U16: =COUNTIF(L7:L33,T16) -> 1 | V16: =U16/(W4-U20) -> 0.03703703704 | W16: =IF(V16=0,0,(V16*((LOG(V16))/LOG(2)))) -> -0.1761069445 | Y16: =N16 -> 2112 | Z16: =COUNTIF(L34:L60,Y16) -> 0 | AA16: =Z16/(AB4-Z20) -> 0 | AB16: =IF(AA16=0,0,(AA16*((LOG(AA16))/LOG(2)))) -> 0 | AD16: =N16 -> 2112 | AE16: =COUNTIF(L61:L87,AD16) -> 1 | AF16: =AE16/(AG4-AE20) -> 0.03846153846 | AG16: =IF(AF16=0,0,(AF16*((LOG(AF16))/LOG(2)))) -> -0.180786143 | AI16: =N16 -> 2112 | AJ16: =COUNTIF(L88:L114,AI16) -> 1 | AK16: =AJ16/(AL4-AJ20) -> 0.03846153846 | AL16: =IF(AK16=0,0,(AK16*((LOG(AK16))/LOG(2)))) -> -0.180786143 | AN16: =N16 -> 2112 | AO16: =COUNTIF(L115:L141,AN16) -> 1 | AP16: =AO16/(AQ4-AO20) -> 0.03703703704 | AQ16: =IF(AP16=0,0,(AP16*((LOG(AP16))/LOG(2)))) -> -0.1761069445 | AS16: =N16 -> 2112 | AT16: =COUNTIF(L142:L168,AS16) -> 1 | AU16: =AT16/(AV4-AT20) -> 0.04 | AV16: =IF(AU16=0,0,(AU16*((LOG(AU16))/LOG(2)))) -> -0.1857542476
A17: 12 | B17: 1510 | C17: 23 | D17: 1520 | E17: 24 | F17: 1524 | G17: 23 | H17: 1530 | K17: 0 | L17: 1222 | N17: 2121 | O17: =COUNTIF($L$7:$L$500,N17) -> 0 | P17: =O17/$Q$4 -> 0 | Q17: =IF(P17=0,0,(P17*((LOG(P17))/LOG(2)))) -> 0 | T17: =N17 -> 2121 | U17: =COUNTIF(L7:L33,T17) -> 0 | V17: =U17/(W4-U20) -> 0 | W17: =IF(V17=0,0,(V17*((LOG(V17))/LOG(2)))) -> 0 | Y17: =N17 -> 2121 | Z17: =COUNTIF(L34:L60,Y17) -> 0 | AA17: =Z17/(AB4-Z20) -> 0 | AB17: =IF(AA17=0,0,(AA17*((LOG(AA17))/LOG(2)))) -> 0 | AD17: =N17 -> 2121 | AE17: =COUNTIF(L61:L87,AD17) -> 0 | AF17: =AE17/(AG4-AE20) -> 0 | AG17: =IF(AF17=0,0,(AF17*((LOG(AF17))/LOG(2)))) -> 0 | AI17: =N17 -> 2121 | AJ17: =COUNTIF(L88:L114,AI17) -> 0 | AK17: =AJ17/(AL4-AJ20) -> 0 | AL17: =IF(AK17=0,0,(AK17*((LOG(AK17))/LOG(2)))) -> 0 | AN17: =N17 -> 2121 | AO17: =COUNTIF(L115:L141,AN17) -> 0 | AP17: =AO17/(AQ4-AO20) -> 0 | AQ17: =IF(AP17=0,0,(AP17*((LOG(AP17))/LOG(2)))) -> 0 | AS17: =N17 -> 2121 | AT17: =COUNTIF(L142:L168,AS17) -> 0 | AU17: =AT17/(AV4-AT20) -> 0 | AV17: =IF(AU17=0,0,(AU17*((LOG(AU17))/LOG(2)))) -> 0
A18: 12 | B18: 1632 | C18: 23 | D18: 1644 | E18: 24 | F18: 1654 | G18: 23 | H18: 1658 | K18: 0 | L18: 1222 | N18: 2122 | O18: =COUNTIF($L$7:$L$500,N18) -> 10 | P18: =O18/$Q$4 -> 0.06172839506 | Q18: =IF(P18=0,0,(P18*((LOG(P18))/LOG(2)))) -> -0.2480198709 | T18: =N18 -> 2122 | U18: =COUNTIF(L7:L33,T18) -> 1 | V18: =U18/(W4-U20) -> 0.03703703704 | W18: =IF(V18=0,0,(V18*((LOG(V18))/LOG(2)))) -> -0.1761069445 | Y18: =N18 -> 2122 | Z18: =COUNTIF(L34:L60,Y18) -> 3 | AA18: =Z18/(AB4-Z20) -> 0.1153846154 | AB18: =IF(AA18=0,0,(AA18*((LOG(AA18))/LOG(2)))) -> -0.3594781405 | AD18: =N18 -> 2122 | AE18: =COUNTIF(L61:L87,AD18) -> 2 | AF18: =AE18/(AG4-AE20) -> 0.07692307692 | AG18: =IF(AF18=0,0,(AF18*((LOG(AF18))/LOG(2)))) -> -0.2846492091 | AI18: =N18 -> 2122 | AJ18: =COUNTIF(L88:L114,AI18) -> 1 | AK18: =AJ18/(AL4-AJ20) -> 0.03846153846 | AL18: =IF(AK18=0,0,(AK18*((LOG(AK18))/LOG(2)))) -> -0.180786143 | AN18: =N18 -> 2122 | AO18: =COUNTIF(L115:L141,AN18) -> 1 | AP18: =AO18/(AQ4-AO20) -> 0.03703703704 | AQ18: =IF(AP18=0,0,(AP18*((LOG(AP18))/LOG(2)))) -> -0.1761069445 | AS18: =N18 -> 2122 | AT18: =COUNTIF(L142:L168,AS18) -> 2 | AU18: =AT18/(AV4-AT20) -> 0.08 | AV18: =IF(AU18=0,0,(AU18*((LOG(AU18))/LOG(2)))) -> -0.2915084952
A19: 12 | B19: 1758 | C19: 23 | D19: 1763 | E19: 24 | F19: 1766 | G19: 23 | H19: 1772 | K19: 0 | L19: 1222 | N19: 2211 | O19: =COUNTIF($L$7:$L$500,N19) -> 1 | P19: =O19/$Q$4 -> 0.006172839506 | Q19: =IF(P19=0,0,(P19*((LOG(P19))/LOG(2)))) -> -0.04530771607 | T19: =N19 -> 2211 | U19: =COUNTIF(L7:L33,T19) -> 0 | V19: =U19/(W4-U20) -> 0 | W19: =IF(V19=0,0,(V19*((LOG(V19))/LOG(2)))) -> 0 | Y19: =N19 -> 2211 | Z19: =COUNTIF(L34:L60,Y19) -> 0 | AA19: =Z19/(AB4-Z20) -> 0 | AB19: =IF(AA19=0,0,(AA19*((LOG(AA19))/LOG(2)))) -> 0 | AD19: =N19 -> 2211 | AE19: =COUNTIF(L61:L87,AD19) -> 0 | AF19: =AE19/(AG4-AE20) -> 0 | AG19: =IF(AF19=0,0,(AF19*((LOG(AF19))/LOG(2)))) -> 0 | AI19: =N19 -> 2211 | AJ19: =COUNTIF(L88:L114,AI19) -> 0 | AK19: =AJ19/(AL4-AJ20) -> 0 | AL19: =IF(AK19=0,0,(AK19*((LOG(AK19))/LOG(2)))) -> 0 | AN19: =N19 -> 2211 | AO19: =COUNTIF(L115:L141,AN19) -> 1 | AP19: =AO19/(AQ4-AO20) -> 0.03703703704 | AQ19: =IF(AP19=0,0,(AP19*((LOG(AP19))/LOG(2)))) -> -0.1761069445 | AS19: =N19 -> 2211 | AT19: =COUNTIF(L142:L168,AS19) -> 0 | AU19: =AT19/(AV4-AT20) -> 0 | AV19: =IF(AU19=0,0,(AU19*((LOG(AU19))/LOG(2)))) -> 0
A20: 21 | B20: 1874 | C20: 21 | D20: 1880 | E20: 22 | F20: 1886 | G20: 23 | H20: 1895 | K20: 0 | L20: 2222 | N20: 2212 | O20: =COUNTIF($L$7:$L$500,N20) -> 5 | P20: =O20/$Q$4 -> 0.03086419753 | Q20: =IF(P20=0,0,(P20*((LOG(P20))/LOG(2)))) -> -0.154874133 | T20: =N20 -> 2212 | U20: =COUNTIF(L7:L33,T20) -> 0 | Y20: =N20 -> 2212 | Z20: =COUNTIF(L34:L60,Y20) -> 1 | AD20: =N20 -> 2212 | AE20: =COUNTIF(L61:L87,AD20) -> 1 | AI20: =N20 -> 2212 | AJ20: =COUNTIF(L88:L114,AI20) -> 1 | AN20: =N20 -> 2212 | AO20: =COUNTIF(L115:L141,AN20) -> 0 | AS20: =N20 -> 2212 | AT20: =COUNTIF(L142:L168,AS20) -> 2
A21: 21 | B21: 1995 | C21: 21 | D21: 1999 | E21: 22 | F21: 2011 | G21: 23 | H21: 2016 | K21: 0 | L21: 2222 | N21: 2221 | O21: =COUNTIF($L$7:$L$500,N21) -> 4 | P21: =O21/$Q$4 -> 0.02469135802 | Q21: =IF(P21=0,0,(P21*((LOG(P21))/LOG(2)))) -> -0.1318481482 | T21: =N21 -> 2221 | U21: =COUNTIF(L7:L33,T21) -> 0 | V21: =U21/(W4-U20) -> 0 | W21: =IF(V21=0,0,(V21*((LOG(V21))/LOG(2)))) -> 0 | Y21: =N21 -> 2221 | Z21: =COUNTIF(L34:L60,Y21) -> 1 | AA21: =Z21/(AB4-Z20) -> 0.03846153846 | AB21: =IF(AA21=0,0,(AA21*((LOG(AA21))/LOG(2)))) -> -0.180786143 | AD21: =N21 -> 2221 | AE21: =COUNTIF(L61:L87,AD21) -> 1 | AF21: =AE21/(AG4-AE20) -> 0.03846153846 | AG21: =IF(AF21=0,0,(AF21*((LOG(AF21))/LOG(2)))) -> -0.180786143 | AI21: =N21 -> 2221 | AJ21: =COUNTIF(L88:L114,AI21) -> 2 | AK21: =AJ21/(AL4-AJ20) -> 0.07692307692 | AL21: =IF(AK21=0,0,(AK21*((LOG(AK21))/LOG(2)))) -> -0.2846492091 | AN21: =N21 -> 2221 | AO21: =COUNTIF(L115:L141,AN21) -> 0 | AP21: =AO21/(AQ4-AO20) -> 0 | AQ21: =IF(AP21=0,0,(AP21*((LOG(AP21))/LOG(2)))) -> 0 | AS21: =N21 -> 2221 | AT21: =COUNTIF(L142:L168,AS21) -> 0 | AU21: =AT21/(AV4-AT20) -> 0 | AV21: =IF(AU21=0,0,(AU21*((LOG(AU21))/LOG(2)))) -> 0
A22: 21 | B22: 2114 | C22: 21 | D22: 2130 | E22: 22 | F22: 2143 | G22: 23 | H22: 2149 | K22: 0 | L22: 2222 | N22: 2222 | O22: =COUNTIF($L$7:$L$500,N22) -> 38 | P22: =O22/$Q$4 -> 0.2345679012 | Q22: =IF(P22=0,0,(P22*((LOG(P22))/LOG(2)))) -> -0.4906978679 | T22: =N22 -> 2222 | U22: =COUNTIF(L7:L33,T22) -> 9 | V22: =U22/(W4-U20) -> 0.3333333333 | W22: =IF(V22=0,0,(V22*((LOG(V22))/LOG(2)))) -> -0.5283208336 | Y22: =N22 -> 2222 | Z22: =COUNTIF(L34:L60,Y22) -> 6 | AA22: =Z22/(AB4-Z20) -> 0.2307692308 | AB22: =IF(AA22=0,0,(AA22*((LOG(AA22))/LOG(2)))) -> -0.4881870502 | AD22: =N22 -> 2222 | AE22: =COUNTIF(L61:L87,AD22) -> 5 | AF22: =AE22/(AG4-AE20) -> 0.1923076923 | AG22: =IF(AF22=0,0,(AF22*((LOG(AF22))/LOG(2)))) -> -0.4574060814 | AI22: =N22 -> 2222 | AJ22: =COUNTIF(L88:L114,AI22) -> 5 | AK22: =AJ22/(AL4-AJ20) -> 0.1923076923 | AL22: =IF(AK22=0,0,(AK22*((LOG(AK22))/LOG(2)))) -> -0.4574060814 | AN22: =N22 -> 2222 | AO22: =COUNTIF(L115:L141,AN22) -> 7 | AP22: =AO22/(AQ4-AO20) -> 0.2592592593 | AQ22: =IF(AP22=0,0,(AP22*((LOG(AP22))/LOG(2)))) -> -0.5049158541 | AS22: =N22 -> 2222 | AT22: =COUNTIF(L142:L168,AS22) -> 6 | AU22: =AT22/(AV4-AT20) -> 0.24 | AV22: =IF(AU22=0,0,(AU22*((LOG(AU22))/LOG(2)))) -> -0.4941344854
A23: 21 | B23: 2245 | C23: 21 | D23: 2248 | E23: 22 | F23: 2254 | G23: 23 | H23: 2261 | K23: 0 | L23: 2222 | P23: =SUM(P7:P22) -> 1 | Q23: =-SUM(Q7:Q22) -> 2.831941701 | V23: =SUM(V7:V22) -> 1 | W23: =-SUM(W7:W22) -> 1.724061801 | AA23: =SUM(AA7:AA22) -> 1 | AB23: =-SUM(AB7:AB22) -> 2.690260391 | AF23: =SUM(AF7:AF22) -> 1 | AG23: =-SUM(AG7:AG22) -> 2.716447067 | AK23: =SUM(AK7:AK22) -> 1 | AL23: =-SUM(AL7:AL22) -> 2.716447067 | AP23: =SUM(AP7:AP22) -> 1 | AQ23: =-SUM(AQ7:AQ22) -> 2.466352319 | AU23: =SUM(AU7:AU22) -> 1 | AV23: =-SUM(AV7:AV22) -> 2.77868857
A24: 12 | B24: 2364 | C24: 23 | D24: 2369 | E24: 24 | F24: 2375 | G24: 23 | H24: 2381 | K24: 0 | L24: 1222 | P24: U= | Q24: =Q23/(LOG(Q4)/LOG(2)) -> 0.3858310047 | V24: U1= | W24: =W23/(LOG(W4)/LOG(2)) -> 0.3625872958 | AA24: U2= | AB24: =AB23/(LOG(AB4)/LOG(2)) -> 0.5657884418 | AF24: U3= | AG24: =AG23/(LOG(AG4)/LOG(2)) -> 0.5712957596 | AK24: U4= | AL24: =AL23/(LOG(AL4)/LOG(2)) -> 0.5712957596 | AP24: U5= | AQ24: =AQ23/(LOG(AQ4)/LOG(2)) -> 0.5186983536 | AU24: U6= | AV24: =AV23/(LOG(AV4)/LOG(2)) -> 0.584385765
A25: 21 | B25: 2607 | C25: 21 | D25: 2612 | E25: 22 | F25: 2619 | G25: 23 | H25: 2627 | K25: 0 | L25: 2222
A26: 21 | B26: 2723 | C26: 21 | D26: 2735 | E26: 22 | F26: 2741 | G26: 23 | H26: 2764 | K26: 0 | L26: 2222
A27: 21 | B27: 2860 | C27: 12 | D27: 2867 | E27: 13 | F27: 2872 | G27: 23 | H27: 2875 | K27: 0 | L27: 2112 | N27: Total Target Seq
A28: 12 | B28: 2973 | C28: 23 | D28: 2978 | E28: 13 | F28: 2983 | G28: 23 | H28: 2987 | K28: 0 | L28: 1212 | N28: =COUNTIF(L7:L168,G3) -> 5 | P28: 27 | Q28: 27 | R28: 27 | S28: 27 | T28: 27 | U28: 27
A29: 12 | B29: 3083 | C29: 23 | D29: 3095 | E29: 24 | F29: 3101 | G29: 23 | H29: 3108 | K29: 0 | L29: 1222 | P29: % of reinforcement given in 6 equal intervals based on number of trials
A30: 12 | B30: 3470 | C30: 23 | D30: 3480 | E30: 24 | F30: 3487 | G30: 23 | H30: 3494 | K30: 0 | L30: 1222 | P30: %_1 | Q30: %_2 | R30: %_3 | S30: %_4 | T30: %_5 | U30: %_6
A31: 12 | B31: 3599 | C31: 23 | D31: 3608 | E31: 24 | F31: 3614 | G31: 23 | H31: 3621 | K31: 0 | L31: 1222 | O31: target sequence | P31: =$G$3 -> 2212 | Q31: =$G$3 -> 2212 | R31: =$G$3 -> 2212 | S31: =$G$3 -> 2212 | T31: =$G$3 -> 2212 | U31: =$G$3 -> 2212
A32: 21 | B32: 3724 | C32: 21 | D32: 3728 | E32: 22 | F32: 3732 | G32: 23 | H32: 3738 | K32: 0 | L32: 2222 | O32: total reinforcement | P32: =U20 -> 0 | Q32: =Z20 -> 1 | R32: =AE20 -> 1 | S32: =AJ20 -> 1 | T32: =AO20 -> 0 | U32: =AT20 -> 2
A33: 21 | B33: 3834 | C33: 12 | D33: 3838 | E33: 24 | F33: 3840 | G33: 23 | H33: 3845 | K33: 0 | L33: 2122 | O33: % target
A34: 12 | B34: 3940 | C34: 23 | D34: 3951 | E34: 24 | F34: 3964 | G34: 23 | H34: 3969 | K34: 0 | L34: 1222 | O34: CCRF
A35: 21 | B35: 4085 | C35: 21 | D35: 4090 | E35: 22 | F35: 4101 | G35: 23 | H35: 4109 | K35: 0 | L35: 2222 | O35: % CCRf
A36: 21 | B36: 4214 | C36: 21 | D36: 4218 | E36: 22 | F36: 4225 | G36: 14 | H36: 4250 | K36: 0 | L36: 2221 | O36: average response rate | P36: =H33/P28 -> 142.4074074 | Q36: =(H60-H33)/Q28 -> 128.1851852 | R36: =(H87-H60)/R28 -> 125.5185185 | S36: =(H114-H87)/S28 -> 119.6296296 | T36: =(H141-H114)/T28 -> 154.962963 | U36: =(H168-H141)/U28 -> 215.7777778
A37: 21 | B37: 4345 | C37: 21 | D37: 4350 | E37: 11 | F37: 4354 | G37: 21 | H37: 4361 | K37: 0 | L37: 2212
A38: 12 | B38: 4590 | C38: 23 | D38: 4600 | E38: 24 | F38: 4605 | G38: 23 | H38: 4613 | K38: 0 | L38: 1222
A39: 21 | B39: 4722 | C39: 21 | D39: 4729 | E39: 22 | F39: 4744 | G39: 23 | H39: 4765 | K39: 0 | L39: 2222
A40: 21 | B40: 4869 | C40: 21 | D40: 4876 | E40: 22 | F40: 4882 | G40: 23 | H40: 4887 | K40: 0 | L40: 2222
A41: 12 | B41: 4981 | C41: 14 | D41: 4998 | E41: 24 | F41: 5009 | G41: 23 | H41: 5014 | K41: 0 | L41: 1122
A42: 12 | B42: 5109 | C42: 23 | D42: 5127 | E42: 24 | F42: 5136 | G42: 23 | H42: 5142 | K42: 0 | L42: 1222
A43: 12 | B43: 5240 | C43: 14 | D43: 5247 | E43: 24 | F43: 5253 | G43: 23 | H43: 5256 | K43: 0 | L43: 1122
A44: 21 | B44: 5351 | C44: 21 | D44: 5356 | E44: 22 | F44: 5363 | G44: 23 | H44: 5371 | K44: 0 | L44: 2222
A45: 12 | B45: 5464 | C45: 23 | D45: 5474 | E45: 24 | F45: 5483 | G45: 23 | H45: 5487 | K45: 0 | L45: 1222
A46: 12 | B46: 5584 | C46: 23 | D46: 5592 | E46: 13 | F46: 5604 | G46: 23 | H46: 5609 | K46: 0 | L46: 1212
A47: 12 | B47: 5708 | C47: 23 | D47: 5717 | E47: 24 | F47: 5727 | G47: 23 | H47: 5734 | K47: 0 | L47: 1222
A48: 21 | B48: 5831 | C48: 12 | D48: 5843 | E48: 24 | F48: 5850 | G48: 23 | H48: 5854 | K48: 0 | L48: 2122
A49: 21 | B49: 5967 | C49: 12 | D49: 5973 | E49: 24 | F49: 5978 | G49: 23 | H49: 5989 | K49: 0 | L49: 2122
A50: 12 | B50: 6093 | C50: 23 | D50: 6103 | E50: 24 | F50: 6107 | G50: 23 | H50: 6115 | K50: 0 | L50: 1222
A51: 12 | B51: 6211 | C51: 14 | D51: 6215 | E51: 24 | F51: 6219 | G51: 23 | H51: 6228 | K51: 0 | L51: 1122
A52: 12 | B52: 6321 | C52: 14 | D52: 6324 | E52: 24 | F52: 6332 | G52: 23 | H52: 6335 | K52: 0 | L52: 1122
A53: 12 | B53: 6435 | C53: 23 | D53: 6442 | E53: 24 | F53: 6455 | G53: 23 | H53: 6462 | K53: 0 | L53: 1222
A54: 21 | B54: 6565 | C54: 21 | D54: 6569 | E54: 22 | F54: 6577 | G54: 23 | H54: 6583 | K54: 0 | L54: 2222
A55: 12 | B55: 6676 | C55: 14 | D55: 6690 | E55: 24 | F55: 6696 | G55: 14 | H55: 6704 | K55: 0 | L55: 1121
A56: 21 | B56: 6797 | C56: 21 | D56: 6803 | E56: 22 | F56: 6809 | G56: 23 | H56: 6816 | K56: 0 | L56: 2222
A57: 21 | B57: 6925 | C57: 12 | D57: 6930 | E57: 24 | F57: 6955 | G57: 23 | H57: 6965 | K57: 0 | L57: 2122
A58: 12 | B58: 7058 | C58: 23 | D58: 7062 | E58: 24 | F58: 7067 | G58: 14 | H58: 7069 | K58: 0 | L58: 1221
A59: 12 | B59: 7162 | C59: 23 | D59: 7178 | E59: 24 | F59: 7181 | G59: 23 | H59: 7190 | K59: 0 | L59: 1222
A60: 12 | B60: 7285 | C60: 14 | D60: 7291 | E60: 13 | F60: 7304 | G60: 23 | H60: 7306 | K60: 0 | L60: 1112
A61: 12 | B61: 7407 | C61: 23 | D61: 7411 | E61: 24 | F61: 7421 | G61: 23 | H61: 7425 | K61: 0 | L61: 1222
A62: 21 | B62: 7532 | C62: 21 | D62: 7538 | E62: 22 | F62: 7544 | G62: 23 | H62: 7562 | K62: 0 | L62: 2222
A63: 21 | B63: 7668 | C63: 21 | D63: 7671 | E63: 22 | F63: 7674 | G63: 23 | H63: 7678 | K63: 0 | L63: 2222
A64: 12 | B64: 7785 | C64: 23 | D64: 7798 | E64: 24 | F64: 7801 | G64: 23 | H64: 7805 | K64: 0 | L64: 1222
A65: 21 | B65: 7899 | C65: 12 | D65: 7918 | E65: 13 | F65: 7927 | G65: 23 | H65: 7934 | K65: 0 | L65: 2112
A66: 12 | B66: 8031 | C66: 23 | D66: 8037 | E66: 24 | F66: 8044 | G66: 23 | H66: 8050 | K66: 0 | L66: 1222
A67: 21 | B67: 8155 | C67: 21 | D67: 8162 | E67: 22 | F67: 8166 | G67: 23 | H67: 8172 | K67: 0 | L67: 2222
A68: 12 | B68: 8272 | C68: 23 | D68: 8277 | E68: 24 | F68: 8282 | G68: 14 | H68: 8299 | K68: 0 | L68: 1221
A69: 12 | B69: 8396 | C69: 14 | D69: 8398 | E69: 24 | F69: 8406 | G69: 23 | H69: 8413 | K69: 0 | L69: 1122
A70: 21 | B70: 8518 | C70: 12 | D70: 8521 | E70: 24 | F70: 8524 | G70: 23 | H70: 8530 | K70: 0 | L70: 2122
A71: 12 | B71: 8629 | C71: 14 | D71: 8634 | E71: 24 | F71: 8641 | G71: 14 | H71: 8646 | K71: 0 | L71: 1121
A72: 12 | B72: 8745 | C72: 23 | D72: 8748 | E72: 24 | F72: 8755 | G72: 23 | H72: 8764 | K72: 0 | L72: 1222
A73: 12 | B73: 8864 | C73: 14 | D73: 8866 | E73: 13 | F73: 8871 | G73: 23 | H73: 8876 | K73: 0 | L73: 1112
A74: 21 | B74: 8971 | C74: 21 | D74: 8976 | E74: 11 | F74: 8980 | G74: 21 | H74: 8986 | K74: 0 | L74: 2212
A75: 12 | B75: 9191 | C75: 23 | D75: 9204 | E75: 24 | F75: 9224 | G75: 23 | H75: 9232 | K75: 0 | L75: 1222
A76: 12 | B76: 9341 | C76: 14 | D76: 9346 | E76: 24 | F76: 9358 | G76: 23 | H76: 9366 | K76: 0 | L76: 1122
A77: 21 | B77: 9478 | C77: 21 | D77: 9483 | E77: 22 | F77: 9489 | G77: 23 | H77: 9495 | K77: 0 | L77: 2222
A78: 12 | B78: 9595 | C78: 14 | D78: 9606 | E78: 24 | F78: 9608 | G78: 23 | H78: 9612 | K78: 0 | L78: 1122
A79: 12 | B79: 9707 | C79: 23 | D79: 9710 | E79: 24 | F79: 9720 | G79: 23 | H79: 9725 | K79: 0 | L79: 1222
A80: 12 | B80: 9822 | C80: 23 | D80: 9828 | E80: 24 | F80: 9839 | G80: 23 | H80: 9850 | K80: 0 | L80: 1222
A81: 21 | B81: 9958 | C81: 21 | D81: 9966 | E81: 22 | F81: 9971 | G81: 23 | H81: 9977 | K81: 0 | L81: 2222
A82: 12 | B82: 10071 | C82: 23 | D82: 10075 | E82: 24 | F82: 10087 | G82: 23 | H82: 10094 | K82: 0 | L82: 1222
A83: 12 | B83: 10195 | C83: 23 | D83: 10202 | E83: 24 | F83: 10213 | G83: 23 | H83: 10218 | K83: 0 | L83: 1222
A84: 12 | B84: 10312 | C84: 23 | D84: 10320 | E84: 24 | F84: 10326 | G84: 23 | H84: 10333 | K84: 0 | L84: 1222
A85: 12 | B85: 10427 | C85: 23 | D85: 10436 | E85: 13 | F85: 10441 | G85: 23 | H85: 10450 | K85: 0 | L85: 1212
A86: 21 | B86: 10555 | C86: 12 | D86: 10561 | E86: 24 | F86: 10566 | G86: 23 | H86: 10574 | K86: 0 | L86: 2122
A87: 21 | B87: 10679 | C87: 21 | D87: 10684 | E87: 22 | F87: 10691 | G87: 14 | H87: 10695 | K87: 0 | L87: 2221
A88: 21 | B88: 10795 | C88: 21 | D88: 10802 | E88: 22 | F88: 10807 | G88: 23 | H88: 10816 | K88: 0 | L88: 2222
A89: 21 | B89: 10911 | C89: 21 | D89: 10916 | E89: 22 | F89: 10923 | G89: 23 | H89: 10931 | K89: 0 | L89: 2222
A90: 12 | B90: 11023 | C90: 23 | D90: 11027 | E90: 24 | F90: 11031 | G90: 23 | H90: 11034 | K90: 0 | L90: 1222
A91: 12 | B91: 11130 | C91: 23 | D91: 11138 | E91: 24 | F91: 11143 | G91: 23 | H91: 11150 | K91: 0 | L91: 1222
A92: 21 | B92: 11258 | C92: 12 | D92: 11260 | E92: 13 | F92: 11265 | G92: 23 | H92: 11268 | K92: 0 | L92: 2112
A93: 12 | B93: 11371 | C93: 23 | D93: 11378 | E93: 24 | F93: 11382 | G93: 23 | H93: 11392 | K93: 0 | L93: 1222
A94: 12 | B94: 11485 | C94: 14 | D94: 11489 | E94: 13 | F94: 11493 | G94: 23 | H94: 11501 | K94: 0 | L94: 1112
A95: 21 | B95: 11597 | C95: 21 | D95: 11604 | E95: 22 | F95: 11610 | G95: 23 | H95: 11623 | K95: 0 | L95: 2222
A96: 21 | B96: 11726 | C96: 21 | D96: 11729 | E96: 11 | F96: 11733 | G96: 21 | H96: 11736 | K96: 0 | L96: 2212
A97: 12 | B97: 11859 | C97: 23 | D97: 11872 | E97: 24 | F97: 11875 | G97: 23 | H97: 11880 | K97: 0 | L97: 1222
A98: 12 | B98: 11981 | C98: 23 | D98: 11991 | E98: 24 | F98: 11997 | G98: 14 | H98: 12011 | K98: 0 | L98: 1221
A99: 21 | B99: 12108 | C99: 12 | D99: 12112 | E99: 24 | F99: 12118 | G99: 23 | H99: 12124 | K99: 0 | L99: 2122
A100: 12 | B100: 12218 | C100: 14 | D100: 12232 | E100: 24 | F100: 12238 | G100: 14 | H100: 12247 | K100: 0 | L100: 1121
A101: 12 | B101: 12347 | C101: 23 | D101: 12359 | E101: 24 | F101: 12369 | G101: 23 | H101: 12376 | K101: 0 | L101: 1222
A102: 12 | B102: 12475 | C102: 23 | D102: 12486 | E102: 24 | F102: 12490 | G102: 23 | H102: 12495 | K102: 0 | L102: 1222
A103: 12 | B103: 12589 | C103: 14 | D103: 12603 | E103: 24 | F103: 12609 | G103: 23 | H103: 12615 | K103: 0 | L103: 1122
A104: 12 | B104: 12711 | C104: 23 | D104: 12718 | E104: 24 | F104: 12723 | G104: 23 | H104: 12730 | K104: 0 | L104: 1222
A105: 12 | B105: 12827 | C105: 23 | D105: 12833 | E105: 24 | F105: 12837 | G105: 23 | H105: 12847 | K105: 0 | L105: 1222
A106: 12 | B106: 12942 | C106: 23 | D106: 12949 | E106: 24 | F106: 12956 | G106: 23 | H106: 12961 | K106: 0 | L106: 1222
A107: 12 | B107: 13056 | C107: 14 | D107: 13062 | E107: 24 | F107: 13070 | G107: 23 | H107: 13076 | K107: 0 | L107: 1122
A108: 12 | B108: 13169 | C108: 14 | D108: 13172 | E108: 13 | F108: 13178 | G108: 14 | H108: 13181 | K108: 0 | L108: 1111
A109: 21 | B109: 13283 | C109: 21 | D109: 13295 | E109: 22 | F109: 13303 | G109: 23 | H109: 13315 | K109: 0 | L109: 2222
A110: 21 | B110: 13407 | C110: 21 | D110: 13413 | E110: 22 | F110: 13419 | G110: 23 | H110: 13425 | K110: 0 | L110: 2222
A111: 21 | B111: 13521 | C111: 21 | D111: 13526 | E111: 22 | F111: 13534 | G111: 14 | H111: 13553 | K111: 0 | L111: 2221
A112: 12 | B112: 13651 | C112: 23 | D112: 13667 | E112: 24 | F112: 13671 | G112: 23 | H112: 13681 | K112: 0 | L112: 1222
A113: 21 | B113: 13780 | C113: 21 | D113: 13787 | E113: 22 | F113: 13790 | G113: 14 | H113: 13794 | K113: 0 | L113: 2221
A114: 12 | B114: 13903 | C114: 14 | D114: 13916 | E114: 24 | F114: 13920 | G114: 23 | H114: 13925 | K114: 0 | L114: 1122
A115: 12 | B115: 14025 | C115: 23 | D115: 14033 | E115: 24 | F115: 14042 | G115: 23 | H115: 14048 | K115: 0 | L115: 1222
A116: 21 | B116: 14149 | C116: 21 | D116: 14161 | E116: 22 | F116: 14167 | G116: 23 | H116: 14175 | K116: 0 | L116: 2222
A117: 12 | B117: 14273 | C117: 14 | D117: 14278 | E117: 24 | F117: 14282 | G117: 23 | H117: 14287 | K117: 0 | L117: 1122
A118: 21 | B118: 14385 | C118: 21 | D118: 14389 | E118: 22 | F118: 14393 | G118: 23 | H118: 14399 | K118: 0 | L118: 2222
A119: 12 | B119: 14507 | C119: 14 | D119: 14510 | E119: 24 | F119: 14518 | G119: 23 | H119: 14525 | K119: 0 | L119: 1122
A120: 21 | B120: 14628 | C120: 21 | D120: 14632 | E120: 22 | F120: 14640 | G120: 23 | H120: 14648 | K120: 0 | L120: 2222
A121: 21 | B121: 14740 | C121: 12 | D121: 14745 | E121: 24 | F121: 14749 | G121: 23 | H121: 14755 | K121: 0 | L121: 2122
A122: 12 | B122: 14857 | C122: 23 | D122: 14859 | E122: 24 | F122: 14869 | G122: 23 | H122: 14877 | K122: 0 | L122: 1222
A123: 21 | B123: 14980 | C123: 21 | D123: 14985 | E123: 22 | F123: 14990 | G123: 23 | H123: 14995 | K123: 0 | L123: 2222
A124: 12 | B124: 15088 | C124: 14 | D124: 15096 | E124: 24 | F124: 15102 | G124: 23 | H124: 15106 | K124: 0 | L124: 1122
A125: 12 | B125: 15208 | C125: 14 | D125: 15209 | E125: 13 | F125: 15212 | G125: 23 | H125: 15246 | K125: 0 | L125: 1112
A126: 12 | B126: 15341 | C126: 23 | D126: 15346 | E126: 24 | F126: 15351 | G126: 23 | H126: 15355 | K126: 0 | L126: 1222
A127: 12 | B127: 15456 | C127: 14 | D127: 15466 | E127: 24 | F127: 15483 | G127: 23 | H127: 15485 | K127: 0 | L127: 1122
A128: 21 | B128: 15585 | C128: 21 | D128: 15588 | E128: 22 | F128: 15593 | G128: 23 | H128: 15599 | K128: 0 | L128: 2222
A129: 21 | B129: 15693 | C129: 21 | D129: 15699 | E129: 22 | F129: 15707 | G129: 23 | H129: 15714 | K129: 0 | L129: 2222
A130: 21 | B130: 15814 | C130: 21 | D130: 15820 | E130: 11 | F130: 15822 | G130: 12 | H130: 15831 | K130: 0 | L130: 2211
A131: 12 | B131: 15925 | C131: 23 | D131: 15936 | E131: 24 | F131: 15943 | G131: 23 | H131: 15951 | K131: 0 | L131: 1222
A132: 21 | B132: 16050 | C132: 21 | D132: 16054 | E132: 22 | F132: 16057 | G132: 23 | H132: 16062 | K132: 0 | L132: 2222
A133: 21 | B133: 16166 | C133: 12 | D133: 16172 | E133: 13 | F133: 16190 | G133: 23 | H133: 16198 | K133: 0 | L133: 2112
A134: 12 | B134: 16308 | C134: 14 | D134: 16313 | E134: 24 | F134: 16320 | G134: 23 | H134: 16327 | K134: 0 | L134: 1122
A135: 12 | B135: 16418 | C135: 14 | D135: 16431 | E135: 13 | F135: 16442 | G135: 23 | H135: 16450 | K135: 0 | L135: 1112
A136: 12 | B136: 16547 | C136: 23 | D136: 16551 | E136: 24 | F136: 16556 | G136: 23 | H136: 16562 | K136: 0 | L136: 1222
A137: 12 | B137: 17527 | C137: 23 | D137: 17609 | E137: 24 | F137: 17616 | G137: 23 | H137: 17635 | K137: 0 | L137: 1222
A138: 12 | B138: 17743 | C138: 23 | D138: 17749 | E138: 24 | F138: 17753 | G138: 23 | H138: 17758 | K138: 0 | L138: 1222
A139: 12 | B139: 17859 | C139: 23 | D139: 17867 | E139: 13 | F139: 17873 | G139: 23 | H139: 17876 | K139: 0 | L139: 1212
A140: 12 | B140: 17971 | C140: 23 | D140: 17979 | E140: 24 | F140: 17986 | G140: 23 | H140: 17991 | K140: 0 | L140: 1222
A141: 12 | B141: 18097 | C141: 23 | D141: 18100 | E141: 24 | F141: 18104 | G141: 23 | H141: 18109 | K141: 0 | L141: 1222
A142: 12 | B142: 18210 | C142: 23 | D142: 18218 | E142: 13 | F142: 18219 | G142: 23 | H142: 18224 | K142: 0 | L142: 1212
A143: 12 | B143: 18326 | C143: 23 | D143: 18337 | E143: 24 | F143: 18343 | G143: 23 | H143: 18350 | K143: 0 | L143: 1222
A144: 12 | B144: 18447 | C144: 23 | D144: 18454 | E144: 24 | F144: 18461 | G144: 14 | H144: 18467 | K144: 0 | L144: 1221
A145: 12 | B145: 18568 | C145: 14 | D145: 18573 | E145: 24 | F145: 18582 | G145: 14 | H145: 18586 | K145: 0 | L145: 1121
A146: 21 | B146: 18683 | C146: 21 | D146: 18687 | E146: 22 | F146: 18693 | G146: 23 | H146: 18699 | K146: 0 | L146: 2222
A147: 12 | B147: 18792 | C147: 23 | D147: 18795 | E147: 13 | F147: 18815 | G147: 23 | H147: 18821 | K147: 0 | L147: 1212
A148: 12 | B148: 18926 | C148: 23 | D148: 18931 | E148: 24 | F148: 18935 | G148: 23 | H148: 18941 | K148: 0 | L148: 1222
A149: 21 | B149: 19048 | C149: 12 | D149: 19056 | E149: 13 | F149: 19069 | G149: 23 | H149: 19073 | K149: 0 | L149: 2112
A150: 21 | B150: 19171 | C150: 21 | D150: 19176 | E150: 22 | F150: 19181 | G150: 23 | H150: 19185 | K150: 0 | L150: 2222
A151: 21 | B151: 19280 | C151: 21 | D151: 19287 | E151: 22 | F151: 19292 | G151: 23 | H151: 19299 | K151: 0 | L151: 2222
A152: 12 | B152: 19391 | C152: 14 | D152: 19401 | E152: 24 | F152: 19406 | G152: 23 | H152: 19410 | K152: 0 | L152: 1122
A153: 12 | B153: 19505 | C153: 14 | D153: 19515 | E153: 24 | F153: 19519 | G153: 23 | H153: 19523 | K153: 0 | L153: 1122
A154: 12 | B154: 19862 | C154: 23 | D154: 19881 | E154: 13 | F154: 20011 | G154: 23 | H154: 20024 | K154: 0 | L154: 1212
A155: 21 | B155: 22158 | C155: 21 | D155: 22165 | E155: 22 | F155: 22217 | G155: 23 | H155: 22224 | K155: 0 | L155: 2222
A156: 21 | B156: 22327 | C156: 21 | D156: 22333 | E156: 22 | F156: 22339 | G156: 23 | H156: 22345 | K156: 0 | L156: 2222
A157: 12 | B157: 22438 | C157: 23 | D157: 22440 | E157: 24 | F157: 22450 | G157: 23 | H157: 22455 | K157: 0 | L157: 1222
A158: 21 | B158: 22553 | C158: 12 | D158: 22564 | E158: 24 | F158: 22570 | G158: 23 | H158: 22577 | K158: 0 | L158: 2122
A159: 12 | B159: 22676 | C159: 14 | D159: 22678 | E159: 24 | F159: 22683 | G159: 23 | H159: 22690 | K159: 0 | L159: 1122
A160: 12 | B160: 22787 | C160: 14 | D160: 22797 | E160: 24 | F160: 22800 | G160: 23 | H160: 22806 | K160: 0 | L160: 1122
A161: 21 | B161: 22910 | C161: 21 | D161: 22912 | E161: 11 | F161: 22956 | G161: 21 | H161: 22965 | K161: 0 | L161: 2212
A162: 12 | B162: 23122 | C162: 23 | D162: 23126 | E162: 24 | F162: 23139 | G162: 23 | H162: 23145 | K162: 0 | L162: 1222
A163: 21 | B163: 23238 | C163: 21 | D163: 23249 | E163: 22 | F163: 23255 | G163: 23 | H163: 23261 | K163: 0 | L163: 2222
A164: 21 | B164: 23358 | C164: 12 | D164: 23360 | E164: 24 | F164: 23370 | G164: 23 | H164: 23376 | K164: 0 | L164: 2122
A165: 12 | B165: 23481 | C165: 23 | D165: 23488 | E165: 24 | F165: 23493 | G165: 14 | H165: 23497 | K165: 0 | L165: 1221
A166: 21 | B166: 23599 | C166: 21 | D166: 23605 | E166: 11 | F166: 23624 | G166: 21 | H166: 23629 | K166: 0 | L166: 2212
A167: 12 | B167: 23792 | C167: 23 | D167: 23796 | E167: 24 | F167: 23800 | G167: 23 | H167: 23807 | K167: 0 | L167: 1222
A168: 12 | B168: 23911 | C168: 23 | D168: 23917 | E168: 24 | F168: 23927 | G168: 14 | H168: 23935 | L168: 1221

Sheet !M623A00.Gus
A1: Report for:!M623A00.Gus
A2: Date: | B2: <date>
A3: Hen: | B3: <hen> | F3: Correct Sequence | G3: =Start!J2 -> 2212 | P3: Total Sequences in Data | Q3: =4994-COUNTBLANK(L7:L5000) -> 17 | V3: Total Sequences in Block Data | W3: =COUNTA(L7:L9) -> 3 | AA3: Total Sequences in Block Data | AB3: =COUNTA(L10:L12) -> 3 | AF3: Total Sequences in Block Data | AG3: =COUNTA(L13:L14) -> 2 | AK3: Total Sequences in Block Data | AL3: =COUNTA(L15:L17) -> 3 | AP3: Total Sequences in Block Data | AQ3: =COUNTA(L18:L20) -> 3 | AU3: Total Sequences in Block Data | AV3: =COUNTA(L21:L23) -> 3
P4: Total Sequences in Summary | Q4: =SUM(O7:O22) -> 17 | V4: Total Sequences in Block Summary | W4: =SUM(U7:U22) -> 3 | AA4: Total Sequences in Block Summary | AB4: =SUM(Z7:Z22) -> 3 | AF4: Total Sequences in Block Summary | AG4: =SUM(AE7:AE22) -> 2 | AK4: Total Sequences in Block Summary | AL4: =SUM(AJ7:AJ22) -> 3 | AP4: Total Sequences in Block Summary | AQ4: =SUM(AO7:AO22) -> 3 | AU4: Total Sequences in Block Summary | AV4: =SUM(AT7:AT22) -> 3
T5: Block 1 | Y5: Block 2 | AD5: Block 3 | AI5: Block 4 | AN5: Block 5 | AS5: Block 6
A6: Sequence Component 1 | B6: Time 1 | C6: Sequence Component 2 | D6: Time 2 | E6: Sequence Component 3 | F6: Time 3 | G6: Sequence Component 4 | H6: Time 4 | I6: Sequence Component 5 | J6: Time 5 | K6: Correct? 0=No 1=Yes | L6: Sequence | N6: Frequency | P6: Relative Frequency | Q6: Variability | T6: Frequency | V6: Relative Frequency | W6: Variability | Y6: Frequency | AA6: Relative Frequency | AB6: Variability | AD6: Frequency | AF6: Relative Frequency | AG6: Variability | AI6: Frequency | AK6: Relative Frequency | AL6: Variability | AN6: Frequency | AP6: Relative Frequency | AQ6: Variability | AS6: Frequency | AU6: Relative Frequency | AV6: Variability
A7: 21 | B7: 22 | C7: 21 | D7: 33 | E7: 22 | F7: 44 | G7: 23 | H7: 82 | K7: 0 | L7: 2222 | N7: 1111 | O7: =COUNTIF($L$7:$L$500,N7) -> 0 | P7: =O7/$Q$4 -> 0 | Q7: =IF(P7=0,0,(P7*((LOG(P7))/LOG(2)))) -> 0 | T7: =N7 -> 1111 | U7: =COUNTIF(L7:L9,T7) -> 0 | V7: =U7/(W4-U20) -> 0 | W7: =IF(V7=0,0,(V7*((LOG(V7))/LOG(2)))) -> 0 | Y7: =N7 -> 1111 | Z7: =COUNTIF(L10:L12,Y7) -> 0 | AA7: =Z7/(AB4-Z20) -> 0 | AB7: =IF(AA7=0,0,(AA7*((LOG(AA7))/LOG(2)))) -> 0 | AD7: =N7 -> 1111 | AE7: =COUNTIF(L13:L14,AD7) -> 0 | AF7: =AE7/(AG4-AE20) -> 0 | AG7: =IF(AF7=0,0,(AF7*((LOG(AF7))/LOG(2)))) -> 0 | AI7: =N7 -> 1111 | AJ7: =COUNTIF(L15:L17,AI7) -> 0 | AK7: =AJ7/(AL4-AJ20) -> 0 | AL7: =IF(AK7=0,0,(AK7*((LOG(AK7))/LOG(2)))) -> 0 | AN7: =N7 -> 1111 | AO7: =COUNTIF(L18:L20,AN7) -> 0 | AP7: =AO7/(AQ4-AO20) -> 0 | AQ7: =IF(AP7=0,0,(AP7*((LOG(AP7))/LOG(2)))) -> 0 | AS7: =N7 -> 1111 | AT7: =COUNTIF(L21:L23,AS7) -> 0 | AU7: =AT7/(AV4-AT20) -> 0 | AV7: =IF(AU7=0,0,(AU7*((LOG(AU7))/LOG(2)))) -> 0
A8: 21 | B8: 211 | C8: 21 | D8: 214 | E8: 22 | F8: 239 | G8: 23 | H8: 244 | K8: 0 | L8: 2222 | N8: 1112 | O8: =COUNTIF($L$7:$L$500,N8) -> 0 | P8: =O8/$Q$4 -> 0 | Q8: =IF(P8=0,0,(P8*((LOG(P8))/LOG(2)))) -> 0 | T8: =N8 -> 1112 | U8: =COUNTIF(L7:L9,T8) -> 0 | V8: =U8/(W4-U20) -> 0 | W8: =IF(V8=0,0,(V8*((LOG(V8))/LOG(2)))) -> 0 | Y8: =N8 -> 1112 | Z8: =COUNTIF(L10:L12,Y8) -> 0 | AA8: =Z8/(AB4-Z20) -> 0 | AB8: =IF(AA8=0,0,(AA8*((LOG(AA8))/LOG(2)))) -> 0 | AD8: =N8 -> 1112 | AE8: =COUNTIF(L13:L14,AD8) -> 0 | AF8: =AE8/(AG4-AE20) -> 0 | AG8: =IF(AF8=0,0,(AF8*((LOG(AF8))/LOG(2)))) -> 0 | AI8: =N8 -> 1112 | AJ8: =COUNTIF(L15:L17,AI8) -> 0 | AK8: =AJ8/(AL4-AJ20) -> 0 | AL8: =IF(AK8=0,0,(AK8*((LOG(AK8))/LOG(2)))) -> 0 | AN8: =N8 -> 1112 | AO8: =COUNTIF(L18:L20,AN8) -> 0 | AP8: =AO8/(AQ4-AO20) -> 0 | AQ8: =IF(AP8=0,0,(AP8*((LOG(AP8))/LOG(2)))) -> 0 | AS8: =N8 -> 1112 | AT8: =COUNTIF(L21:L23,AS8) -> 0 | AU8: =AT8/(AV4-AT20) -> 0 | AV8: =IF(AU8=0,0,(AU8*((LOG(AU8))/LOG(2)))) -> 0
A9: 21 | B9: 408 | C9: 21 | D9: 411 | E9: 22 | F9: 416 | G9: 23 | H9: 423 | K9: 0 | L9: 2222 | N9: 1121 | O9: =COUNTIF($L$7:$L$500,N9) -> 0 | P9: =O9/$Q$4 -> 0 | Q9: =IF(P9=0,0,(P9*((LOG(P9))/LOG(2)))) -> 0 | T9: =N9 -> 1121 | U9: =COUNTIF(L7:L9,T9) -> 0 | V9: =U9/(W4-U20) -> 0 | W9: =IF(V9=0,0,(V9*((LOG(V9))/LOG(2)))) -> 0 | Y9: =N9 -> 1121 | Z9: =COUNTIF(L10:L12,Y9) -> 0 | AA9: =Z9/(AB4-Z20) -> 0 | AB9: =IF(AA9=0,0,(AA9*((LOG(AA9))/LOG(2)))) -> 0 | AD9: =N9 -> 1121 | AE9: =COUNTIF(L13:L14,AD9) -> 0 | AF9: =AE9/(AG4-AE20) -> 0 | AG9: =IF(AF9=0,0,(AF9*((LOG(AF9))/LOG(2)))) -> 0 | AI9: =N9 -> 1121 | AJ9: =COUNTIF(L15:L17,AI9) -> 0 | AK9: =AJ9/(AL4-AJ20) -> 0 | AL9: =IF(AK9=0,0,(AK9*((LOG(AK9))/LOG(2)))) -> 0 | AN9: =N9 -> 1121 | AO9: =COUNTIF(L18:L20,AN9) -> 0 | AP9: =AO9/(AQ4-AO20) -> 0 | AQ9: =IF(AP9=0,0,(AP9*((LOG(AP9))/LOG(2)))) -> 0 | AS9: =N9 -> 1121 | AT9: =COUNTIF(L21:L23,AS9) -> 0 | AU9: =AT9/(AV4-AT20) -> 0 | AV9: =IF(AU9=0,0,(AU9*((LOG(AU9))/LOG(2)))) -> 0
A10: 12 | B10: 796 | C10: 23 | D10: 805 | E10: 24 | F10: 814 | G10: 14 | H10: 828 | K10: 0 | L10: 1221 | N10: 1122 | O10: =COUNTIF($L$7:$L$500,N10) -> 2 | P10: =O10/$Q$4 -> 0.1176470588 | Q10: =IF(P10=0,0,(P10*((LOG(P10))/LOG(2)))) -> -0.3632309225 | T10: =N10 -> 1122 | U10: =COUNTIF(L7:L9,T10) -> 0 | V10: =U10/(W4-U20) -> 0 | W10: =IF(V10=0,0,(V10*((LOG(V10))/LOG(2)))) -> 0 | Y10: =N10 -> 1122 | Z10: =COUNTIF(L10:L12,Y10) -> 1 | AA10: =Z10/(AB4-Z20) -> 0.3333333333 | AB10: =IF(AA10=0,0,(AA10*((LOG(AA10))/LOG(2)))) -> -0.5283208336 | AD10: =N10 -> 1122 | AE10: =COUNTIF(L13:L14,AD10) -> 0 | AF10: =AE10/(AG4-AE20) -> 0 | AG10: =IF(AF10=0,0,(AF10*((LOG(AF10))/LOG(2)))) -> 0 | AI10: =N10 -> 1122 | AJ10: =COUNTIF(L15:L17,AI10) -> 1 | AK10: =AJ10/(AL4-AJ20) -> 0.3333333333 | AL10: =IF(AK10=0,0,(AK10*((LOG(AK10))/LOG(2)))) -> -0.5283208336 | AN10: =N10 -> 1122 | AO10: =COUNTIF(L18:L20,AN10) -> 0 | AP10: =AO10/(AQ4-AO20) -> 0 | AQ10: =IF(AP10=0,0,(AP10*((LOG(AP10))/LOG(2)))) -> 0 | AS10: =N10 -> 1122 | AT10: =COUNTIF(L21:L23,AS10) -> 0 | AU10: =AT10/(AV4-AT20) -> 0 | AV10: =IF(AU10=0,0,(AU10*((LOG(AU10))/LOG(2)))) -> 0
A11: 21 | B11: 1123 | C11: 21 | D11: 1131 | E11: 22 | F11: 1156 | G11: 23 | H11: 1163 | K11: 0 | L11: 2222 | N11: 1211 | O11: =COUNTIF($L$7:$L$500,N11) -> 0 | P11: =O11/$Q$4 -> 0 | Q11: =IF(P11=0,0,(P11*((LOG(P11))/LOG(2)))) -> 0 | T11: =N11 -> 1211 | U11: =COUNTIF(L7:L9,T11) -> 0 | V11: =U11/(W4-U20) -> 0 | W11: =IF(V11=0,0,(V11*((LOG(V11))/LOG(2)))) -> 0 | Y11: =N11 -> 1211 | Z11: =COUNTIF(L10:L12,Y11) -> 0 | AA11: =Z11/(AB4-Z20) -> 0 | AB11: =IF(AA11=0,0,(AA11*((LOG(AA11))/LOG(2)))) -> 0 | AD11: =N11 -> 1211 | AE11: =COUNTIF(L13:L14,AD11) -> 0 | AF11: =AE11/(AG4-AE20) -> 0 | AG11: =IF(AF11=0,0,(AF11*((LOG(AF11))/LOG(2)))) -> 0 | AI11: =N11 -> 1211 | AJ11: =COUNTIF(L15:L17,AI11) -> 0 | AK11: =AJ11/(AL4-AJ20) -> 0 | AL11: =IF(AK11=0,0,(AK11*((LOG(AK11))/LOG(2)))) -> 0 | AN11: =N11 -> 1211 | AO11: =COUNTIF(L18:L20,AN11) -> 0 | AP11: =AO11/(AQ4-AO20) -> 0 | AQ11: =IF(AP11=0,0,(AP11*((LOG(AP11))/LOG(2)))) -> 0 | AS11: =N11 -> 1211 | AT11: =COUNTIF(L21:L23,AS11) -> 0 | AU11: =AT11/(AV4-AT20) -> 0 | AV11: =IF(AU11=0,0,(AU11*((LOG(AU11))/LOG(2)))) -> 0
A12: 12 | B12: 1770 | C12: 14 | D12: 1772 | E12: 24 | F12: 1779 | G12: 23 | H12: 1789 | K12: 0 | L12: 1122 | N12: 1212 | O12: =COUNTIF($L$7:$L$500,N12) -> 0 | P12: =O12/$Q$4 -> 0 | Q12: =IF(P12=0,0,(P12*((LOG(P12))/LOG(2)))) -> 0 | T12: =N12 -> 1212 | U12: =COUNTIF(L7:L9,T12) -> 0 | V12: =U12/(W4-U20) -> 0 | W12: =IF(V12=0,0,(V12*((LOG(V12))/LOG(2)))) -> 0 | Y12: =N12 -> 1212 | Z12: =COUNTIF(L10:L12,Y12) -> 0 | AA12: =Z12/(AB4-Z20) -> 0 | AB12: =IF(AA12=0,0,(AA12*((LOG(AA12))/LOG(2)))) -> 0 | AD12: =N12 -> 1212 | AE12: =COUNTIF(L13:L14,AD12) -> 0 | AF12: =AE12/(AG4-AE20) -> 0 | AG12: =IF(AF12=0,0,(AF12*((LOG(AF12))/LOG(2)))) -> 0 | AI12: =N12 -> 1212 | AJ12: =COUNTIF(L15:L17,AI12) -> 0 | AK12: =AJ12/(AL4-AJ20) -> 0 | AL12: =IF(AK12=0,0,(AK12*((LOG(AK12))/LOG(2)))) -> 0 | AN12: =N12 -> 1212 | AO12: =COUNTIF(L18:L20,AN12) -> 0 | AP12: =AO12/(AQ4-AO20) -> 0 | AQ12: =IF(AP12=0,0,(AP12*((LOG(AP12))/LOG(2)))) -> 0 | AS12: =N12 -> 1212 | AT12: =COUNTIF(L21:L23,AS12) -> 0 | AU12: =AT12/(AV4-AT20) -> 0 | AV12: =IF(AU12=0,0,(AU12*((LOG(AU12))/LOG(2)))) -> 0
A13: 21 | B13: 1930 | C13: 21 | D13: 1932 | E13: 22 | F13: 1949 | G13: 23 | H13: 1955 | K13: 0 | L13: 2222 | N13: 1221 | O13: =COUNTIF($L$7:$L$500,N13) -> 1 | P13: =O13/$Q$4 -> 0.05882352941 | Q13: =IF(P13=0,0,(P13*((LOG(P13))/LOG(2)))) -> -0.2404389907 | T13: =N13 -> 1221 | U13: =COUNTIF(L7:L9,T13) -> 0 | V13: =U13/(W4-U20) -> 0 | W13: =IF(V13=0,0,(V13*((LOG(V13))/LOG(2)))) -> 0 | Y13: =N13 -> 1221 | Z13: =COUNTIF(L10:L12,Y13) -> 1 | AA13: =Z13/(AB4-Z20) -> 0.3333333333 | AB13: =IF(AA13=0,0,(AA13*((LOG(AA13))/LOG(2)))) -> -0.5283208336 | AD13: =N13 -> 1221 | AE13: =COUNTIF(L13:L14,AD13) -> 0 | AF13: =AE13/(AG4-AE20) -> 0 | AG13: =IF(AF13=0,0,(AF13*((LOG(AF13))/LOG(2)))) -> 0 | AI13: =N13 -> 1221 | AJ13: =COUNTIF(L15:L17,AI13) -> 0 | AK13: =AJ13/(AL4-AJ20) -> 0 | AL13: =IF(AK13=0,0,(AK13*((LOG(AK13))/LOG(2)))) -> 0 | AN13: =N13 -> 1221 | AO13: =COUNTIF(L18:L20,AN13) -> 0 | AP13: =AO13/(AQ4-AO20) -> 0 | AQ13: =IF(AP13=0,0,(AP13*((LOG(AP13))/LOG(2)))) -> 0 | AS13: =N13 -> 1221 | AT13: =COUNTIF(L21:L23,AS13) -> 0 | AU13: =AT13/(AV4-AT20) -> 0 | AV13: =IF(AU13=0,0,(AU13*((LOG(AU13))/LOG(2)))) -> 0
A14: 21 | B14: 2069 | C14: 21 | D14: 2077 | E14: 22 | F14: 2083 | G14: 23 | H14: 2090 | K14: 0 | L14: 2222 | N14: 1222 | O14: =COUNTIF($L$7:$L$500,N14) -> 0 | P14: =O14/$Q$4 -> 0 | Q14: =IF(P14=0,0,(P14*((LOG(P14))/LOG(2)))) -> 0 | T14: =N14 -> 1222 | U14: =COUNTIF(L7:L9,T14) -> 0 | V14: =U14/(W4-U20) -> 0 | W14: =IF(V14=0,0,(V14*((LOG(V14))/LOG(2)))) -> 0 | Y14: =N14 -> 1222 | Z14: =COUNTIF(L10:L12,Y14) -> 0 | AA14: =Z14/(AB4-Z20) -> 0 | AB14: =IF(AA14=0,0,(AA14*((LOG(AA14))/LOG(2)))) -> 0 | AD14: =N14 -> 1222 | AE14: =COUNTIF(L13:L14,AD14) -> 0 | AF14: =AE14/(AG4-AE20) -> 0 | AG14: =IF(AF14=0,0,(AF14*((LOG(AF14))/LOG(2)))) -> 0 | AI14: =N14 -> 1222 | AJ14: =COUNTIF(L15:L17,AI14) -> 0 | AK14: =AJ14/(AL4-AJ20) -> 0 | AL14: =IF(AK14=0,0,(AK14*((LOG(AK14))/LOG(2)))) -> 0 | AN14: =N14 -> 1222 | AO14: =COUNTIF(L18:L20,AN14) -> 0 | AP14: =AO14/(AQ4-AO20) -> 0 | AQ14: =IF(AP14=0,0,(AP14*((LOG(AP14))/LOG(2)))) -> 0 | AS14: =N14 -> 1222 | AT14: =COUNTIF(L21:L23,AS14) -> 0 | AU14: =AT14/(AV4-AT20) -> 0 | AV14: =IF(AU14=0,0,(AU14*((LOG(AU14))/LOG(2)))) -> 0
A15: 21 | B15: 2200 | C15: 21 | D15: 2205 | E15: 22 | F15: 2234 | G15: 23 | H15: 2239 | K15: 0 | L15: 2222 | N15: 2111 | O15: =COUNTIF($L$7:$L$500,N15) -> 0 | P15: =O15/$Q$4 -> 0 | Q15: =IF(P15=0,0,(P15*((LOG(P15))/LOG(2)))) -> 0 | T15: =N15 -> 2111 | U15: =COUNTIF(L7:L9,T15) -> 0 | V15: =U15/(W4-U20) -> 0 | W15: =IF(V15=0,0,(V15*((LOG(V15))/LOG(2)))) -> 0 | Y15: =N15 -> 2111 | Z15: =COUNTIF(L10:L12,Y15) -> 0 | AA15: =Z15/(AB4-Z20) -> 0 | AB15: =IF(AA15=0,0,(AA15*((LOG(AA15))/LOG(2)))) -> 0 | AD15: =N15 -> 2111 | AE15: =COUNTIF(L13:L14,AD15) -> 0 | AF15: =AE15/(AG4-AE20) -> 0 | AG15: =IF(AF15=0,0,(AF15*((LOG(AF15))/LOG(2)))) -> 0 | AI15: =N15 -> 2111 | AJ15: =COUNTIF(L15:L17,AI15) -> 0 | AK15: =AJ15/(AL4-AJ20) -> 0 | AL15: =IF(AK15=0,0,(AK15*((LOG(AK15))/LOG(2)))) -> 0 | AN15: =N15 -> 2111 | AO15: =COUNTIF(L18:L20,AN15) -> 0 | AP15: =AO15/(AQ4-AO20) -> 0 | AQ15: =IF(AP15=0,0,(AP15*((LOG(AP15))/LOG(2)))) -> 0 | AS15: =N15 -> 2111 | AT15: =COUNTIF(L21:L23,AS15) -> 0 | AU15: =AT15/(AV4-AT20) -> 0 | AV15: =IF(AU15=0,0,(AU15*((LOG(AU15))/LOG(2)))) -> 0
A16: 12 | B16: 2400 | C16: 14 | D16: 2403 | E16: 24 | F16: 2412 | G16: 23 | H16: 2418 | K16: 0 | L16: 1122 | N16: 2112 | O16: =COUNTIF($L$7:$L$500,N16) -> 0 | P16: =O16/$Q$4 -> 0 | Q16: =IF(P16=0,0,(P16*((LOG(P16))/LOG(2)))) -> 0 | T16: =N16 -> 2112 | U16: =COUNTIF(L7:L9,T16) -> 0 | V16: =U16/(W4-U20) -> 0 | W16: =IF(V16=0,0,(V16*((LOG(V16))/LOG(2)))) -> 0 | Y16: =N16 -> 2112 | Z16: =COUNTIF(L10:L12,Y16) -> 0 | AA16: =Z16/(AB4-Z20) -> 0 | AB16: =IF(AA16=0,0,(AA16*((LOG(AA16))/LOG(2)))) -> 0 | AD16: =N16 -> 2112 | AE16: =COUNTIF(L13:L14,AD16) -> 0 | AF16: =AE16/(AG4-AE20) -> 0 | AG16: =IF(AF16=0,0,(AF16*((LOG(AF16))/LOG(2)))) -> 0 | AI16: =N16 -> 2112 | AJ16: =COUNTIF(L15:L17,AI16) -> 0 | AK16: =AJ16/(AL4-AJ20) -> 0 | AL16: =IF(AK16=0,0,(AK16*((LOG(AK16))/LOG(2)))) -> 0 | AN16: =N16 -> 2112 | AO16: =COUNTIF(L18:L20,AN16) -> 0 | AP16: =AO16/(AQ4-AO20) -> 0 | AQ16: =IF(AP16=0,0,(AP16*((LOG(AP16))/LOG(2)))) -> 0 | AS16: =N16 -> 2112 | AT16: =COUNTIF(L21:L23,AS16) -> 0 | AU16: =AT16/(AV4-AT20) -> 0 | AV16: =IF(AU16=0,0,(AU16*((LOG(AU16))/LOG(2)))) -> 0
A17: 21 | B17: 3530 | C17: 21 | D17: 3534 | E17: 22 | F17: 3543 | G17: 23 | H17: 3568 | K17: 0 | L17: 2222 | N17: 2121 | O17: =COUNTIF($L$7:$L$500,N17) -> 0 | P17: =O17/$Q$4 -> 0 | Q17: =IF(P17=0,0,(P17*((LOG(P17))/LOG(2)))) -> 0 | T17: =N17 -> 2121 | U17: =COUNTIF(L7:L9,T17) -> 0 | V17: =U17/(W4-U20) -> 0 | W17: =IF(V17=0,0,(V17*((LOG(V17))/LOG(2)))) -> 0 | Y17: =N17 -> 2121 | Z17: =COUNTIF(L10:L12,Y17) -> 0 | AA17: =Z17/(AB4-Z20) -> 0 | AB17: =IF(AA17=0,0,(AA17*((LOG(AA17))/LOG(2)))) -> 0 | AD17: =N17 -> 2121 | AE17: =COUNTIF(L13:L14,AD17) -> 0 | AF17: =AE17/(AG4-AE20) -> 0 | AG17: =IF(AF17=0,0,(AF17*((LOG(AF17))/LOG(2)))) -> 0 | AI17: =N17 -> 2121 | AJ17: =COUNTIF(L15:L17,AI17) -> 0 | AK17: =AJ17/(AL4-AJ20) -> 0 | AL17: =IF(AK17=0,0,(AK17*((LOG(AK17))/LOG(2)))) -> 0 | AN17: =N17 -> 2121 | AO17: =COUNTIF(L18:L20,AN17) -> 0 | AP17: =AO17/(AQ4-AO20) -> 0 | AQ17: =IF(AP17=0,0,(AP17*((LOG(AP17))/LOG(2)))) -> 0 | AS17: =N17 -> 2121 | AT17: =COUNTIF(L21:L23,AS17) -> 0 | AU17: =AT17/(AV4-AT20) -> 0 | AV17: =IF(AU17=0,0,(AU17*((LOG(AU17))/LOG(2)))) -> 0
A18: 21 | B18: 3669 | C18: 21 | D18: 3677 | E18: 22 | F18: 3680 | G18: 23 | H18: 3687 | K18: 0 | L18: 2222 | N18: 2122 | O18: =COUNTIF($L$7:$L$500,N18) -> 0 | P18: =O18/$Q$4 -> 0 | Q18: =IF(P18=0,0,(P18*((LOG(P18))/LOG(2)))) -> 0 | T18: =N18 -> 2122 | U18: =COUNTIF(L7:L9,T18) -> 0 | V18: =U18/(W4-U20) -> 0 | W18: =IF(V18=0,0,(V18*((LOG(V18))/LOG(2)))) -> 0 | Y18: =N18 -> 2122 | Z18: =COUNTIF(L10:L12,Y18) -> 0 | AA18: =Z18/(AB4-Z20) -> 0 | AB18: =IF(AA18=0,0,(AA18*((LOG(AA18))/LOG(2)))) -> 0 | AD18: =N18 -> 2122 | AE18: =COUNTIF(L13:L14,AD18) -> 0 | AF18: =AE18/(AG4-AE20) -> 0 | AG18: =IF(AF18=0,0,(AF18*((LOG(AF18))/LOG(2)))) -> 0 | AI18: =N18 -> 2122 | AJ18: =COUNTIF(L15:L17,AI18) -> 0 | AK18: =AJ18/(AL4-AJ20) -> 0 | AL18: =IF(AK18=0,0,(AK18*((LOG(AK18))/LOG(2)))) -> 0 | AN18: =N18 -> 2122 | AO18: =COUNTIF(L18:L20,AN18) -> 0 | AP18: =AO18/(AQ4-AO20) -> 0 | AQ18: =IF(AP18=0,0,(AP18*((LOG(AP18))/LOG(2)))) -> 0 | AS18: =N18 -> 2122 | AT18: =COUNTIF(L21:L23,AS18) -> 0 | AU18: =AT18/(AV4-AT20) -> 0 | AV18: =IF(AU18=0,0,(AU18*((LOG(AU18))/LOG(2)))) -> 0
A19: 21 | B19: 8401 | C19: 21 | D19: 8407 | E19: 22 | F19: 8419 | G19: 23 | H19: 8427 | K19: 0 | L19: 2222 | N19: 2211 | O19: =COUNTIF($L$7:$L$500,N19) -> 0 | P19: =O19/$Q$4 -> 0 | Q19: =IF(P19=0,0,(P19*((LOG(P19))/LOG(2)))) -> 0 | T19: =N19 -> 2211 | U19: =COUNTIF(L7:L9,T19) -> 0 | V19: =U19/(W4-U20) -> 0 | W19: =IF(V19=0,0,(V19*((LOG(V19))/LOG(2)))) -> 0 | Y19: =N19 -> 2211 | Z19: =COUNTIF(L10:L12,Y19) -> 0 | AA19: =Z19/(AB4-Z20) -> 0 | AB19: =IF(AA19=0,0,(AA19*((LOG(AA19))/LOG(2)))) -> 0 | AD19: =N19 -> 2211 | AE19: =COUNTIF(L13:L14,AD19) -> 0 | AF19: =AE19/(AG4-AE20) -> 0 | AG19: =IF(AF19=0,0,(AF19*((LOG(AF19))/LOG(2)))) -> 0 | AI19: =N19 -> 2211 | AJ19: =COUNTIF(L15:L17,AI19) -> 0 | AK19: =AJ19/(AL4-AJ20) -> 0 | AL19: =IF(AK19=0,0,(AK19*((LOG(AK19))/LOG(2)))) -> 0 | AN19: =N19 -> 2211 | AO19: =COUNTIF(L18:L20,AN19) -> 0 | AP19: =AO19/(AQ4-AO20) -> 0 | AQ19: =IF(AP19=0,0,(AP19*((LOG(AP19))/LOG(2)))) -> 0 | AS19: =N19 -> 2211 | AT19: =COUNTIF(L21:L23,AS19) -> 0 | AU19: =AT19/(AV4-AT20) -> 0 | AV19: =IF(AU19=0,0,(AU19*((LOG(AU19))/LOG(2)))) -> 0
A20: 21 | B20: 8691 | C20: 21 | D20: 8694 | E20: 22 | F20: 8700 | G20: 23 | H20: 8705 | K20: 0 | L20: 2222 | N20: 2212 | O20: =COUNTIF($L$7:$L$500,N20) -> 0 | P20: =O20/$Q$4 -> 0 | Q20: =IF(P20=0,0,(P20*((LOG(P20))/LOG(2)))) -> 0 | T20: =N20 -> 2212 | U20: =COUNTIF(L7:L9,T20) -> 0 | Y20: =N20 -> 2212 | Z20: =COUNTIF(L10:L12,Y20) -> 0 | AD20: =N20 -> 2212 | AE20: =COUNTIF(L13:L14,AD20) -> 0 | AI20: =N20 -> 2212 | AJ20: =COUNTIF(L15:L17,AI20) -> 0 | AN20: =N20 -> 2212 | AO20: =COUNTIF(L18:L20,AN20) -> 0 | AS20: =N20 -> 2212 | AT20: =COUNTIF(L21:L23,AS20) -> 0
A21: 21 | B21: 14292 | C21: 21 | D21: 14304 | E21: 22 | F21: 14330 | G21: 23 | H21: 14336 | K21: 0 | L21: 2222 | N21: 2221 | O21: =COUNTIF($L$7:$L$500,N21) -> 0 | P21: =O21/$Q$4 -> 0 | Q21: =IF(P21=0,0,(P21*((LOG(P21))/LOG(2)))) -> 0 | T21: =N21 -> 2221 | U21: =COUNTIF(L7:L9,T21) -> 0 | V21: =U21/(W4-U20) -> 0 | W21: =IF(V21=0,0,(V21*((LOG(V21))/LOG(2)))) -> 0 | Y21: =N21 -> 2221 | Z21: =COUNTIF(L10:L12,Y21) -> 0 | AA21: =Z21/(AB4-Z20) -> 0 | AB21: =IF(AA21=0,0,(AA21*((LOG(AA21))/LOG(2)))) -> 0 | AD21: =N21 -> 2221 | AE21: =COUNTIF(L13:L14,AD21) -> 0 | AF21: =AE21/(AG4-AE20) -> 0 | AG21: =IF(AF21=0,0,(AF21*((LOG(AF21))/LOG(2)))) -> 0 | AI21: =N21 -> 2221 | AJ21: =COUNTIF(L15:L17,AI21) -> 0 | AK21: =AJ21/(AL4-AJ20) -> 0 | AL21: =IF(AK21=0,0,(AK21*((LOG(AK21))/LOG(2)))) -> 0 | AN21: =N21 -> 2221 | AO21: =COUNTIF(L18:L20,AN21) -> 0 | AP21: =AO21/(AQ4-AO20) -> 0 | AQ21: =IF(AP21=0,0,(AP21*((LOG(AP21))/LOG(2)))) -> 0 | AS21: =N21 -> 2221 | AT21: =COUNTIF(L21:L23,AS21) -> 0 | AU21: =AT21/(AV4-AT20) -> 0 | AV21: =IF(AU21=0,0,(AU21*((LOG(AU21))/LOG(2)))) -> 0
A22: 21 | B22: 14623 | C22: 21 | D22: 14639 | E22: 22 | F22: 14644 | G22: 23 | H22: 14654 | K22: 0 | L22: 2222 | N22: 2222 | O22: =COUNTIF($L$7:$L$500,N22) -> 14 | P22: =O22/$Q$4 -> 0.8235294118 | Q22: =IF(P22=0,0,(P22*((LOG(P22))/LOG(2)))) -> -0.2306771099 | T22: =N22 -> 2222 | U22: =COUNTIF(L7:L9,T22) -> 3 | V22: =U22/(W4-U20) -> 1 | W22: =IF(V22=0,0,(V22*((LOG(V22))/LOG(2)))) -> 0 | Y22: =N22 -> 2222 | Z22: =COUNTIF(L10:L12,Y22) -> 1 | AA22: =Z22/(AB4-Z20) -> 0.3333333333 | AB22: =IF(AA22=0,0,(AA22*((LOG(AA22))/LOG(2)))) -> -0.5283208336 | AD22: =N22 -> 2222 | AE22: =COUNTIF(L13:L14,AD22) -> 2 | AF22: =AE22/(AG4-AE20) -> 1 | AG22: =IF(AF22=0,0,(AF22*((LOG(AF22))/LOG(2)))) -> 0 | AI22: =N22 -> 2222 | AJ22: =COUNTIF(L15:L17,AI22) -> 2 | AK22: =AJ22/(AL4-AJ20) -> 0.6666666667 | AL22: =IF(AK22=0,0,(AK22*((LOG(AK22))/LOG(2)))) -> -0.3899750005 | AN22: =N22 -> 2222 | AO22: =COUNTIF(L18:L20,AN22) -> 3 | AP22: =AO22/(AQ4-AO20) -> 1 | AQ22: =IF(AP22=0,0,(AP22*((LOG(AP22))/LOG(2)))) -> 0 | AS22: =N22 -> 2222 | AT22: =COUNTIF(L21:L23,AS22) -> 3 | AU22: =AT22/(AV4-AT20) -> 1 | AV22: =IF(AU22=0,0,(AU22*((LOG(AU22))/LOG(2)))) -> 0
A23: 21 | B23: 16688 | C23: 21 | D23: 16695 | E23: 22 | F23: 16701 | G23: 23 | H23: 16707 | K23: 0 | L23: 2222 | P23: =SUM(P7:P22) -> 1 | Q23: =-SUM(Q7:Q22) -> 0.8343470231 | V23: =SUM(V7:V22) -> 1 | W23: =-SUM(W7:W22) -> 0 | AA23: =SUM(AA7:AA22) -> 1 | AB23: =-SUM(AB7:AB22) -> 1.584962501 | AF23: =SUM(AF7:AF22) -> 1 | AG23: =-SUM(AG7:AG22) -> 0 | AK23: =SUM(AK7:AK22) -> 1 | AL23: =-SUM(AL7:AL22) -> 0.9182958341 | AP23: =SUM(AP7:AP22) -> 1 | AQ23: =-SUM(AQ7:AQ22) -> 0 | AU23: =SUM(AU7:AU22) -> 1 | AV23: =-SUM(AV7:AV22) -> 0
P24: U= | Q24: =Q23/(LOG(Q4)/LOG(2)) -> 0.2041234515 | V24: U1= | W24: =W23/(LOG(W4)/LOG(2)) -> 0 | AA24: U2= | AB24: =AB23/(LOG(AB4)/LOG(2)) -> 1 | AF24: U3= | AG24: =AG23/(LOG(AG4)/LOG(2)) -> 0 | AK24: U4= | AL24: =AL23/(LOG(AL4)/LOG(2)) -> 0.5793801643 | AP24: U5= | AQ24: =AQ23/(LOG(AQ4)/LOG(2)) -> 0 | AU24: U6= | AV24: =AV23/(LOG(AV4)/LOG(2)) -> 0
N27: Total Target Seq
N28: =COUNTIF(L7:L23,G3) -> 0 | P28: 3 | Q28: 3 | R28: 2 | S28: 3 | T28: 3 | U28: 3
P29: % of reinforcement given in 6 equal intervals based on number of trials
P30: %_1 | Q30: %_2 | R30: %_3 | S30: %_4 | T30: %_5 | U30: %_6
O31: target sequence | P31: =$G$3 -> 2212 | Q31: =$G$3 -> 2212 | R31: =$G$3 -> 2212 | S31: =$G$3 -> 2212 | T31: =$G$3 -> 2212 | U31: =$G$3 -> 2212
O32: total reinforcement | P32: =U20 -> 0 | Q32: =Z20 -> 0 | R32: =AE20 -> 0 | S32: =AJ20 -> 0 | T32: =AO20 -> 0 | U32: =AT20 -> 0
O33: % target
O34: CCRF
O35: % CCRf
O36: average response rate | P36: =H9/P28 -> 141 | Q36: =(H12-H9)/Q28 -> 455.3333333 | R36: =(H14-H12)/R28 -> 150.5 | S36: =(H17-H14)/S28 -> 492.6666667 | T36: =(H20-H17)/T28 -> 1712.333333 | U36: =(H23-H20)/U28 -> 2667.333333

Sheet !M624B30.Gus
A1: Report for:!M624B30.Gus
A2: Date: | B2: <date>
A3: Hen: | B3: <hen> | F3: Correct Sequence | G3: =Start!J2 -> 2212 | P3: Total Sequences in Data | Q3: =4994-COUNTBLANK(L7:L5000) -> 183 | V3: Total Sequences in Block Data | W3: =COUNTA(L7:L37) -> 31 | AA3: Total Sequences in Block Data | AB3: =COUNTA(L38:L67) -> 30 | AF3: Total Sequences in Block Data | AG3: =COUNTA(L68:L98) -> 31 | AK3: Total Sequences in Block Data | AL3: =COUNTA(L99:L128) -> 30 | AP3: Total Sequences in Block Data | AQ3: =COUNTA(L129:L159) -> 31 | AU3: Total Sequences in Block Data | AV3: =COUNTA(L160:L189) -> 30
P4: Total Sequences in Summary | Q4: =SUM(O7:O22) -> 183 | V4: Total Sequences in Block Summary | W4: =SUM(U7:U22) -> 31 | AA4: Total Sequences in Block Summary | AB4: =SUM(Z7:Z22) -> 30 | AF4: Total Sequences in Block Summary | AG4: =SUM(AE7:AE22) -> 31 | AK4: Total Sequences in Block Summary | AL4: =SUM(AJ7:AJ22) -> 30 | AP4: Total Sequences in Block Summary | AQ4: =SUM(AO7:AO22) -> 31 | AU4: Total Sequences in Block Summary | AV4: =SUM(AT7:AT22) -> 30
T5: Block 1 | Y5: Block 2 | AD5: Block 3 | AI5: Block 4 | AN5: Block 5 | AS5: Block 6
A6: Sequence Component 1 | B6: Time 1 | C6: Sequence Component 2 | D6: Time 2 | E6: Sequence Component 3 | F6: Time 3 | G6: Sequence Component 4 | H6: Time 4 | I6: Sequence Component 5 | J6: Time 5 | K6: Correct? 0=No 1=Yes | L6: Sequence | N6: Frequency | P6: Relative Frequency | Q6: Variability | T6: Frequency | V6: Relative Frequency | W6: Variability | Y6: Frequency | AA6: Relative Frequency | AB6: Variability | AD6: Frequency | AF6: Relative Frequency | AG6: Variability | AI6: Frequency | AK6: Relative Frequency | AL6: Variability | AN6: Frequency | AP6: Relative Frequency | AQ6: Variability | AS6: Frequency | AU6: Relative Frequency | AV6: Variability
A7: 21 | B7: 30 | C7: 21 | D7: 35 | E7: 22 | F7: 42 | G7: 23 | H7: 49 | K7: 0 | L7: 2222 | N7: 1111 | O7: =COUNTIF($L$7:$L$500,N7) -> 2 | P7: =O7/$Q$4 -> 0.01092896175 | Q7: =IF(P7=0,0,(P7*((LOG(P7))/LOG(2)))) -> -0.0712098343 | T7: =N7 -> 1111 | U7: =COUNTIF(L7:L37,T7) -> 0 | V7: =U7/(W4-U20) -> 0 | W7: =IF(V7=0,0,(V7*((LOG(V7))/LOG(2)))) -> 0 | Y7: =N7 -> 1111 | Z7: =COUNTIF(L38:L67,Y7) -> 0 | AA7: =Z7/(AB4-Z20) -> 0 | AB7: =IF(AA7=0,0,(AA7*((LOG(AA7))/LOG(2)))) -> 0 | AD7: =N7 -> 1111 | AE7: =COUNTIF(L68:L98,AD7) -> 1 | AF7: =AE7/(AG4-AE20) -> 0.03333333333 | AG7: =IF(AF7=0,0,(AF7*((LOG(AF7))/LOG(2)))) -> -0.1635630199 | AI7: =N7 -> 1111 | AJ7: =COUNTIF(L99:L128,AI7) -> 0 | AK7: =AJ7/(AL4-AJ20) -> 0 | AL7: =IF(AK7=0,0,(AK7*((LOG(AK7))/LOG(2)))) -> 0 | AN7: =N7 -> 1111 | AO7: =COUNTIF(L129:L159,AN7) -> 1 | AP7: =AO7/(AQ4-AO20) -> 0.03333333333 | AQ7: =IF(AP7=0,0,(AP7*((LOG(AP7))/LOG(2)))) -> -0.1635630199 | AS7: =N7 -> 1111 | AT7: =COUNTIF(L160:L189,AS7) -> 0 | AU7: =AT7/(AV4-AT20) -> 0 | AV7: =IF(AU7=0,0,(AU7*((LOG(AU7))/LOG(2)))) -> 0
A8: 12 | B8: 143 | C8: 23 | D8: 160 | E8: 24 | F8: 168 | G8: 23 | H8: 175 | K8: 0 | L8: 1222 | N8: 1112 | O8: =COUNTIF($L$7:$L$500,N8) -> 2 | P8: =O8/$Q$4 -> 0.01092896175 | Q8: =IF(P8=0,0,(P8*((LOG(P8))/LOG(2)))) -> -0.0712098343 | T8: =N8 -> 1112 | U8: =COUNTIF(L7:L37,T8) -> 0 | V8: =U8/(W4-U20) -> 0 | W8: =IF(V8=0,0,(V8*((LOG(V8))/LOG(2)))) -> 0 | Y8: =N8 -> 1112 | Z8: =COUNTIF(L38:L67,Y8) -> 0 | AA8: =Z8/(AB4-Z20) -> 0 | AB8: =IF(AA8=0,0,(AA8*((LOG(AA8))/LOG(2)))) -> 0 | AD8: =N8 -> 1112 | AE8: =COUNTIF(L68:L98,AD8) -> 1 | AF8: =AE8/(AG4-AE20) -> 0.03333333333 | AG8: =IF(AF8=0,0,(AF8*((LOG(AF8))/LOG(2)))) -> -0.1635630199 | AI8: =N8 -> 1112 | AJ8: =COUNTIF(L99:L128,AI8) -> 0 | AK8: =AJ8/(AL4-AJ20) -> 0 | AL8: =IF(AK8=0,0,(AK8*((LOG(AK8))/LOG(2)))) -> 0 | AN8: =N8 -> 1112 | AO8: =COUNTIF(L129:L159,AN8) -> 1 | AP8: =AO8/(AQ4-AO20) -> 0.03333333333 | AQ8: =IF(AP8=0,0,(AP8*((LOG(AP8))/LOG(2)))) -> -0.1635630199 | AS8: =N8 -> 1112 | AT8: =COUNTIF(L160:L189,AS8) -> 0 | AU8: =AT8/(AV4-AT20) -> 0 | AV8: =IF(AU8=0,0,(AU8*((LOG(AU8))/LOG(2)))) -> 0
A9: 12 | B9: 267 | C9: 23 | D9: 282 | E9: 24 | F9: 287 | G9: 23 | H9: 292 | K9: 0 | L9: 1222 | N9: 1121 | O9: =COUNTIF($L$7:$L$500,N9) -> 2 | P9: =O9/$Q$4 -> 0.01092896175 | Q9: =IF(P9=0,0,(P9*((LOG(P9))/LOG(2)))) -> -0.0712098343 | T9: =N9 -> 1121 | U9: =COUNTIF(L7:L37,T9) -> 0 | V9: =U9/(W4-U20) -> 0 | W9: =IF(V9=0,0,(V9*((LOG(V9))/LOG(2)))) -> 0 | Y9: =N9 -> 1121 | Z9: =COUNTIF(L38:L67,Y9) -> 0 | AA9: =Z9/(AB4-Z20) -> 0 | AB9: =IF(AA9=0,0,(AA9*((LOG(AA9))/LOG(2)))) -> 0 | AD9: =N9 -> 1121 | AE9: =COUNTIF(L68:L98,AD9) -> 2 | AF9: =AE9/(AG4-AE20) -> 0.06666666667 | AG9: =IF(AF9=0,0,(AF9*((LOG(AF9))/LOG(2)))) -> -0.260459373 | AI9: =N9 -> 1121 | AJ9: =COUNTIF(L99:L128,AI9) -> 0 | AK9: =AJ9/(AL4-AJ20) -> 0 | AL9: =IF(AK9=0,0,(AK9*((LOG(AK9))/LOG(2)))) -> 0 | AN9: =N9 -> 1121 | AO9: =COUNTIF(L129:L159,AN9) -> 0 | AP9: =AO9/(AQ4-AO20) -> 0 | AQ9: =IF(AP9=0,0,(AP9*((LOG(AP9))/LOG(2)))) -> 0 | AS9: =N9 -> 1121 | AT9: =COUNTIF(L160:L189,AS9) -> 0 | AU9: =AT9/(AV4-AT20) -> 0 | AV9: =IF(AU9=0,0,(AU9*((LOG(AU9))/LOG(2)))) -> 0
A10: 21 | B10: 391 | C10: 21 | D10: 395 | E10: 22 | F10: 400 | G10: 23 | H10: 407 | K10: 0 | L10: 2222 | N10: 1122 | O10: =COUNTIF($L$7:$L$500,N10) -> 9 | P10: =O10/$Q$4 -> 0.04918032787 | Q10: =IF(P10=0,0,(P10*((LOG(P10))/LOG(2)))) -> -0.2137266313 | T10: =N10 -> 1122 | U10: =COUNTIF(L7:L37,T10) -> 1 | V10: =U10/(W4-U20) -> 0.03448275862 | W10: =IF(V10=0,0,(V10*((LOG(V10))/LOG(2)))) -> -0.167516586 | Y10: =N10 -> 1122 | Z10: =COUNTIF(L38:L67,Y10) -> 1 | AA10: =Z10/(AB4-Z20) -> 0.03571428571 | AB10: =IF(AA10=0,0,(AA10*((LOG(AA10))/LOG(2)))) -> -0.1716912472 | AD10: =N10 -> 1122 | AE10: =COUNTIF(L68:L98,AD10) -> 3 | AF10: =AE10/(AG4-AE20) -> 0.1 | AG10: =IF(AF10=0,0,(AF10*((LOG(AF10))/LOG(2)))) -> -0.3321928095 | AI10: =N10 -> 1122 | AJ10: =COUNTIF(L99:L128,AI10) -> 1 | AK10: =AJ10/(AL4-AJ20) -> 0.03703703704 | AL10: =IF(AK10=0,0,(AK10*((LOG(AK10))/LOG(2)))) -> -0.1761069445 | AN10: =N10 -> 1122 | AO10: =COUNTIF(L129:L159,AN10) -> 1 | AP10: =AO10/(AQ4-AO20) -> 0.03333333333 | AQ10: =IF(AP10=0,0,(AP10*((LOG(AP10))/LOG(2)))) -> -0.1635630199 | AS10: =N10 -> 1122 | AT10: =COUNTIF(L160:L189,AS10) -> 2 | AU10: =AT10/(AV4-AT20) -> 0.07142857143 | AV10: =IF(AU10=0,0,(AU10*((LOG(AU10))/LOG(2)))) -> -0.271953923
A11: 21 | B11: 507 | C11: 21 | D11: 518 | E11: 11 | F11: 521 | G11: 21 | H11: 524 | K11: 0 | L11: 2212 | N11: 1211 | O11: =COUNTIF($L$7:$L$500,N11) -> 2 | P11: =O11/$Q$4 -> 0.01092896175 | Q11: =IF(P11=0,0,(P11*((LOG(P11))/LOG(2)))) -> -0.0712098343 | T11: =N11 -> 1211 | U11: =COUNTIF(L7:L37,T11) -> 1 | V11: =U11/(W4-U20) -> 0.03448275862 | W11: =IF(V11=0,0,(V11*((LOG(V11))/LOG(2)))) -> -0.167516586 | Y11: =N11 -> 1211 | Z11: =COUNTIF(L38:L67,Y11) -> 1 | AA11: =Z11/(AB4-Z20) -> 0.03571428571 | AB11: =IF(AA11=0,0,(AA11*((LOG(AA11))/LOG(2)))) -> -0.1716912472 | AD11: =N11 -> 1211 | AE11: =COUNTIF(L68:L98,AD11) -> 0 | AF11: =AE11/(AG4-AE20) -> 0 | AG11: =IF(AF11=0,0,(AF11*((LOG(AF11))/LOG(2)))) -> 0 | AI11: =N11 -> 1211 | AJ11: =COUNTIF(L99:L128,AI11) -> 0 | AK11: =AJ11/(AL4-AJ20) -> 0 | AL11: =IF(AK11=0,0,(AK11*((LOG(AK11))/LOG(2)))) -> 0 | AN11: =N11 -> 1211 | AO11: =COUNTIF(L129:L159,AN11) -> 0 | AP11: =AO11/(AQ4-AO20) -> 0 | AQ11: =IF(AP11=0,0,(AP11*((LOG(AP11))/LOG(2)))) -> 0 | AS11: =N11 -> 1211 | AT11: =COUNTIF(L160:L189,AS11) -> 0 | AU11: =AT11/(AV4-AT20) -> 0 | AV11: =IF(AU11=0,0,(AU11*((LOG(AU11))/LOG(2)))) -> 0
A12: 21 | B12: 798 | C12: 21 | D12: 809 | E12: 22 | F12: 816 | G12: 23 | H12: 823 | K12: 0 | L12: 2222 | N12: 1212 | O12: =COUNTIF($L$7:$L$500,N12) -> 7 | P12: =O12/$Q$4 -> 0.03825136612 | Q12: =IF(P12=0,0,(P12*((LOG(P12))/LOG(2)))) -> -0.1801006252 | T12: =N12 -> 1212 | U12: =COUNTIF(L7:L37,T12) -> 0 | V12: =U12/(W4-U20) -> 0 | W12: =IF(V12=0,0,(V12*((LOG(V12))/LOG(2)))) -> 0 | Y12: =N12 -> 1212 | Z12: =COUNTIF(L38:L67,Y12) -> 0 | AA12: =Z12/(AB4-Z20) -> 0 | AB12: =IF(AA12=0,0,(AA12*((LOG(AA12))/LOG(2)))) -> 0 | AD12: =N12 -> 1212 | AE12: =COUNTIF(L68:L98,AD12) -> 2 | AF12: =AE12/(AG4-AE20) -> 0.06666666667 | AG12: =IF(AF12=0,0,(AF12*((LOG(AF12))/LOG(2)))) -> -0.260459373 | AI12: =N12 -> 1212 | AJ12: =COUNTIF(L99:L128,AI12) -> 2 | AK12: =AJ12/(AL4-AJ20) -> 0.07407407407 | AL12: =IF(AK12=0,0,(AK12*((LOG(AK12))/LOG(2)))) -> -0.278139815 | AN12: =N12 -> 1212 | AO12: =COUNTIF(L129:L159,AN12) -> 2 | AP12: =AO12/(AQ4-AO20) -> 0.06666666667 | AQ12: =IF(AP12=0,0,(AP12*((LOG(AP12))/LOG(2)))) -> -0.260459373 | AS12: =N12 -> 1212 | AT12: =COUNTIF(L160:L189,AS12) -> 1 | AU12: =AT12/(AV4-AT20) -> 0.03571428571 | AV12: =IF(AU12=0,0,(AU12*((LOG(AU12))/LOG(2)))) -> -0.1716912472
A13: 21 | B13: 929 | C13: 21 | D13: 933 | E13: 22 | F13: 939 | G13: 14 | H13: 942 | K13: 0 | L13: 2221 | N13: 1221 | O13: =COUNTIF($L$7:$L$500,N13) -> 4 | P13: =O13/$Q$4 -> 0.0218579235 | Q13: =IF(P13=0,0,(P13*((LOG(P13))/LOG(2)))) -> -0.1205617451 | T13: =N13 -> 1221 | U13: =COUNTIF(L7:L37,T13) -> 0 | V13: =U13/(W4-U20) -> 0 | W13: =IF(V13=0,0,(V13*((LOG(V13))/LOG(2)))) -> 0 | Y13: =N13 -> 1221 | Z13: =COUNTIF(L38:L67,Y13) -> 0 | AA13: =Z13/(AB4-Z20) -> 0 | AB13: =IF(AA13=0,0,(AA13*((LOG(AA13))/LOG(2)))) -> 0 | AD13: =N13 -> 1221 | AE13: =COUNTIF(L68:L98,AD13) -> 1 | AF13: =AE13/(AG4-AE20) -> 0.03333333333 | AG13: =IF(AF13=0,0,(AF13*((LOG(AF13))/LOG(2)))) -> -0.1635630199 | AI13: =N13 -> 1221 | AJ13: =COUNTIF(L99:L128,AI13) -> 1 | AK13: =AJ13/(AL4-AJ20) -> 0.03703703704 | AL13: =IF(AK13=0,0,(AK13*((LOG(AK13))/LOG(2)))) -> -0.1761069445 | AN13: =N13 -> 1221 | AO13: =COUNTIF(L129:L159,AN13) -> 1 | AP13: =AO13/(AQ4-AO20) -> 0.03333333333 | AQ13: =IF(AP13=0,0,(AP13*((LOG(AP13))/LOG(2)))) -> -0.1635630199 | AS13: =N13 -> 1221 | AT13: =COUNTIF(L160:L189,AS13) -> 1 | AU13: =AT13/(AV4-AT20) -> 0.03571428571 | AV13: =IF(AU13=0,0,(AU13*((LOG(AU13))/LOG(2)))) -> -0.1716912472
A14: 21 | B14: 1039 | C14: 21 | D14: 1044 | E14: 22 | F14: 1050 | G14: 23 | H14: 1057 | K14: 0 | L14: 2222 | N14: 1222 | O14: =COUNTIF($L$7:$L$500,N14) -> 62 | P14: =O14/$Q$4 -> 0.3387978142 | Q14: =IF(P14=0,0,(P14*((LOG(P14))/LOG(2)))) -> -0.5290339821 | T14: =N14 -> 1222 | U14: =COUNTIF(L7:L37,T14) -> 10 | V14: =U14/(W4-U20) -> 0.3448275862 | W14: =IF(V14=0,0,(V14*((LOG(V14))/LOG(2)))) -> -0.5296734139 | Y14: =N14 -> 1222 | Z14: =COUNTIF(L38:L67,Y14) -> 14 | AA14: =Z14/(AB4-Z20) -> 0.5 | AB14: =IF(AA14=0,0,(AA14*((LOG(AA14))/LOG(2)))) -> -0.5 | AD14: =N14 -> 1222 | AE14: =COUNTIF(L68:L98,AD14) -> 7 | AF14: =AE14/(AG4-AE20) -> 0.2333333333 | AG14: =IF(AF14=0,0,(AF14*((LOG(AF14))/LOG(2)))) -> -0.4898916572 | AI14: =N14 -> 1222 | AJ14: =COUNTIF(L99:L128,AI14) -> 10 | AK14: =AJ14/(AL4-AJ20) -> 0.3703703704 | AL14: =IF(AK14=0,0,(AK14*((LOG(AK14))/LOG(2)))) -> -0.5307257064 | AN14: =N14 -> 1222 | AO14: =COUNTIF(L129:L159,AN14) -> 9 | AP14: =AO14/(AQ4-AO20) -> 0.3 | AQ14: =IF(AP14=0,0,(AP14*((LOG(AP14))/LOG(2)))) -> -0.5210896782 | AS14: =N14 -> 1222 | AT14: =COUNTIF(L160:L189,AS14) -> 12 | AU14: =AT14/(AV4-AT20) -> 0.4285714286 | AV14: =IF(AU14=0,0,(AU14*((LOG(AU14))/LOG(2)))) -> -0.5238824663
A15: 12 | B15: 1152 | C15: 23 | D15: 1163 | E15: 24 | F15: 1167 | G15: 23 | H15: 1177 | K15: 0 | L15: 1222 | N15: 2111 | O15: =COUNTIF($L$7:$L$500,N15) -> 0 | P15: =O15/$Q$4 -> 0 | Q15: =IF(P15=0,0,(P15*((LOG(P15))/LOG(2)))) -> 0 | T15: =N15 -> 2111 | U15: =COUNTIF(L7:L37,T15) -> 0 | V15: =U15/(W4-U20) -> 0 | W15: =IF(V15=0,0,(V15*((LOG(V15))/LOG(2)))) -> 0 | Y15: =N15 -> 2111 | Z15: =COUNTIF(L38:L67,Y15) -> 0 | AA15: =Z15/(AB4-Z20) -> 0 | AB15: =IF(AA15=0,0,(AA15*((LOG(AA15))/LOG(2)))) -> 0 | AD15: =N15 -> 2111 | AE15: =COUNTIF(L68:L98,AD15) -> 0 | AF15: =AE15/(AG4-AE20) -> 0 | AG15: =IF(AF15=0,0,(AF15*((LOG(AF15))/LOG(2)))) -> 0 | AI15: =N15 -> 2111 | AJ15: =COUNTIF(L99:L128,AI15) -> 0 | AK15: =AJ15/(AL4-AJ20) -> 0 | AL15: =IF(AK15=0,0,(AK15*((LOG(AK15))/LOG(2)))) -> 0 | AN15: =N15 -> 2111 | AO15: =COUNTIF(L129:L159,AN15) -> 0 | AP15: =AO15/(AQ4-AO20) -> 0 | AQ15: =IF(AP15=0,0,(AP15*((LOG(AP15))/LOG(2)))) -> 0 | AS15: =N15 -> 2111 | AT15: =COUNTIF(L160:L189,AS15) -> 0 | AU15: =AT15/(AV4-AT20) -> 0 | AV15: =IF(AU15=0,0,(AU15*((LOG(AU15))/LOG(2)))) -> 0
A16: 21 | B16: 1294 | C16: 21 | D16: 1312 | E16: 22 | F16: 1319 | G16: 23 | H16: 1323 | K16: 0 | L16: 2222 | N16: 2112 | O16: =COUNTIF($L$7:$L$500,N16) -> 2 | P16: =O16/$Q$4 -> 0.01092896175 | Q16: =IF(P16=0,0,(P16*((LOG(P16))/LOG(2)))) -> -0.0712098343 | T16: =N16 -> 2112 | U16: =COUNTIF(L7:L37,T16) -> 0 | V16: =U16/(W4-U20) -> 0 | W16: =IF(V16=0,0,(V16*((LOG(V16))/LOG(2)))) -> 0 | Y16: =N16 -> 2112 | Z16: =COUNTIF(L38:L67,Y16) -> 0 | AA16: =Z16/(AB4-Z20) -> 0 | AB16: =IF(AA16=0,0,(AA16*((LOG(AA16))/LOG(2)))) -> 0 | AD16: =N16 -> 2112 | AE16: =COUNTIF(L68:L98,AD16) -> 1 | AF16: =AE16/(AG4-AE20) -> 0.03333333333 | AG16: =IF(AF16=0,0,(AF16*((LOG(AF16))/LOG(2)))) -> -0.1635630199 | AI16: =N16 -> 2112 | AJ16: =COUNTIF(L99:L128,AI16) -> 0 | AK16: =AJ16/(AL4-AJ20) -> 0 | AL16: =IF(AK16=0,0,(AK16*((LOG(AK16))/LOG(2)))) -> 0 | AN16: =N16 -> 2112 | AO16: =COUNTIF(L129:L159,AN16) -> 0 | AP16: =AO16/(AQ4-AO20) -> 0 | AQ16: =IF(AP16=0,0,(AP16*((LOG(AP16))/LOG(2)))) -> 0 | AS16: =N16 -> 2112 | AT16: =COUNTIF(L160:L189,AS16) -> 1 | AU16: =AT16/(AV4-AT20) -> 0.03571428571 | AV16: =IF(AU16=0,0,(AU16*((LOG(AU16))/LOG(2)))) -> -0.1716912472
A17: 12 | B17: 1417 | C17: 23 | D17: 1419 | E17: 24 | F17: 1425 | G17: 23 | H17: 1434 | K17: 0 | L17: 1222 | N17: 2121 | O17: =COUNTIF($L$7:$L$500,N17) -> 0 | P17: =O17/$Q$4 -> 0 | Q17: =IF(P17=0,0,(P17*((LOG(P17))/LOG(2)))) -> 0 | T17: =N17 -> 2121 | U17: =COUNTIF(L7:L37,T17) -> 0 | V17: =U17/(W4-U20) -> 0 | W17: =IF(V17=0,0,(V17*((LOG(V17))/LOG(2)))) -> 0 | Y17: =N17 -> 2121 | Z17: =COUNTIF(L38:L67,Y17) -> 0 | AA17: =Z17/(AB4-Z20) -> 0 | AB17: =IF(AA17=0,0,(AA17*((LOG(AA17))/LOG(2)))) -> 0 | AD17: =N17 -> 2121 | AE17: =COUNTIF(L68:L98,AD17) -> 0 | AF17: =AE17/(AG4-AE20) -> 0 | AG17: =IF(AF17=0,0,(AF17*((LOG(AF17))/LOG(2)))) -> 0 | AI17: =N17 -> 2121 | AJ17: =COUNTIF(L99:L128,AI17) -> 0 | AK17: =AJ17/(AL4-AJ20) -> 0 | AL17: =IF(AK17=0,0,(AK17*((LOG(AK17))/LOG(2)))) -> 0 | AN17: =N17 -> 2121 | AO17: =COUNTIF(L129:L159,AN17) -> 0 | AP17: =AO17/(AQ4-AO20) -> 0 | AQ17: =IF(AP17=0,0,(AP17*((LOG(AP17))/LOG(2)))) -> 0 | AS17: =N17 -> 2121 | AT17: =COUNTIF(L160:L189,AS17) -> 0 | AU17: =AT17/(AV4-AT20) -> 0 | AV17: =IF(AU17=0,0,(AU17*((LOG(AU17))/LOG(2)))) -> 0
A18: 21 | B18: 1534 | C18: 12 | D18: 1540 | E18: 24 | F18: 1555 | G18: 23 | H18: 1560 | K18: 0 | L18: 2122 | N18: 2122 | O18: =COUNTIF($L$7:$L$500,N18) -> 18 | P18: =O18/$Q$4 -> 0.09836065574 | Q18: =IF(P18=0,0,(P18*((LOG(P18))/LOG(2)))) -> -0.3290926069 | T18: =N18 -> 2122 | U18: =COUNTIF(L7:L37,T18) -> 3 | V18: =U18/(W4-U20) -> 0.1034482759 | W18: =IF(V18=0,0,(V18*((LOG(V18))/LOG(2)))) -> -0.3385881201 | Y18: =N18 -> 2122 | Z18: =COUNTIF(L38:L67,Y18) -> 3 | AA18: =Z18/(AB4-Z20) -> 0.1071428571 | AB18: =IF(AA18=0,0,(AA18*((LOG(AA18))/LOG(2)))) -> -0.3452563309 | AD18: =N18 -> 2122 | AE18: =COUNTIF(L68:L98,AD18) -> 3 | AF18: =AE18/(AG4-AE20) -> 0.1 | AG18: =IF(AF18=0,0,(AF18*((LOG(AF18))/LOG(2)))) -> -0.3321928095 | AI18: =N18 -> 2122 | AJ18: =COUNTIF(L99:L128,AI18) -> 3 | AK18: =AJ18/(AL4-AJ20) -> 0.1111111111 | AL18: =IF(AK18=0,0,(AK18*((LOG(AK18))/LOG(2)))) -> -0.352213889 | AN18: =N18 -> 2122 | AO18: =COUNTIF(L129:L159,AN18) -> 5 | AP18: =AO18/(AQ4-AO20) -> 0.1666666667 | AQ18: =IF(AP18=0,0,(AP18*((LOG(AP18))/LOG(2)))) -> -0.4308270835 | AS18: =N18 -> 2122 | AT18: =COUNTIF(L160:L189,AS18) -> 1 | AU18: =AT18/(AV4-AT20) -> 0.03571428571 | AV18: =IF(AU18=0,0,(AU18*((LOG(AU18))/LOG(2)))) -> -0.1716912472
A19: 21 | B19: 1655 | C19: 21 | D19: 1660 | E19: 22 | F19: 1665 | G19: 23 | H19: 1673 | K19: 0 | L19: 2222 | N19: 2211 | O19: =COUNTIF($L$7:$L$500,N19) -> 0 | P19: =O19/$Q$4 -> 0 | Q19: =IF(P19=0,0,(P19*((LOG(P19))/LOG(2)))) -> 0 | T19: =N19 -> 2211 | U19: =COUNTIF(L7:L37,T19) -> 0 | V19: =U19/(W4-U20) -> 0 | W19: =IF(V19=0,0,(V19*((LOG(V19))/LOG(2)))) -> 0 | Y19: =N19 -> 2211 | Z19: =COUNTIF(L38:L67,Y19) -> 0 | AA19: =Z19/(AB4-Z20) -> 0 | AB19: =IF(AA19=0,0,(AA19*((LOG(AA19))/LOG(2)))) -> 0 | AD19: =N19 -> 2211 | AE19: =COUNTIF(L68:L98,AD19) -> 0 | AF19: =AE19/(AG4-AE20) -> 0 | AG19: =IF(AF19=0,0,(AF19*((LOG(AF19))/LOG(2)))) -> 0 | AI19: =N19 -> 2211 | AJ19: =COUNTIF(L99:L128,AI19) -> 0 | AK19: =AJ19/(AL4-AJ20) -> 0 | AL19: =IF(AK19=0,0,(AK19*((LOG(AK19))/LOG(2)))) -> 0 | AN19: =N19 -> 2211 | AO19: =COUNTIF(L129:L159,AN19) -> 0 | AP19: =AO19/(AQ4-AO20) -> 0 | AQ19: =IF(AP19=0,0,(AP19*((LOG(AP19))/LOG(2)))) -> 0 | AS19: =N19 -> 2211 | AT19: =COUNTIF(L160:L189,AS19) -> 0 | AU19: =AT19/(AV4-AT20) -> 0 | AV19: =IF(AU19=0,0,(AU19*((LOG(AU19))/LOG(2)))) -> 0
A20: 12 | B20: 1776 | C20: 23 | D20: 1780 | E20: 24 | F20: 1789 | G20: 23 | H20: 1795 | K20: 0 | L20: 1222 | N20: 2212 | O20: =COUNTIF($L$7:$L$500,N20) -> 11 | P20: =O20/$Q$4 -> 0.06010928962 | Q20: =IF(P20=0,0,(P20*((LOG(P20))/LOG(2)))) -> -0.2438194012 | T20: =N20 -> 2212 | U20: =COUNTIF(L7:L37,T20) -> 2 | Y20: =N20 -> 2212 | Z20: =COUNTIF(L38:L67,Y20) -> 2 | AD20: =N20 -> 2212 | AE20: =COUNTIF(L68:L98,AD20) -> 1 | AI20: =N20 -> 2212 | AJ20: =COUNTIF(L99:L128,AI20) -> 3 | AN20: =N20 -> 2212 | AO20: =COUNTIF(L129:L159,AN20) -> 1 | AS20: =N20 -> 2212 | AT20: =COUNTIF(L160:L189,AS20) -> 2
A21: 12 | B21: 1889 | C21: 23 | D21: 1892 | E21: 24 | F21: 1896 | G21: 23 | H21: 1902 | K21: 0 | L21: 1222 | N21: 2221 | O21: =COUNTIF($L$7:$L$500,N21) -> 8 | P21: =O21/$Q$4 -> 0.04371584699 | Q21: =IF(P21=0,0,(P21*((LOG(P21))/LOG(2)))) -> -0.1974076432 | T21: =N21 -> 2221 | U21: =COUNTIF(L7:L37,T21) -> 2 | V21: =U21/(W4-U20) -> 0.06896551724 | W21: =IF(V21=0,0,(V21*((LOG(V21))/LOG(2)))) -> -0.2660676548 | Y21: =N21 -> 2221 | Z21: =COUNTIF(L38:L67,Y21) -> 1 | AA21: =Z21/(AB4-Z20) -> 0.03571428571 | AB21: =IF(AA21=0,0,(AA21*((LOG(AA21))/LOG(2)))) -> -0.1716912472 | AD21: =N21 -> 2221 | AE21: =COUNTIF(L68:L98,AD21) -> 1 | AF21: =AE21/(AG4-AE20) -> 0.03333333333 | AG21: =IF(AF21=0,0,(AF21*((LOG(AF21))/LOG(2)))) -> -0.1635630199 | AI21: =N21 -> 2221 | AJ21: =COUNTIF(L99:L128,AI21) -> 1 | AK21: =AJ21/(AL4-AJ20) -> 0.03703703704 | AL21: =IF(AK21=0,0,(AK21*((LOG(AK21))/LOG(2)))) -> -0.1761069445 | AN21: =N21 -> 2221 | AO21: =COUNTIF(L129:L159,AN21) -> 3 | AP21: =AO21/(AQ4-AO20) -> 0.1 | AQ21: =IF(AP21=0,0,(AP21*((LOG(AP21))/LOG(2)))) -> -0.3321928095 | AS21: =N21 -> 2221 | AT21: =COUNTIF(L160:L189,AS21) -> 0 | AU21: =AT21/(AV4-AT20) -> 0 | AV21: =IF(AU21=0,0,(AU21*((LOG(AU21))/LOG(2)))) -> 0
A22: 12 | B22: 1995 | C22: 14 | D22: 2005 | E22: 24 | F22: 2014 | G22: 23 | H22: 2019 | K22: 0 | L22: 1122 | N22: 2222 | O22: =COUNTIF($L$7:$L$500,N22) -> 54 | P22: =O22/$Q$4 -> 0.2950819672 | Q22: =IF(P22=0,0,(P22*((LOG(P22))/LOG(2)))) -> -0.519583968 | T22: =N22 -> 2222 | U22: =COUNTIF(L7:L37,T22) -> 12 | V22: =U22/(W4-U20) -> 0.4137931034 | W22: =IF(V22=0,0,(V22*((LOG(V22))/LOG(2)))) -> -0.5267662735 | Y22: =N22 -> 2222 | Z22: =COUNTIF(L38:L67,Y22) -> 8 | AA22: =Z22/(AB4-Z20) -> 0.2857142857 | AB22: =IF(AA22=0,0,(AA22*((LOG(AA22))/LOG(2)))) -> -0.5163871206 | AD22: =N22 -> 2222 | AE22: =COUNTIF(L68:L98,AD22) -> 8 | AF22: =AE22/(AG4-AE20) -> 0.2666666667 | AG22: =IF(AF22=0,0,(AF22*((LOG(AF22))/LOG(2)))) -> -0.5085041588 | AI22: =N22 -> 2222 | AJ22: =COUNTIF(L99:L128,AI22) -> 9 | AK22: =AJ22/(AL4-AJ20) -> 0.3333333333 | AL22: =IF(AK22=0,0,(AK22*((LOG(AK22))/LOG(2)))) -> -0.5283208336 | AN22: =N22 -> 2222 | AO22: =COUNTIF(L129:L159,AN22) -> 7 | AP22: =AO22/(AQ4-AO20) -> 0.2333333333 | AQ22: =IF(AP22=0,0,(AP22*((LOG(AP22))/LOG(2)))) -> -0.4898916572 | AS22: =N22 -> 2222 | AT22: =COUNTIF(L160:L189,AS22) -> 10 | AU22: =AT22/(AV4-AT20) -> 0.3571428571 | AV22: =IF(AU22=0,0,(AU22*((LOG(AU22))/LOG(2)))) -> -0.5305095811
A23: 12 | B23: 2119 | C23: 23 | D23: 2123 | E23: 24 | F23: 2128 | G23: 23 | H23: 2135 | K23: 0 | L23: 1222 | P23: =SUM(P7:P22) -> 1 | Q23: =-SUM(Q7:Q22) -> 2.689375775 | V23: =SUM(V7:V22) -> 1 | W23: =-SUM(W7:W22) -> 1.996128634 | AA23: =SUM(AA7:AA22) -> 1 | AB23: =-SUM(AB7:AB22) -> 1.876717193 | AF23: =SUM(AF7:AF22) -> 1 | AG23: =-SUM(AG7:AG22) -> 3.00151528 | AK23: =SUM(AK7:AK22) -> 1 | AL23: =-SUM(AL7:AL22) -> 2.217721078 | AP23: =SUM(AP7:AP22) -> 1 | AQ23: =-SUM(AQ7:AQ22) -> 2.688712681 | AU23: =SUM(AU7:AU22) -> 1 | AV23: =-SUM(AV7:AV22) -> 2.013110959
A24: 21 | B24: 2231 | C24: 12 | D24: 2235 | E24: 24 | F24: 2255 | G24: 23 | H24: 2261 | K24: 0 | L24: 2122 | P24: U= | Q24: =Q23/(LOG(Q4)/LOG(2)) -> 0.3578343777 | V24: U1= | W24: =W23/(LOG(W4)/LOG(2)) -> 0.4029167416 | AA24: U2= | AB24: =AB23/(LOG(AB4)/LOG(2)) -> 0.3824656687 | AF24: U3= | AG24: =AG23/(LOG(AG4)/LOG(2)) -> 0.6058531177 | AK24: U4= | AL24: =AL23/(LOG(AL4)/LOG(2)) -> 0.4519605714 | AP24: U5= | AQ24: =AQ23/(LOG(AQ4)/LOG(2)) -> 0.5427141987 | AU24: U6= | AV24: =AV23/(LOG(AV4)/LOG(2)) -> 0.4102620427
A25: 12 | B25: 2360 | C25: 23 | D25: 2364 | E25: 24 | F25: 2369 | G25: 23 | H25: 2375 | K25: 0 | L25: 1222
A26: 12 | B26: 2481 | C26: 23 | D26: 2486 | E26: 24 | F26: 2495 | G26: 23 | H26: 2502 | K26: 0 | L26: 1222
A27: 21 | B27: 2601 | C27: 21 | D27: 2604 | E27: 22 | F27: 2610 | G27: 23 | H27: 2619 | K27: 0 | L27: 2222 | N27: Total Target Seq
A28: 21 | B28: 2714 | C28: 21 | D28: 2718 | E28: 22 | F28: 2724 | G28: 23 | H28: 2729 | K28: 0 | L28: 2222 | N28: =COUNTIF(L7:L189,G3) -> 11 | P28: 31 | Q28: 30 | R28: 31 | S28: 30 | T28: 31 | U28: 30
A29: 12 | B29: 2823 | C29: 23 | D29: 2834 | E29: 13 | F29: 2840 | G29: 14 | H29: 2852 | K29: 0 | L29: 1211 | P29: % of reinforcement given in 6 equal intervals based on number of trials
A30: 21 | B30: 2948 | C30: 21 | D30: 2953 | E30: 22 | F30: 2959 | G30: 23 | H30: 2966 | K30: 0 | L30: 2222 | P30: %_1 | Q30: %_2 | R30: %_3 | S30: %_4 | T30: %_5 | U30: %_6
A31: 12 | B31: 3064 | C31: 23 | D31: 3068 | E31: 24 | F31: 3072 | G31: 23 | H31: 3078 | K31: 0 | L31: 1222 | O31: target sequence | P31: =$G$3 -> 2212 | Q31: =$G$3 -> 2212 | R31: =$G$3 -> 2212 | S31: =$G$3 -> 2212 | T31: =$G$3 -> 2212 | U31: =$G$3 -> 2212
A32: 21 | B32: 3185 | C32: 21 | D32: 3195 | E32: 22 | F32: 3199 | G32: 23 | H32: 3205 | K32: 0 | L32: 2222 | O32: total reinforcement | P32: =U20 -> 2 | Q32: =Z20 -> 2 | R32: =AE20 -> 1 | S32: =AJ20 -> 3 | T32: =AO20 -> 1 | U32: =AT20 -> 2
A33: 21 | B33: 3299 | C33: 21 | D33: 3304 | E33: 22 | F33: 3310 | G33: 14 | H33: 3313 | K33: 0 | L33: 2221 | O33: % target
A34: 21 | B34: 3405 | C34: 12 | D34: 3410 | E34: 24 | F34: 3416 | G34: 23 | H34: 3418 | K34: 0 | L34: 2122 | O34: CCRF
A35: 21 | B35: 3512 | C35: 21 | D35: 3519 | E35: 22 | F35: 3522 | G35: 23 | H35: 3527 | K35: 0 | L35: 2222 | O35: % CCRf
A36: 21 | B36: 3632 | C36: 21 | D36: 3638 | E36: 22 | F36: 3645 | G36: 23 | H36: 3650 | K36: 0 | L36: 2222 | O36: average response rate | P36: =H37/P28 -> 121.1612903 | Q36: =(H67-H37)/Q28 -> 127.7333333 | R36: =(H98-H67)/R28 -> 133.8064516 | S36: =(H128-H98)/S28 -> 153.4 | T36: =(H159-H128)/T28 -> 119.7096774 | U36: =(H189-H159)/U28 -> 130.3666667
A37: 21 | B37: 3742 | C37: 21 | D37: 3750 | E37: 11 | F37: 3752 | G37: 21 | H37: 3756 | K37: 0 | L37: 2212
A38: 12 | B38: 4054 | C38: 23 | D38: 4064 | E38: 24 | F38: 4071 | G38: 23 | H38: 4078 | K38: 0 | L38: 1222
A39: 12 | B39: 4172 | C39: 23 | D39: 4182 | E39: 24 | F39: 4190 | G39: 23 | H39: 4197 | K39: 0 | L39: 1222
A40: 12 | B40: 4290 | C40: 23 | D40: 4299 | E40: 24 | F40: 4311 | G40: 23 | H40: 4317 | K40: 0 | L40: 1222
A41: 21 | B41: 4416 | C41: 21 | D41: 4424 | E41: 22 | F41: 4430 | G41: 23 | H41: 4436 | K41: 0 | L41: 2222
A42: 21 | B42: 4539 | C42: 21 | D42: 4545 | E42: 22 | F42: 4550 | G42: 23 | H42: 4557 | K42: 0 | L42: 2222
A43: 12 | B43: 4656 | C43: 23 | D43: 4659 | E43: 24 | F43: 4666 | G43: 23 | H43: 4672 | K43: 0 | L43: 1222
A44: 21 | B44: 4776 | C44: 21 | D44: 4782 | E44: 22 | F44: 4790 | G44: 23 | H44: 4797 | K44: 0 | L44: 2222
A45: 21 | B45: 4894 | C45: 21 | D45: 4901 | E45: 22 | F45: 4907 | G45: 14 | H45: 4913 | K45: 0 | L45: 2221
A46: 12 | B46: 5014 | C46: 23 | D46: 5019 | E46: 24 | F46: 5022 | G46: 23 | H46: 5027 | K46: 0 | L46: 1222
A47: 21 | B47: 5126 | C47: 21 | D47: 5141 | E47: 22 | F47: 5149 | G47: 23 | H47: 5156 | K47: 0 | L47: 2222
A48: 12 | B48: 5255 | C48: 23 | D48: 5260 | E48: 24 | F48: 5263 | G48: 23 | H48: 5267 | K48: 0 | L48: 1222
A49: 21 | B49: 5366 | C49: 21 | D49: 5372 | E49: 22 | F49: 5378 | G49: 23 | H49: 5385 | K49: 0 | L49: 2222
A50: 21 | B50: 5485 | C50: 12 | D50: 5490 | E50: 24 | F50: 5496 | G50: 23 | H50: 5501 | K50: 0 | L50: 2122
A51: 12 | B51: 5598 | C51: 23 | D51: 5603 | E51: 24 | F51: 5611 | G51: 23 | H51: 5616 | K51: 0 | L51: 1222
A52: 21 | B52: 5710 | C52: 12 | D52: 5714 | E52: 24 | F52: 5716 | G52: 23 | H52: 5721 | K52: 0 | L52: 2122
A53: 12 | B53: 5816 | C53: 23 | D53: 5820 | E53: 24 | F53: 5825 | G53: 23 | H53: 5833 | K53: 0 | L53: 1222
A54: 21 | B54: 5928 | C54: 21 | D54: 5933 | E54: 11 | F54: 5935 | G54: 21 | H54: 5939 | K54: 0 | L54: 2212
A55: 21 | B55: 6159 | C55: 21 | D55: 6168 | E55: 22 | F55: 6174 | G55: 23 | H55: 6181 | K55: 0 | L55: 2222
A56: 12 | B56: 6273 | C56: 14 | D56: 6278 | E56: 24 | F56: 6282 | G56: 23 | H56: 6288 | K56: 0 | L56: 1122
A57: 12 | B57: 6382 | C57: 23 | D57: 6395 | E57: 24 | F57: 6399 | G57: 23 | H57: 6404 | K57: 0 | L57: 1222
A58: 12 | B58: 6501 | C58: 23 | D58: 6504 | E58: 24 | F58: 6509 | G58: 23 | H58: 6515 | K58: 0 | L58: 1222
A59: 12 | B59: 6619 | C59: 23 | D59: 6625 | E59: 24 | F59: 6630 | G59: 23 | H59: 6635 | K59: 0 | L59: 1222
A60: 21 | B60: 6738 | C60: 12 | D60: 6741 | E60: 24 | F60: 6748 | G60: 23 | H60: 6753 | K60: 0 | L60: 2122
A61: 12 | B61: 6849 | C61: 23 | D61: 6856 | E61: 24 | F61: 6866 | G61: 23 | H61: 6869 | K61: 0 | L61: 1222
A62: 12 | B62: 6971 | C62: 23 | D62: 6976 | E62: 24 | F62: 6984 | G62: 23 | H62: 6990 | K62: 0 | L62: 1222
A63: 12 | B63: 7084 | C63: 23 | D63: 7089 | E63: 13 | F63: 7094 | G63: 14 | H63: 7098 | K63: 0 | L63: 1211
A64: 21 | B64: 7202 | C64: 21 | D64: 7205 | E64: 22 | F64: 7209 | G64: 23 | H64: 7217 | K64: 0 | L64: 2222
A65: 12 | B65: 7320 | C65: 23 | D65: 7328 | E65: 24 | F65: 7341 | G65: 23 | H65: 7347 | K65: 0 | L65: 1222
A66: 21 | B66: 7448 | C66: 21 | D66: 7464 | E66: 22 | F66: 7471 | G66: 23 | H66: 7479 | K66: 0 | L66: 2222
A67: 21 | B67: 7576 | C67: 21 | D67: 7584 | E67: 11 | F67: 7586 | G67: 21 | H67: 7588 | K67: 0 | L67: 2212
A68: 21 | B68: 7779 | C68: 21 | D68: 7796 | E68: 22 | F68: 7802 | G68: 23 | H68: 7809 | K68: 0 | L68: 2222
A69: 12 | B69: 7906 | C69: 23 | D69: 7908 | E69: 24 | F69: 7920 | G69: 23 | H69: 7926 | K69: 0 | L69: 1222
A70: 12 | B70: 8031 | C70: 23 | D70: 8034 | E70: 24 | F70: 8043 | G70: 23 | H70: 8049 | K70: 0 | L70: 1222
A71: 21 | B71: 8144 | C71: 21 | D71: 8150 | E71: 22 | F71: 8156 | G71: 23 | H71: 8164 | K71: 0 | L71: 2222
A72: 12 | B72: 8264 | C72: 23 | D72: 8272 | E72: 24 | F72: 8277 | G72: 23 | H72: 8280 | K72: 0 | L72: 1222
A73: 12 | B73: 8372 | C73: 14 | D73: 8381 | E73: 24 | F73: 8386 | G73: 14 | H73: 8389 | K73: 0 | L73: 1121
A74: 21 | B74: 8484 | C74: 12 | D74: 8491 | E74: 24 | F74: 8497 | G74: 23 | H74: 8506 | K74: 0 | L74: 2122
A75: 12 | B75: 8600 | C75: 14 | D75: 8606 | E75: 24 | F75: 8613 | G75: 14 | H75: 8631 | K75: 0 | L75: 1121
A76: 12 | B76: 8725 | C76: 23 | D76: 8732 | E76: 24 | F76: 8736 | G76: 14 | H76: 8738 | K76: 0 | L76: 1221
A77: 21 | B77: 8830 | C77: 21 | D77: 8836 | E77: 22 | F77: 8841 | G77: 23 | H77: 8847 | K77: 0 | L77: 2222
A78: 21 | B78: 8941 | C78: 12 | D78: 8943 | E78: 24 | F78: 8945 | G78: 23 | H78: 8952 | K78: 0 | L78: 2122
A79: 21 | B79: 9053 | C79: 12 | D79: 9059 | E79: 24 | F79: 9080 | G79: 23 | H79: 9081 | K79: 0 | L79: 2122
A80: 12 | B80: 9180 | C80: 23 | D80: 9189 | E80: 24 | F80: 9195 | G80: 23 | H80: 9201 | K80: 0 | L80: 1222
A81: 12 | B81: 9295 | C81: 14 | D81: 9300 | E81: 13 | F81: 9308 | G81: 23 | H81: 9310 | K81: 0 | L81: 1112
A82: 21 | B82: 9404 | C82: 21 | D82: 9411 | E82: 22 | F82: 9416 | G82: 23 | H82: 9424 | K82: 0 | L82: 2222
A83: 12 | B83: 9516 | C83: 23 | D83: 9520 | E83: 13 | F83: 9528 | G83: 23 | H83: 9530 | K83: 0 | L83: 1212
A84: 21 | B84: 9622 | C84: 21 | D84: 9627 | E84: 22 | F84: 9634 | G84: 14 | H84: 9637 | K84: 0 | L84: 2221
A85: 12 | B85: 9732 | C85: 23 | D85: 9740 | E85: 24 | F85: 9753 | G85: 23 | H85: 9758 | K85: 0 | L85: 1222
A86: 12 | B86: 9859 | C86: 23 | D86: 9866 | E86: 13 | F86: 9877 | G86: 23 | H86: 9880 | K86: 0 | L86: 1212
A87: 12 | B87: 9983 | C87: 23 | D87: 9988 | E87: 24 | F87: 10031 | G87: 23 | H87: 10040 | K87: 0 | L87: 1222
A88: 12 | B88: 10135 | C88: 14 | D88: 10152 | E88: 13 | F88: 10155 | G88: 14 | H88: 10163 | K88: 0 | L88: 1111
A89: 21 | B89: 10258 | C89: 21 | D89: 10266 | E89: 22 | F89: 10270 | G89: 23 | H89: 10290 | K89: 0 | L89: 2222
A90: 12 | B90: 10392 | C90: 14 | D90: 10396 | E90: 24 | F90: 10402 | G90: 23 | H90: 10406 | K90: 0 | L90: 1122
A91: 21 | B91: 10501 | C91: 21 | D91: 10506 | E91: 22 | F91: 10511 | G91: 23 | H91: 10518 | K91: 0 | L91: 2222
A92: 12 | B92: 10621 | C92: 23 | D92: 10625 | E92: 24 | F92: 10631 | G92: 23 | H92: 10635 | K92: 0 | L92: 1222
A93: 21 | B93: 10731 | C93: 21 | D93: 10735 | E93: 22 | F93: 10739 | G93: 23 | H93: 10742 | K93: 0 | L93: 2222
A94: 12 | B94: 10837 | C94: 14 | D94: 10849 | E94: 24 | F94: 10853 | G94: 23 | H94: 10881 | K94: 0 | L94: 1122
A95: 12 | B95: 10975 | C95: 14 | D95: 10978 | E95: 24 | F95: 10992 | G95: 23 | H95: 11002 | K95: 0 | L95: 1122
A96: 21 | B96: 11105 | C96: 12 | D96: 11109 | E96: 13 | F96: 11112 | G96: 23 | H96: 11118 | K96: 0 | L96: 2112
A97: 21 | B97: 11221 | C97: 21 | D97: 11225 | E97: 11 | F97: 11227 | G97: 21 | H97: 11243 | K97: 0 | L97: 2212
A98: 21 | B98: 11716 | C98: 21 | D98: 11722 | E98: 22 | F98: 11728 | G98: 23 | H98: 11736 | K98: 0 | L98: 2222
A99: 12 | B99: 11829 | C99: 23 | D99: 11840 | E99: 24 | F99: 11846 | G99: 23 | H99: 11851 | K99: 0 | L99: 1222
A100: 12 | B100: 11956 | C100: 23 | D100: 11961 | E100: 24 | F100: 11966 | G100: 23 | H100: 11972 | K100: 0 | L100: 1222
A101: 21 | B101: 12075 | C101: 12 | D101: 12080 | E101: 24 | F101: 12082 | G101: 23 | H101: 12095 | K101: 0 | L101: 2122
A102: 12 | B102: 12193 | C102: 23 | D102: 12199 | E102: 13 | F102: 12203 | G102: 23 | H102: 12211 | K102: 0 | L102: 1212
A103: 21 | B103: 12307 | C103: 12 | D103: 12315 | E103: 24 | F103: 12319 | G103: 23 | H103: 12326 | K103: 0 | L103: 2122
A104: 21 | B104: 12425 | C104: 21 | D104: 12429 | E104: 22 | F104: 12435 | G104: 23 | H104: 12441 | K104: 0 | L104: 2222
A105: 21 | B105: 12568 | C105: 21 | D105: 12575 | E105: 22 | F105: 12580 | G105: 23 | H105: 12596 | K105: 0 | L105: 2222
A106: 12 | B106: 12692 | C106: 23 | D106: 12701 | E106: 24 | F106: 12707 | G106: 23 | H106: 12710 | K106: 0 | L106: 1222
A107: 12 | B107: 12806 | C107: 14 | D107: 12810 | E107: 24 | F107: 12815 | G107: 23 | H107: 12822 | K107: 0 | L107: 1122
A108: 21 | B108: 12918 | C108: 21 | D108: 12921 | E108: 11 | F108: 12923 | G108: 21 | H108: 12927 | K108: 0 | L108: 2212
A109: 12 | B109: 13163 | C109: 23 | D109: 13173 | E109: 24 | F109: 13180 | G109: 23 | H109: 13190 | K109: 0 | L109: 1222
A110: 21 | B110: 13305 | C110: 21 | D110: 13311 | E110: 22 | F110: 13317 | G110: 23 | H110: 13322 | K110: 0 | L110: 2222
A111: 21 | B111: 13423 | C111: 12 | D111: 13430 | E111: 24 | F111: 13433 | G111: 23 | H111: 13439 | K111: 0 | L111: 2122
A112: 21 | B112: 13539 | C112: 21 | D112: 13543 | E112: 11 | F112: 13545 | G112: 21 | H112: 13554 | K112: 0 | L112: 2212
A113: 12 | B113: 13907 | C113: 23 | D113: 13919 | E113: 24 | F113: 13926 | G113: 23 | H113: 13932 | K113: 0 | L113: 1222
A114: 21 | B114: 14027 | C114: 21 | D114: 14030 | E114: 22 | F114: 14043 | G114: 23 | H114: 14050 | K114: 0 | L114: 2222
A115: 21 | B115: 14152 | C115: 21 | D115: 14157 | E115: 22 | F115: 14162 | G115: 23 | H115: 14169 | K115: 0 | L115: 2222
A116: 12 | B116: 14269 | C116: 23 | D116: 14275 | E116: 24 | F116: 14279 | G116: 14 | H116: 14298 | K116: 0 | L116: 1221
A117: 12 | B117: 14392 | C117: 23 | D117: 14408 | E117: 13 | F117: 14417 | G117: 23 | H117: 14418 | K117: 0 | L117: 1212
A118: 21 | B118: 14530 | C118: 21 | D118: 14536 | E118: 22 | F118: 14542 | G118: 23 | H118: 14547 | K118: 0 | L118: 2222
A119: 21 | B119: 14647 | C119: 21 | D119: 14653 | E119: 22 | F119: 14658 | G119: 23 | H119: 14664 | K119: 0 | L119: 2222
A120: 12 | B120: 14758 | C120: 23 | D120: 14768 | E120: 24 | F120: 14773 | G120: 23 | H120: 14780 | K120: 0 | L120: 1222
A121: 12 | B121: 14877 | C121: 23 | D121: 14883 | E121: 24 | F121: 14892 | G121: 23 | H121: 14898 | K121: 0 | L121: 1222
A122: 12 | B122: 15006 | C122: 23 | D122: 15010 | E122: 24 | F122: 15015 | G122: 23 | H122: 15021 | K122: 0 | L122: 1222
A123: 21 | B123: 15122 | C123: 21 | D123: 15125 | E123: 22 | F123: 15130 | G123: 23 | H123: 15136 | K123: 0 | L123: 2222
A124: 21 | B124: 15234 | C124: 21 | D124: 15243 | E124: 11 | F124: 15248 | G124: 21 | H124: 15250 | K124: 0 | L124: 2212
A125: 21 | B125: 15974 | C125: 21 | D125: 15978 | E125: 22 | F125: 15989 | G125: 23 | H125: 15995 | K125: 0 | L125: 2222
A126: 12 | B126: 16092 | C126: 23 | D126: 16096 | E126: 24 | F126: 16101 | G126: 23 | H126: 16107 | K126: 0 | L126: 1222
A127: 21 | B127: 16207 | C127: 21 | D127: 16213 | E127: 22 | F127: 16219 | G127: 14 | H127: 16225 | K127: 0 | L127: 2221
A128: 12 | B128: 16324 | C128: 23 | D128: 16328 | E128: 24 | F128: 16333 | G128: 23 | H128: 16338 | K128: 0 | L128: 1222
A129: 21 | B129: 16433 | C129: 21 | D129: 16437 | E129: 22 | F129: 16443 | G129: 23 | H129: 16449 | K129: 0 | L129: 2222
A130: 21 | B130: 16542 | C130: 12 | D130: 16548 | E130: 24 | F130: 16552 | G130: 23 | H130: 16562 | K130: 0 | L130: 2122
A131: 12 | B131: 16664 | C131: 23 | D131: 16669 | E131: 24 | F131: 16672 | G131: 23 | H131: 16678 | K131: 0 | L131: 1222
A132: 21 | B132: 16783 | C132: 21 | D132: 16787 | E132: 22 | F132: 16794 | G132: 14 | H132: 16796 | K132: 0 | L132: 2221
A133: 12 | B133: 16905 | C133: 23 | D133: 16908 | E133: 24 | F133: 16913 | G133: 23 | H133: 16918 | K133: 0 | L133: 1222
A134: 21 | B134: 17016 | C134: 21 | D134: 17020 | E134: 22 | F134: 17026 | G134: 23 | H134: 17031 | K134: 0 | L134: 2222
A135: 21 | B135: 17126 | C135: 21 | D135: 17132 | E135: 22 | F135: 17139 | G135: 23 | H135: 17144 | K135: 0 | L135: 2222
A136: 12 | B136: 17248 | C136: 14 | D136: 17257 | E136: 24 | F136: 17260 | G136: 23 | H136: 17270 | K136: 0 | L136: 1122
A137: 12 | B137: 17365 | C137: 14 | D137: 17369 | E137: 13 | F137: 17374 | G137: 23 | H137: 17379 | K137: 0 | L137: 1112
A138: 12 | B138: 17471 | C138: 23 | D138: 17474 | E138: 13 | F138: 17479 | G138: 23 | H138: 17485 | K138: 0 | L138: 1212
A139: 12 | B139: 17582 | C139: 23 | D139: 17593 | E139: 24 | F139: 17599 | G139: 14 | H139: 17602 | K139: 0 | L139: 1221
A140: 21 | B140: 17698 | C140: 21 | D140: 17703 | E140: 11 | F140: 17707 | G140: 21 | H140: 17709 | K140: 0 | L140: 2212
A141: 21 | B141: 17853 | C141: 21 | D141: 17937 | E141: 22 | F141: 17942 | G141: 23 | H141: 17947 | K141: 0 | L141: 2222
A142: 12 | B142: 18044 | C142: 23 | D142: 18069 | E142: 24 | F142: 18073 | G142: 23 | H142: 18080 | K142: 0 | L142: 1222
A143: 21 | B143: 18172 | C143: 21 | D143: 18177 | E143: 22 | F143: 18183 | G143: 14 | H143: 18187 | K143: 0 | L143: 2221
A144: 12 | B144: 18281 | C144: 23 | D144: 18292 | E144: 24 | F144: 18298 | G144: 23 | H144: 18305 | K144: 0 | L144: 1222
A145: 12 | B145: 18397 | C145: 23 | D145: 18408 | E145: 24 | F145: 18412 | G145: 23 | H145: 18423 | K145: 0 | L145: 1222
A146: 21 | B146: 18525 | C146: 21 | D146: 18530 | E146: 22 | F146: 18537 | G146: 23 | H146: 18544 | K146: 0 | L146: 2222
A147: 12 | B147: 18646 | C147: 23 | D147: 18650 | E147: 24 | F147: 18653 | G147: 23 | H147: 18662 | K147: 0 | L147: 1222
A148: 21 | B148: 18759 | C148: 21 | D148: 18764 | E148: 22 | F148: 18773 | G148: 23 | H148: 18779 | K148: 0 | L148: 2222
A149: 12 | B149: 18874 | C149: 23 | D149: 18878 | E149: 24 | F149: 18884 | G149: 23 | H149: 18888 | K149: 0 | L149: 1222
A150: 12 | B150: 18980 | C150: 23 | D150: 18990 | E150: 24 | F150: 18996 | G150: 23 | H150: 19004 | K150: 0 | L150: 1222
A151: 12 | B151: 19109 | C151: 23 | D151: 19114 | E151: 24 | F151: 19128 | G151: 23 | H151: 19134 | K151: 0 | L151: 1222
A152: 12 | B152: 19227 | C152: 14 | D152: 19231 | E152: 13 | F152: 19239 | G152: 14 | H152: 19248 | K152: 0 | L152: 1111
A153: 21 | B153: 19346 | C153: 21 | D153: 19350 | E153: 22 | F153: 19356 | G153: 14 | H153: 19359 | K153: 0 | L153: 2221
A154: 21 | B154: 19455 | C154: 12 | D154: 19457 | E154: 24 | F154: 19459 | G154: 23 | H154: 19465 | K154: 0 | L154: 2122
A155: 12 | B155: 19558 | C155: 23 | D155: 19560 | E155: 13 | F155: 19578 | G155: 23 | H155: 19580 | K155: 0 | L155: 1212
A156: 21 | B156: 19676 | C156: 12 | D156: 19681 | E156: 24 | F156: 19683 | G156: 23 | H156: 19690 | K156: 0 | L156: 2122
A157: 21 | B157: 19795 | C157: 12 | D157: 19799 | E157: 24 | F157: 19803 | G157: 23 | H157: 19815 | K157: 0 | L157: 2122
A158: 21 | B158: 19920 | C158: 12 | D158: 19924 | E158: 24 | F158: 19928 | G158: 23 | H158: 19937 | K158: 0 | L158: 2122
A159: 21 | B159: 20031 | C159: 21 | D159: 20036 | E159: 22 | F159: 20042 | G159: 23 | H159: 20049 | K159: 0 | L159: 2222
A160: 21 | B160: 20142 | C160: 21 | D160: 20146 | E160: 22 | F160: 20148 | G160: 23 | H160: 20154 | K160: 0 | L160: 2222
A161: 21 | B161: 20250 | C161: 21 | D161: 20260 | E161: 11 | F161: 20264 | G161: 21 | H161: 20266 | K161: 0 | L161: 2212
A162: 21 | B162: 20640 | C162: 21 | D162: 20646 | E162: 22 | F162: 20651 | G162: 23 | H162: 20659 | K162: 0 | L162: 2222
A163: 21 | B163: 20763 | C163: 21 | D163: 20771 | E163: 22 | F163: 20777 | G163: 23 | H163: 20786 | K163: 0 | L163: 2222
A164: 12 | B164: 20880 | C164: 23 | D164: 20885 | E164: 24 | F164: 20892 | G164: 14 | H164: 20894 | K164: 0 | L164: 1221
A165: 12 | B165: 20986 | C165: 23 | D165: 20994 | E165: 24 | F165: 20999 | G165: 23 | H165: 21004 | K165: 0 | L165: 1222
A166: 21 | B166: 21100 | C166: 21 | D166: 21103 | E166: 22 | F166: 21107 | G166: 23 | H166: 21110 | K166: 0 | L166: 2222
A167: 21 | B167: 21208 | C167: 21 | D167: 21213 | E167: 11 | F167: 21217 | G167: 21 | H167: 21219 | K167: 0 | L167: 2212
A168: 12 | B168: 21512 | C168: 23 | D168: 21522 | E168: 24 | F168: 21533 | G168: 23 | H168: 21539 | K168: 0 | L168: 1222
A169: 12 | B169: 21640 | C169: 23 | D169: 21646 | E169: 24 | F169: 21654 | G169: 23 | H169: 21661 | K169: 0 | L169: 1222
A170: 12 | B170: 21757 | C170: 23 | D170: 21760 | E170: 24 | F170: 21764 | G170: 23 | H170: 21770 | K170: 0 | L170: 1222
A171: 12 | B171: 21863 | C171: 23 | D171: 21873 | E171: 24 | F171: 21878 | G171: 23 | H171: 21884 | K171: 0 | L171: 1222
A172: 12 | B172: 21985 | C172: 23 | D172: 21994 | E172: 24 | F172: 21999 | G172: 23 | H172: 22001 | K172: 0 | L172: 1222
A173: 12 | B173: 22094 | C173: 23 | D173: 22097 | E173: 13 | F173: 22100 | G173: 23 | H173: 22102 | K173: 0 | L173: 1212
A174: 21 | B174: 22197 | C174: 21 | D174: 22203 | E174: 22 | F174: 22210 | G174: 23 | H174: 22217 | K174: 0 | L174: 2222
A175: 12 | B175: 22310 | C175: 14 | D175: 22323 | E175: 24 | F175: 22327 | G175: 23 | H175: 22331 | K175: 0 | L175: 1122
A176: 12 | B176: 22426 | C176: 23 | D176: 22428 | E176: 24 | F176: 22432 | G176: 23 | H176: 22436 | K176: 0 | L176: 1222
A177: 12 | B177: 22528 | C177: 23 | D177: 22530 | E177: 24 | F177: 22536 | G177: 23 | H177: 22540 | K177: 0 | L177: 1222
A178: 21 | B178: 22634 | C178: 21 | D178: 22637 | E178: 22 | F178: 22643 | G178: 23 | H178: 22650 | K178: 0 | L178: 2222
A179: 21 | B179: 22755 | C179: 21 | D179: 22758 | E179: 22 | F179: 22765 | G179: 23 | H179: 22771 | K179: 0 | L179: 2222
A180: 12 | B180: 22866 | C180: 23 | D180: 22869 | E180: 24 | F180: 22871 | G180: 23 | H180: 22874 | K180: 0 | L180: 1222
A181: 21 | B181: 22970 | C181: 21 | D181: 22976 | E181: 22 | F181: 22990 | G181: 23 | H181: 22997 | K181: 0 | L181: 2222
A182: 21 | B182: 23094 | C182: 12 | D182: 23099 | E182: 24 | F182: 23110 | G182: 23 | H182: 23119 | K182: 0 | L182: 2122
A183: 21 | B183: 23229 | C183: 12 | D183: 23247 | E183: 13 | F183: 23259 | G183: 23 | H183: 23261 | K183: 0 | L183: 2112
A184: 12 | B184: 23355 | C184: 23 | D184: 23367 | E184: 24 | F184: 23374 | G184: 23 | H184: 23379 | K184: 0 | L184: 1222
A185: 12 | B185: 23480 | C185: 23 | D185: 23485 | E185: 24 | F185: 23493 | G185: 23 | H185: 23498 | K185: 0 | L185: 1222
A186: 21 | B186: 23596 | C186: 21 | D186: 23601 | E186: 22 | F186: 23607 | G186: 23 | H186: 23610 | K186: 0 | L186: 2222
A187: 12 | B187: 23704 | C187: 14 | D187: 23718 | E187: 24 | F187: 23723 | G187: 23 | H187: 23729 | K187: 0 | L187: 1122
A188: 21 | B188: 23836 | C188: 21 | D188: 23841 | E188: 22 | F188: 23846 | G188: 23 | H188: 23850 | K188: 0 | L188: 2222
A189: 12 | B189: 23942 | C189: 23 | D189: 23949 | E189: 24 | F189: 23954 | G189: 23 | H189: 23960 | L189: 1222

Sheet !M625A50.Gus
A1: Report for:!M625A50.Gus
A2: Date: | B2: <date>
A3: Hen: | B3: <hen> | F3: Correct Sequence | G3: =Start!J2 -> 2212 | P3: Total Sequences in Data | Q3: =4994-COUNTBLANK(L7:L5000) -> 172 | V3: Total Sequences in Block Data | W3: =COUNTA(L7:L35) -> 29 | AA3: Total Sequences in Block Data | AB3: =COUNTA(L36:L63) -> 28 | AF3: Total Sequences in Block Data | AG3: =COUNTA(L64:L92) -> 29 | AK3: Total Sequences in Block Data | AL3: =COUNTA(L93:L121) -> 29 | AP3: Total Sequences in Block Data | AQ3: =COUNTA(L122:L149) -> 28 | AU3: Total Sequences in Block Data | AV3: =COUNTA(L150:L178) -> 29
P4: Total Sequences in Summary | Q4: =SUM(O7:O22) -> 172 | V4: Total Sequences in Block Summary | W4: =SUM(U7:U22) -> 29 | AA4: Total Sequences in Block Summary | AB4: =SUM(Z7:Z22) -> 28 | AF4: Total Sequences in Block Summary | AG4: =SUM(AE7:AE22) -> 29 | AK4: Total Sequences in Block Summary | AL4: =SUM(AJ7:AJ22) -> 29 | AP4: Total Sequences in Block Summary | AQ4: =SUM(AO7:AO22) -> 28 | AU4: Total Sequences in Block Summary | AV4: =SUM(AT7:AT22) -> 29
T5: Block 1 | Y5: Block 2 | AD5: Block 3 | AI5: Block 4 | AN5: Block 5 | AS5: Block 6
A6: Sequence Component 1 | B6: Time 1 | C6: Sequence Component 2 | D6: Time 2 | E6: Sequence Component 3 | F6: Time 3 | G6: Sequence Component 4 | H6: Time 4 | I6: Sequence Component 5 | J6: Time 5 | K6: Correct? 0=No 1=Yes | L6: Sequence | N6: Frequency | P6: Relative Frequency | Q6: Variability | T6: Frequency | V6: Relative Frequency | W6: Variability | Y6: Frequency | AA6: Relative Frequency | AB6: Variability | AD6: Frequency | AF6: Relative Frequency | AG6: Variability | AI6: Frequency | AK6: Relative Frequency | AL6: Variability | AN6: Frequency | AP6: Relative Frequency | AQ6: Variability | AS6: Frequency | AU6: Relative Frequency | AV6: Variability
A7: 21 | B7: 11 | C7: 21 | D7: 23 | E7: 22 | F7: 43 | G7: 23 | H7: 56 | K7: 0 | L7: 2222 | N7: 1111 | O7: =COUNTIF($L$7:$L$500,N7) -> 0 | P7: =O7/$Q$4 -> 0 | Q7: =IF(P7=0,0,(P7*((LOG(P7))/LOG(2)))) -> 0 | T7: =N7 -> 1111 | U7: =COUNTIF(L7:L35,T7) -> 0 | V7: =U7/(W4-U20) -> 0 | W7: =IF(V7=0,0,(V7*((LOG(V7))/LOG(2)))) -> 0 | Y7: =N7 -> 1111 | Z7: =COUNTIF(L36:L63,Y7) -> 0 | AA7: =Z7/(AB4-Z20) -> 0 | AB7: =IF(AA7=0,0,(AA7*((LOG(AA7))/LOG(2)))) -> 0 | AD7: =N7 -> 1111 | AE7: =COUNTIF(L64:L92,AD7) -> 0 | AF7: =AE7/(AG4-AE20) -> 0 | AG7: =IF(AF7=0,0,(AF7*((LOG(AF7))/LOG(2)))) -> 0 | AI7: =N7 -> 1111 | AJ7: =COUNTIF(L93:L121,AI7) -> 0 | AK7: =AJ7/(AL4-AJ20) -> 0 | AL7: =IF(AK7=0,0,(AK7*((LOG(AK7))/LOG(2)))) -> 0 | AN7: =N7 -> 1111 | AO7: =COUNTIF(L122:L149,AN7) -> 0 | AP7: =AO7/(AQ4-AO20) -> 0 | AQ7: =IF(AP7=0,0,(AP7*((LOG(AP7))/LOG(2)))) -> 0 | AS7: =N7 -> 1111 | AT7: =COUNTIF(L150:L178,AS7) -> 0 | AU7: =AT7/(AV4-AT20) -> 0 | AV7: =IF(AU7=0,0,(AU7*((LOG(AU7))/LOG(2)))) -> 0
A8: 21 | B8: 224 | C8: 21 | D8: 230 | E8: 22 | F8: 236 | G8: 23 | H8: 240 | K8: 0 | L8: 2222 | N8: 1112 | O8: =COUNTIF($L$7:$L$500,N8) -> 1 | P8: =O8/$Q$4 -> 0.005813953488 | Q8: =IF(P8=0,0,(P8*((LOG(P8))/LOG(2)))) -> -0.04317595788 | T8: =N8 -> 1112 | U8: =COUNTIF(L7:L35,T8) -> 0 | V8: =U8/(W4-U20) -> 0 | W8: =IF(V8=0,0,(V8*((LOG(V8))/LOG(2)))) -> 0 | Y8: =N8 -> 1112 | Z8: =COUNTIF(L36:L63,Y8) -> 0 | AA8: =Z8/(AB4-Z20) -> 0 | AB8: =IF(AA8=0,0,(AA8*((LOG(AA8))/LOG(2)))) -> 0 | AD8: =N8 -> 1112 | AE8: =COUNTIF(L64:L92,AD8) -> 0 | AF8: =AE8/(AG4-AE20) -> 0 | AG8: =IF(AF8=0,0,(AF8*((LOG(AF8))/LOG(2)))) -> 0 | AI8: =N8 -> 1112 | AJ8: =COUNTIF(L93:L121,AI8) -> 1 | AK8: =AJ8/(AL4-AJ20) -> 0.03846153846 | AL8: =IF(AK8=0,0,(AK8*((LOG(AK8))/LOG(2)))) -> -0.180786143 | AN8: =N8 -> 1112 | AO8: =COUNTIF(L122:L149,AN8) -> 0 | AP8: =AO8/(AQ4-AO20) -> 0 | AQ8: =IF(AP8=0,0,(AP8*((LOG(AP8))/LOG(2)))) -> 0 | AS8: =N8 -> 1112 | AT8: =COUNTIF(L150:L178,AS8) -> 0 | AU8: =AT8/(AV4-AT20) -> 0 | AV8: =IF(AU8=0,0,(AU8*((LOG(AU8))/LOG(2)))) -> 0
A9: 21 | B9: 344 | C9: 21 | D9: 354 | E9: 22 | F9: 366 | G9: 23 | H9: 374 | K9: 0 | L9: 2222 | N9: 1121 | O9: =COUNTIF($L$7:$L$500,N9) -> 1 | P9: =O9/$Q$4 -> 0.005813953488 | Q9: =IF(P9=0,0,(P9*((LOG(P9))/LOG(2)))) -> -0.04317595788 | T9: =N9 -> 1121 | U9: =COUNTIF(L7:L35,T9) -> 0 | V9: =U9/(W4-U20) -> 0 | W9: =IF(V9=0,0,(V9*((LOG(V9))/LOG(2)))) -> 0 | Y9: =N9 -> 1121 | Z9: =COUNTIF(L36:L63,Y9) -> 0 | AA9: =Z9/(AB4-Z20) -> 0 | AB9: =IF(AA9=0,0,(AA9*((LOG(AA9))/LOG(2)))) -> 0 | AD9: =N9 -> 1121 | AE9: =COUNTIF(L64:L92,AD9) -> 0 | AF9: =AE9/(AG4-AE20) -> 0 | AG9: =IF(AF9=0,0,(AF9*((LOG(AF9))/LOG(2)))) -> 0 | AI9: =N9 -> 1121 | AJ9: =COUNTIF(L93:L121,AI9) -> 1 | AK9: =AJ9/(AL4-AJ20) -> 0.03846153846 | AL9: =IF(AK9=0,0,(AK9*((LOG(AK9))/LOG(2)))) -> -0.180786143 | AN9: =N9 -> 1121 | AO9: =COUNTIF(L122:L149,AN9) -> 0 | AP9: =AO9/(AQ4-AO20) -> 0 | AQ9: =IF(AP9=0,0,(AP9*((LOG(AP9))/LOG(2)))) -> 0 | AS9: =N9 -> 1121 | AT9: =COUNTIF(L150:L178,AS9) -> 0 | AU9: =AT9/(AV4-AT20) -> 0 | AV9: =IF(AU9=0,0,(AU9*((LOG(AU9))/LOG(2)))) -> 0
A10: 21 | B10: 484 | C10: 21 | D10: 486 | E10: 22 | F10: 503 | G10: 23 | H10: 508 | K10: 0 | L10: 2222 | N10: 1122 | O10: =COUNTIF($L$7:$L$500,N10) -> 7 | P10: =O10/$Q$4 -> 0.04069767442 | Q10: =IF(P10=0,0,(P10*((LOG(P10))/LOG(2)))) -> -0.1879788885 | T10: =N10 -> 1122 | U10: =COUNTIF(L7:L35,T10) -> 2 | V10: =U10/(W4-U20) -> 0.07407407407 | W10: =IF(V10=0,0,(V10*((LOG(V10))/LOG(2)))) -> -0.278139815 | Y10: =N10 -> 1122 | Z10: =COUNTIF(L36:L63,Y10) -> 2 | AA10: =Z10/(AB4-Z20) -> 0.07407407407 | AB10: =IF(AA10=0,0,(AA10*((LOG(AA10))/LOG(2)))) -> -0.278139815 | AD10: =N10 -> 1122 | AE10: =COUNTIF(L64:L92,AD10) -> 0 | AF10: =AE10/(AG4-AE20) -> 0 | AG10: =IF(AF10=0,0,(AF10*((LOG(AF10))/LOG(2)))) -> 0 | AI10: =N10 -> 1122 | AJ10: =COUNTIF(L93:L121,AI10) -> 1 | AK10: =AJ10/(AL4-AJ20) -> 0.03846153846 | AL10: =IF(AK10=0,0,(AK10*((LOG(AK10))/LOG(2)))) -> -0.180786143 | AN10: =N10 -> 1122 | AO10: =COUNTIF(L122:L149,AN10) -> 1 | AP10: =AO10/(AQ4-AO20) -> 0.03703703704 | AQ10: =IF(AP10=0,0,(AP10*((LOG(AP10))/LOG(2)))) -> -0.1761069445 | AS10: =N10 -> 1122 | AT10: =COUNTIF(L150:L178,AS10) -> 1 | AU10: =AT10/(AV4-AT20) -> 0.03846153846 | AV10: =IF(AU10=0,0,(AU10*((LOG(AU10))/LOG(2)))) -> -0.180786143
A11: 12 | B11: 607 | C11: 23 | D11: 618 | E11: 24 | F11: 623 | G11: 23 | H11: 628 | K11: 0 | L11: 1222 | N11: 1211 | O11: =COUNTIF($L$7:$L$500,N11) -> 0 | P11: =O11/$Q$4 -> 0 | Q11: =IF(P11=0,0,(P11*((LOG(P11))/LOG(2)))) -> 0 | T11: =N11 -> 1211 | U11: =COUNTIF(L7:L35,T11) -> 0 | V11: =U11/(W4-U20) -> 0 | W11: =IF(V11=0,0,(V11*((LOG(V11))/LOG(2)))) -> 0 | Y11: =N11 -> 1211 | Z11: =COUNTIF(L36:L63,Y11) -> 0 | AA11: =Z11/(AB4-Z20) -> 0 | AB11: =IF(AA11=0,0,(AA11*((LOG(AA11))/LOG(2)))) -> 0 | AD11: =N11 -> 1211 | AE11: =COUNTIF(L64:L92,AD11) -> 0 | AF11: =AE11/(AG4-AE20) -> 0 | AG11: =IF(AF11=0,0,(AF11*((LOG(AF11))/LOG(2)))) -> 0 | AI11: =N11 -> 1211 | AJ11: =COUNTIF(L93:L121,AI11) -> 0 | AK11: =AJ11/(AL4-AJ20) -> 0 | AL11: =IF(AK11=0,0,(AK11*((LOG(AK11))/LOG(2)))) -> 0 | AN11: =N11 -> 1211 | AO11: =COUNTIF(L122:L149,AN11) -> 0 | AP11: =AO11/(AQ4-AO20) -> 0 | AQ11: =IF(AP11=0,0,(AP11*((LOG(AP11))/LOG(2)))) -> 0 | AS11: =N11 -> 1211 | AT11: =COUNTIF(L150:L178,AS11) -> 0 | AU11: =AT11/(AV4-AT20) -> 0 | AV11: =IF(AU11=0,0,(AU11*((LOG(AU11))/LOG(2)))) -> 0
A12: 12 | B12: 724 | C12: 14 | D12: 740 | E12: 24 | F12: 748 | G12: 23 | H12: 768 | K12: 0 | L12: 1122 | N12: 1212 | O12: =COUNTIF($L$7:$L$500,N12) -> 6 | P12: =O12/$Q$4 -> 0.03488372093 | Q12: =IF(P12=0,0,(P12*((LOG(P12))/LOG(2)))) -> -0.1688826368 | T12: =N12 -> 1212 | U12: =COUNTIF(L7:L35,T12) -> 1 | V12: =U12/(W4-U20) -> 0.03703703704 | W12: =IF(V12=0,0,(V12*((LOG(V12))/LOG(2)))) -> -0.1761069445 | Y12: =N12 -> 1212 | Z12: =COUNTIF(L36:L63,Y12) -> 2 | AA12: =Z12/(AB4-Z20) -> 0.07407407407 | AB12: =IF(AA12=0,0,(AA12*((LOG(AA12))/LOG(2)))) -> -0.278139815 | AD12: =N12 -> 1212 | AE12: =COUNTIF(L64:L92,AD12) -> 0 | AF12: =AE12/(AG4-AE20) -> 0 | AG12: =IF(AF12=0,0,(AF12*((LOG(AF12))/LOG(2)))) -> 0 | AI12: =N12 -> 1212 | AJ12: =COUNTIF(L93:L121,AI12) -> 1 | AK12: =AJ12/(AL4-AJ20) -> 0.03846153846 | AL12: =IF(AK12=0,0,(AK12*((LOG(AK12))/LOG(2)))) -> -0.180786143 | AN12: =N12 -> 1212 | AO12: =COUNTIF(L122:L149,AN12) -> 2 | AP12: =AO12/(AQ4-AO20) -> 0.07407407407 | AQ12: =IF(AP12=0,0,(AP12*((LOG(AP12))/LOG(2)))) -> -0.278139815 | AS12: =N12 -> 1212 | AT12: =COUNTIF(L150:L178,AS12) -> 0 | AU12: =AT12/(AV4-AT20) -> 0 | AV12: =IF(AU12=0,0,(AU12*((LOG(AU12))/LOG(2)))) -> 0
A13: 12 | B13: 861 | C13: 23 | D13: 876 | E13: 13 | F13: 881 | G13: 23 | H13: 900 | K13: 0 | L13: 1212 | N13: 1221 | O13: =COUNTIF($L$7:$L$500,N13) -> 5 | P13: =O13/$Q$4 -> 0.02906976744 | Q13: =IF(P13=0,0,(P13*((LOG(P13))/LOG(2)))) -> -0.1483818796 | T13: =N13 -> 1221 | U13: =COUNTIF(L7:L35,T13) -> 3 | V13: =U13/(W4-U20) -> 0.1111111111 | W13: =IF(V13=0,0,(V13*((LOG(V13))/LOG(2)))) -> -0.352213889 | Y13: =N13 -> 1221 | Z13: =COUNTIF(L36:L63,Y13) -> 0 | AA13: =Z13/(AB4-Z20) -> 0 | AB13: =IF(AA13=0,0,(AA13*((LOG(AA13))/LOG(2)))) -> 0 | AD13: =N13 -> 1221 | AE13: =COUNTIF(L64:L92,AD13) -> 0 | AF13: =AE13/(AG4-AE20) -> 0 | AG13: =IF(AF13=0,0,(AF13*((LOG(AF13))/LOG(2)))) -> 0 | AI13: =N13 -> 1221 | AJ13: =COUNTIF(L93:L121,AI13) -> 1 | AK13: =AJ13/(AL4-AJ20) -> 0.03846153846 | AL13: =IF(AK13=0,0,(AK13*((LOG(AK13))/LOG(2)))) -> -0.180786143 | AN13: =N13 -> 1221 | AO13: =COUNTIF(L122:L149,AN13) -> 0 | AP13: =AO13/(AQ4-AO20) -> 0 | AQ13: =IF(AP13=0,0,(AP13*((LOG(AP13))/LOG(2)))) -> 0 | AS13: =N13 -> 1221 | AT13: =COUNTIF(L150:L178,AS13) -> 1 | AU13: =AT13/(AV4-AT20) -> 0.03846153846 | AV13: =IF(AU13=0,0,(AU13*((LOG(AU13))/LOG(2)))) -> -0.180786143
A14: 21 | B14: 1007 | C14: 21 | D14: 1012 | E14: 11 | F14: 1015 | G14: 21 | H14: 1018 | K14: 0 | L14: 2212 | N14: 1222 | O14: =COUNTIF($L$7:$L$500,N14) -> 50 | P14: =O14/$Q$4 -> 0.2906976744 | Q14: =IF(P14=0,0,(P14*((LOG(P14))/LOG(2)))) -> -0.5181420247 | T14: =N14 -> 1222 | U14: =COUNTIF(L7:L35,T14) -> 8 | V14: =U14/(W4-U20) -> 0.2962962963 | W14: =IF(V14=0,0,(V14*((LOG(V14))/LOG(2)))) -> -0.5199666673 | Y14: =N14 -> 1222 | Z14: =COUNTIF(L36:L63,Y14) -> 7 | AA14: =Z14/(AB4-Z20) -> 0.2592592593 | AB14: =IF(AA14=0,0,(AA14*((LOG(AA14))/LOG(2)))) -> -0.5049158541 | AD14: =N14 -> 1222 | AE14: =COUNTIF(L64:L92,AD14) -> 6 | AF14: =AE14/(AG4-AE20) -> 0.2307692308 | AG14: =IF(AF14=0,0,(AF14*((LOG(AF14))/LOG(2)))) -> -0.4881870502 | AI14: =N14 -> 1222 | AJ14: =COUNTIF(L93:L121,AI14) -> 9 | AK14: =AJ14/(AL4-AJ20) -> 0.3461538462 | AL14: =IF(AK14=0,0,(AK14*((LOG(AK14))/LOG(2)))) -> -0.5297935558 | AN14: =N14 -> 1222 | AO14: =COUNTIF(L122:L149,AN14) -> 7 | AP14: =AO14/(AQ4-AO20) -> 0.2592592593 | AQ14: =IF(AP14=0,0,(AP14*((LOG(AP14))/LOG(2)))) -> -0.5049158541 | AS14: =N14 -> 1222 | AT14: =COUNTIF(L150:L178,AS14) -> 13 | AU14: =AT14/(AV4-AT20) -> 0.5 | AV14: =IF(AU14=0,0,(AU14*((LOG(AU14))/LOG(2)))) -> -0.5
A15: 21 | B15: 1373 | C15: 21 | D15: 1385 | E15: 22 | F15: 1392 | G15: 23 | H15: 1401 | K15: 0 | L15: 2222 | N15: 2111 | O15: =COUNTIF($L$7:$L$500,N15) -> 0 | P15: =O15/$Q$4 -> 0 | Q15: =IF(P15=0,0,(P15*((LOG(P15))/LOG(2)))) -> 0 | T15: =N15 -> 2111 | U15: =COUNTIF(L7:L35,T15) -> 0 | V15: =U15/(W4-U20) -> 0 | W15: =IF(V15=0,0,(V15*((LOG(V15))/LOG(2)))) -> 0 | Y15: =N15 -> 2111 | Z15: =COUNTIF(L36:L63,Y15) -> 0 | AA15: =Z15/(AB4-Z20) -> 0 | AB15: =IF(AA15=0,0,(AA15*((LOG(AA15))/LOG(2)))) -> 0 | AD15: =N15 -> 2111 | AE15: =COUNTIF(L64:L92,AD15) -> 0 | AF15: =AE15/(AG4-AE20) -> 0 | AG15: =IF(AF15=0,0,(AF15*((LOG(AF15))/LOG(2)))) -> 0 | AI15: =N15 -> 2111 | AJ15: =COUNTIF(L93:L121,AI15) -> 0 | AK15: =AJ15/(AL4-AJ20) -> 0 | AL15: =IF(AK15=0,0,(AK15*((LOG(AK15))/LOG(2)))) -> 0 | AN15: =N15 -> 2111 | AO15: =COUNTIF(L122:L149,AN15) -> 0 | AP15: =AO15/(AQ4-AO20) -> 0 | AQ15: =IF(AP15=0,0,(AP15*((LOG(AP15))/LOG(2)))) -> 0 | AS15: =N15 -> 2111 | AT15: =COUNTIF(L150:L178,AS15) -> 0 | AU15: =AT15/(AV4-AT20) -> 0 | AV15: =IF(AU15=0,0,(AU15*((LOG(AU15))/LOG(2)))) -> 0
A16: 21 | B16: 1537 | C16: 21 | D16: 1553 | E16: 22 | F16: 1560 | G16: 23 | H16: 1568 | K16: 0 | L16: 2222 | N16: 2112 | O16: =COUNTIF($L$7:$L$500,N16) -> 2 | P16: =O16/$Q$4 -> 0.01162790698 | Q16: =IF(P16=0,0,(P16*((LOG(P16))/LOG(2)))) -> -0.07472400878 | T16: =N16 -> 2112 | U16: =COUNTIF(L7:L35,T16) -> 0 | V16: =U16/(W4-U20) -> 0 | W16: =IF(V16=0,0,(V16*((LOG(V16))/LOG(2)))) -> 0 | Y16: =N16 -> 2112 | Z16: =COUNTIF(L36:L63,Y16) -> 1 | AA16: =Z16/(AB4-Z20) -> 0.03703703704 | AB16: =IF(AA16=0,0,(AA16*((LOG(AA16))/LOG(2)))) -> -0.1761069445 | AD16: =N16 -> 2112 | AE16: =COUNTIF(L64:L92,AD16) -> 0 | AF16: =AE16/(AG4-AE20) -> 0 | AG16: =IF(AF16=0,0,(AF16*((LOG(AF16))/LOG(2)))) -> 0 | AI16: =N16 -> 2112 | AJ16: =COUNTIF(L93:L121,AI16) -> 0 | AK16: =AJ16/(AL4-AJ20) -> 0 | AL16: =IF(AK16=0,0,(AK16*((LOG(AK16))/LOG(2)))) -> 0 | AN16: =N16 -> 2112 | AO16: =COUNTIF(L122:L149,AN16) -> 1 | AP16: =AO16/(AQ4-AO20) -> 0.03703703704 | AQ16: =IF(AP16=0,0,(AP16*((LOG(AP16))/LOG(2)))) -> -0.1761069445 | AS16: =N16 -> 2112 | AT16: =COUNTIF(L150:L178,AS16) -> 0 | AU16: =AT16/(AV4-AT20) -> 0 | AV16: =IF(AU16=0,0,(AU16*((LOG(AU16))/LOG(2)))) -> 0
A17: 21 | B17: 1677 | C17: 21 | D17: 1691 | E17: 11 | F17: 1694 | G17: 21 | H17: 1698 | K17: 0 | L17: 2212 | N17: 2121 | O17: =COUNTIF($L$7:$L$500,N17) -> 0 | P17: =O17/$Q$4 -> 0 | Q17: =IF(P17=0,0,(P17*((LOG(P17))/LOG(2)))) -> 0 | T17: =N17 -> 2121 | U17: =COUNTIF(L7:L35,T17) -> 0 | V17: =U17/(W4-U20) -> 0 | W17: =IF(V17=0,0,(V17*((LOG(V17))/LOG(2)))) -> 0 | Y17: =N17 -> 2121 | Z17: =COUNTIF(L36:L63,Y17) -> 0 | AA17: =Z17/(AB4-Z20) -> 0 | AB17: =IF(AA17=0,0,(AA17*((LOG(AA17))/LOG(2)))) -> 0 | AD17: =N17 -> 2121 | AE17: =COUNTIF(L64:L92,AD17) -> 0 | AF17: =AE17/(AG4-AE20) -> 0 | AG17: =IF(AF17=0,0,(AF17*((LOG(AF17))/LOG(2)))) -> 0 | AI17: =N17 -> 2121 | AJ17: =COUNTIF(L93:L121,AI17) -> 0 | AK17: =AJ17/(AL4-AJ20) -> 0 | AL17: =IF(AK17=0,0,(AK17*((LOG(AK17))/LOG(2)))) -> 0 | AN17: =N17 -> 2121 | AO17: =COUNTIF(L122:L149,AN17) -> 0 | AP17: =AO17/(AQ4-AO20) -> 0 | AQ17: =IF(AP17=0,0,(AP17*((LOG(AP17))/LOG(2)))) -> 0 | AS17: =N17 -> 2121 | AT17: =COUNTIF(L150:L178,AS17) -> 0 | AU17: =AT17/(AV4-AT20) -> 0 | AV17: =IF(AU17=0,0,(AU17*((LOG(AU17))/LOG(2)))) -> 0
A18: 21 | B18: 2078 | C18: 21 | D18: 2082 | E18: 22 | F18: 2089 | G18: 23 | H18: 2096 | K18: 0 | L18: 2222 | N18: 2122 | O18: =COUNTIF($L$7:$L$500,N18) -> 16 | P18: =O18/$Q$4 -> 0.09302325581 | Q18: =IF(P18=0,0,(P18*((LOG(P18))/LOG(2)))) -> -0.3187223028 | T18: =N18 -> 2122 | U18: =COUNTIF(L7:L35,T18) -> 2 | V18: =U18/(W4-U20) -> 0.07407407407 | W18: =IF(V18=0,0,(V18*((LOG(V18))/LOG(2)))) -> -0.278139815 | Y18: =N18 -> 2122 | Z18: =COUNTIF(L36:L63,Y18) -> 2 | AA18: =Z18/(AB4-Z20) -> 0.07407407407 | AB18: =IF(AA18=0,0,(AA18*((LOG(AA18))/LOG(2)))) -> -0.278139815 | AD18: =N18 -> 2122 | AE18: =COUNTIF(L64:L92,AD18) -> 5 | AF18: =AE18/(AG4-AE20) -> 0.1923076923 | AG18: =IF(AF18=0,0,(AF18*((LOG(AF18))/LOG(2)))) -> -0.4574060814 | AI18: =N18 -> 2122 | AJ18: =COUNTIF(L93:L121,AI18) -> 1 | AK18: =AJ18/(AL4-AJ20) -> 0.03846153846 | AL18: =IF(AK18=0,0,(AK18*((LOG(AK18))/LOG(2)))) -> -0.180786143 | AN18: =N18 -> 2122 | AO18: =COUNTIF(L122:L149,AN18) -> 4 | AP18: =AO18/(AQ4-AO20) -> 0.1481481481 | AQ18: =IF(AP18=0,0,(AP18*((LOG(AP18))/LOG(2)))) -> -0.4081314818 | AS18: =N18 -> 2122 | AT18: =COUNTIF(L150:L178,AS18) -> 2 | AU18: =AT18/(AV4-AT20) -> 0.07692307692 | AV18: =IF(AU18=0,0,(AU18*((LOG(AU18))/LOG(2)))) -> -0.2846492091
A19: 12 | B19: 2189 | C19: 23 | D19: 2193 | E19: 24 | F19: 2201 | G19: 23 | H19: 2207 | K19: 0 | L19: 1222 | N19: 2211 | O19: =COUNTIF($L$7:$L$500,N19) -> 0 | P19: =O19/$Q$4 -> 0 | Q19: =IF(P19=0,0,(P19*((LOG(P19))/LOG(2)))) -> 0 | T19: =N19 -> 2211 | U19: =COUNTIF(L7:L35,T19) -> 0 | V19: =U19/(W4-U20) -> 0 | W19: =IF(V19=0,0,(V19*((LOG(V19))/LOG(2)))) -> 0 | Y19: =N19 -> 2211 | Z19: =COUNTIF(L36:L63,Y19) -> 0 | AA19: =Z19/(AB4-Z20) -> 0 | AB19: =IF(AA19=0,0,(AA19*((LOG(AA19))/LOG(2)))) -> 0 | AD19: =N19 -> 2211 | AE19: =COUNTIF(L64:L92,AD19) -> 0 | AF19: =AE19/(AG4-AE20) -> 0 | AG19: =IF(AF19=0,0,(AF19*((LOG(AF19))/LOG(2)))) -> 0 | AI19: =N19 -> 2211 | AJ19: =COUNTIF(L93:L121,AI19) -> 0 | AK19: =AJ19/(AL4-AJ20) -> 0 | AL19: =IF(AK19=0,0,(AK19*((LOG(AK19))/LOG(2)))) -> 0 | AN19: =N19 -> 2211 | AO19: =COUNTIF(L122:L149,AN19) -> 0 | AP19: =AO19/(AQ4-AO20) -> 0 | AQ19: =IF(AP19=0,0,(AP19*((LOG(AP19))/LOG(2)))) -> 0 | AS19: =N19 -> 2211 | AT19: =COUNTIF(L150:L178,AS19) -> 0 | AU19: =AT19/(AV4-AT20) -> 0 | AV19: =IF(AU19=0,0,(AU19*((LOG(AU19))/LOG(2)))) -> 0
A20: 12 | B20: 2305 | C20: 23 | D20: 2309 | E20: 24 | F20: 2315 | G20: 14 | H20: 2319 | K20: 0 | L20: 1221 | N20: 2212 | O20: =COUNTIF($L$7:$L$500,N20) -> 13 | P20: =O20/$Q$4 -> 0.07558139535 | Q20: =IF(P20=0,0,(P20*((LOG(P20))/LOG(2)))) -> -0.2816030551 | T20: =N20 -> 2212 | U20: =COUNTIF(L7:L35,T20) -> 2 | Y20: =N20 -> 2212 | Z20: =COUNTIF(L36:L63,Y20) -> 1 | AD20: =N20 -> 2212 | AE20: =COUNTIF(L64:L92,AD20) -> 3 | AI20: =N20 -> 2212 | AJ20: =COUNTIF(L93:L121,AI20) -> 3 | AN20: =N20 -> 2212 | AO20: =COUNTIF(L122:L149,AN20) -> 1 | AS20: =N20 -> 2212 | AT20: =COUNTIF(L150:L178,AS20) -> 3
A21: 12 | B21: 2415 | C21: 23 | D21: 2419 | E21: 24 | F21: 2424 | G21: 23 | H21: 2431 | K21: 0 | L21: 1222 | N21: 2221 | O21: =COUNTIF($L$7:$L$500,N21) -> 3 | P21: =O21/$Q$4 -> 0.01744186047 | Q21: =IF(P21=0,0,(P21*((LOG(P21))/LOG(2)))) -> -0.1018831788 | T21: =N21 -> 2221 | U21: =COUNTIF(L7:L35,T21) -> 0 | V21: =U21/(W4-U20) -> 0 | W21: =IF(V21=0,0,(V21*((LOG(V21))/LOG(2)))) -> 0 | Y21: =N21 -> 2221 | Z21: =COUNTIF(L36:L63,Y21) -> 0 | AA21: =Z21/(AB4-Z20) -> 0 | AB21: =IF(AA21=0,0,(AA21*((LOG(AA21))/LOG(2)))) -> 0 | AD21: =N21 -> 2221 | AE21: =COUNTIF(L64:L92,AD21) -> 0 | AF21: =AE21/(AG4-AE20) -> 0 | AG21: =IF(AF21=0,0,(AF21*((LOG(AF21))/LOG(2)))) -> 0 | AI21: =N21 -> 2221 | AJ21: =COUNTIF(L93:L121,AI21) -> 1 | AK21: =AJ21/(AL4-AJ20) -> 0.03846153846 | AL21: =IF(AK21=0,0,(AK21*((LOG(AK21))/LOG(2)))) -> -0.180786143 | AN21: =N21 -> 2221 | AO21: =COUNTIF(L122:L149,AN21) -> 2 | AP21: =AO21/(AQ4-AO20) -> 0.07407407407 | AQ21: =IF(AP21=0,0,(AP21*((LOG(AP21))/LOG(2)))) -> -0.278139815 | AS21: =N21 -> 2221 | AT21: =COUNTIF(L150:L178,AS21) -> 0 | AU21: =AT21/(AV4-AT20) -> 0 | AV21: =IF(AU21=0,0,(AU21*((LOG(AU21))/LOG(2)))) -> 0
A22: 12 | B22: 2527 | C22: 23 | D22: 2538 | E22: 24 | F22: 2543 | G22: 23 | H22: 2549 | K22: 0 | L22: 1222 | N22: 2222 | O22: =COUNTIF($L$7:$L$500,N22) -> 68 | P22: =O22/$Q$4 -> 0.3953488372 | Q22: =IF(P22=0,0,(P22*((LOG(P22))/LOG(2)))) -> -0.5292937797 | T22: =N22 -> 2222 | U22: =COUNTIF(L7:L35,T22) -> 11 | V22: =U22/(W4-U20) -> 0.4074074074 | W22: =IF(V22=0,0,(V22*((LOG(V22))/LOG(2)))) -> -0.5277783229 | Y22: =N22 -> 2222 | Z22: =COUNTIF(L36:L63,Y22) -> 13 | AA22: =Z22/(AB4-Z20) -> 0.4814814815 | AB22: =IF(AA22=0,0,(AA22*((LOG(AA22))/LOG(2)))) -> -0.5076970812 | AD22: =N22 -> 2222 | AE22: =COUNTIF(L64:L92,AD22) -> 15 | AF22: =AE22/(AG4-AE20) -> 0.5769230769 | AG22: =IF(AF22=0,0,(AF22*((LOG(AF22))/LOG(2)))) -> -0.4578168015 | AI22: =N22 -> 2222 | AJ22: =COUNTIF(L93:L121,AI22) -> 10 | AK22: =AJ22/(AL4-AJ20) -> 0.3846153846 | AL22: =IF(AK22=0,0,(AK22*((LOG(AK22))/LOG(2)))) -> -0.5301967782 | AN22: =N22 -> 2222 | AO22: =COUNTIF(L122:L149,AN22) -> 10 | AP22: =AO22/(AQ4-AO20) -> 0.3703703704 | AQ22: =IF(AP22=0,0,(AP22*((LOG(AP22))/LOG(2)))) -> -0.5307257064 | AS22: =N22 -> 2222 | AT22: =COUNTIF(L150:L178,AS22) -> 9 | AU22: =AT22/(AV4-AT20) -> 0.3461538462 | AV22: =IF(AU22=0,0,(AU22*((LOG(AU22))/LOG(2)))) -> -0.5297935558
A23: 12 | B23: 2641 | C23: 23 | D23: 2658 | E23: 24 | F23: 2665 | G23: 14 | H23: 2667 | K23: 0 | L23: 1221 | P23: =SUM(P7:P22) -> 1 | Q23: =-SUM(Q7:Q22) -> 2.415963671 | V23: =SUM(V7:V22) -> 1 | W23: =-SUM(W7:W22) -> 2.132345454 | AA23: =SUM(AA7:AA22) -> 1 | AB23: =-SUM(AB7:AB22) -> 2.023139325 | AF23: =SUM(AF7:AF22) -> 1 | AG23: =-SUM(AG7:AG22) -> 1.403409933 | AK23: =SUM(AK7:AK22) -> 1 | AL23: =-SUM(AL7:AL22) -> 2.325493335 | AP23: =SUM(AP7:AP22) -> 1 | AQ23: =-SUM(AQ7:AQ22) -> 2.352266561 | AU23: =SUM(AU7:AU22) -> 1 | AV23: =-SUM(AV7:AV22) -> 1.676015051
A24: 12 | B24: 2764 | C24: 23 | D24: 2768 | E24: 24 | F24: 2773 | G24: 23 | H24: 2783 | K24: 0 | L24: 1222 | P24: U= | Q24: =Q23/(LOG(Q4)/LOG(2)) -> 0.3253268972 | V24: U1= | W24: =W23/(LOG(W4)/LOG(2)) -> 0.4389365574 | AA24: U2= | AB24: =AB23/(LOG(AB4)/LOG(2)) -> 0.4208425127 | AF24: U3= | AG24: =AG23/(LOG(AG4)/LOG(2)) -> 0.2888874894 | AK24: U4= | AL24: =AL23/(LOG(AL4)/LOG(2)) -> 0.4786954369 | AP24: U5= | AQ24: =AQ23/(LOG(AQ4)/LOG(2)) -> 0.4893057824 | AU24: U6= | AV24: =AV23/(LOG(AV4)/LOG(2)) -> 0.3450023894
A25: 21 | B25: 2884 | C25: 12 | D25: 2902 | E25: 24 | F25: 2911 | G25: 23 | H25: 2924 | K25: 0 | L25: 2122
A26: 12 | B26: 3018 | C26: 23 | D26: 3036 | E26: 24 | F26: 3039 | G26: 14 | H26: 3042 | K26: 0 | L26: 1221
A27: 12 | B27: 3144 | C27: 23 | D27: 3151 | E27: 24 | F27: 3157 | G27: 23 | H27: 3167 | K27: 0 | L27: 1222 | N27: Total Target Seq
A28: 21 | B28: 3265 | C28: 12 | D28: 3277 | E28: 24 | F28: 3282 | G28: 23 | H28: 3295 | K28: 0 | L28: 2122 | N28: =COUNTIF(L7:L178,G3) -> 13 | P28: 29 | Q28: 28 | R28: 29 | S28: 29 | T28: 28 | U28: 29
A29: 12 | B29: 3390 | C29: 14 | D29: 3404 | E29: 24 | F29: 3414 | G29: 23 | H29: 3418 | K29: 0 | L29: 1122 | P29: % of reinforcement given in 6 equal intervals based on number of trials
A30: 12 | B30: 3510 | C30: 23 | D30: 3516 | E30: 24 | F30: 3521 | G30: 23 | H30: 3526 | K30: 0 | L30: 1222 | P30: %_1 | Q30: %_2 | R30: %_3 | S30: %_4 | T30: %_5 | U30: %_6
A31: 12 | B31: 3636 | C31: 23 | D31: 3640 | E31: 24 | F31: 3644 | G31: 23 | H31: 3649 | K31: 0 | L31: 1222 | O31: target sequence | P31: =$G$3 -> 2212 | Q31: =$G$3 -> 2212 | R31: =$G$3 -> 2212 | S31: =$G$3 -> 2212 | T31: =$G$3 -> 2212 | U31: =$G$3 -> 2212
A32: 21 | B32: 3748 | C32: 21 | D32: 3754 | E32: 22 | F32: 3759 | G32: 23 | H32: 3766 | K32: 0 | L32: 2222 | O32: total reinforcement | P32: =U20 -> 2 | Q32: =Z20 -> 1 | R32: =AE20 -> 3 | S32: =AJ20 -> 3 | T32: =AO20 -> 1 | U32: =AT20 -> 3
A33: 21 | B33: 3889 | C33: 21 | D33: 3899 | E33: 22 | F33: 3906 | G33: 23 | H33: 3914 | K33: 0 | L33: 2222 | O33: % target
A34: 21 | B34: 4008 | C34: 21 | D34: 4012 | E34: 22 | F34: 4016 | G34: 23 | H34: 4023 | K34: 0 | L34: 2222 | O34: CCRF
A35: 21 | B35: 4127 | C35: 21 | D35: 4132 | E35: 22 | F35: 4137 | G35: 23 | H35: 4144 | K35: 0 | L35: 2222 | O35: % CCRf
A36: 21 | B36: 4241 | C36: 12 | D36: 4245 | E36: 24 | F36: 4251 | G36: 23 | H36: 4265 | K36: 0 | L36: 2122 | O36: average response rate | P36: =H35/P28 -> 142.8965517 | Q36: =(H63-H35)/Q28 -> 132 | R36: =(H92-H63)/R28 -> 154.2413793 | S36: =(H121-H92)/S28 -> 143.5862069 | T36: =(H149-H121)/T28 -> 123.4642857 | U36: =(H178-H149)/U28 -> 132.6551724
A37: 21 | B37: 4359 | C37: 21 | D37: 4362 | E37: 22 | F37: 4366 | G37: 23 | H37: 4371 | K37: 0 | L37: 2222
A38: 21 | B38: 4480 | C38: 21 | D38: 4488 | E38: 22 | F38: 4496 | G38: 23 | H38: 4503 | K38: 0 | L38: 2222
A39: 21 | B39: 4602 | C39: 21 | D39: 4608 | E39: 22 | F39: 4615 | G39: 23 | H39: 4622 | K39: 0 | L39: 2222
A40: 21 | B40: 4719 | C40: 21 | D40: 4729 | E40: 22 | F40: 4736 | G40: 23 | H40: 4742 | K40: 0 | L40: 2222
A41: 12 | B41: 4842 | C41: 23 | D41: 4847 | E41: 24 | F41: 4850 | G41: 23 | H41: 4857 | K41: 0 | L41: 1222
A42: 21 | B42: 4956 | C42: 21 | D42: 4966 | E42: 22 | F42: 4971 | G42: 23 | H42: 4980 | K42: 0 | L42: 2222
A43: 21 | B43: 5076 | C43: 12 | D43: 5081 | E43: 13 | F43: 5084 | G43: 23 | H43: 5091 | K43: 0 | L43: 2112
A44: 12 | B44: 5185 | C44: 23 | D44: 5188 | E44: 24 | F44: 5193 | G44: 23 | H44: 5199 | K44: 0 | L44: 1222
A45: 21 | B45: 5299 | C45: 21 | D45: 5306 | E45: 22 | F45: 5312 | G45: 23 | H45: 5319 | K45: 0 | L45: 2222
A46: 21 | B46: 5422 | C46: 21 | D46: 5427 | E46: 22 | F46: 5434 | G46: 23 | H46: 5440 | K46: 0 | L46: 2222
A47: 21 | B47: 5550 | C47: 21 | D47: 5555 | E47: 11 | F47: 5558 | G47: 21 | H47: 5563 | K47: 0 | L47: 2212
A48: 21 | B48: 6073 | C48: 21 | D48: 6093 | E48: 22 | F48: 6100 | G48: 23 | H48: 6106 | K48: 0 | L48: 2222
A49: 21 | B49: 6201 | C49: 21 | D49: 6208 | E49: 22 | F49: 6215 | G49: 23 | H49: 6223 | K49: 0 | L49: 2222
A50: 12 | B50: 6314 | C50: 23 | D50: 6327 | E50: 13 | F50: 6333 | G50: 23 | H50: 6335 | K50: 0 | L50: 1212
A51: 21 | B51: 6431 | C51: 21 | D51: 6440 | E51: 22 | F51: 6446 | G51: 23 | H51: 6453 | K51: 0 | L51: 2222
A52: 12 | B52: 6549 | C52: 23 | D52: 6552 | E52: 24 | F52: 6560 | G52: 23 | H52: 6568 | K52: 0 | L52: 1222
A53: 12 | B53: 6666 | C53: 14 | D53: 6677 | E53: 24 | F53: 6686 | G53: 23 | H53: 6691 | K53: 0 | L53: 1122
A54: 12 | B54: 6785 | C54: 23 | D54: 6793 | E54: 24 | F54: 6799 | G54: 23 | H54: 6804 | K54: 0 | L54: 1222
A55: 21 | B55: 6904 | C55: 21 | D55: 6910 | E55: 22 | F55: 6917 | G55: 23 | H55: 6927 | K55: 0 | L55: 2222
A56: 21 | B56: 7039 | C56: 21 | D56: 7043 | E56: 22 | F56: 7051 | G56: 23 | H56: 7056 | K56: 0 | L56: 2222
A57: 12 | B57: 7148 | C57: 23 | D57: 7151 | E57: 13 | F57: 7153 | G57: 23 | H57: 7156 | K57: 0 | L57: 1212
A58: 12 | B58: 7251 | C58: 14 | D58: 7253 | E58: 24 | F58: 7259 | G58: 23 | H58: 7263 | K58: 0 | L58: 1122
A59: 12 | B59: 7355 | C59: 23 | D59: 7367 | E59: 24 | F59: 7373 | G59: 23 | H59: 7380 | K59: 0 | L59: 1222
A60: 12 | B60: 7476 | C60: 23 | D60: 7481 | E60: 24 | F60: 7487 | G60: 23 | H60: 7492 | K60: 0 | L60: 1222
A61: 21 | B61: 7588 | C61: 21 | D61: 7595 | E61: 22 | F61: 7599 | G61: 23 | H61: 7607 | K61: 0 | L61: 2222
A62: 12 | B62: 7707 | C62: 23 | D62: 7713 | E62: 24 | F62: 7717 | G62: 23 | H62: 7724 | K62: 0 | L62: 1222
A63: 21 | B63: 7818 | C63: 12 | D63: 7824 | E63: 24 | F63: 7834 | G63: 23 | H63: 7840 | K63: 0 | L63: 2122
A64: 21 | B64: 7939 | C64: 12 | D64: 7944 | E64: 24 | F64: 7947 | G64: 23 | H64: 7959 | K64: 0 | L64: 2122
A65: 21 | B65: 8053 | C65: 21 | D65: 8059 | E65: 22 | F65: 8065 | G65: 23 | H65: 8073 | K65: 0 | L65: 2222
A66: 21 | B66: 8169 | C66: 21 | D66: 8173 | E66: 22 | F66: 8177 | G66: 23 | H66: 8184 | K66: 0 | L66: 2222
A67: 21 | B67: 8283 | C67: 12 | D67: 8285 | E67: 24 | F67: 8292 | G67: 23 | H67: 8299 | K67: 0 | L67: 2122
A68: 21 | B68: 8399 | C68: 21 | D68: 8404 | E68: 11 | F68: 8408 | G68: 21 | H68: 8413 | K68: 0 | L68: 2212
A69: 12 | B69: 9042 | C69: 23 | D69: 9053 | E69: 24 | F69: 9069 | G69: 23 | H69: 9076 | K69: 0 | L69: 1222
A70: 12 | B70: 9178 | C70: 23 | D70: 9198 | E70: 24 | F70: 9204 | G70: 23 | H70: 9210 | K70: 0 | L70: 1222
A71: 21 | B71: 9303 | C71: 12 | D71: 9308 | E71: 24 | F71: 9310 | G71: 23 | H71: 9322 | K71: 0 | L71: 2122
A72: 12 | B72: 9414 | C72: 23 | D72: 9421 | E72: 24 | F72: 9426 | G72: 23 | H72: 9431 | K72: 0 | L72: 1222
A73: 21 | B73: 9527 | C73: 21 | D73: 9532 | E73: 11 | F73: 9535 | G73: 21 | H73: 9542 | K73: 0 | L73: 2212
A74: 21 | B74: 9922 | C74: 21 | D74: 9935 | E74: 22 | F74: 9945 | G74: 23 | H74: 9953 | K74: 0 | L74: 2222
A75: 21 | B75: 10058 | C75: 21 | D75: 10065 | E75: 22 | F75: 10071 | G75: 23 | H75: 10078 | K75: 0 | L75: 2222
A76: 21 | B76: 10183 | C76: 21 | D76: 10186 | E76: 22 | F76: 10192 | G76: 23 | H76: 10198 | K76: 0 | L76: 2222
A77: 21 | B77: 10305 | C77: 21 | D77: 10310 | E77: 22 | F77: 10317 | G77: 23 | H77: 10323 | K77: 0 | L77: 2222
A78: 12 | B78: 10418 | C78: 23 | D78: 10429 | E78: 24 | F78: 10436 | G78: 23 | H78: 10441 | K78: 0 | L78: 1222
A79: 21 | B79: 10540 | C79: 12 | D79: 10543 | E79: 24 | F79: 10556 | G79: 23 | H79: 10569 | K79: 0 | L79: 2122
A80: 21 | B80: 10663 | C80: 21 | D80: 10666 | E80: 22 | F80: 10670 | G80: 23 | H80: 10676 | K80: 0 | L80: 2222
A81: 21 | B81: 10778 | C81: 21 | D81: 10783 | E81: 22 | F81: 10789 | G81: 23 | H81: 10796 | K81: 0 | L81: 2222
A82: 21 | B82: 10890 | C82: 21 | D82: 10897 | E82: 22 | F82: 10903 | G82: 23 | H82: 10909 | K82: 0 | L82: 2222
A83: 21 | B83: 11008 | C83: 21 | D83: 11013 | E83: 22 | F83: 11030 | G83: 23 | H83: 11042 | K83: 0 | L83: 2222
A84: 21 | B84: 11147 | C84: 21 | D84: 11155 | E84: 22 | F84: 11158 | G84: 23 | H84: 11164 | K84: 0 | L84: 2222
A85: 21 | B85: 11265 | C85: 21 | D85: 11282 | E85: 11 | F85: 11285 | G85: 21 | H85: 11292 | K85: 0 | L85: 2212
A86: 21 | B86: 11574 | C86: 21 | D86: 11585 | E86: 22 | F86: 11596 | G86: 23 | H86: 11603 | K86: 0 | L86: 2222
A87: 21 | B87: 11701 | C87: 12 | D87: 11704 | E87: 24 | F87: 11710 | G87: 23 | H87: 11721 | K87: 0 | L87: 2122
A88: 21 | B88: 11826 | C88: 21 | D88: 11832 | E88: 22 | F88: 11842 | G88: 23 | H88: 11850 | K88: 0 | L88: 2222
A89: 12 | B89: 11941 | C89: 23 | D89: 11955 | E89: 24 | F89: 11961 | G89: 23 | H89: 11966 | K89: 0 | L89: 1222
A90: 12 | B90: 12061 | C90: 23 | D90: 12068 | E90: 24 | F90: 12077 | G90: 23 | H90: 12081 | K90: 0 | L90: 1222
A91: 21 | B91: 12175 | C91: 21 | D91: 12182 | E91: 22 | F91: 12187 | G91: 23 | H91: 12193 | K91: 0 | L91: 2222
A92: 21 | B92: 12294 | C92: 21 | D92: 12300 | E92: 22 | F92: 12306 | G92: 23 | H92: 12313 | K92: 0 | L92: 2222
A93: 21 | B93: 12407 | C93: 21 | D93: 12414 | E93: 22 | F93: 12419 | G93: 23 | H93: 12429 | K93: 0 | L93: 2222
A94: 12 | B94: 12521 | C94: 14 | D94: 12533 | E94: 13 | F94: 12535 | G94: 23 | H94: 12540 | K94: 0 | L94: 1112
A95: 21 | B95: 12641 | C95: 21 | D95: 12646 | E95: 22 | F95: 12652 | G95: 23 | H95: 12658 | K95: 0 | L95: 2222
A96: 21 | B96: 12763 | C96: 21 | D96: 12768 | E96: 22 | F96: 12771 | G96: 23 | H96: 12777 | K96: 0 | L96: 2222
A97: 12 | B97: 12872 | C97: 23 | D97: 12879 | E97: 24 | F97: 12885 | G97: 23 | H97: 12892 | K97: 0 | L97: 1222
A98: 21 | B98: 12987 | C98: 21 | D98: 12991 | E98: 11 | F98: 12994 | G98: 21 | H98: 12998 | K98: 0 | L98: 2212
A99: 21 | B99: 13374 | C99: 21 | D99: 13381 | E99: 22 | F99: 13392 | G99: 23 | H99: 13399 | K99: 0 | L99: 2222
A100: 21 | B100: 13497 | C100: 21 | D100: 13501 | E100: 22 | F100: 13507 | G100: 14 | H100: 13510 | K100: 0 | L100: 2221
A101: 12 | B101: 13604 | C101: 14 | D101: 13612 | E101: 24 | F101: 13627 | G101: 14 | H101: 13631 | K101: 0 | L101: 1121
A102: 12 | B102: 13724 | C102: 23 | D102: 13733 | E102: 24 | F102: 13737 | G102: 23 | H102: 13742 | K102: 0 | L102: 1222
A103: 12 | B103: 13837 | C103: 23 | D103: 13847 | E103: 24 | F103: 13850 | G103: 23 | H103: 13854 | K103: 0 | L103: 1222
A104: 12 | B104: 13951 | C104: 14 | D104: 13965 | E104: 24 | F104: 13969 | G104: 23 | H104: 13975 | K104: 0 | L104: 1122
A105: 21 | B105: 14067 | C105: 12 | D105: 14071 | E105: 24 | F105: 14074 | G105: 23 | H105: 14079 | K105: 0 | L105: 2122
A106: 21 | B106: 14180 | C106: 21 | D106: 14184 | E106: 22 | F106: 14188 | G106: 23 | H106: 14193 | K106: 0 | L106: 2222
A107: 21 | B107: 14287 | C107: 21 | D107: 14294 | E107: 22 | F107: 14302 | G107: 23 | H107: 14308 | K107: 0 | L107: 2222
A108: 12 | B108: 14406 | C108: 23 | D108: 14411 | E108: 24 | F108: 14416 | G108: 14 | H108: 14421 | K108: 0 | L108: 1221
A109: 12 | B109: 14521 | C109: 23 | D109: 14526 | E109: 24 | F109: 14529 | G109: 23 | H109: 14534 | K109: 0 | L109: 1222
A110: 21 | B110: 14626 | C110: 21 | D110: 14629 | E110: 22 | F110: 14635 | G110: 23 | H110: 14640 | K110: 0 | L110: 2222
A111: 21 | B111: 14747 | C111: 21 | D111: 14751 | E111: 22 | F111: 14756 | G111: 23 | H111: 14761 | K111: 0 | L111: 2222
A112: 12 | B112: 14862 | C112: 23 | D112: 14867 | E112: 13 | F112: 14874 | G112: 23 | H112: 14875 | K112: 0 | L112: 1212
A113: 12 | B113: 14973 | C113: 23 | D113: 14979 | E113: 24 | F113: 14983 | G113: 23 | H113: 14988 | K113: 0 | L113: 1222
A114: 21 | B114: 15084 | C114: 21 | D114: 15089 | E114: 11 | F114: 15092 | G114: 21 | H114: 15095 | K114: 0 | L114: 2212
A115: 21 | B115: 15431 | C115: 21 | D115: 15441 | E115: 22 | F115: 15448 | G115: 23 | H115: 15455 | K115: 0 | L115: 2222
A116: 21 | B116: 15565 | C116: 21 | D116: 15573 | E116: 22 | F116: 15583 | G116: 23 | H116: 15601 | K116: 0 | L116: 2222
A117: 12 | B117: 15693 | C117: 23 | D117: 15709 | E117: 24 | F117: 15718 | G117: 23 | H117: 15723 | K117: 0 | L117: 1222
A118: 21 | B118: 15827 | C118: 21 | D118: 15830 | E118: 11 | F118: 15832 | G118: 21 | H118: 15834 | K118: 0 | L118: 2212
A119: 12 | B119: 16203 | C119: 23 | D119: 16213 | E119: 24 | F119: 16224 | G119: 23 | H119: 16233 | K119: 0 | L119: 1222
A120: 12 | B120: 16328 | C120: 23 | D120: 16335 | E120: 24 | F120: 16340 | G120: 23 | H120: 16348 | K120: 0 | L120: 1222
A121: 12 | B121: 16449 | C121: 23 | D121: 16462 | E121: 24 | F121: 16468 | G121: 23 | H121: 16477 | K121: 0 | L121: 1222
A122: 21 | B122: 16609 | C122: 21 | D122: 16614 | E122: 22 | F122: 16619 | G122: 23 | H122: 16625 | K122: 0 | L122: 2222
A123: 21 | B123: 16722 | C123: 21 | D123: 16729 | E123: 22 | F123: 16735 | G123: 23 | H123: 16742 | K123: 0 | L123: 2222
A124: 21 | B124: 16844 | C124: 21 | D124: 16851 | E124: 22 | F124: 16856 | G124: 23 | H124: 16863 | K124: 0 | L124: 2222
A125: 12 | B125: 16956 | C125: 14 | D125: 16977 | E125: 24 | F125: 16979 | G125: 23 | H125: 16983 | K125: 0 | L125: 1122
A126: 21 | B126: 17087 | C126: 21 | D126: 17093 | E126: 22 | F126: 17099 | G126: 23 | H126: 17106 | K126: 0 | L126: 2222
A127: 21 | B127: 17207 | C127: 21 | D127: 17211 | E127: 11 | F127: 17214 | G127: 21 | H127: 17217 | K127: 0 | L127: 2212
A128: 21 | B128: 17466 | C128: 21 | D128: 17471 | E128: 22 | F128: 17478 | G128: 23 | H128: 17489 | K128: 0 | L128: 2222
A129: 12 | B129: 17594 | C129: 23 | D129: 17605 | E129: 24 | F129: 17612 | G129: 23 | H129: 17618 | K129: 0 | L129: 1222
A130: 12 | B130: 17719 | C130: 23 | D130: 17722 | E130: 24 | F130: 17727 | G130: 23 | H130: 17732 | K130: 0 | L130: 1222
A131: 21 | B131: 17827 | C131: 12 | D131: 17830 | E131: 13 | F131: 17832 | G131: 23 | H131: 17837 | K131: 0 | L131: 2112
A132: 12 | B132: 17929 | C132: 23 | D132: 17939 | E132: 13 | F132: 17942 | G132: 23 | H132: 17947 | K132: 0 | L132: 1212
A133: 12 | B133: 18044 | C133: 23 | D133: 18049 | E133: 24 | F133: 18055 | G133: 23 | H133: 18061 | K133: 0 | L133: 1222
A134: 21 | B134: 18162 | C134: 21 | D134: 18166 | E134: 22 | F134: 18171 | G134: 23 | H134: 18178 | K134: 0 | L134: 2222
A135: 21 | B135: 18273 | C135: 21 | D135: 18278 | E135: 22 | F135: 18285 | G135: 23 | H135: 18296 | K135: 0 | L135: 2222
A136: 21 | B136: 18393 | C136: 21 | D136: 18399 | E136: 22 | F136: 18411 | G136: 23 | H136: 18417 | K136: 0 | L136: 2222
A137: 21 | B137: 18512 | C137: 21 | D137: 18516 | E137: 22 | F137: 18521 | G137: 23 | H137: 18527 | K137: 0 | L137: 2222
A138: 21 | B138: 18635 | C138: 12 | D138: 18644 | E138: 24 | F138: 18667 | G138: 23 | H138: 18675 | K138: 0 | L138: 2122
A139: 21 | B139: 18768 | C139: 12 | D139: 18772 | E139: 24 | F139: 18777 | G139: 23 | H139: 18782 | K139: 0 | L139: 2122
A140: 21 | B140: 18884 | C140: 21 | D140: 18889 | E140: 22 | F140: 18893 | G140: 23 | H140: 18900 | K140: 0 | L140: 2222
A141: 21 | B141: 18997 | C141: 21 | D141: 19002 | E141: 22 | F141: 19008 | G141: 14 | H141: 19011 | K141: 0 | L141: 2221
A142: 12 | B142: 19103 | C142: 23 | D142: 19115 | E142: 13 | F142: 19120 | G142: 23 | H142: 19127 | K142: 0 | L142: 1212
A143: 21 | B143: 19220 | C143: 21 | D143: 19225 | E143: 22 | F143: 19230 | G143: 14 | H143: 19233 | K143: 0 | L143: 2221
A144: 21 | B144: 19335 | C144: 12 | D144: 19339 | E144: 24 | F144: 19342 | G144: 23 | H144: 19355 | K144: 0 | L144: 2122
A145: 12 | B145: 19452 | C145: 23 | D145: 19457 | E145: 24 | F145: 19462 | G145: 23 | H145: 19472 | K145: 0 | L145: 1222
A146: 12 | B146: 19571 | C146: 23 | D146: 19573 | E146: 24 | F146: 19578 | G146: 23 | H146: 19585 | K146: 0 | L146: 1222
A147: 21 | B147: 19678 | C147: 12 | D147: 19681 | E147: 24 | F147: 19683 | G147: 23 | H147: 19687 | K147: 0 | L147: 2122
A148: 12 | B148: 19789 | C148: 23 | D148: 19801 | E148: 24 | F148: 19807 | G148: 23 | H148: 19813 | K148: 0 | L148: 1222
A149: 12 | B149: 19913 | C149: 23 | D149: 19921 | E149: 24 | F149: 19928 | G149: 23 | H149: 19934 | K149: 0 | L149: 1222
A150: 21 | B150: 20033 | C150: 21 | D150: 20038 | E150: 11 | F150: 20041 | G150: 21 | H150: 20044 | K150: 0 | L150: 2212
A151: 21 | B151: 20351 | C151: 21 | D151: 20358 | E151: 22 | F151: 20364 | G151: 23 | H151: 20375 | K151: 0 | L151: 2222
A152: 12 | B152: 20472 | C152: 23 | D152: 20476 | E152: 24 | F152: 20494 | G152: 23 | H152: 20500 | K152: 0 | L152: 1222
A153: 12 | B153: 20597 | C153: 23 | D153: 20602 | E153: 24 | F153: 20608 | G153: 23 | H153: 20613 | K153: 0 | L153: 1222
A154: 12 | B154: 20708 | C154: 23 | D154: 20714 | E154: 24 | F154: 20718 | G154: 23 | H154: 20723 | K154: 0 | L154: 1222
A155: 21 | B155: 20829 | C155: 21 | D155: 20836 | E155: 22 | F155: 20841 | G155: 23 | H155: 20847 | K155: 0 | L155: 2222
A156: 21 | B156: 20950 | C156: 21 | D156: 20954 | E156: 22 | F156: 20958 | G156: 23 | H156: 20963 | K156: 0 | L156: 2222
A157: 21 | B157: 21065 | C157: 21 | D157: 21075 | E157: 22 | F157: 21080 | G157: 23 | H157: 21087 | K157: 0 | L157: 2222
A158: 21 | B158: 21186 | C158: 21 | D158: 21190 | E158: 22 | F158: 21195 | G158: 23 | H158: 21201 | K158: 0 | L158: 2222
A159: 21 | B159: 21295 | C159: 12 | D159: 21298 | E159: 24 | F159: 21300 | G159: 23 | H159: 21306 | K159: 0 | L159: 2122
A160: 12 | B160: 21399 | C160: 23 | D160: 21420 | E160: 24 | F160: 21425 | G160: 23 | H160: 21429 | K160: 0 | L160: 1222
A161: 21 | B161: 21528 | C161: 21 | D161: 21537 | E161: 22 | F161: 21541 | G161: 23 | H161: 21548 | K161: 0 | L161: 2222
A162: 21 | B162: 21644 | C162: 12 | D162: 21647 | E162: 24 | F162: 21652 | G162: 23 | H162: 21659 | K162: 0 | L162: 2122
A163: 12 | B163: 21754 | C163: 23 | D163: 21760 | E163: 24 | F163: 21766 | G163: 23 | H163: 21773 | K163: 0 | L163: 1222
A164: 12 | B164: 21877 | C164: 23 | D164: 21880 | E164: 24 | F164: 21887 | G164: 23 | H164: 21893 | K164: 0 | L164: 1222
A165: 12 | B165: 21997 | C165: 23 | D165: 22001 | E165: 24 | F165: 22006 | G165: 23 | H165: 22009 | K165: 0 | L165: 1222
A166: 12 | B166: 22112 | C166: 23 | D166: 22118 | E166: 24 | F166: 22121 | G166: 23 | H166: 22130 | K166: 0 | L166: 1222
A167: 21 | B167: 22231 | C167: 21 | D167: 22237 | E167: 22 | F167: 22243 | G167: 23 | H167: 22251 | K167: 0 | L167: 2222
A168: 12 | B168: 22350 | C168: 23 | D168: 22360 | E168: 24 | F168: 22368 | G168: 23 | H168: 22373 | K168: 0 | L168: 1222
A169: 12 | B169: 22470 | C169: 23 | D169: 22478 | E169: 24 | F169: 22481 | G169: 14 | H169: 22484 | K169: 0 | L169: 1221
A170: 21 | B170: 22586 | C170: 21 | D170: 22589 | E170: 22 | F170: 22594 | G170: 23 | H170: 22599 | K170: 0 | L170: 2222
A171: 21 | B171: 22691 | C171: 21 | D171: 22696 | E171: 11 | F171: 22699 | G171: 21 | H171: 22703 | K171: 0 | L171: 2212
A172: 21 | B172: 23084 | C172: 21 | D172: 23090 | E172: 22 | F172: 23096 | G172: 23 | H172: 23102 | K172: 0 | L172: 2222
A173: 12 | B173: 23194 | C173: 14 | D173: 23197 | E173: 24 | F173: 23203 | G173: 23 | H173: 23208 | K173: 0 | L173: 1122
A174: 12 | B174: 23301 | C174: 23 | D174: 23321 | E174: 24 | F174: 23326 | G174: 23 | H174: 23330 | K174: 0 | L174: 1222
A175: 12 | B175: 23423 | C175: 23 | D175: 23425 | E175: 24 | F175: 23430 | G175: 23 | H175: 23442 | K175: 0 | L175: 1222
A176: 12 | B176: 23538 | C176: 23 | D176: 23553 | E176: 24 | F176: 23556 | G176: 23 | H176: 23563 | K176: 0 | L176: 1222
A177: 12 | B177: 23658 | C177: 23 | D177: 23665 | E177: 24 | F177: 23670 | G177: 23 | H177: 23677 | K177: 0 | L177: 1222
A178: 21 | B178: 23769 | C178: 21 | D178: 23773 | E178: 11 | F178: 23776 | G178: 21 | H178: 23781 | K178: 0 | L178: 2212

Sheet !M626A20.Gus
A1: Report for:!M626A20.Gus
A2: Date: | B2: <date>
A3: Hen: | B3: <hen> | F3: Correct Sequence | G3: =Start!J2 -> 2212 | P3: Total Sequences in Data | Q3: =4994-COUNTBLANK(L7:L5000) -> 175 | V3: Total Sequences in Block Data | W3: =COUNTA(L7:L35) -> 29 | AA3: Total Sequences in Block Data | AB3: =COUNTA(L36:L64) -> 29 | AF3: Total Sequences in Block Data | AG3: =COUNTA(L65:L94) -> 30 | AK3: Total Sequences in Block Data | AL3: =COUNTA(L95:L123) -> 29 | AP3: Total Sequences in Block Data | AQ3: =COUNTA(L124:L152) -> 29 | AU3: Total Sequences in Block Data | AV3: =COUNTA(L153:L181) -> 29
P4: Total Sequences in Summary | Q4: =SUM(O7:O22) -> 175 | V4: Total Sequences in Block Summary | W4: =SUM(U7:U22) -> 29 | AA4: Total Sequences in Block Summary | AB4: =SUM(Z7:Z22) -> 29 | AF4: Total Sequences in Block Summary | AG4: =SUM(AE7:AE22) -> 30 | AK4: Total Sequences in Block Summary | AL4: =SUM(AJ7:AJ22) -> 29 | AP4: Total Sequences in Block Summary | AQ4: =SUM(AO7:AO22) -> 29 | AU4: Total Sequences in Block Summary | AV4: =SUM(AT7:AT22) -> 29
T5: Block 1 | Y5: Block 2 | AD5: Block 3 | AI5: Block 4 | AN5: Block 5 | AS5: Block 6
A6: Sequence Component 1 | B6: Time 1 | C6: Sequence Component 2 | D6: Time 2 | E6: Sequence Component 3 | F6: Time 3 | G6: Sequence Component 4 | H6: Time 4 | I6: Sequence Component 5 | J6: Time 5 | K6: Correct? 0=No 1=Yes | L6: Sequence | N6: Frequency | P6: Relative Frequency | Q6: Variability | T6: Frequency | V6: Relative Frequency | W6: Variability | Y6: Frequency | AA6: Relative Frequency | AB6: Variability | AD6: Frequency | AF6: Relative Frequency | AG6: Variability | AI6: Frequency | AK6: Relative Frequency | AL6: Variability | AN6: Frequency | AP6: Relative Frequency | AQ6: Variability | AS6: Frequency | AU6: Relative Frequency | AV6: Variability
A7: 21 | B7: 8 | C7: 21 | D7: 22 | E7: 22 | F7: 29 | G7: 23 | H7: 41 | K7: 0 | L7: 2222 | N7: 1111 | O7: =COUNTIF($L$7:$L$500,N7) -> 1 | P7: =O7/$Q$4 -> 0.005714285714 | Q7: =IF(P7=0,0,(P7*((LOG(P7))/LOG(2)))) -> -0.04257834921 | T7: =N7 -> 1111 | U7: =COUNTIF(L7:L35,T7) -> 0 | V7: =U7/(W4-U20) -> 0 | W7: =IF(V7=0,0,(V7*((LOG(V7))/LOG(2)))) -> 0 | Y7: =N7 -> 1111 | Z7: =COUNTIF(L36:L64,Y7) -> 0 | AA7: =Z7/(AB4-Z20) -> 0 | AB7: =IF(AA7=0,0,(AA7*((LOG(AA7))/LOG(2)))) -> 0 | AD7: =N7 -> 1111 | AE7: =COUNTIF(L65:L94,AD7) -> 1 | AF7: =AE7/(AG4-AE20) -> 0.03448275862 | AG7: =IF(AF7=0,0,(AF7*((LOG(AF7))/LOG(2)))) -> -0.167516586 | AI7: =N7 -> 1111 | AJ7: =COUNTIF(L95:L123,AI7) -> 0 | AK7: =AJ7/(AL4-AJ20) -> 0 | AL7: =IF(AK7=0,0,(AK7*((LOG(AK7))/LOG(2)))) -> 0 | AN7: =N7 -> 1111 | AO7: =COUNTIF(L124:L152,AN7) -> 0 | AP7: =AO7/(AQ4-AO20) -> 0 | AQ7: =IF(AP7=0,0,(AP7*((LOG(AP7))/LOG(2)))) -> 0 | AS7: =N7 -> 1111 | AT7: =COUNTIF(L153:L181,AS7) -> 0 | AU7: =AT7/(AV4-AT20) -> 0 | AV7: =IF(AU7=0,0,(AU7*((LOG(AU7))/LOG(2)))) -> 0
A8: 21 | B8: 138 | C8: 21 | D8: 139 | E8: 22 | F8: 143 | G8: 23 | H8: 148 | K8: 0 | L8: 2222 | N8: 1112 | O8: =COUNTIF($L$7:$L$500,N8) -> 0 | P8: =O8/$Q$4 -> 0 | Q8: =IF(P8=0,0,(P8*((LOG(P8))/LOG(2)))) -> 0 | T8: =N8 -> 1112 | U8: =COUNTIF(L7:L35,T8) -> 0 | V8: =U8/(W4-U20) -> 0 | W8: =IF(V8=0,0,(V8*((LOG(V8))/LOG(2)))) -> 0 | Y8: =N8 -> 1112 | Z8: =COUNTIF(L36:L64,Y8) -> 0 | AA8: =Z8/(AB4-Z20) -> 0 | AB8: =IF(AA8=0,0,(AA8*((LOG(AA8))/LOG(2)))) -> 0 | AD8: =N8 -> 1112 | AE8: =COUNTIF(L65:L94,AD8) -> 0 | AF8: =AE8/(AG4-AE20) -> 0 | AG8: =IF(AF8=0,0,(AF8*((LOG(AF8))/LOG(2)))) -> 0 | AI8: =N8 -> 1112 | AJ8: =COUNTIF(L95:L123,AI8) -> 0 | AK8: =AJ8/(AL4-AJ20) -> 0 | AL8: =IF(AK8=0,0,(AK8*((LOG(AK8))/LOG(2)))) -> 0 | AN8: =N8 -> 1112 | AO8: =COUNTIF(L124:L152,AN8) -> 0 | AP8: =AO8/(AQ4-AO20) -> 0 | AQ8: =IF(AP8=0,0,(AP8*((LOG(AP8))/LOG(2)))) -> 0 | AS8: =N8 -> 1112 | AT8: =COUNTIF(L153:L181,AS8) -> 0 | AU8: =AT8/(AV4-AT20) -> 0 | AV8: =IF(AU8=0,0,(AU8*((LOG(AU8))/LOG(2)))) -> 0
A9: 12 | B9: 242 | C9: 23 | D9: 248 | E9: 24 | F9: 257 | G9: 23 | H9: 263 | K9: 0 | L9: 1222 | N9: 1121 | O9: =COUNTIF($L$7:$L$500,N9) -> 0 | P9: =O9/$Q$4 -> 0 | Q9: =IF(P9=0,0,(P9*((LOG(P9))/LOG(2)))) -> 0 | T9: =N9 -> 1121 | U9: =COUNTIF(L7:L35,T9) -> 0 | V9: =U9/(W4-U20) -> 0 | W9: =IF(V9=0,0,(V9*((LOG(V9))/LOG(2)))) -> 0 | Y9: =N9 -> 1121 | Z9: =COUNTIF(L36:L64,Y9) -> 0 | AA9: =Z9/(AB4-Z20) -> 0 | AB9: =IF(AA9=0,0,(AA9*((LOG(AA9))/LOG(2)))) -> 0 | AD9: =N9 -> 1121 | AE9: =COUNTIF(L65:L94,AD9) -> 0 | AF9: =AE9/(AG4-AE20) -> 0 | AG9: =IF(AF9=0,0,(AF9*((LOG(AF9))/LOG(2)))) -> 0 | AI9: =N9 -> 1121 | AJ9: =COUNTIF(L95:L123,AI9) -> 0 | AK9: =AJ9/(AL4-AJ20) -> 0 | AL9: =IF(AK9=0,0,(AK9*((LOG(AK9))/LOG(2)))) -> 0 | AN9: =N9 -> 1121 | AO9: =COUNTIF(L124:L152,AN9) -> 0 | AP9: =AO9/(AQ4-AO20) -> 0 | AQ9: =IF(AP9=0,0,(AP9*((LOG(AP9))/LOG(2)))) -> 0 | AS9: =N9 -> 1121 | AT9: =COUNTIF(L153:L181,AS9) -> 0 | AU9: =AT9/(AV4-AT20) -> 0 | AV9: =IF(AU9=0,0,(AU9*((LOG(AU9))/LOG(2)))) -> 0
A10: 21 | B10: 359 | C10: 21 | D10: 377 | E10: 22 | F10: 384 | G10: 23 | H10: 390 | K10: 0 | L10: 2222 | N10: 1122 | O10: =COUNTIF($L$7:$L$500,N10) -> 6 | P10: =O10/$Q$4 -> 0.03428571429 | Q10: =IF(P10=0,0,(P10*((LOG(P10))/LOG(2)))) -> -0.1668428095 | T10: =N10 -> 1122 | U10: =COUNTIF(L7:L35,T10) -> 0 | V10: =U10/(W4-U20) -> 0 | W10: =IF(V10=0,0,(V10*((LOG(V10))/LOG(2)))) -> 0 | Y10: =N10 -> 1122 | Z10: =COUNTIF(L36:L64,Y10) -> 0 | AA10: =Z10/(AB4-Z20) -> 0 | AB10: =IF(AA10=0,0,(AA10*((LOG(AA10))/LOG(2)))) -> 0 | AD10: =N10 -> 1122 | AE10: =COUNTIF(L65:L94,AD10) -> 0 | AF10: =AE10/(AG4-AE20) -> 0 | AG10: =IF(AF10=0,0,(AF10*((LOG(AF10))/LOG(2)))) -> 0 | AI10: =N10 -> 1122 | AJ10: =COUNTIF(L95:L123,AI10) -> 2 | AK10: =AJ10/(AL4-AJ20) -> 0.07407407407 | AL10: =IF(AK10=0,0,(AK10*((LOG(AK10))/LOG(2)))) -> -0.278139815 | AN10: =N10 -> 1122 | AO10: =COUNTIF(L124:L152,AN10) -> 2 | AP10: =AO10/(AQ4-AO20) -> 0.08333333333 | AQ10: =IF(AP10=0,0,(AP10*((LOG(AP10))/LOG(2)))) -> -0.2987468751 | AS10: =N10 -> 1122 | AT10: =COUNTIF(L153:L181,AS10) -> 2 | AU10: =AT10/(AV4-AT20) -> 0.07407407407 | AV10: =IF(AU10=0,0,(AU10*((LOG(AU10))/LOG(2)))) -> -0.278139815
A11: 21 | B11: 490 | C11: 21 | D11: 500 | E11: 22 | F11: 512 | G11: 23 | H11: 521 | K11: 0 | L11: 2222 | N11: 1211 | O11: =COUNTIF($L$7:$L$500,N11) -> 0 | P11: =O11/$Q$4 -> 0 | Q11: =IF(P11=0,0,(P11*((LOG(P11))/LOG(2)))) -> 0 | T11: =N11 -> 1211 | U11: =COUNTIF(L7:L35,T11) -> 0 | V11: =U11/(W4-U20) -> 0 | W11: =IF(V11=0,0,(V11*((LOG(V11))/LOG(2)))) -> 0 | Y11: =N11 -> 1211 | Z11: =COUNTIF(L36:L64,Y11) -> 0 | AA11: =Z11/(AB4-Z20) -> 0 | AB11: =IF(AA11=0,0,(AA11*((LOG(AA11))/LOG(2)))) -> 0 | AD11: =N11 -> 1211 | AE11: =COUNTIF(L65:L94,AD11) -> 0 | AF11: =AE11/(AG4-AE20) -> 0 | AG11: =IF(AF11=0,0,(AF11*((LOG(AF11))/LOG(2)))) -> 0 | AI11: =N11 -> 1211 | AJ11: =COUNTIF(L95:L123,AI11) -> 0 | AK11: =AJ11/(AL4-AJ20) -> 0 | AL11: =IF(AK11=0,0,(AK11*((LOG(AK11))/LOG(2)))) -> 0 | AN11: =N11 -> 1211 | AO11: =COUNTIF(L124:L152,AN11) -> 0 | AP11: =AO11/(AQ4-AO20) -> 0 | AQ11: =IF(AP11=0,0,(AP11*((LOG(AP11))/LOG(2)))) -> 0 | AS11: =N11 -> 1211 | AT11: =COUNTIF(L153:L181,AS11) -> 0 | AU11: =AT11/(AV4-AT20) -> 0 | AV11: =IF(AU11=0,0,(AU11*((LOG(AU11))/LOG(2)))) -> 0
A12: 12 | B12: 617 | C12: 23 | D12: 625 | E12: 13 | F12: 630 | G12: 23 | H12: 639 | K12: 0 | L12: 1212 | N12: 1212 | O12: =COUNTIF($L$7:$L$500,N12) -> 10 | P12: =O12/$Q$4 -> 0.05714285714 | Q12: =IF(P12=0,0,(P12*((LOG(P12))/LOG(2)))) -> -0.2359590295 | T12: =N12 -> 1212 | U12: =COUNTIF(L7:L35,T12) -> 2 | V12: =U12/(W4-U20) -> 0.07142857143 | W12: =IF(V12=0,0,(V12*((LOG(V12))/LOG(2)))) -> -0.271953923 | Y12: =N12 -> 1212 | Z12: =COUNTIF(L36:L64,Y12) -> 2 | AA12: =Z12/(AB4-Z20) -> 0.07142857143 | AB12: =IF(AA12=0,0,(AA12*((LOG(AA12))/LOG(2)))) -> -0.271953923 | AD12: =N12 -> 1212 | AE12: =COUNTIF(L65:L94,AD12) -> 2 | AF12: =AE12/(AG4-AE20) -> 0.06896551724 | AG12: =IF(AF12=0,0,(AF12*((LOG(AF12))/LOG(2)))) -> -0.2660676548 | AI12: =N12 -> 1212 | AJ12: =COUNTIF(L95:L123,AI12) -> 2 | AK12: =AJ12/(AL4-AJ20) -> 0.07407407407 | AL12: =IF(AK12=0,0,(AK12*((LOG(AK12))/LOG(2)))) -> -0.278139815 | AN12: =N12 -> 1212 | AO12: =COUNTIF(L124:L152,AN12) -> 2 | AP12: =AO12/(AQ4-AO20) -> 0.08333333333 | AQ12: =IF(AP12=0,0,(AP12*((LOG(AP12))/LOG(2)))) -> -0.2987468751 | AS12: =N12 -> 1212 | AT12: =COUNTIF(L153:L181,AS12) -> 0 | AU12: =AT12/(AV4-AT20) -> 0 | AV12: =IF(AU12=0,0,(AU12*((LOG(AU12))/LOG(2)))) -> 0
A13: 21 | B13: 746 | C13: 12 | D13: 749 | E13: 24 | F13: 754 | G13: 23 | H13: 762 | K13: 0 | L13: 2122 | N13: 1221 | O13: =COUNTIF($L$7:$L$500,N13) -> 3 | P13: =O13/$Q$4 -> 0.01714285714 | Q13: =IF(P13=0,0,(P13*((LOG(P13))/LOG(2)))) -> -0.1005642619 | T13: =N13 -> 1221 | U13: =COUNTIF(L7:L35,T13) -> 0 | V13: =U13/(W4-U20) -> 0 | W13: =IF(V13=0,0,(V13*((LOG(V13))/LOG(2)))) -> 0 | Y13: =N13 -> 1221 | Z13: =COUNTIF(L36:L64,Y13) -> 0 | AA13: =Z13/(AB4-Z20) -> 0 | AB13: =IF(AA13=0,0,(AA13*((LOG(AA13))/LOG(2)))) -> 0 | AD13: =N13 -> 1221 | AE13: =COUNTIF(L65:L94,AD13) -> 2 | AF13: =AE13/(AG4-AE20) -> 0.06896551724 | AG13: =IF(AF13=0,0,(AF13*((LOG(AF13))/LOG(2)))) -> -0.2660676548 | AI13: =N13 -> 1221 | AJ13: =COUNTIF(L95:L123,AI13) -> 1 | AK13: =AJ13/(AL4-AJ20) -> 0.03703703704 | AL13: =IF(AK13=0,0,(AK13*((LOG(AK13))/LOG(2)))) -> -0.1761069445 | AN13: =N13 -> 1221 | AO13: =COUNTIF(L124:L152,AN13) -> 0 | AP13: =AO13/(AQ4-AO20) -> 0 | AQ13: =IF(AP13=0,0,(AP13*((LOG(AP13))/LOG(2)))) -> 0 | AS13: =N13 -> 1221 | AT13: =COUNTIF(L153:L181,AS13) -> 0 | AU13: =AT13/(AV4-AT20) -> 0 | AV13: =IF(AU13=0,0,(AU13*((LOG(AU13))/LOG(2)))) -> 0
A14: 12 | B14: 854 | C14: 23 | D14: 859 | E14: 24 | F14: 870 | G14: 23 | H14: 877 | K14: 0 | L14: 1222 | N14: 1222 | O14: =COUNTIF($L$7:$L$500,N14) -> 50 | P14: =O14/$Q$4 -> 0.2857142857 | Q14: =IF(P14=0,0,(P14*((LOG(P14))/LOG(2)))) -> -0.5163871206 | T14: =N14 -> 1222 | U14: =COUNTIF(L7:L35,T14) -> 9 | V14: =U14/(W4-U20) -> 0.3214285714 | W14: =IF(V14=0,0,(V14*((LOG(V14))/LOG(2)))) -> -0.5263167602 | Y14: =N14 -> 1222 | Z14: =COUNTIF(L36:L64,Y14) -> 10 | AA14: =Z14/(AB4-Z20) -> 0.3571428571 | AB14: =IF(AA14=0,0,(AA14*((LOG(AA14))/LOG(2)))) -> -0.5305095811 | AD14: =N14 -> 1222 | AE14: =COUNTIF(L65:L94,AD14) -> 7 | AF14: =AE14/(AG4-AE20) -> 0.2413793103 | AG14: =IF(AF14=0,0,(AF14*((LOG(AF14))/LOG(2)))) -> -0.4949787073 | AI14: =N14 -> 1222 | AJ14: =COUNTIF(L95:L123,AI14) -> 10 | AK14: =AJ14/(AL4-AJ20) -> 0.3703703704 | AL14: =IF(AK14=0,0,(AK14*((LOG(AK14))/LOG(2)))) -> -0.5307257064 | AN14: =N14 -> 1222 | AO14: =COUNTIF(L124:L152,AN14) -> 6 | AP14: =AO14/(AQ4-AO20) -> 0.25 | AQ14: =IF(AP14=0,0,(AP14*((LOG(AP14))/LOG(2)))) -> -0.5 | AS14: =N14 -> 1222 | AT14: =COUNTIF(L153:L181,AS14) -> 8 | AU14: =AT14/(AV4-AT20) -> 0.2962962963 | AV14: =IF(AU14=0,0,(AU14*((LOG(AU14))/LOG(2)))) -> -0.5199666673
A15: 21 | B15: 991 | C15: 21 | D15: 1001 | E15: 22 | F15: 1007 | G15: 23 | H15: 1013 | K15: 0 | L15: 2222 | N15: 2111 | O15: =COUNTIF($L$7:$L$500,N15) -> 1 | P15: =O15/$Q$4 -> 0.005714285714 | Q15: =IF(P15=0,0,(P15*((LOG(P15))/LOG(2)))) -> -0.04257834921 | T15: =N15 -> 2111 | U15: =COUNTIF(L7:L35,T15) -> 1 | V15: =U15/(W4-U20) -> 0.03571428571 | W15: =IF(V15=0,0,(V15*((LOG(V15))/LOG(2)))) -> -0.1716912472 | Y15: =N15 -> 2111 | Z15: =COUNTIF(L36:L64,Y15) -> 0 | AA15: =Z15/(AB4-Z20) -> 0 | AB15: =IF(AA15=0,0,(AA15*((LOG(AA15))/LOG(2)))) -> 0 | AD15: =N15 -> 2111 | AE15: =COUNTIF(L65:L94,AD15) -> 0 | AF15: =AE15/(AG4-AE20) -> 0 | AG15: =IF(AF15=0,0,(AF15*((LOG(AF15))/LOG(2)))) -> 0 | AI15: =N15 -> 2111 | AJ15: =COUNTIF(L95:L123,AI15) -> 0 | AK15: =AJ15/(AL4-AJ20) -> 0 | AL15: =IF(AK15=0,0,(AK15*((LOG(AK15))/LOG(2)))) -> 0 | AN15: =N15 -> 2111 | AO15: =COUNTIF(L124:L152,AN15) -> 0 | AP15: =AO15/(AQ4-AO20) -> 0 | AQ15: =IF(AP15=0,0,(AP15*((LOG(AP15))/LOG(2)))) -> 0 | AS15: =N15 -> 2111 | AT15: =COUNTIF(L153:L181,AS15) -> 0 | AU15: =AT15/(AV4-AT20) -> 0 | AV15: =IF(AU15=0,0,(AU15*((LOG(AU15))/LOG(2)))) -> 0
A16: 21 | B16: 1113 | C16: 21 | D16: 1116 | E16: 22 | F16: 1121 | G16: 14 | H16: 1127 | K16: 0 | L16: 2221 | N16: 2112 | O16: =COUNTIF($L$7:$L$500,N16) -> 0 | P16: =O16/$Q$4 -> 0 | Q16: =IF(P16=0,0,(P16*((LOG(P16))/LOG(2)))) -> 0 | T16: =N16 -> 2112 | U16: =COUNTIF(L7:L35,T16) -> 0 | V16: =U16/(W4-U20) -> 0 | W16: =IF(V16=0,0,(V16*((LOG(V16))/LOG(2)))) -> 0 | Y16: =N16 -> 2112 | Z16: =COUNTIF(L36:L64,Y16) -> 0 | AA16: =Z16/(AB4-Z20) -> 0 | AB16: =IF(AA16=0,0,(AA16*((LOG(AA16))/LOG(2)))) -> 0 | AD16: =N16 -> 2112 | AE16: =COUNTIF(L65:L94,AD16) -> 0 | AF16: =AE16/(AG4-AE20) -> 0 | AG16: =IF(AF16=0,0,(AF16*((LOG(AF16))/LOG(2)))) -> 0 | AI16: =N16 -> 2112 | AJ16: =COUNTIF(L95:L123,AI16) -> 0 | AK16: =AJ16/(AL4-AJ20) -> 0 | AL16: =IF(AK16=0,0,(AK16*((LOG(AK16))/LOG(2)))) -> 0 | AN16: =N16 -> 2112 | AO16: =COUNTIF(L124:L152,AN16) -> 0 | AP16: =AO16/(AQ4-AO20) -> 0 | AQ16: =IF(AP16=0,0,(AP16*((LOG(AP16))/LOG(2)))) -> 0 | AS16: =N16 -> 2112 | AT16: =COUNTIF(L153:L181,AS16) -> 0 | AU16: =AT16/(AV4-AT20) -> 0 | AV16: =IF(AU16=0,0,(AU16*((LOG(AU16))/LOG(2)))) -> 0
A17: 12 | B17: 1229 | C17: 23 | D17: 1236 | E17: 24 | F17: 1240 | G17: 23 | H17: 1243 | K17: 0 | L17: 1222 | N17: 2121 | O17: =COUNTIF($L$7:$L$500,N17) -> 2 | P17: =O17/$Q$4 -> 0.01142857143 | Q17: =IF(P17=0,0,(P17*((LOG(P17))/LOG(2)))) -> -0.07372812699 | T17: =N17 -> 2121 | U17: =COUNTIF(L7:L35,T17) -> 0 | V17: =U17/(W4-U20) -> 0 | W17: =IF(V17=0,0,(V17*((LOG(V17))/LOG(2)))) -> 0 | Y17: =N17 -> 2121 | Z17: =COUNTIF(L36:L64,Y17) -> 0 | AA17: =Z17/(AB4-Z20) -> 0 | AB17: =IF(AA17=0,0,(AA17*((LOG(AA17))/LOG(2)))) -> 0 | AD17: =N17 -> 2121 | AE17: =COUNTIF(L65:L94,AD17) -> 2 | AF17: =AE17/(AG4-AE20) -> 0.06896551724 | AG17: =IF(AF17=0,0,(AF17*((LOG(AF17))/LOG(2)))) -> -0.2660676548 | AI17: =N17 -> 2121 | AJ17: =COUNTIF(L95:L123,AI17) -> 0 | AK17: =AJ17/(AL4-AJ20) -> 0 | AL17: =IF(AK17=0,0,(AK17*((LOG(AK17))/LOG(2)))) -> 0 | AN17: =N17 -> 2121 | AO17: =COUNTIF(L124:L152,AN17) -> 0 | AP17: =AO17/(AQ4-AO20) -> 0 | AQ17: =IF(AP17=0,0,(AP17*((LOG(AP17))/LOG(2)))) -> 0 | AS17: =N17 -> 2121 | AT17: =COUNTIF(L153:L181,AS17) -> 0 | AU17: =AT17/(AV4-AT20) -> 0 | AV17: =IF(AU17=0,0,(AU17*((LOG(AU17))/LOG(2)))) -> 0
A18: 21 | B18: 1344 | C18: 21 | D18: 1348 | E18: 22 | F18: 1354 | G18: 23 | H18: 1360 | K18: 0 | L18: 2222 | N18: 2122 | O18: =COUNTIF($L$7:$L$500,N18) -> 22 | P18: =O18/$Q$4 -> 0.1257142857 | Q18: =IF(P18=0,0,(P18*((LOG(P18))/LOG(2)))) -> -0.376109422 | T18: =N18 -> 2122 | U18: =COUNTIF(L7:L35,T18) -> 3 | V18: =U18/(W4-U20) -> 0.1071428571 | W18: =IF(V18=0,0,(V18*((LOG(V18))/LOG(2)))) -> -0.3452563309 | Y18: =N18 -> 2122 | Z18: =COUNTIF(L36:L64,Y18) -> 4 | AA18: =Z18/(AB4-Z20) -> 0.1428571429 | AB18: =IF(AA18=0,0,(AA18*((LOG(AA18))/LOG(2)))) -> -0.4010507032 | AD18: =N18 -> 2122 | AE18: =COUNTIF(L65:L94,AD18) -> 3 | AF18: =AE18/(AG4-AE20) -> 0.1034482759 | AG18: =IF(AF18=0,0,(AF18*((LOG(AF18))/LOG(2)))) -> -0.3385881201 | AI18: =N18 -> 2122 | AJ18: =COUNTIF(L95:L123,AI18) -> 3 | AK18: =AJ18/(AL4-AJ20) -> 0.1111111111 | AL18: =IF(AK18=0,0,(AK18*((LOG(AK18))/LOG(2)))) -> -0.352213889 | AN18: =N18 -> 2122 | AO18: =COUNTIF(L124:L152,AN18) -> 4 | AP18: =AO18/(AQ4-AO20) -> 0.1666666667 | AQ18: =IF(AP18=0,0,(AP18*((LOG(AP18))/LOG(2)))) -> -0.4308270835 | AS18: =N18 -> 2122 | AT18: =COUNTIF(L153:L181,AS18) -> 5 | AU18: =AT18/(AV4-AT20) -> 0.1851851852 | AV18: =IF(AU18=0,0,(AU18*((LOG(AU18))/LOG(2)))) -> -0.4505480384
A19: 12 | B19: 1453 | C19: 23 | D19: 1460 | E19: 24 | F19: 1463 | G19: 23 | H19: 1466 | K19: 0 | L19: 1222 | N19: 2211 | O19: =COUNTIF($L$7:$L$500,N19) -> 0 | P19: =O19/$Q$4 -> 0 | Q19: =IF(P19=0,0,(P19*((LOG(P19))/LOG(2)))) -> 0 | T19: =N19 -> 2211 | U19: =COUNTIF(L7:L35,T19) -> 0 | V19: =U19/(W4-U20) -> 0 | W19: =IF(V19=0,0,(V19*((LOG(V19))/LOG(2)))) -> 0 | Y19: =N19 -> 2211 | Z19: =COUNTIF(L36:L64,Y19) -> 0 | AA19: =Z19/(AB4-Z20) -> 0 | AB19: =IF(AA19=0,0,(AA19*((LOG(AA19))/LOG(2)))) -> 0 | AD19: =N19 -> 2211 | AE19: =COUNTIF(L65:L94,AD19) -> 0 | AF19: =AE19/(AG4-AE20) -> 0 | AG19: =IF(AF19=0,0,(AF19*((LOG(AF19))/LOG(2)))) -> 0 | AI19: =N19 -> 2211 | AJ19: =COUNTIF(L95:L123,AI19) -> 0 | AK19: =AJ19/(AL4-AJ20) -> 0 | AL19: =IF(AK19=0,0,(AK19*((LOG(AK19))/LOG(2)))) -> 0 | AN19: =N19 -> 2211 | AO19: =COUNTIF(L124:L152,AN19) -> 0 | AP19: =AO19/(AQ4-AO20) -> 0 | AQ19: =IF(AP19=0,0,(AP19*((LOG(AP19))/LOG(2)))) -> 0 | AS19: =N19 -> 2211 | AT19: =COUNTIF(L153:L181,AS19) -> 0 | AU19: =AT19/(AV4-AT20) -> 0 | AV19: =IF(AU19=0,0,(AU19*((LOG(AU19))/LOG(2)))) -> 0
A20: 21 | B20: 1570 | C20: 21 | D20: 1578 | E20: 22 | F20: 1583 | G20: 23 | H20: 1596 | K20: 0 | L20: 2222 | N20: 2212 | O20: =COUNTIF($L$7:$L$500,N20) -> 12 | P20: =O20/$Q$4 -> 0.06857142857 | Q20: =IF(P20=0,0,(P20*((LOG(P20))/LOG(2)))) -> -0.2651141905 | T20: =N20 -> 2212 | U20: =COUNTIF(L7:L35,T20) -> 1 | Y20: =N20 -> 2212 | Z20: =COUNTIF(L36:L64,Y20) -> 1 | AD20: =N20 -> 2212 | AE20: =COUNTIF(L65:L94,AD20) -> 1 | AI20: =N20 -> 2212 | AJ20: =COUNTIF(L95:L123,AI20) -> 2 | AN20: =N20 -> 2212 | AO20: =COUNTIF(L124:L152,AN20) -> 5 | AS20: =N20 -> 2212 | AT20: =COUNTIF(L153:L181,AS20) -> 2
A21: 21 | B21: 1689 | C21: 12 | D21: 1696 | E21: 13 | F21: 1700 | G21: 14 | H21: 1749 | K21: 0 | L21: 2111 | N21: 2221 | O21: =COUNTIF($L$7:$L$500,N21) -> 8 | P21: =O21/$Q$4 -> 0.04571428571 | Q21: =IF(P21=0,0,(P21*((LOG(P21))/LOG(2)))) -> -0.2034839365 | T21: =N21 -> 2221 | U21: =COUNTIF(L7:L35,T21) -> 2 | V21: =U21/(W4-U20) -> 0.07142857143 | W21: =IF(V21=0,0,(V21*((LOG(V21))/LOG(2)))) -> -0.271953923 | Y21: =N21 -> 2221 | Z21: =COUNTIF(L36:L64,Y21) -> 1 | AA21: =Z21/(AB4-Z20) -> 0.03571428571 | AB21: =IF(AA21=0,0,(AA21*((LOG(AA21))/LOG(2)))) -> -0.1716912472 | AD21: =N21 -> 2221 | AE21: =COUNTIF(L65:L94,AD21) -> 1 | AF21: =AE21/(AG4-AE20) -> 0.03448275862 | AG21: =IF(AF21=0,0,(AF21*((LOG(AF21))/LOG(2)))) -> -0.167516586 | AI21: =N21 -> 2221 | AJ21: =COUNTIF(L95:L123,AI21) -> 1 | AK21: =AJ21/(AL4-AJ20) -> 0.03703703704 | AL21: =IF(AK21=0,0,(AK21*((LOG(AK21))/LOG(2)))) -> -0.1761069445 | AN21: =N21 -> 2221 | AO21: =COUNTIF(L124:L152,AN21) -> 2 | AP21: =AO21/(AQ4-AO20) -> 0.08333333333 | AQ21: =IF(AP21=0,0,(AP21*((LOG(AP21))/LOG(2)))) -> -0.2987468751 | AS21: =N21 -> 2221 | AT21: =COUNTIF(L153:L181,AS21) -> 1 | AU21: =AT21/(AV4-AT20) -> 0.03703703704 | AV21: =IF(AU21=0,0,(AU21*((LOG(AU21))/LOG(2)))) -> -0.1761069445
A22: 21 | B22: 1846 | C22: 21 | D22: 1851 | E22: 22 | F22: 1858 | G22: 14 | H22: 1862 | K22: 0 | L22: 2221 | N22: 2222 | O22: =COUNTIF($L$7:$L$500,N22) -> 60 | P22: =O22/$Q$4 -> 0.3428571429 | Q22: =IF(P22=0,0,(P22*((LOG(P22))/LOG(2)))) -> -0.5294813198 | T22: =N22 -> 2222 | U22: =COUNTIF(L7:L35,T22) -> 11 | V22: =U22/(W4-U20) -> 0.3928571429 | W22: =IF(V22=0,0,(V22*((LOG(V22))/LOG(2)))) -> -0.5295412978 | Y22: =N22 -> 2222 | Z22: =COUNTIF(L36:L64,Y22) -> 11 | AA22: =Z22/(AB4-Z20) -> 0.3928571429 | AB22: =IF(AA22=0,0,(AA22*((LOG(AA22))/LOG(2)))) -> -0.5295412978 | AD22: =N22 -> 2222 | AE22: =COUNTIF(L65:L94,AD22) -> 11 | AF22: =AE22/(AG4-AE20) -> 0.3793103448 | AG22: =IF(AF22=0,0,(AF22*((LOG(AF22))/LOG(2)))) -> -0.5304842463 | AI22: =N22 -> 2222 | AJ22: =COUNTIF(L95:L123,AI22) -> 8 | AK22: =AJ22/(AL4-AJ20) -> 0.2962962963 | AL22: =IF(AK22=0,0,(AK22*((LOG(AK22))/LOG(2)))) -> -0.5199666673 | AN22: =N22 -> 2222 | AO22: =COUNTIF(L124:L152,AN22) -> 8 | AP22: =AO22/(AQ4-AO20) -> 0.3333333333 | AQ22: =IF(AP22=0,0,(AP22*((LOG(AP22))/LOG(2)))) -> -0.5283208336 | AS22: =N22 -> 2222 | AT22: =COUNTIF(L153:L181,AS22) -> 11 | AU22: =AT22/(AV4-AT20) -> 0.4074074074 | AV22: =IF(AU22=0,0,(AU22*((LOG(AU22))/LOG(2)))) -> -0.5277783229
A23: 21 | B23: 1975 | C23: 21 | D23: 1983 | E23: 22 | F23: 1990 | G23: 23 | H23: 1998 | K23: 0 | L23: 2222 | P23: =SUM(P7:P22) -> 1 | Q23: =-SUM(Q7:Q22) -> 2.552826916 | V23: =SUM(V7:V22) -> 1 | W23: =-SUM(W7:W22) -> 2.116713482 | AA23: =SUM(AA7:AA22) -> 1 | AB23: =-SUM(AB7:AB22) -> 1.904746752 | AF23: =SUM(AF7:AF22) -> 1 | AG23: =-SUM(AG7:AG22) -> 2.49728721 | AK23: =SUM(AK7:AK22) -> 1 | AL23: =-SUM(AL7:AL22) -> 2.311399782 | AP23: =SUM(AP7:AP22) -> 1 | AQ23: =-SUM(AQ7:AQ22) -> 2.355388542 | AU23: =SUM(AU7:AU22) -> 1 | AV23: =-SUM(AV7:AV22) -> 1.952539788
A24: 12 | B24: 2097 | C24: 23 | D24: 2109 | E24: 24 | F24: 2111 | G24: 23 | H24: 2118 | K24: 0 | L24: 1222 | P24: U= | Q24: =Q23/(LOG(Q4)/LOG(2)) -> 0.3426056352 | V24: U1= | W24: =W23/(LOG(W4)/LOG(2)) -> 0.4357187655 | AA24: U2= | AB24: =AB23/(LOG(AB4)/LOG(2)) -> 0.3920860856 | AF24: U3= | AG24: =AG23/(LOG(AG4)/LOG(2)) -> 0.5089347646 | AK24: U4= | AL24: =AL23/(LOG(AL4)/LOG(2)) -> 0.4757943236 | AP24: U5= | AQ24: =AQ23/(LOG(AQ4)/LOG(2)) -> 0.4848492706 | AU24: U6= | AV24: =AV23/(LOG(AV4)/LOG(2)) -> 0.4019241306
A25: 12 | B25: 2213 | C25: 23 | D25: 2227 | E25: 24 | F25: 2232 | G25: 23 | H25: 2239 | K25: 0 | L25: 1222
A26: 21 | B26: 2344 | C26: 21 | D26: 2351 | E26: 22 | F26: 2356 | G26: 23 | H26: 2362 | K26: 0 | L26: 2222
A27: 12 | B27: 2464 | C27: 23 | D27: 2470 | E27: 24 | F27: 2475 | G27: 23 | H27: 2481 | K27: 0 | L27: 1222 | N27: Total Target Seq
A28: 21 | B28: 2584 | C28: 12 | D28: 2592 | E28: 24 | F28: 2603 | G28: 23 | H28: 2612 | K28: 0 | L28: 2122 | N28: =COUNTIF(L7:L181,G3) -> 12 | P28: 29 | Q28: 29 | R28: 30 | S28: 29 | T28: 29 | U28: 29
A29: 12 | B29: 2705 | C29: 23 | D29: 2717 | E29: 13 | F29: 2724 | G29: 23 | H29: 2727 | K29: 0 | L29: 1212 | P29: % of reinforcement given in 6 equal intervals based on number of trials
A30: 21 | B30: 2835 | C30: 12 | D30: 2838 | E30: 24 | F30: 2847 | G30: 23 | H30: 2855 | K30: 0 | L30: 2122 | P30: %_1 | Q30: %_2 | R30: %_3 | S30: %_4 | T30: %_5 | U30: %_6
A31: 21 | B31: 2960 | C31: 21 | D31: 2969 | E31: 22 | F31: 2983 | G31: 23 | H31: 2989 | K31: 0 | L31: 2222 | O31: target sequence | P31: =$G$3 -> 2212 | Q31: =$G$3 -> 2212 | R31: =$G$3 -> 2212 | S31: =$G$3 -> 2212 | T31: =$G$3 -> 2212 | U31: =$G$3 -> 2212
A32: 21 | B32: 3086 | C32: 21 | D32: 3092 | E32: 22 | F32: 3098 | G32: 23 | H32: 3106 | K32: 0 | L32: 2222 | O32: total reinforcement | P32: =U20 -> 1 | Q32: =Z20 -> 1 | R32: =AE20 -> 1 | S32: =AJ20 -> 2 | T32: =AO20 -> 5 | U32: =AT20 -> 2
A33: 12 | B33: 3206 | C33: 23 | D33: 3212 | E33: 24 | F33: 3218 | G33: 23 | H33: 3225 | K33: 0 | L33: 1222 | O33: % target
A34: 12 | B34: 3323 | C34: 23 | D34: 3332 | E34: 24 | F34: 3340 | G34: 23 | H34: 3346 | K34: 0 | L34: 1222 | O34: CCRF
A35: 21 | B35: 3443 | C35: 21 | D35: 3448 | E35: 11 | F35: 3450 | G35: 21 | H35: 3453 | K35: 0 | L35: 2212 | O35: % CCRf
A36: 21 | B36: 3902 | C36: 21 | D36: 3908 | E36: 22 | F36: 3914 | G36: 23 | H36: 3921 | K36: 0 | L36: 2222 | O36: average response rate | P36: =H35/P28 -> 119.0689655 | Q36: =(H64-H35)/Q28 -> 152.2068966 | R36: =(H94-H64)/R28 -> 122.8666667 | S36: =(H123-H94)/S28 -> 135.5172414 | T36: =(H152-H123)/T28 -> 158.2413793 | U36: =(H181-H152)/U28 -> 134.4137931
A37: 21 | B37: 4031 | C37: 21 | D37: 4036 | E37: 22 | F37: 4052 | G37: 23 | H37: 4061 | K37: 0 | L37: 2222
A38: 12 | B38: 4162 | C38: 23 | D38: 4163 | E38: 24 | F38: 4167 | G38: 23 | H38: 4174 | K38: 0 | L38: 1222
A39: 12 | B39: 4273 | C39: 23 | D39: 4285 | E39: 24 | F39: 4294 | G39: 23 | H39: 4300 | K39: 0 | L39: 1222
A40: 21 | B40: 4402 | C40: 21 | D40: 4410 | E40: 22 | F40: 4414 | G40: 23 | H40: 4426 | K40: 0 | L40: 2222
A41: 12 | B41: 4521 | C41: 23 | D41: 4527 | E41: 13 | F41: 4536 | G41: 23 | H41: 4539 | K41: 0 | L41: 1212
A42: 21 | B42: 4638 | C42: 21 | D42: 4645 | E42: 22 | F42: 4650 | G42: 23 | H42: 4660 | K42: 0 | L42: 2222
A43: 12 | B43: 4762 | C43: 23 | D43: 4767 | E43: 13 | F43: 4775 | G43: 23 | H43: 4782 | K43: 0 | L43: 1212
A44: 12 | B44: 4882 | C44: 23 | D44: 4887 | E44: 24 | F44: 4894 | G44: 23 | H44: 4901 | K44: 0 | L44: 1222
A45: 21 | B45: 4999 | C45: 21 | D45: 5004 | E45: 22 | F45: 5011 | G45: 23 | H45: 5017 | K45: 0 | L45: 2222
A46: 21 | B46: 5120 | C46: 21 | D46: 5123 | E46: 22 | F46: 5127 | G46: 23 | H46: 5133 | K46: 0 | L46: 2222
A47: 21 | B47: 5239 | C47: 21 | D47: 5246 | E47: 22 | F47: 5250 | G47: 23 | H47: 5255 | K47: 0 | L47: 2222
A48: 12 | B48: 5347 | C48: 23 | D48: 5355 | E48: 24 | F48: 5361 | G48: 23 | H48: 5367 | K48: 0 | L48: 1222
A49: 21 | B49: 5465 | C49: 12 | D49: 5469 | E49: 24 | F49: 5481 | G49: 23 | H49: 5482 | K49: 0 | L49: 2122
A50: 21 | B50: 5582 | C50: 12 | D50: 5586 | E50: 24 | F50: 5591 | G50: 23 | H50: 5599 | K50: 0 | L50: 2122
A51: 12 | B51: 5696 | C51: 23 | D51: 5706 | E51: 24 | F51: 5714 | G51: 23 | H51: 5720 | K51: 0 | L51: 1222
A52: 21 | B52: 5826 | C52: 21 | D52: 5835 | E52: 22 | F52: 5840 | G52: 23 | H52: 5847 | K52: 0 | L52: 2222
A53: 21 | B53: 5965 | C53: 21 | D53: 5967 | E53: 11 | F53: 5972 | G53: 21 | H53: 5975 | K53: 0 | L53: 2212
A54: 12 | B54: 6654 | C54: 23 | D54: 6662 | E54: 24 | F54: 6666 | G54: 23 | H54: 6677 | K54: 0 | L54: 1222
A55: 21 | B55: 6779 | C55: 21 | D55: 6797 | E55: 22 | F55: 6802 | G55: 23 | H55: 6807 | K55: 0 | L55: 2222
A56: 12 | B56: 6903 | C56: 23 | D56: 6906 | E56: 24 | F56: 6912 | G56: 23 | H56: 6918 | K56: 0 | L56: 1222
A57: 21 | B57: 7020 | C57: 12 | D57: 7038 | E57: 24 | F57: 7039 | G57: 23 | H57: 7046 | K57: 0 | L57: 2122
A58: 21 | B58: 7153 | C58: 21 | D58: 7157 | E58: 22 | F58: 7164 | G58: 23 | H58: 7170 | K58: 0 | L58: 2222
A59: 21 | B59: 7273 | C59: 12 | D59: 7280 | E59: 24 | F59: 7282 | G59: 23 | H59: 7293 | K59: 0 | L59: 2122
A60: 21 | B60: 7392 | C60: 21 | D60: 7396 | E60: 22 | F60: 7402 | G60: 14 | H60: 7404 | K60: 0 | L60: 2221
A61: 12 | B61: 7496 | C61: 23 | D61: 7508 | E61: 24 | F61: 7515 | G61: 23 | H61: 7520 | K61: 0 | L61: 1222
A62: 12 | B62: 7616 | C62: 23 | D62: 7620 | E62: 24 | F62: 7624 | G62: 23 | H62: 7632 | K62: 0 | L62: 1222
A63: 21 | B63: 7734 | C63: 21 | D63: 7740 | E63: 22 | F63: 7745 | G63: 23 | H63: 7752 | K63: 0 | L63: 2222
A64: 12 | B64: 7845 | C64: 23 | D64: 7857 | E64: 24 | F64: 7862 | G64: 23 | H64: 7867 | K64: 0 | L64: 1222
A65: 21 | B65: 7965 | C65: 21 | D65: 7970 | E65: 22 | F65: 7976 | G65: 23 | H65: 7986 | K65: 0 | L65: 2222
A66: 12 | B66: 8089 | C66: 23 | D66: 8093 | E66: 24 | F66: 8099 | G66: 23 | H66: 8105 | K66: 0 | L66: 1222
A67: 12 | B67: 8198 | C67: 23 | D67: 8207 | E67: 24 | F67: 8214 | G67: 23 | H67: 8223 | K67: 0 | L67: 1222
A68: 21 | B68: 8321 | C68: 12 | D68: 8323 | E68: 24 | F68: 8327 | G68: 14 | H68: 8329 | K68: 0 | L68: 2121
A69: 12 | B69: 8425 | C69: 23 | D69: 8428 | E69: 24 | F69: 8434 | G69: 23 | H69: 8439 | K69: 0 | L69: 1222
A70: 21 | B70: 8539 | C70: 21 | D70: 8544 | E70: 22 | F70: 8550 | G70: 23 | H70: 8562 | K70: 0 | L70: 2222
A71: 12 | B71: 8654 | C71: 23 | D71: 8663 | E71: 24 | F71: 8669 | G71: 14 | H71: 8672 | K71: 0 | L71: 1221
A72: 21 | B72: 8772 | C72: 21 | D72: 8780 | E72: 22 | F72: 8786 | G72: 23 | H72: 8793 | K72: 0 | L72: 2222
A73: 12 | B73: 8899 | C73: 23 | D73: 8903 | E73: 24 | F73: 8907 | G73: 23 | H73: 8916 | K73: 0 | L73: 1222
A74: 12 | B74: 9010 | C74: 23 | D74: 9020 | E74: 24 | F74: 9025 | G74: 23 | H74: 9032 | K74: 0 | L74: 1222
A75: 21 | B75: 9128 | C75: 12 | D75: 9130 | E75: 24 | F75: 9135 | G75: 23 | H75: 9141 | K75: 0 | L75: 2122
A76: 12 | B76: 9236 | C76: 23 | D76: 9241 | E76: 13 | F76: 9246 | G76: 23 | H76: 9250 | K76: 0 | L76: 1212
A77: 21 | B77: 9348 | C77: 12 | D77: 9351 | E77: 24 | F77: 9353 | G77: 14 | H77: 9354 | K77: 0 | L77: 2121
A78: 21 | B78: 9449 | C78: 21 | D78: 9455 | E78: 22 | F78: 9460 | G78: 23 | H78: 9480 | K78: 0 | L78: 2222
A79: 21 | B79: 9572 | C79: 21 | D79: 9579 | E79: 22 | F79: 9583 | G79: 23 | H79: 9590 | K79: 0 | L79: 2222
A80: 21 | B80: 9697 | C80: 21 | D80: 9703 | E80: 22 | F80: 9708 | G80: 23 | H80: 9715 | K80: 0 | L80: 2222
A81: 21 | B81: 9813 | C81: 21 | D81: 9816 | E81: 22 | F81: 9823 | G81: 14 | H81: 9825 | K81: 0 | L81: 2221
A82: 12 | B82: 9923 | C82: 14 | D82: 9931 | E82: 13 | F82: 9935 | G82: 14 | H82: 9944 | K82: 0 | L82: 1111
A83: 12 | B83: 10047 | C83: 23 | D83: 10053 | E83: 24 | F83: 10058 | G83: 23 | H83: 10062 | K83: 0 | L83: 1222
A84: 21 | B84: 10154 | C84: 12 | D84: 10158 | E84: 24 | F84: 10161 | G84: 23 | H84: 10167 | K84: 0 | L84: 2122
A85: 21 | B85: 10270 | C85: 21 | D85: 10275 | E85: 22 | F85: 10283 | G85: 23 | H85: 10290 | K85: 0 | L85: 2222
A86: 21 | B86: 10386 | C86: 21 | D86: 10393 | E86: 22 | F86: 10399 | G86: 23 | H86: 10409 | K86: 0 | L86: 2222
A87: 12 | B87: 10509 | C87: 23 | D87: 10515 | E87: 24 | F87: 10520 | G87: 23 | H87: 10526 | K87: 0 | L87: 1222
A88: 12 | B88: 10623 | C88: 23 | D88: 10633 | E88: 24 | F88: 10639 | G88: 14 | H88: 10643 | K88: 0 | L88: 1221
A89: 21 | B89: 10737 | C89: 21 | D89: 10742 | E89: 11 | F89: 10746 | G89: 21 | H89: 10751 | K89: 0 | L89: 2212
A90: 21 | B90: 11053 | C90: 21 | D90: 11059 | E90: 22 | F90: 11065 | G90: 23 | H90: 11075 | K90: 0 | L90: 2222
A91: 21 | B91: 11186 | C91: 21 | D91: 11193 | E91: 22 | F91: 11198 | G91: 23 | H91: 11205 | K91: 0 | L91: 2222
A92: 21 | B92: 11304 | C92: 21 | D92: 11309 | E92: 22 | F92: 11320 | G92: 23 | H92: 11328 | K92: 0 | L92: 2222
A93: 21 | B93: 11422 | C93: 12 | D93: 11426 | E93: 24 | F93: 11431 | G93: 23 | H93: 11438 | K93: 0 | L93: 2122
A94: 12 | B94: 11531 | C94: 23 | D94: 11543 | E94: 13 | F94: 11546 | G94: 23 | H94: 11553 | K94: 0 | L94: 1212
A95: 21 | B95: 11648 | C95: 21 | D95: 11654 | E95: 22 | F95: 11657 | G95: 23 | H95: 11664 | K95: 0 | L95: 2222
A96: 12 | B96: 11761 | C96: 23 | D96: 11770 | E96: 13 | F96: 11775 | G96: 23 | H96: 11779 | K96: 0 | L96: 1212
A97: 21 | B97: 11871 | C97: 12 | D97: 11875 | E97: 24 | F97: 11877 | G97: 23 | H97: 11884 | K97: 0 | L97: 2122
A98: 21 | B98: 11978 | C98: 21 | D98: 11982 | E98: 11 | F98: 11984 | G98: 21 | H98: 11991 | K98: 0 | L98: 2212
A99: 12 | B99: 12321 | C99: 23 | D99: 12330 | E99: 24 | F99: 12342 | G99: 23 | H99: 12348 | K99: 0 | L99: 1222
A100: 21 | B100: 12451 | C100: 21 | D100: 12456 | E100: 22 | F100: 12463 | G100: 23 | H100: 12471 | K100: 0 | L100: 2222
A101: 12 | B101: 12566 | C101: 23 | D101: 12583 | E101: 24 | F101: 12590 | G101: 23 | H101: 12597 | K101: 0 | L101: 1222
A102: 12 | B102: 12757 | C102: 14 | D102: 12761 | E102: 24 | F102: 12766 | G102: 23 | H102: 12773 | K102: 0 | L102: 1122
A103: 12 | B103: 12864 | C103: 23 | D103: 12875 | E103: 24 | F103: 12881 | G103: 14 | H103: 12885 | K103: 0 | L103: 1221
A104: 12 | B104: 12982 | C104: 23 | D104: 12986 | E104: 24 | F104: 12993 | G104: 23 | H104: 12998 | K104: 0 | L104: 1222
A105: 21 | B105: 13090 | C105: 21 | D105: 13095 | E105: 22 | F105: 13103 | G105: 23 | H105: 13109 | K105: 0 | L105: 2222
A106: 12 | B106: 13202 | C106: 23 | D106: 13218 | E106: 24 | F106: 13225 | G106: 23 | H106: 13230 | K106: 0 | L106: 1222
A107: 21 | B107: 13327 | C107: 21 | D107: 13330 | E107: 11 | F107: 13335 | G107: 21 | H107: 13340 | K107: 0 | L107: 2212
A108: 21 | B108: 13688 | C108: 21 | D108: 13700 | E108: 22 | F108: 13707 | G108: 23 | H108: 13715 | K108: 0 | L108: 2222
A109: 12 | B109: 13821 | C109: 23 | D109: 13833 | E109: 24 | F109: 13836 | G109: 23 | H109: 13843 | K109: 0 | L109: 1222
A110: 21 | B110: 13937 | C110: 21 | D110: 13942 | E110: 22 | F110: 13947 | G110: 23 | H110: 13953 | K110: 0 | L110: 2222
A111: 12 | B111: 14054 | C111: 23 | D111: 14059 | E111: 24 | F111: 14071 | G111: 23 | H111: 14077 | K111: 0 | L111: 1222
A112: 21 | B112: 14188 | C112: 21 | D112: 14193 | E112: 22 | F112: 14197 | G112: 23 | H112: 14202 | K112: 0 | L112: 2222
A113: 21 | B113: 14307 | C113: 21 | D113: 14312 | E113: 22 | F113: 14318 | G113: 23 | H113: 14326 | K113: 0 | L113: 2222
A114: 12 | B114: 14428 | C114: 23 | D114: 14433 | E114: 13 | F114: 14439 | G114: 23 | H114: 14445 | K114: 0 | L114: 1212
A115: 12 | B115: 14540 | C115: 23 | D115: 14548 | E115: 24 | F115: 14553 | G115: 23 | H115: 14560 | K115: 0 | L115: 1222
A116: 21 | B116: 14674 | C116: 12 | D116: 14678 | E116: 24 | F116: 14688 | G116: 23 | H116: 14695 | K116: 0 | L116: 2122
A117: 12 | B117: 14789 | C117: 14 | D117: 14799 | E117: 24 | F117: 14805 | G117: 23 | H117: 14811 | K117: 0 | L117: 1122
A118: 12 | B118: 14907 | C118: 23 | D118: 14912 | E118: 24 | F118: 14917 | G118: 23 | H118: 14924 | K118: 0 | L118: 1222
A119: 21 | B119: 15018 | C119: 12 | D119: 15020 | E119: 24 | F119: 15024 | G119: 23 | H119: 15031 | K119: 0 | L119: 2122
A120: 21 | B120: 15130 | C120: 21 | D120: 15132 | E120: 22 | F120: 15135 | G120: 14 | H120: 15138 | K120: 0 | L120: 2221
A121: 12 | B121: 15235 | C121: 23 | D121: 15238 | E121: 24 | F121: 15243 | G121: 23 | H121: 15248 | K121: 0 | L121: 1222
A122: 21 | B122: 15352 | C122: 21 | D122: 15357 | E122: 22 | F122: 15363 | G122: 23 | H122: 15369 | K122: 0 | L122: 2222
A123: 12 | B123: 15463 | C123: 23 | D123: 15468 | E123: 24 | F123: 15476 | G123: 23 | H123: 15483 | K123: 0 | L123: 1222
A124: 12 | B124: 15577 | C124: 23 | D124: 15583 | E124: 24 | F124: 15587 | G124: 23 | H124: 15592 | K124: 0 | L124: 1222
A125: 21 | B125: 15692 | C125: 21 | D125: 15696 | E125: 22 | F125: 15704 | G125: 23 | H125: 15709 | K125: 0 | L125: 2222
A126: 21 | B126: 15816 | C126: 21 | D126: 15826 | E126: 22 | F126: 15833 | G126: 14 | H126: 15844 | K126: 0 | L126: 2221
A127: 21 | B127: 15936 | C127: 21 | D127: 15938 | E127: 11 | F127: 15944 | G127: 21 | H127: 15949 | K127: 0 | L127: 2212
A128: 21 | B128: 16344 | C128: 21 | D128: 16356 | E128: 22 | F128: 16363 | G128: 23 | H128: 16375 | K128: 0 | L128: 2222
A129: 21 | B129: 16484 | C129: 21 | D129: 16489 | E129: 22 | F129: 16495 | G129: 23 | H129: 16504 | K129: 0 | L129: 2222
A130: 21 | B130: 16614 | C130: 21 | D130: 16619 | E130: 11 | F130: 16624 | G130: 21 | H130: 16625 | K130: 0 | L130: 2212
A131: 12 | B131: 16936 | C131: 23 | D131: 16945 | E131: 24 | F131: 16947 | G131: 23 | H131: 16952 | K131: 0 | L131: 1222
A132: 21 | B132: 17049 | C132: 12 | D132: 17054 | E132: 24 | F132: 17061 | G132: 23 | H132: 17069 | K132: 0 | L132: 2122
A133: 12 | B133: 17163 | C133: 23 | D133: 17172 | E133: 13 | F133: 17173 | G133: 23 | H133: 17179 | K133: 0 | L133: 1212
A134: 12 | B134: 17279 | C134: 23 | D134: 17284 | E134: 24 | F134: 17290 | G134: 23 | H134: 17295 | K134: 0 | L134: 1222
A135: 12 | B135: 17391 | C135: 23 | D135: 17398 | E135: 13 | F135: 17405 | G135: 23 | H135: 17413 | K135: 0 | L135: 1212
A136: 21 | B136: 17511 | C136: 12 | D136: 17516 | E136: 24 | F136: 17518 | G136: 23 | H136: 17524 | K136: 0 | L136: 2122
A137: 21 | B137: 17627 | C137: 21 | D137: 17636 | E137: 11 | F137: 17639 | G137: 21 | H137: 17644 | K137: 0 | L137: 2212
A138: 21 | B138: 17962 | C138: 21 | D138: 17968 | E138: 22 | F138: 17975 | G138: 23 | H138: 17982 | K138: 0 | L138: 2222
A139: 12 | B139: 18079 | C139: 14 | D139: 18082 | E139: 24 | F139: 18092 | G139: 23 | H139: 18097 | K139: 0 | L139: 1122
A140: 21 | B140: 18199 | C140: 21 | D140: 18204 | E140: 22 | F140: 18212 | G140: 23 | H140: 18219 | K140: 0 | L140: 2222
A141: 21 | B141: 18316 | C141: 12 | D141: 18323 | E141: 24 | F141: 18325 | G141: 23 | H141: 18330 | K141: 0 | L141: 2122
A142: 12 | B142: 18431 | C142: 14 | D142: 18434 | E142: 24 | F142: 18439 | G142: 23 | H142: 18447 | K142: 0 | L142: 1122
A143: 21 | B143: 18543 | C143: 21 | D143: 18548 | E143: 22 | F143: 18554 | G143: 23 | H143: 18559 | K143: 0 | L143: 2222
A144: 21 | B144: 18664 | C144: 21 | D144: 18671 | E144: 22 | F144: 18678 | G144: 14 | H144: 18682 | K144: 0 | L144: 2221
A145: 21 | B145: 18781 | C145: 21 | D145: 18785 | E145: 11 | F145: 18788 | G145: 21 | H145: 18795 | K145: 0 | L145: 2212
A146: 12 | B146: 19130 | C146: 23 | D146: 19139 | E146: 24 | F146: 19144 | G146: 23 | H146: 19151 | K146: 0 | L146: 1222
A147: 12 | B147: 19262 | C147: 23 | D147: 19273 | E147: 24 | F147: 19277 | G147: 23 | H147: 19283 | K147: 0 | L147: 1222
A148: 12 | B148: 19385 | C148: 23 | D148: 19388 | E148: 24 | F148: 19395 | G148: 23 | H148: 19401 | K148: 0 | L148: 1222
A149: 21 | B149: 19501 | C149: 12 | D149: 19506 | E149: 24 | F149: 19509 | G149: 23 | H149: 19515 | K149: 0 | L149: 2122
A150: 21 | B150: 19611 | C150: 21 | D150: 19615 | E150: 11 | F150: 19618 | G150: 21 | H150: 19622 | K150: 0 | L150: 2212
A151: 21 | B151: 19933 | C151: 21 | D151: 19942 | E151: 22 | F151: 19949 | G151: 23 | H151: 19955 | K151: 0 | L151: 2222
A152: 21 | B152: 20053 | C152: 21 | D152: 20058 | E152: 22 | F152: 20065 | G152: 23 | H152: 20072 | K152: 0 | L152: 2222
A153: 21 | B153: 20164 | C153: 21 | D153: 20177 | E153: 22 | F153: 20184 | G153: 23 | H153: 20190 | K153: 0 | L153: 2222
A154: 21 | B154: 20285 | C154: 21 | D154: 20291 | E154: 22 | F154: 20297 | G154: 23 | H154: 20303 | K154: 0 | L154: 2222
A155: 12 | B155: 20397 | C155: 23 | D155: 20402 | E155: 24 | F155: 20404 | G155: 23 | H155: 20410 | K155: 0 | L155: 1222
A156: 21 | B156: 20513 | C156: 21 | D156: 20518 | E156: 22 | F156: 20524 | G156: 23 | H156: 20531 | K156: 0 | L156: 2222
A157: 21 | B157: 20633 | C157: 21 | D157: 20636 | E157: 11 | F157: 20639 | G157: 21 | H157: 20642 | K157: 0 | L157: 2212
A158: 21 | B158: 20903 | C158: 21 | D158: 20908 | E158: 22 | F158: 20921 | G158: 23 | H158: 20927 | K158: 0 | L158: 2222
A159: 12 | B159: 21022 | C159: 23 | D159: 21029 | E159: 24 | F159: 21036 | G159: 23 | H159: 21043 | K159: 0 | L159: 1222
A160: 12 | B160: 21139 | C160: 23 | D160: 21141 | E160: 24 | F160: 21150 | G160: 23 | H160: 21156 | K160: 0 | L160: 1222
A161: 12 | B161: 21250 | C161: 23 | D161: 21256 | E161: 24 | F161: 21267 | G161: 23 | H161: 21271 | K161: 0 | L161: 1222
A162: 12 | B162: 21365 | C162: 14 | D162: 21371 | E162: 24 | F162: 21379 | G162: 23 | H162: 21385 | K162: 0 | L162: 1122
A163: 21 | B163: 21492 | C163: 21 | D163: 21501 | E163: 22 | F163: 21508 | G163: 23 | H163: 21516 | K163: 0 | L163: 2222
A164: 21 | B164: 21616 | C164: 21 | D164: 21621 | E164: 22 | F164: 21627 | G164: 23 | H164: 21634 | K164: 0 | L164: 2222
A165: 12 | B165: 21741 | C165: 23 | D165: 21748 | E165: 24 | F165: 21754 | G165: 23 | H165: 21761 | K165: 0 | L165: 1222
A166: 21 | B166: 21857 | C166: 21 | D166: 21864 | E166: 22 | F166: 21869 | G166: 23 | H166: 21876 | K166: 0 | L166: 2222
A167: 21 | B167: 21971 | C167: 21 | D167: 21976 | E167: 22 | F167: 21983 | G167: 14 | H167: 21985 | K167: 0 | L167: 2221
A168: 12 | B168: 22084 | C168: 23 | D168: 22090 | E168: 24 | F168: 22096 | G168: 23 | H168: 22101 | K168: 0 | L168: 1222
A169: 21 | B169: 22197 | C169: 12 | D169: 22201 | E169: 24 | F169: 22206 | G169: 23 | H169: 22211 | K169: 0 | L169: 2122
A170: 21 | B170: 22307 | C170: 12 | D170: 22313 | E170: 24 | F170: 22315 | G170: 23 | H170: 22323 | K170: 0 | L170: 2122
A171: 21 | B171: 22415 | C171: 21 | D171: 22419 | E171: 22 | F171: 22425 | G171: 23 | H171: 22433 | K171: 0 | L171: 2222
A172: 21 | B172: 22537 | C172: 12 | D172: 22541 | E172: 24 | F172: 22547 | G172: 23 | H172: 22553 | K172: 0 | L172: 2122
A173: 12 | B173: 22650 | C173: 23 | D173: 22658 | E173: 24 | F173: 22663 | G173: 23 | H173: 22669 | K173: 0 | L173: 1222
A174: 21 | B174: 22775 | C174: 21 | D174: 22785 | E174: 22 | F174: 22790 | G174: 23 | H174: 22797 | K174: 0 | L174: 2222
A175: 21 | B175: 22890 | C175: 21 | D175: 22895 | E175: 22 | F175: 22902 | G175: 23 | H175: 22909 | K175: 0 | L175: 2222
A176: 21 | B176: 23009 | C176: 21 | D176: 23016 | E176: 11 | F176: 23019 | G176: 21 | H176: 23022 | K176: 0 | L176: 2212
A177: 21 | B177: 23510 | C177: 21 | D177: 23515 | E177: 22 | F177: 23520 | G177: 23 | H177: 23527 | K177: 0 | L177: 2222
A178: 12 | B178: 23622 | C178: 23 | D178: 23628 | E178: 24 | F178: 23641 | G178: 23 | H178: 23647 | K178: 0 | L178: 1222
A179: 12 | B179: 23739 | C179: 14 | D179: 23746 | E179: 24 | F179: 23749 | G179: 23 | H179: 23755 | K179: 0 | L179: 1122
A180: 21 | B180: 23850 | C180: 12 | D180: 23852 | E180: 24 | F180: 23856 | G180: 23 | H180: 23865 | K180: 0 | L180: 2122
A181: 21 | B181: 23958 | C181: 12 | D181: 23960 | E181: 24 | F181: 23966 | G181: 23 | H181: 23970 | L181: 2122

Sheet !M627A30.Gus
A1: Report for:!M627A30.Gus
A2: Date: | B2: <date>
A3: Hen: | B3: <hen> | F3: Correct Sequence | G3: =Start!J2 -> 2212 | P3: Total Sequences in Data | Q3: =4994-COUNTBLANK(L7:L5000) -> 161 | V3: Total Sequences in Block Data | W3: =COUNTA(L7:L33) -> 27 | AA3: Total Sequences in Block Data | AB3: =COUNTA(L34:L60) -> 27 | AF3: Total Sequences in Block Data | AG3: =COUNTA(L61:L86) -> 26 | AK3: Total Sequences in Block Data | AL3: =COUNTA(L87:L113) -> 27 | AP3: Total Sequences in Block Data | AQ3: =COUNTA(L114:L140) -> 27 | AU3: Total Sequences in Block Data | AV3: =COUNTA(L141:L167) -> 27
P4: Total Sequences in Summary | Q4: =SUM(O7:O22) -> 161 | V4: Total Sequences in Block Summary | W4: =SUM(U7:U22) -> 27 | AA4: Total Sequences in Block Summary | AB4: =SUM(Z7:Z22) -> 27 | AF4: Total Sequences in Block Summary | AG4: =SUM(AE7:AE22) -> 26 | AK4: Total Sequences in Block Summary | AL4: =SUM(AJ7:AJ22) -> 27 | AP4: Total Sequences in Block Summary | AQ4: =SUM(AO7:AO22) -> 27 | AU4: Total Sequences in Block Summary | AV4: =SUM(AT7:AT22) -> 27
T5: Block 1 | Y5: Block 2 | AD5: Block 3 | AI5: Block 4 | AN5: Block 5 | AS5: Block 6
A6: Sequence Component 1 | B6: Time 1 | C6: Sequence Component 2 | D6: Time 2 | E6: Sequence Component 3 | F6: Time 3 | G6: Sequence Component 4 | H6: Time 4 | I6: Sequence Component 5 | J6: Time 5 | K6: Correct? 0=No 1=Yes | L6: Sequence | N6: Frequency | P6: Relative Frequency | Q6: Variability | T6: Frequency | V6: Relative Frequency | W6: Variability | Y6: Frequency | AA6: Relative Frequency | AB6: Variability | AD6: Frequency | AF6: Relative Frequency | AG6: Variability | AI6: Frequency | AK6: Relative Frequency | AL6: Variability | AN6: Frequency | AP6: Relative Frequency | AQ6: Variability | AS6: Frequency | AU6: Relative Frequency | AV6: Variability
A7: 21 | B7: 14 | C7: 21 | D7: 17 | E7: 22 | F7: 23 | G7: 23 | H7: 29 | K7: 0 | L7: 2222 | N7: 1111 | O7: =COUNTIF($L$7:$L$500,N7) -> 0 | P7: =O7/$Q$4 -> 0 | Q7: =IF(P7=0,0,(P7*((LOG(P7))/LOG(2)))) -> 0 | T7: =N7 -> 1111 | U7: =COUNTIF(L7:L33,T7) -> 0 | V7: =U7/(W4-U20) -> 0 | W7: =IF(V7=0,0,(V7*((LOG(V7))/LOG(2)))) -> 0 | Y7: =N7 -> 1111 | Z7: =COUNTIF(L34:L60,Y7) -> 0 | AA7: =Z7/(AB4-Z20) -> 0 | AB7: =IF(AA7=0,0,(AA7*((LOG(AA7))/LOG(2)))) -> 0 | AD7: =N7 -> 1111 | AE7: =COUNTIF(L61:L86,AD7) -> 0 | AF7: =AE7/(AG4-AE20) -> 0 | AG7: =IF(AF7=0,0,(AF7*((LOG(AF7))/LOG(2)))) -> 0 | AI7: =N7 -> 1111 | AJ7: =COUNTIF(L87:L113,AI7) -> 0 | AK7: =AJ7/(AL4-AJ20) -> 0 | AL7: =IF(AK7=0,0,(AK7*((LOG(AK7))/LOG(2)))) -> 0 | AN7: =N7 -> 1111 | AO7: =COUNTIF(L114:L140,AN7) -> 0 | AP7: =AO7/(AQ4-AO20) -> 0 | AQ7: =IF(AP7=0,0,(AP7*((LOG(AP7))/LOG(2)))) -> 0 | AS7: =N7 -> 1111 | AT7: =COUNTIF(L141:L167,AS7) -> 0 | AU7: =AT7/(AV4-AT20) -> 0 | AV7: =IF(AU7=0,0,(AU7*((LOG(AU7))/LOG(2)))) -> 0
A8: 21 | B8: 128 | C8: 21 | D8: 137 | E8: 22 | F8: 143 | G8: 23 | H8: 149 | K8: 0 | L8: 2222 | N8: 1112 | O8: =COUNTIF($L$7:$L$500,N8) -> 1 | P8: =O8/$Q$4 -> 0.006211180124 | Q8: =IF(P8=0,0,(P8*((LOG(P8))/LOG(2)))) -> -0.04553364521 | T8: =N8 -> 1112 | U8: =COUNTIF(L7:L33,T8) -> 0 | V8: =U8/(W4-U20) -> 0 | W8: =IF(V8=0,0,(V8*((LOG(V8))/LOG(2)))) -> 0 | Y8: =N8 -> 1112 | Z8: =COUNTIF(L34:L60,Y8) -> 0 | AA8: =Z8/(AB4-Z20) -> 0 | AB8: =IF(AA8=0,0,(AA8*((LOG(AA8))/LOG(2)))) -> 0 | AD8: =N8 -> 1112 | AE8: =COUNTIF(L61:L86,AD8) -> 0 | AF8: =AE8/(AG4-AE20) -> 0 | AG8: =IF(AF8=0,0,(AF8*((LOG(AF8))/LOG(2)))) -> 0 | AI8: =N8 -> 1112 | AJ8: =COUNTIF(L87:L113,AI8) -> 0 | AK8: =AJ8/(AL4-AJ20) -> 0 | AL8: =IF(AK8=0,0,(AK8*((LOG(AK8))/LOG(2)))) -> 0 | AN8: =N8 -> 1112 | AO8: =COUNTIF(L114:L140,AN8) -> 1 | AP8: =AO8/(AQ4-AO20) -> 0.04 | AQ8: =IF(AP8=0,0,(AP8*((LOG(AP8))/LOG(2)))) -> -0.1857542476 | AS8: =N8 -> 1112 | AT8: =COUNTIF(L141:L167,AS8) -> 0 | AU8: =AT8/(AV4-AT20) -> 0 | AV8: =IF(AU8=0,0,(AU8*((LOG(AU8))/LOG(2)))) -> 0
A9: 12 | B9: 241 | C9: 23 | D9: 244 | E9: 24 | F9: 250 | G9: 23 | H9: 257 | K9: 0 | L9: 1222 | N9: 1121 | O9: =COUNTIF($L$7:$L$500,N9) -> 0 | P9: =O9/$Q$4 -> 0 | Q9: =IF(P9=0,0,(P9*((LOG(P9))/LOG(2)))) -> 0 | T9: =N9 -> 1121 | U9: =COUNTIF(L7:L33,T9) -> 0 | V9: =U9/(W4-U20) -> 0 | W9: =IF(V9=0,0,(V9*((LOG(V9))/LOG(2)))) -> 0 | Y9: =N9 -> 1121 | Z9: =COUNTIF(L34:L60,Y9) -> 0 | AA9: =Z9/(AB4-Z20) -> 0 | AB9: =IF(AA9=0,0,(AA9*((LOG(AA9))/LOG(2)))) -> 0 | AD9: =N9 -> 1121 | AE9: =COUNTIF(L61:L86,AD9) -> 0 | AF9: =AE9/(AG4-AE20) -> 0 | AG9: =IF(AF9=0,0,(AF9*((LOG(AF9))/LOG(2)))) -> 0 | AI9: =N9 -> 1121 | AJ9: =COUNTIF(L87:L113,AI9) -> 0 | AK9: =AJ9/(AL4-AJ20) -> 0 | AL9: =IF(AK9=0,0,(AK9*((LOG(AK9))/LOG(2)))) -> 0 | AN9: =N9 -> 1121 | AO9: =COUNTIF(L114:L140,AN9) -> 0 | AP9: =AO9/(AQ4-AO20) -> 0 | AQ9: =IF(AP9=0,0,(AP9*((LOG(AP9))/LOG(2)))) -> 0 | AS9: =N9 -> 1121 | AT9: =COUNTIF(L141:L167,AS9) -> 0 | AU9: =AT9/(AV4-AT20) -> 0 | AV9: =IF(AU9=0,0,(AU9*((LOG(AU9))/LOG(2)))) -> 0
A10: 21 | B10: 350 | C10: 21 | D10: 355 | E10: 22 | F10: 358 | G10: 23 | H10: 364 | K10: 0 | L10: 2222 | N10: 1122 | O10: =COUNTIF($L$7:$L$500,N10) -> 10 | P10: =O10/$Q$4 -> 0.06211180124 | Q10: =IF(P10=0,0,(P10*((LOG(P10))/LOG(2)))) -> -0.2490055145 | T10: =N10 -> 1122 | U10: =COUNTIF(L7:L33,T10) -> 1 | V10: =U10/(W4-U20) -> 0.04166666667 | W10: =IF(V10=0,0,(V10*((LOG(V10))/LOG(2)))) -> -0.1910401042 | Y10: =N10 -> 1122 | Z10: =COUNTIF(L34:L60,Y10) -> 1 | AA10: =Z10/(AB4-Z20) -> 0.04 | AB10: =IF(AA10=0,0,(AA10*((LOG(AA10))/LOG(2)))) -> -0.1857542476 | AD10: =N10 -> 1122 | AE10: =COUNTIF(L61:L86,AD10) -> 3 | AF10: =AE10/(AG4-AE20) -> 0.12 | AG10: =IF(AF10=0,0,(AF10*((LOG(AF10))/LOG(2)))) -> -0.3670672427 | AI10: =N10 -> 1122 | AJ10: =COUNTIF(L87:L113,AI10) -> 3 | AK10: =AJ10/(AL4-AJ20) -> 0.12 | AL10: =IF(AK10=0,0,(AK10*((LOG(AK10))/LOG(2)))) -> -0.3670672427 | AN10: =N10 -> 1122 | AO10: =COUNTIF(L114:L140,AN10) -> 0 | AP10: =AO10/(AQ4-AO20) -> 0 | AQ10: =IF(AP10=0,0,(AP10*((LOG(AP10))/LOG(2)))) -> 0 | AS10: =N10 -> 1122 | AT10: =COUNTIF(L141:L167,AS10) -> 2 | AU10: =AT10/(AV4-AT20) -> 0.08 | AV10: =IF(AU10=0,0,(AU10*((LOG(AU10))/LOG(2)))) -> -0.2915084952
A11: 12 | B11: 468 | C11: 23 | D11: 473 | E11: 24 | F11: 479 | G11: 23 | H11: 485 | K11: 0 | L11: 1222 | N11: 1211 | O11: =COUNTIF($L$7:$L$500,N11) -> 0 | P11: =O11/$Q$4 -> 0 | Q11: =IF(P11=0,0,(P11*((LOG(P11))/LOG(2)))) -> 0 | T11: =N11 -> 1211 | U11: =COUNTIF(L7:L33,T11) -> 0 | V11: =U11/(W4-U20) -> 0 | W11: =IF(V11=0,0,(V11*((LOG(V11))/LOG(2)))) -> 0 | Y11: =N11 -> 1211 | Z11: =COUNTIF(L34:L60,Y11) -> 0 | AA11: =Z11/(AB4-Z20) -> 0 | AB11: =IF(AA11=0,0,(AA11*((LOG(AA11))/LOG(2)))) -> 0 | AD11: =N11 -> 1211 | AE11: =COUNTIF(L61:L86,AD11) -> 0 | AF11: =AE11/(AG4-AE20) -> 0 | AG11: =IF(AF11=0,0,(AF11*((LOG(AF11))/LOG(2)))) -> 0 | AI11: =N11 -> 1211 | AJ11: =COUNTIF(L87:L113,AI11) -> 0 | AK11: =AJ11/(AL4-AJ20) -> 0 | AL11: =IF(AK11=0,0,(AK11*((LOG(AK11))/LOG(2)))) -> 0 | AN11: =N11 -> 1211 | AO11: =COUNTIF(L114:L140,AN11) -> 0 | AP11: =AO11/(AQ4-AO20) -> 0 | AQ11: =IF(AP11=0,0,(AP11*((LOG(AP11))/LOG(2)))) -> 0 | AS11: =N11 -> 1211 | AT11: =COUNTIF(L141:L167,AS11) -> 0 | AU11: =AT11/(AV4-AT20) -> 0 | AV11: =IF(AU11=0,0,(AU11*((LOG(AU11))/LOG(2)))) -> 0
A12: 21 | B12: 578 | C12: 21 | D12: 584 | E12: 22 | F12: 589 | G12: 23 | H12: 595 | K12: 0 | L12: 2222 | N12: 1212 | O12: =COUNTIF($L$7:$L$500,N12) -> 4 | P12: =O12/$Q$4 -> 0.0248447205 | Q12: =IF(P12=0,0,(P12*((LOG(P12))/LOG(2)))) -> -0.1324451398 | T12: =N12 -> 1212 | U12: =COUNTIF(L7:L33,T12) -> 0 | V12: =U12/(W4-U20) -> 0 | W12: =IF(V12=0,0,(V12*((LOG(V12))/LOG(2)))) -> 0 | Y12: =N12 -> 1212 | Z12: =COUNTIF(L34:L60,Y12) -> 2 | AA12: =Z12/(AB4-Z20) -> 0.08 | AB12: =IF(AA12=0,0,(AA12*((LOG(AA12))/LOG(2)))) -> -0.2915084952 | AD12: =N12 -> 1212 | AE12: =COUNTIF(L61:L86,AD12) -> 0 | AF12: =AE12/(AG4-AE20) -> 0 | AG12: =IF(AF12=0,0,(AF12*((LOG(AF12))/LOG(2)))) -> 0 | AI12: =N12 -> 1212 | AJ12: =COUNTIF(L87:L113,AI12) -> 1 | AK12: =AJ12/(AL4-AJ20) -> 0.04 | AL12: =IF(AK12=0,0,(AK12*((LOG(AK12))/LOG(2)))) -> -0.1857542476 | AN12: =N12 -> 1212 | AO12: =COUNTIF(L114:L140,AN12) -> 0 | AP12: =AO12/(AQ4-AO20) -> 0 | AQ12: =IF(AP12=0,0,(AP12*((LOG(AP12))/LOG(2)))) -> 0 | AS12: =N12 -> 1212 | AT12: =COUNTIF(L141:L167,AS12) -> 1 | AU12: =AT12/(AV4-AT20) -> 0.04 | AV12: =IF(AU12=0,0,(AU12*((LOG(AU12))/LOG(2)))) -> -0.1857542476
A13: 21 | B13: 789 | C13: 21 | D13: 794 | E13: 22 | F13: 802 | G13: 23 | H13: 829 | K13: 0 | L13: 2222 | N13: 1221 | O13: =COUNTIF($L$7:$L$500,N13) -> 4 | P13: =O13/$Q$4 -> 0.0248447205 | Q13: =IF(P13=0,0,(P13*((LOG(P13))/LOG(2)))) -> -0.1324451398 | T13: =N13 -> 1221 | U13: =COUNTIF(L7:L33,T13) -> 0 | V13: =U13/(W4-U20) -> 0 | W13: =IF(V13=0,0,(V13*((LOG(V13))/LOG(2)))) -> 0 | Y13: =N13 -> 1221 | Z13: =COUNTIF(L34:L60,Y13) -> 0 | AA13: =Z13/(AB4-Z20) -> 0 | AB13: =IF(AA13=0,0,(AA13*((LOG(AA13))/LOG(2)))) -> 0 | AD13: =N13 -> 1221 | AE13: =COUNTIF(L61:L86,AD13) -> 2 | AF13: =AE13/(AG4-AE20) -> 0.08 | AG13: =IF(AF13=0,0,(AF13*((LOG(AF13))/LOG(2)))) -> -0.2915084952 | AI13: =N13 -> 1221 | AJ13: =COUNTIF(L87:L113,AI13) -> 0 | AK13: =AJ13/(AL4-AJ20) -> 0 | AL13: =IF(AK13=0,0,(AK13*((LOG(AK13))/LOG(2)))) -> 0 | AN13: =N13 -> 1221 | AO13: =COUNTIF(L114:L140,AN13) -> 1 | AP13: =AO13/(AQ4-AO20) -> 0.04 | AQ13: =IF(AP13=0,0,(AP13*((LOG(AP13))/LOG(2)))) -> -0.1857542476 | AS13: =N13 -> 1221 | AT13: =COUNTIF(L141:L167,AS13) -> 1 | AU13: =AT13/(AV4-AT20) -> 0.04 | AV13: =IF(AU13=0,0,(AU13*((LOG(AU13))/LOG(2)))) -> -0.1857542476
A14: 21 | B14: 953 | C14: 21 | D14: 959 | E14: 22 | F14: 965 | G14: 23 | H14: 971 | K14: 0 | L14: 2222 | N14: 1222 | O14: =COUNTIF($L$7:$L$500,N14) -> 39 | P14: =O14/$Q$4 -> 0.2422360248 | Q14: =IF(P14=0,0,(P14*((LOG(P14))/LOG(2)))) -> -0.4954973398 | T14: =N14 -> 1222 | U14: =COUNTIF(L7:L33,T14) -> 6 | V14: =U14/(W4-U20) -> 0.25 | W14: =IF(V14=0,0,(V14*((LOG(V14))/LOG(2)))) -> -0.5 | Y14: =N14 -> 1222 | Z14: =COUNTIF(L34:L60,Y14) -> 8 | AA14: =Z14/(AB4-Z20) -> 0.32 | AB14: =IF(AA14=0,0,(AA14*((LOG(AA14))/LOG(2)))) -> -0.5260339807 | AD14: =N14 -> 1222 | AE14: =COUNTIF(L61:L86,AD14) -> 2 | AF14: =AE14/(AG4-AE20) -> 0.08 | AG14: =IF(AF14=0,0,(AF14*((LOG(AF14))/LOG(2)))) -> -0.2915084952 | AI14: =N14 -> 1222 | AJ14: =COUNTIF(L87:L113,AI14) -> 8 | AK14: =AJ14/(AL4-AJ20) -> 0.32 | AL14: =IF(AK14=0,0,(AK14*((LOG(AK14))/LOG(2)))) -> -0.5260339807 | AN14: =N14 -> 1222 | AO14: =COUNTIF(L114:L140,AN14) -> 9 | AP14: =AO14/(AQ4-AO20) -> 0.36 | AQ14: =IF(AP14=0,0,(AP14*((LOG(AP14))/LOG(2)))) -> -0.5306152278 | AS14: =N14 -> 1222 | AT14: =COUNTIF(L141:L167,AS14) -> 6 | AU14: =AT14/(AV4-AT20) -> 0.24 | AV14: =IF(AU14=0,0,(AU14*((LOG(AU14))/LOG(2)))) -> -0.4941344854
A15: 21 | B15: 1165 | C15: 21 | D15: 1170 | E15: 22 | F15: 1177 | G15: 23 | H15: 1180 | K15: 0 | L15: 2222 | N15: 2111 | O15: =COUNTIF($L$7:$L$500,N15) -> 0 | P15: =O15/$Q$4 -> 0 | Q15: =IF(P15=0,0,(P15*((LOG(P15))/LOG(2)))) -> 0 | T15: =N15 -> 2111 | U15: =COUNTIF(L7:L33,T15) -> 0 | V15: =U15/(W4-U20) -> 0 | W15: =IF(V15=0,0,(V15*((LOG(V15))/LOG(2)))) -> 0 | Y15: =N15 -> 2111 | Z15: =COUNTIF(L34:L60,Y15) -> 0 | AA15: =Z15/(AB4-Z20) -> 0 | AB15: =IF(AA15=0,0,(AA15*((LOG(AA15))/LOG(2)))) -> 0 | AD15: =N15 -> 2111 | AE15: =COUNTIF(L61:L86,AD15) -> 0 | AF15: =AE15/(AG4-AE20) -> 0 | AG15: =IF(AF15=0,0,(AF15*((LOG(AF15))/LOG(2)))) -> 0 | AI15: =N15 -> 2111 | AJ15: =COUNTIF(L87:L113,AI15) -> 0 | AK15: =AJ15/(AL4-AJ20) -> 0 | AL15: =IF(AK15=0,0,(AK15*((LOG(AK15))/LOG(2)))) -> 0 | AN15: =N15 -> 2111 | AO15: =COUNTIF(L114:L140,AN15) -> 0 | AP15: =AO15/(AQ4-AO20) -> 0 | AQ15: =IF(AP15=0,0,(AP15*((LOG(AP15))/LOG(2)))) -> 0 | AS15: =N15 -> 2111 | AT15: =COUNTIF(L141:L167,AS15) -> 0 | AU15: =AT15/(AV4-AT20) -> 0 | AV15: =IF(AU15=0,0,(AU15*((LOG(AU15))/LOG(2)))) -> 0
A16: 21 | B16: 1282 | C16: 21 | D16: 1288 | E16: 22 | F16: 1299 | G16: 23 | H16: 1307 | K16: 0 | L16: 2222 | N16: 2112 | O16: =COUNTIF($L$7:$L$500,N16) -> 0 | P16: =O16/$Q$4 -> 0 | Q16: =IF(P16=0,0,(P16*((LOG(P16))/LOG(2)))) -> 0 | T16: =N16 -> 2112 | U16: =COUNTIF(L7:L33,T16) -> 0 | V16: =U16/(W4-U20) -> 0 | W16: =IF(V16=0,0,(V16*((LOG(V16))/LOG(2)))) -> 0 | Y16: =N16 -> 2112 | Z16: =COUNTIF(L34:L60,Y16) -> 0 | AA16: =Z16/(AB4-Z20) -> 0 | AB16: =IF(AA16=0,0,(AA16*((LOG(AA16))/LOG(2)))) -> 0 | AD16: =N16 -> 2112 | AE16: =COUNTIF(L61:L86,AD16) -> 0 | AF16: =AE16/(AG4-AE20) -> 0 | AG16: =IF(AF16=0,0,(AF16*((LOG(AF16))/LOG(2)))) -> 0 | AI16: =N16 -> 2112 | AJ16: =COUNTIF(L87:L113,AI16) -> 0 | AK16: =AJ16/(AL4-AJ20) -> 0 | AL16: =IF(AK16=0,0,(AK16*((LOG(AK16))/LOG(2)))) -> 0 | AN16: =N16 -> 2112 | AO16: =COUNTIF(L114:L140,AN16) -> 0 | AP16: =AO16/(AQ4-AO20) -> 0 | AQ16: =IF(AP16=0,0,(AP16*((LOG(AP16))/LOG(2)))) -> 0 | AS16: =N16 -> 2112 | AT16: =COUNTIF(L141:L167,AS16) -> 0 | AU16: =AT16/(AV4-AT20) -> 0 | AV16: =IF(AU16=0,0,(AU16*((LOG(AU16))/LOG(2)))) -> 0
A17: 12 | B17: 1403 | C17: 23 | D17: 1415 | E17: 24 | F17: 1420 | G17: 23 | H17: 1426 | K17: 0 | L17: 1222 | N17: 2121 | O17: =COUNTIF($L$7:$L$500,N17) -> 2 | P17: =O17/$Q$4 -> 0.01242236025 | Q17: =IF(P17=0,0,(P17*((LOG(P17))/LOG(2)))) -> -0.07864493016 | T17: =N17 -> 2121 | U17: =COUNTIF(L7:L33,T17) -> 2 | V17: =U17/(W4-U20) -> 0.08333333333 | W17: =IF(V17=0,0,(V17*((LOG(V17))/LOG(2)))) -> -0.2987468751 | Y17: =N17 -> 2121 | Z17: =COUNTIF(L34:L60,Y17) -> 0 | AA17: =Z17/(AB4-Z20) -> 0 | AB17: =IF(AA17=0,0,(AA17*((LOG(AA17))/LOG(2)))) -> 0 | AD17: =N17 -> 2121 | AE17: =COUNTIF(L61:L86,AD17) -> 0 | AF17: =AE17/(AG4-AE20) -> 0 | AG17: =IF(AF17=0,0,(AF17*((LOG(AF17))/LOG(2)))) -> 0 | AI17: =N17 -> 2121 | AJ17: =COUNTIF(L87:L113,AI17) -> 0 | AK17: =AJ17/(AL4-AJ20) -> 0 | AL17: =IF(AK17=0,0,(AK17*((LOG(AK17))/LOG(2)))) -> 0 | AN17: =N17 -> 2121 | AO17: =COUNTIF(L114:L140,AN17) -> 0 | AP17: =AO17/(AQ4-AO20) -> 0 | AQ17: =IF(AP17=0,0,(AP17*((LOG(AP17))/LOG(2)))) -> 0 | AS17: =N17 -> 2121 | AT17: =COUNTIF(L141:L167,AS17) -> 0 | AU17: =AT17/(AV4-AT20) -> 0 | AV17: =IF(AU17=0,0,(AU17*((LOG(AU17))/LOG(2)))) -> 0
A18: 12 | B18: 1526 | C18: 23 | D18: 1532 | E18: 24 | F18: 1537 | G18: 23 | H18: 1543 | K18: 0 | L18: 1222 | N18: 2122 | O18: =COUNTIF($L$7:$L$500,N18) -> 20 | P18: =O18/$Q$4 -> 0.1242236025 | Q18: =IF(P18=0,0,(P18*((LOG(P18))/LOG(2)))) -> -0.3737874265 | T18: =N18 -> 2122 | U18: =COUNTIF(L7:L33,T18) -> 0 | V18: =U18/(W4-U20) -> 0 | W18: =IF(V18=0,0,(V18*((LOG(V18))/LOG(2)))) -> 0 | Y18: =N18 -> 2122 | Z18: =COUNTIF(L34:L60,Y18) -> 5 | AA18: =Z18/(AB4-Z20) -> 0.2 | AB18: =IF(AA18=0,0,(AA18*((LOG(AA18))/LOG(2)))) -> -0.464385619 | AD18: =N18 -> 2122 | AE18: =COUNTIF(L61:L86,AD18) -> 2 | AF18: =AE18/(AG4-AE20) -> 0.08 | AG18: =IF(AF18=0,0,(AF18*((LOG(AF18))/LOG(2)))) -> -0.2915084952 | AI18: =N18 -> 2122 | AJ18: =COUNTIF(L87:L113,AI18) -> 5 | AK18: =AJ18/(AL4-AJ20) -> 0.2 | AL18: =IF(AK18=0,0,(AK18*((LOG(AK18))/LOG(2)))) -> -0.464385619 | AN18: =N18 -> 2122 | AO18: =COUNTIF(L114:L140,AN18) -> 4 | AP18: =AO18/(AQ4-AO20) -> 0.16 | AQ18: =IF(AP18=0,0,(AP18*((LOG(AP18))/LOG(2)))) -> -0.4230169904 | AS18: =N18 -> 2122 | AT18: =COUNTIF(L141:L167,AS18) -> 4 | AU18: =AT18/(AV4-AT20) -> 0.16 | AV18: =IF(AU18=0,0,(AU18*((LOG(AU18))/LOG(2)))) -> -0.4230169904
A19: 12 | B19: 1640 | C19: 14 | D19: 1643 | E19: 24 | F19: 1655 | G19: 23 | H19: 1661 | K19: 0 | L19: 1122 | N19: 2211 | O19: =COUNTIF($L$7:$L$500,N19) -> 0 | P19: =O19/$Q$4 -> 0 | Q19: =IF(P19=0,0,(P19*((LOG(P19))/LOG(2)))) -> 0 | T19: =N19 -> 2211 | U19: =COUNTIF(L7:L33,T19) -> 0 | V19: =U19/(W4-U20) -> 0 | W19: =IF(V19=0,0,(V19*((LOG(V19))/LOG(2)))) -> 0 | Y19: =N19 -> 2211 | Z19: =COUNTIF(L34:L60,Y19) -> 0 | AA19: =Z19/(AB4-Z20) -> 0 | AB19: =IF(AA19=0,0,(AA19*((LOG(AA19))/LOG(2)))) -> 0 | AD19: =N19 -> 2211 | AE19: =COUNTIF(L61:L86,AD19) -> 0 | AF19: =AE19/(AG4-AE20) -> 0 | AG19: =IF(AF19=0,0,(AF19*((LOG(AF19))/LOG(2)))) -> 0 | AI19: =N19 -> 2211 | AJ19: =COUNTIF(L87:L113,AI19) -> 0 | AK19: =AJ19/(AL4-AJ20) -> 0 | AL19: =IF(AK19=0,0,(AK19*((LOG(AK19))/LOG(2)))) -> 0 | AN19: =N19 -> 2211 | AO19: =COUNTIF(L114:L140,AN19) -> 0 | AP19: =AO19/(AQ4-AO20) -> 0 | AQ19: =IF(AP19=0,0,(AP19*((LOG(AP19))/LOG(2)))) -> 0 | AS19: =N19 -> 2211 | AT19: =COUNTIF(L141:L167,AS19) -> 0 | AU19: =AT19/(AV4-AT20) -> 0 | AV19: =IF(AU19=0,0,(AU19*((LOG(AU19))/LOG(2)))) -> 0
A20: 21 | B20: 1772 | C20: 21 | D20: 1777 | E20: 22 | F20: 1794 | G20: 23 | H20: 1827 | K20: 0 | L20: 2222 | N20: 2212 | O20: =COUNTIF($L$7:$L$500,N20) -> 12 | P20: =O20/$Q$4 -> 0.07453416149 | Q20: =IF(P20=0,0,(P20*((LOG(P20))/LOG(2)))) -> -0.2792015685 | T20: =N20 -> 2212 | U20: =COUNTIF(L7:L33,T20) -> 3 | Y20: =N20 -> 2212 | Z20: =COUNTIF(L34:L60,Y20) -> 2 | AD20: =N20 -> 2212 | AE20: =COUNTIF(L61:L86,AD20) -> 1 | AI20: =N20 -> 2212 | AJ20: =COUNTIF(L87:L113,AI20) -> 2 | AN20: =N20 -> 2212 | AO20: =COUNTIF(L114:L140,AN20) -> 2 | AS20: =N20 -> 2212 | AT20: =COUNTIF(L141:L167,AS20) -> 2
A21: 21 | B21: 1924 | C21: 21 | D21: 1928 | E21: 11 | F21: 1931 | G21: 21 | H21: 1935 | K21: 0 | L21: 2212 | N21: 2221 | O21: =COUNTIF($L$7:$L$500,N21) -> 6 | P21: =O21/$Q$4 -> 0.03726708075 | Q21: =IF(P21=0,0,(P21*((LOG(P21))/LOG(2)))) -> -0.176867865 | T21: =N21 -> 2221 | U21: =COUNTIF(L7:L33,T21) -> 0 | V21: =U21/(W4-U20) -> 0 | W21: =IF(V21=0,0,(V21*((LOG(V21))/LOG(2)))) -> 0 | Y21: =N21 -> 2221 | Z21: =COUNTIF(L34:L60,Y21) -> 2 | AA21: =Z21/(AB4-Z20) -> 0.08 | AB21: =IF(AA21=0,0,(AA21*((LOG(AA21))/LOG(2)))) -> -0.2915084952 | AD21: =N21 -> 2221 | AE21: =COUNTIF(L61:L86,AD21) -> 2 | AF21: =AE21/(AG4-AE20) -> 0.08 | AG21: =IF(AF21=0,0,(AF21*((LOG(AF21))/LOG(2)))) -> -0.2915084952 | AI21: =N21 -> 2221 | AJ21: =COUNTIF(L87:L113,AI21) -> 0 | AK21: =AJ21/(AL4-AJ20) -> 0 | AL21: =IF(AK21=0,0,(AK21*((LOG(AK21))/LOG(2)))) -> 0 | AN21: =N21 -> 2221 | AO21: =COUNTIF(L114:L140,AN21) -> 1 | AP21: =AO21/(AQ4-AO20) -> 0.04 | AQ21: =IF(AP21=0,0,(AP21*((LOG(AP21))/LOG(2)))) -> -0.1857542476 | AS21: =N21 -> 2221 | AT21: =COUNTIF(L141:L167,AS21) -> 1 | AU21: =AT21/(AV4-AT20) -> 0.04 | AV21: =IF(AU21=0,0,(AU21*((LOG(AU21))/LOG(2)))) -> -0.1857542476
A22: 21 | B22: 2467 | C22: 21 | D22: 2472 | E22: 22 | F22: 2485 | G22: 23 | H22: 2491 | K22: 0 | L22: 2222 | N22: 2222 | O22: =COUNTIF($L$7:$L$500,N22) -> 63 | P22: =O22/$Q$4 -> 0.3913043478 | Q22: =IF(P22=0,0,(P22*((LOG(P22))/LOG(2)))) -> -0.5296840257 | T22: =N22 -> 2222 | U22: =COUNTIF(L7:L33,T22) -> 15 | V22: =U22/(W4-U20) -> 0.625 | W22: =IF(V22=0,0,(V22*((LOG(V22))/LOG(2)))) -> -0.4237949407 | Y22: =N22 -> 2222 | Z22: =COUNTIF(L34:L60,Y22) -> 7 | AA22: =Z22/(AB4-Z20) -> 0.28 | AB22: =IF(AA22=0,0,(AA22*((LOG(AA22))/LOG(2)))) -> -0.514220355 | AD22: =N22 -> 2222 | AE22: =COUNTIF(L61:L86,AD22) -> 14 | AF22: =AE22/(AG4-AE20) -> 0.56 | AG22: =IF(AF22=0,0,(AF22*((LOG(AF22))/LOG(2)))) -> -0.4684407099 | AI22: =N22 -> 2222 | AJ22: =COUNTIF(L87:L113,AI22) -> 8 | AK22: =AJ22/(AL4-AJ20) -> 0.32 | AL22: =IF(AK22=0,0,(AK22*((LOG(AK22))/LOG(2)))) -> -0.5260339807 | AN22: =N22 -> 2222 | AO22: =COUNTIF(L114:L140,AN22) -> 9 | AP22: =AO22/(AQ4-AO20) -> 0.36 | AQ22: =IF(AP22=0,0,(AP22*((LOG(AP22))/LOG(2)))) -> -0.5306152278 | AS22: =N22 -> 2222 | AT22: =COUNTIF(L141:L167,AS22) -> 10 | AU22: =AT22/(AV4-AT20) -> 0.4 | AV22: =IF(AU22=0,0,(AU22*((LOG(AU22))/LOG(2)))) -> -0.528771238
A23: 21 | B23: 2667 | C23: 21 | D23: 2671 | E23: 22 | F23: 2678 | G23: 23 | H23: 2684 | K23: 0 | L23: 2222 | P23: =SUM(P7:P22) -> 1 | Q23: =-SUM(Q7:Q22) -> 2.493112595 | V23: =SUM(V7:V22) -> 1 | W23: =-SUM(W7:W22) -> 1.41358192 | AA23: =SUM(AA7:AA22) -> 1 | AB23: =-SUM(AB7:AB22) -> 2.273411193 | AF23: =SUM(AF7:AF22) -> 1 | AG23: =-SUM(AG7:AG22) -> 2.001541933 | AK23: =SUM(AK7:AK22) -> 1 | AL23: =-SUM(AL7:AL22) -> 2.069275071 | AP23: =SUM(AP7:AP22) -> 1 | AQ23: =-SUM(AQ7:AQ22) -> 2.041510189 | AU23: =SUM(AU7:AU22) -> 1 | AV23: =-SUM(AV7:AV22) -> 2.294693952
A24: 12 | B24: 2790 | C24: 23 | D24: 2813 | E24: 24 | F24: 2825 | G24: 23 | H24: 2831 | K24: 0 | L24: 1222 | P24: U= | Q24: =Q23/(LOG(Q4)/LOG(2)) -> 0.340081962 | V24: U1= | W24: =W23/(LOG(W4)/LOG(2)) -> 0.2972902975 | AA24: U2= | AB24: =AB23/(LOG(AB4)/LOG(2)) -> 0.4781209212 | AF24: U3= | AG24: =AG23/(LOG(AG4)/LOG(2)) -> 0.4258201473 | AK24: U4= | AL24: =AL23/(LOG(AL4)/LOG(2)) -> 0.4351890701 | AP24: U5= | AQ24: =AQ23/(LOG(AQ4)/LOG(2)) -> 0.4293498401 | AU24: U6= | AV24: =AV23/(LOG(AV4)/LOG(2)) -> 0.4825968965
A25: 21 | B25: 2926 | C25: 21 | D25: 2934 | E25: 22 | F25: 2941 | G25: 23 | H25: 2948 | K25: 0 | L25: 2222
A26: 21 | B26: 3054 | C26: 21 | D26: 3056 | E26: 11 | F26: 3059 | G26: 21 | H26: 3066 | K26: 0 | L26: 2212
A27: 21 | B27: 3164 | C27: 21 | D27: 3172 | E27: 22 | F27: 3180 | G27: 23 | H27: 3188 | K27: 0 | L27: 2222 | N27: Total Target Seq
A28: 12 | B28: 3287 | C28: 23 | D28: 3293 | E28: 24 | F28: 3297 | G28: 23 | H28: 3302 | K28: 0 | L28: 1222 | N28: =COUNTIF(L7:L167,G3) -> 12 | P28: 27 | Q28: 27 | R28: 26 | S28: 27 | T28: 27 | U28: 27
A29: 21 | B29: 3398 | C29: 12 | D29: 3400 | E29: 24 | F29: 3403 | G29: 14 | H29: 3405 | K29: 0 | L29: 2121 | P29: % of reinforcement given in 6 equal intervals based on number of trials
A30: 21 | B30: 3502 | C30: 21 | D30: 3506 | E30: 11 | F30: 3509 | G30: 21 | H30: 3513 | K30: 0 | L30: 2212 | P30: %_1 | Q30: %_2 | R30: %_3 | S30: %_4 | T30: %_5 | U30: %_6
A31: 21 | B31: 4361 | C31: 21 | D31: 4366 | E31: 22 | F31: 4372 | G31: 23 | H31: 4378 | K31: 0 | L31: 2222 | O31: target sequence | P31: =$G$3 -> 2212 | Q31: =$G$3 -> 2212 | R31: =$G$3 -> 2212 | S31: =$G$3 -> 2212 | T31: =$G$3 -> 2212 | U31: =$G$3 -> 2212
A32: 21 | B32: 4490 | C32: 21 | D32: 4495 | E32: 22 | F32: 4504 | G32: 23 | H32: 4512 | K32: 0 | L32: 2222 | O32: total reinforcement | P32: =U20 -> 3 | Q32: =Z20 -> 2 | R32: =AE20 -> 1 | S32: =AJ20 -> 2 | T32: =AO20 -> 2 | U32: =AT20 -> 2
A33: 21 | B33: 4611 | C33: 12 | D33: 4613 | E33: 24 | F33: 4616 | G33: 14 | H33: 4621 | K33: 0 | L33: 2121 | O33: % target
A34: 21 | B34: 4788 | C34: 21 | D34: 4794 | E34: 22 | F34: 4800 | G34: 23 | H34: 4807 | K34: 0 | L34: 2222 | O34: CCRF
A35: 12 | B35: 4901 | C35: 23 | D35: 4911 | E35: 13 | F35: 4913 | G35: 23 | H35: 4918 | K35: 0 | L35: 1212 | O35: % CCRf
A36: 21 | B36: 5015 | C36: 12 | D36: 5023 | E36: 24 | F36: 5029 | G36: 23 | H36: 5036 | K36: 0 | L36: 2122 | O36: average response rate | P36: =H33/P28 -> 171.1481481 | Q36: =(H60-H33)/Q28 -> 138.5185185 | R36: =(H86-H60)/R28 -> 129.2307692 | S36: =(H113-H86)/S28 -> 149.3333333 | T36: =(H140-H113)/T28 -> 136.962963 | U36: =(H167-H140)/U28 -> 134.8148148
A37: 21 | B37: 5142 | C37: 21 | D37: 5146 | E37: 22 | F37: 5151 | G37: 23 | H37: 5158 | K37: 0 | L37: 2222
A38: 12 | B38: 5250 | C38: 23 | D38: 5255 | E38: 24 | F38: 5261 | G38: 23 | H38: 5266 | K38: 0 | L38: 1222
A39: 21 | B39: 5362 | C39: 12 | D39: 5366 | E39: 24 | F39: 5371 | G39: 23 | H39: 5377 | K39: 0 | L39: 2122
A40: 12 | B40: 5475 | C40: 23 | D40: 5480 | E40: 24 | F40: 5484 | G40: 23 | H40: 5488 | K40: 0 | L40: 1222
A41: 21 | B41: 5584 | C41: 21 | D41: 5590 | E41: 22 | F41: 5596 | G41: 14 | H41: 5600 | K41: 0 | L41: 2221
A42: 12 | B42: 5694 | C42: 23 | D42: 5701 | E42: 24 | F42: 5704 | G42: 23 | H42: 5716 | K42: 0 | L42: 1222
A43: 21 | B43: 5810 | C43: 21 | D43: 5816 | E43: 11 | F43: 5820 | G43: 21 | H43: 5822 | K43: 0 | L43: 2212
A44: 21 | B44: 6147 | C44: 21 | D44: 6153 | E44: 22 | F44: 6169 | G44: 23 | H44: 6174 | K44: 0 | L44: 2222
A45: 12 | B45: 6274 | C45: 23 | D45: 6286 | E45: 24 | F45: 6292 | G45: 23 | H45: 6297 | K45: 0 | L45: 1222
A46: 21 | B46: 6408 | C46: 21 | D46: 6417 | E46: 22 | F46: 6423 | G46: 23 | H46: 6429 | K46: 0 | L46: 2222
A47: 21 | B47: 6532 | C47: 12 | D47: 6537 | E47: 24 | F47: 6550 | G47: 23 | H47: 6557 | K47: 0 | L47: 2122
A48: 21 | B48: 6654 | C48: 12 | D48: 6659 | E48: 24 | F48: 6661 | G48: 23 | H48: 6667 | K48: 0 | L48: 2122
A49: 21 | B49: 6768 | C49: 21 | D49: 6772 | E49: 22 | F49: 6777 | G49: 23 | H49: 6782 | K49: 0 | L49: 2222
A50: 12 | B50: 6874 | C50: 23 | D50: 6886 | E50: 13 | F50: 6892 | G50: 23 | H50: 6894 | K50: 0 | L50: 1212
A51: 12 | B51: 6990 | C51: 14 | D51: 6999 | E51: 24 | F51: 7005 | G51: 23 | H51: 7010 | K51: 0 | L51: 1122
A52: 21 | B52: 7107 | C52: 21 | D52: 7112 | E52: 11 | F52: 7115 | G52: 21 | H52: 7118 | K52: 0 | L52: 2212
A53: 21 | B53: 7506 | C53: 21 | D53: 7519 | E53: 22 | F53: 7525 | G53: 23 | H53: 7537 | K53: 0 | L53: 2222
A54: 12 | B54: 7630 | C54: 23 | D54: 7641 | E54: 24 | F54: 7651 | G54: 23 | H54: 7658 | K54: 0 | L54: 1222
A55: 12 | B55: 7751 | C55: 23 | D55: 7759 | E55: 24 | F55: 7766 | G55: 23 | H55: 7771 | K55: 0 | L55: 1222
A56: 21 | B56: 7863 | C56: 21 | D56: 7868 | E56: 22 | F56: 7874 | G56: 23 | H56: 7882 | K56: 0 | L56: 2222
A57: 12 | B57: 7980 | C57: 23 | D57: 7992 | E57: 24 | F57: 7997 | G57: 23 | H57: 8003 | K57: 0 | L57: 1222
A58: 21 | B58: 8100 | C58: 21 | D58: 8103 | E58: 22 | F58: 8107 | G58: 14 | H58: 8116 | K58: 0 | L58: 2221
A59: 21 | B59: 8231 | C59: 12 | D59: 8237 | E59: 24 | F59: 8243 | G59: 23 | H59: 8249 | K59: 0 | L59: 2122
A60: 12 | B60: 8342 | C60: 23 | D60: 8346 | E60: 24 | F60: 8353 | G60: 23 | H60: 8361 | K60: 0 | L60: 1222
A61: 21 | B61: 8468 | C61: 21 | D61: 8473 | E61: 22 | F61: 8482 | G61: 23 | H61: 8488 | K61: 0 | L61: 2222
A62: 21 | B62: 8587 | C62: 21 | D62: 8592 | E62: 22 | F62: 8603 | G62: 23 | H62: 8611 | K62: 0 | L62: 2222
A63: 21 | B63: 8710 | C63: 12 | D63: 8715 | E63: 24 | F63: 8722 | G63: 23 | H63: 8728 | K63: 0 | L63: 2122
A64: 12 | B64: 8822 | C64: 23 | D64: 8833 | E64: 24 | F64: 8837 | G64: 14 | H64: 8840 | K64: 0 | L64: 1221
A65: 21 | B65: 8939 | C65: 21 | D65: 8943 | E65: 22 | F65: 8948 | G65: 23 | H65: 8954 | K65: 0 | L65: 2222
A66: 12 | B66: 9063 | C66: 23 | D66: 9069 | E66: 24 | F66: 9073 | G66: 23 | H66: 9078 | K66: 0 | L66: 1222
A67: 21 | B67: 9173 | C67: 21 | D67: 9180 | E67: 22 | F67: 9185 | G67: 23 | H67: 9190 | K67: 0 | L67: 2222
A68: 21 | B68: 9306 | C68: 21 | D68: 9311 | E68: 22 | F68: 9317 | G68: 23 | H68: 9325 | K68: 0 | L68: 2222
A69: 21 | B69: 9423 | C69: 21 | D69: 9428 | E69: 22 | F69: 9435 | G69: 23 | H69: 9440 | K69: 0 | L69: 2222
A70: 12 | B70: 9538 | C70: 14 | D70: 9549 | E70: 24 | F70: 9552 | G70: 23 | H70: 9558 | K70: 0 | L70: 1122
A71: 21 | B71: 9652 | C71: 21 | D71: 9656 | E71: 11 | F71: 9658 | G71: 21 | H71: 9662 | K71: 0 | L71: 2212
A72: 21 | B72: 10066 | C72: 21 | D72: 10080 | E72: 22 | F72: 10085 | G72: 23 | H72: 10092 | K72: 0 | L72: 2222
A73: 21 | B73: 10203 | C73: 21 | D73: 10206 | E73: 22 | F73: 10212 | G73: 23 | H73: 10218 | K73: 0 | L73: 2222
A74: 12 | B74: 10310 | C74: 14 | D74: 10326 | E74: 24 | F74: 10330 | G74: 23 | H74: 10335 | K74: 0 | L74: 1122
A75: 21 | B75: 10440 | C75: 12 | D75: 10446 | E75: 24 | F75: 10450 | G75: 23 | H75: 10459 | K75: 0 | L75: 2122
A76: 12 | B76: 10553 | C76: 23 | D76: 10563 | E76: 24 | F76: 10572 | G76: 14 | H76: 10579 | K76: 0 | L76: 1221
A77: 21 | B77: 10674 | C77: 21 | D77: 10677 | E77: 22 | F77: 10682 | G77: 23 | H77: 10689 | K77: 0 | L77: 2222
A78: 21 | B78: 10784 | C78: 21 | D78: 10789 | E78: 22 | F78: 10795 | G78: 23 | H78: 10802 | K78: 0 | L78: 2222
A79: 21 | B79: 10894 | C79: 21 | D79: 10897 | E79: 22 | F79: 10900 | G79: 14 | H79: 10902 | K79: 0 | L79: 2221
A80: 12 | B80: 10995 | C80: 14 | D80: 11000 | E80: 24 | F80: 11006 | G80: 23 | H80: 11011 | K80: 0 | L80: 1122
A81: 21 | B81: 11109 | C81: 21 | D81: 11116 | E81: 22 | F81: 11121 | G81: 23 | H81: 11127 | K81: 0 | L81: 2222
A82: 21 | B82: 11232 | C82: 21 | D82: 11236 | E82: 22 | F82: 11240 | G82: 23 | H82: 11247 | K82: 0 | L82: 2222
A83: 21 | B83: 11343 | C83: 21 | D83: 11348 | E83: 22 | F83: 11355 | G83: 14 | H83: 11357 | K83: 0 | L83: 2221
A84: 21 | B84: 11452 | C84: 21 | D84: 11457 | E84: 22 | F84: 11463 | G84: 23 | H84: 11470 | K84: 0 | L84: 2222
A85: 21 | B85: 11574 | C85: 21 | D85: 11580 | E85: 22 | F85: 11587 | G85: 23 | H85: 11594 | K85: 0 | L85: 2222
A86: 12 | B86: 11693 | C86: 23 | D86: 11704 | E86: 24 | F86: 11713 | G86: 23 | H86: 11721 | K86: 0 | L86: 1222
A87: 21 | B87: 11815 | C87: 12 | D87: 11818 | E87: 24 | F87: 11820 | G87: 23 | H87: 11834 | K87: 0 | L87: 2122
A88: 12 | B88: 11928 | C88: 23 | D88: 11940 | E88: 24 | F88: 11947 | G88: 23 | H88: 11955 | K88: 0 | L88: 1222
A89: 21 | B89: 12050 | C89: 12 | D89: 12054 | E89: 24 | F89: 12061 | G89: 23 | H89: 12069 | K89: 0 | L89: 2122
A90: 12 | B90: 12174 | C90: 23 | D90: 12178 | E90: 13 | F90: 12188 | G90: 23 | H90: 12194 | K90: 0 | L90: 1212
A91: 12 | B91: 12288 | C91: 23 | D91: 12295 | E91: 24 | F91: 12304 | G91: 23 | H91: 12316 | K91: 0 | L91: 1222
A92: 21 | B92: 12411 | C92: 12 | D92: 12413 | E92: 24 | F92: 12423 | G92: 23 | H92: 12431 | K92: 0 | L92: 2122
A93: 21 | B93: 12525 | C93: 21 | D93: 12529 | E93: 22 | F93: 12533 | G93: 23 | H93: 12540 | K93: 0 | L93: 2222
A94: 12 | B94: 12635 | C94: 23 | D94: 12645 | E94: 24 | F94: 12654 | G94: 23 | H94: 12661 | K94: 0 | L94: 1222
A95: 12 | B95: 12754 | C95: 23 | D95: 12756 | E95: 24 | F95: 12761 | G95: 23 | H95: 12767 | K95: 0 | L95: 1222
A96: 21 | B96: 12862 | C96: 21 | D96: 12866 | E96: 11 | F96: 12871 | G96: 21 | H96: 12879 | K96: 0 | L96: 2212
A97: 21 | B97: 13771 | C97: 21 | D97: 13775 | E97: 22 | F97: 13781 | G97: 23 | H97: 13786 | K97: 0 | L97: 2222
A98: 21 | B98: 13891 | C98: 12 | D98: 13901 | E98: 24 | F98: 13914 | G98: 23 | H98: 13921 | K98: 0 | L98: 2122
A99: 21 | B99: 14015 | C99: 21 | D99: 14022 | E99: 22 | F99: 14028 | G99: 23 | H99: 14034 | K99: 0 | L99: 2222
A100: 21 | B100: 14128 | C100: 21 | D100: 14133 | E100: 22 | F100: 14138 | G100: 23 | H100: 14144 | K100: 0 | L100: 2222
A101: 21 | B101: 14240 | C101: 21 | D101: 14246 | E101: 22 | F101: 14252 | G101: 23 | H101: 14258 | K101: 0 | L101: 2222
A102: 21 | B102: 14350 | C102: 21 | D102: 14352 | E102: 22 | F102: 14359 | G102: 23 | H102: 14365 | K102: 0 | L102: 2222
A103: 12 | B103: 14457 | C103: 14 | D103: 14460 | E103: 24 | F103: 14463 | G103: 23 | H103: 14469 | K103: 0 | L103: 1122
A104: 21 | B104: 14562 | C104: 21 | D104: 14566 | E104: 11 | F104: 14568 | G104: 21 | H104: 14570 | K104: 0 | L104: 2212
A105: 12 | B105: 14772 | C105: 23 | D105: 14781 | E105: 24 | F105: 14793 | G105: 23 | H105: 14800 | K105: 0 | L105: 1222
A106: 12 | B106: 14932 | C106: 23 | D106: 14937 | E106: 24 | F106: 14943 | G106: 23 | H106: 14954 | K106: 0 | L106: 1222
A107: 12 | B107: 15049 | C107: 14 | D107: 15054 | E107: 24 | F107: 15064 | G107: 23 | H107: 15070 | K107: 0 | L107: 1122
A108: 12 | B108: 15164 | C108: 23 | D108: 15171 | E108: 24 | F108: 15176 | G108: 23 | H108: 15181 | K108: 0 | L108: 1222
A109: 21 | B109: 15274 | C109: 21 | D109: 15283 | E109: 22 | F109: 15286 | G109: 23 | H109: 15291 | K109: 0 | L109: 2222
A110: 21 | B110: 15391 | C110: 21 | D110: 15395 | E110: 22 | F110: 15403 | G110: 23 | H110: 15414 | K110: 0 | L110: 2222
A111: 12 | B111: 15507 | C111: 14 | D111: 15510 | E111: 24 | F111: 15512 | G111: 23 | H111: 15518 | K111: 0 | L111: 1122
A112: 12 | B112: 15611 | C112: 23 | D112: 15622 | E112: 24 | F112: 15630 | G112: 23 | H112: 15634 | K112: 0 | L112: 1222
A113: 21 | B113: 15737 | C113: 12 | D113: 15744 | E113: 24 | F113: 15746 | G113: 23 | H113: 15753 | K113: 0 | L113: 2122
A114: 12 | B114: 15848 | C114: 23 | D114: 15853 | E114: 24 | F114: 15861 | G114: 23 | H114: 15868 | K114: 0 | L114: 1222
A115: 21 | B115: 15968 | C115: 21 | D115: 15973 | E115: 22 | F115: 15978 | G115: 23 | H115: 15985 | K115: 0 | L115: 2222
A116: 21 | B116: 16080 | C116: 21 | D116: 16083 | E116: 22 | F116: 16089 | G116: 23 | H116: 16097 | K116: 0 | L116: 2222
A117: 12 | B117: 16191 | C117: 23 | D117: 16193 | E117: 24 | F117: 16201 | G117: 23 | H117: 16206 | K117: 0 | L117: 1222
A118: 21 | B118: 16301 | C118: 21 | D118: 16306 | E118: 22 | F118: 16310 | G118: 23 | H118: 16317 | K118: 0 | L118: 2222
A119: 12 | B119: 16418 | C119: 23 | D119: 16432 | E119: 24 | F119: 16437 | G119: 23 | H119: 16442 | K119: 0 | L119: 1222
A120: 21 | B120: 16537 | C120: 21 | D120: 16549 | E120: 22 | F120: 16556 | G120: 23 | H120: 16563 | K120: 0 | L120: 2222
A121: 21 | B121: 16655 | C121: 12 | D121: 16659 | E121: 24 | F121: 16665 | G121: 23 | H121: 16671 | K121: 0 | L121: 2122
A122: 12 | B122: 16770 | C122: 23 | D122: 16779 | E122: 24 | F122: 16782 | G122: 23 | H122: 16786 | K122: 0 | L122: 1222
A123: 12 | B123: 16878 | C123: 23 | D123: 16883 | E123: 24 | F123: 16888 | G123: 23 | H123: 16895 | K123: 0 | L123: 1222
A124: 21 | B124: 16999 | C124: 21 | D124: 17004 | E124: 22 | F124: 17010 | G124: 23 | H124: 17017 | K124: 0 | L124: 2222
A125: 21 | B125: 17113 | C125: 21 | D125: 17118 | E125: 22 | F125: 17124 | G125: 23 | H125: 17130 | K125: 0 | L125: 2222
A126: 21 | B126: 17233 | C126: 12 | D126: 17236 | E126: 24 | F126: 17241 | G126: 23 | H126: 17247 | K126: 0 | L126: 2122
A127: 21 | B127: 17353 | C127: 21 | D127: 17367 | E127: 22 | F127: 17372 | G127: 23 | H127: 17378 | K127: 0 | L127: 2222
A128: 12 | B128: 17477 | C128: 23 | D128: 17480 | E128: 24 | F128: 17491 | G128: 23 | H128: 17499 | K128: 0 | L128: 1222
A129: 12 | B129: 17593 | C129: 23 | D129: 17595 | E129: 24 | F129: 17602 | G129: 23 | H129: 17610 | K129: 0 | L129: 1222
A130: 21 | B130: 17723 | C130: 21 | D130: 17730 | E130: 11 | F130: 17732 | G130: 21 | H130: 17736 | K130: 0 | L130: 2212
A131: 12 | B131: 17891 | C131: 23 | D131: 17904 | E131: 24 | F131: 17910 | G131: 23 | H131: 17916 | K131: 0 | L131: 1222
A132: 12 | B132: 18041 | C132: 14 | D132: 18045 | E132: 13 | F132: 18074 | G132: 23 | H132: 18083 | K132: 0 | L132: 1112
A133: 12 | B133: 18175 | C133: 23 | D133: 18195 | E133: 24 | F133: 18198 | G133: 14 | H133: 18200 | K133: 0 | L133: 1221
A134: 21 | B134: 18299 | C134: 21 | D134: 18303 | E134: 22 | F134: 18308 | G134: 23 | H134: 18314 | K134: 0 | L134: 2222
A135: 21 | B135: 18405 | C135: 21 | D135: 18410 | E135: 11 | F135: 18414 | G135: 21 | H135: 18419 | K135: 0 | L135: 2212
A136: 12 | B136: 18944 | C136: 23 | D136: 18955 | E136: 24 | F136: 18962 | G136: 23 | H136: 18969 | K136: 0 | L136: 1222
A137: 21 | B137: 19071 | C137: 12 | D137: 19075 | E137: 24 | F137: 19085 | G137: 23 | H137: 19093 | K137: 0 | L137: 2122
A138: 21 | B138: 19191 | C138: 21 | D138: 19199 | E138: 22 | F138: 19205 | G138: 14 | H138: 19210 | K138: 0 | L138: 2221
A139: 21 | B139: 19312 | C139: 12 | D139: 19316 | E139: 24 | F139: 19325 | G139: 23 | H139: 19333 | K139: 0 | L139: 2122
A140: 21 | B140: 19429 | C140: 21 | D140: 19436 | E140: 22 | F140: 19443 | G140: 23 | H140: 19451 | K140: 0 | L140: 2222
A141: 21 | B141: 19550 | C141: 21 | D141: 19554 | E141: 22 | F141: 19561 | G141: 23 | H141: 19568 | K141: 0 | L141: 2222
A142: 12 | B142: 19669 | C142: 23 | D142: 19677 | E142: 24 | F142: 19683 | G142: 14 | H142: 19688 | K142: 0 | L142: 1221
A143: 21 | B143: 19782 | C143: 21 | D143: 19787 | E143: 22 | F143: 19794 | G143: 23 | H143: 19801 | K143: 0 | L143: 2222
A144: 12 | B144: 19905 | C144: 23 | D144: 19907 | E144: 24 | F144: 19910 | G144: 23 | H144: 19915 | K144: 0 | L144: 1222
A145: 12 | B145: 20009 | C145: 23 | D145: 20014 | E145: 13 | F145: 20020 | G145: 23 | H145: 20024 | K145: 0 | L145: 1212
A146: 21 | B146: 20117 | C146: 21 | D146: 20120 | E146: 22 | F146: 20127 | G146: 23 | H146: 20132 | K146: 0 | L146: 2222
A147: 12 | B147: 20227 | C147: 23 | D147: 20239 | E147: 24 | F147: 20245 | G147: 23 | H147: 20250 | K147: 0 | L147: 1222
A148: 21 | B148: 20344 | C148: 12 | D148: 20346 | E148: 24 | F148: 20349 | G148: 23 | H148: 20355 | K148: 0 | L148: 2122
A149: 12 | B149: 20449 | C149: 14 | D149: 20452 | E149: 24 | F149: 20465 | G149: 23 | H149: 20467 | K149: 0 | L149: 1122
A150: 21 | B150: 20564 | C150: 21 | D150: 20570 | E150: 22 | F150: 20576 | G150: 23 | H150: 20583 | K150: 0 | L150: 2222
A151: 12 | B151: 20678 | C151: 23 | D151: 20680 | E151: 24 | F151: 20685 | G151: 23 | H151: 20692 | K151: 0 | L151: 1222
A152: 21 | B152: 20788 | C152: 21 | D152: 20794 | E152: 22 | F152: 20803 | G152: 23 | H152: 20811 | K152: 0 | L152: 2222
A153: 21 | B153: 20918 | C153: 21 | D153: 20928 | E153: 22 | F153: 20933 | G153: 23 | H153: 20941 | K153: 0 | L153: 2222
A154: 12 | B154: 21039 | C154: 14 | D154: 21047 | E154: 24 | F154: 21051 | G154: 23 | H154: 21056 | K154: 0 | L154: 1122
A155: 21 | B155: 21151 | C155: 12 | D155: 21154 | E155: 24 | F155: 21159 | G155: 23 | H155: 21166 | K155: 0 | L155: 2122
A156: 12 | B156: 21261 | C156: 23 | D156: 21265 | E156: 24 | F156: 21268 | G156: 23 | H156: 21272 | K156: 0 | L156: 1222
A157: 21 | B157: 21373 | C157: 21 | D157: 21377 | E157: 22 | F157: 21383 | G157: 23 | H157: 21391 | K157: 0 | L157: 2222
A158: 21 | B158: 21491 | C158: 21 | D158: 21495 | E158: 22 | F158: 21503 | G158: 23 | H158: 21509 | K158: 0 | L158: 2222
A159: 21 | B159: 21604 | C159: 12 | D159: 21610 | E159: 24 | F159: 21612 | G159: 23 | H159: 21622 | K159: 0 | L159: 2122
A160: 21 | B160: 21723 | C160: 21 | D160: 21727 | E160: 11 | F160: 21730 | G160: 21 | H160: 21732 | K160: 0 | L160: 2212
A161: 12 | B161: 22374 | C161: 23 | D161: 22384 | E161: 24 | F161: 22390 | G161: 23 | H161: 22398 | K161: 0 | L161: 1222
A162: 21 | B162: 22499 | C162: 12 | D162: 22503 | E162: 24 | F162: 22516 | G162: 23 | H162: 22524 | K162: 0 | L162: 2122
A163: 12 | B163: 22620 | C163: 23 | D163: 22623 | E163: 24 | F163: 22629 | G163: 23 | H163: 22634 | K163: 0 | L163: 1222
A164: 21 | B164: 22731 | C164: 21 | D164: 22738 | E164: 22 | F164: 22745 | G164: 23 | H164: 22752 | K164: 0 | L164: 2222
A165: 21 | B165: 22849 | C165: 21 | D165: 22853 | E165: 22 | F165: 22857 | G165: 23 | H165: 22862 | K165: 0 | L165: 2222
A166: 21 | B166: 22956 | C166: 21 | D166: 22960 | E166: 22 | F166: 22966 | G166: 14 | H166: 22970 | K166: 0 | L166: 2221
A167: 21 | B167: 23073 | C167: 21 | D167: 23083 | E167: 11 | F167: 23088 | G167: 21 | H167: 23091 | K167: 0 | L167: 2212

Sheet !M628930.Gus
A1: Report for:!M628930.Gus
A2: Date: | B2: <date>
A3: Hen: | B3: <hen> | F3: Correct Sequence | G3: =Start!J2 -> 2212 | P3: Total Sequences in Data | Q3: =4994-COUNTBLANK(L7:L5000) -> 165 | V3: Total Sequences in Block Data | W3: =COUNTA(L7:L34) -> 28 | AA3: Total Sequences in Block Data | AB3: =COUNTA(L35:L61) -> 27 | AF3: Total Sequences in Block Data | AG3: =COUNTA(L62:L89) -> 28 | AK3: Total Sequences in Block Data | AL3: =COUNTA(L90:L116) -> 27 | AP3: Total Sequences in Block Data | AQ3: =COUNTA(L117:L144) -> 28 | AU3: Total Sequences in Block Data | AV3: =COUNTA(L145:L171) -> 27
P4: Total Sequences in Summary | Q4: =SUM(O7:O22) -> 165 | V4: Total Sequences in Block Summary | W4: =SUM(U7:U22) -> 28 | AA4: Total Sequences in Block Summary | AB4: =SUM(Z7:Z22) -> 27 | AF4: Total Sequences in Block Summary | AG4: =SUM(AE7:AE22) -> 28 | AK4: Total Sequences in Block Summary | AL4: =SUM(AJ7:AJ22) -> 27 | AP4: Total Sequences in Block Summary | AQ4: =SUM(AO7:AO22) -> 28 | AU4: Total Sequences in Block Summary | AV4: =SUM(AT7:AT22) -> 27
T5: Block 1 | Y5: Block 2 | AD5: Block 3 | AI5: Block 4 | AN5: Block 5 | AS5: Block 6
A6: Sequence Component 1 | B6: Time 1 | C6: Sequence Component 2 | D6: Time 2 | E6: Sequence Component 3 | F6: Time 3 | G6: Sequence Component 4 | H6: Time 4 | I6: Sequence Component 5 | J6: Time 5 | K6: Correct? 0=No 1=Yes | L6: Sequence | N6: Frequency | P6: Relative Frequency | Q6: Variability | T6: Frequency | V6: Relative Frequency | W6: Variability | Y6: Frequency | AA6: Relative Frequency | AB6: Variability | AD6: Frequency | AF6: Relative Frequency | AG6: Variability | AI6: Frequency | AK6: Relative Frequency | AL6: Variability | AN6: Frequency | AP6: Relative Frequency | AQ6: Variability | AS6: Frequency | AU6: Relative Frequency | AV6: Variability
A7: 21 | B7: 21 | C7: 21 | D7: 28 | E7: 22 | F7: 35 | G7: 23 | H7: 42 | K7: 0 | L7: 2222 | N7: 1111 | O7: =COUNTIF($L$7:$L$500,N7) -> 0 | P7: =O7/$Q$4 -> 0 | Q7: =IF(P7=0,0,(P7*((LOG(P7))/LOG(2)))) -> 0 | T7: =N7 -> 1111 | U7: =COUNTIF(L7:L34,T7) -> 0 | V7: =U7/(W4-U20) -> 0 | W7: =IF(V7=0,0,(V7*((LOG(V7))/LOG(2)))) -> 0 | Y7: =N7 -> 1111 | Z7: =COUNTIF(L35:L61,Y7) -> 0 | AA7: =Z7/(AB4-Z20) -> 0 | AB7: =IF(AA7=0,0,(AA7*((LOG(AA7))/LOG(2)))) -> 0 | AD7: =N7 -> 1111 | AE7: =COUNTIF(L62:L89,AD7) -> 0 | AF7: =AE7/(AG4-AE20) -> 0 | AG7: =IF(AF7=0,0,(AF7*((LOG(AF7))/LOG(2)))) -> 0 | AI7: =N7 -> 1111 | AJ7: =COUNTIF(L90:L116,AI7) -> 0 | AK7: =AJ7/(AL4-AJ20) -> 0 | AL7: =IF(AK7=0,0,(AK7*((LOG(AK7))/LOG(2)))) -> 0 | AN7: =N7 -> 1111 | AO7: =COUNTIF(L117:L144,AN7) -> 0 | AP7: =AO7/(AQ4-AO20) -> 0 | AQ7: =IF(AP7=0,0,(AP7*((LOG(AP7))/LOG(2)))) -> 0 | AS7: =N7 -> 1111 | AT7: =COUNTIF(L145:L171,AS7) -> 0 | AU7: =AT7/(AV4-AT20) -> 0 | AV7: =IF(AU7=0,0,(AU7*((LOG(AU7))/LOG(2)))) -> 0
A8: 21 | B8: 148 | C8: 21 | D8: 156 | E8: 22 | F8: 163 | G8: 23 | H8: 174 | K8: 0 | L8: 2222 | N8: 1112 | O8: =COUNTIF($L$7:$L$500,N8) -> 0 | P8: =O8/$Q$4 -> 0 | Q8: =IF(P8=0,0,(P8*((LOG(P8))/LOG(2)))) -> 0 | T8: =N8 -> 1112 | U8: =COUNTIF(L7:L34,T8) -> 0 | V8: =U8/(W4-U20) -> 0 | W8: =IF(V8=0,0,(V8*((LOG(V8))/LOG(2)))) -> 0 | Y8: =N8 -> 1112 | Z8: =COUNTIF(L35:L61,Y8) -> 0 | AA8: =Z8/(AB4-Z20) -> 0 | AB8: =IF(AA8=0,0,(AA8*((LOG(AA8))/LOG(2)))) -> 0 | AD8: =N8 -> 1112 | AE8: =COUNTIF(L62:L89,AD8) -> 0 | AF8: =AE8/(AG4-AE20) -> 0 | AG8: =IF(AF8=0,0,(AF8*((LOG(AF8))/LOG(2)))) -> 0 | AI8: =N8 -> 1112 | AJ8: =COUNTIF(L90:L116,AI8) -> 0 | AK8: =AJ8/(AL4-AJ20) -> 0 | AL8: =IF(AK8=0,0,(AK8*((LOG(AK8))/LOG(2)))) -> 0 | AN8: =N8 -> 1112 | AO8: =COUNTIF(L117:L144,AN8) -> 0 | AP8: =AO8/(AQ4-AO20) -> 0 | AQ8: =IF(AP8=0,0,(AP8*((LOG(AP8))/LOG(2)))) -> 0 | AS8: =N8 -> 1112 | AT8: =COUNTIF(L145:L171,AS8) -> 0 | AU8: =AT8/(AV4-AT20) -> 0 | AV8: =IF(AU8=0,0,(AU8*((LOG(AU8))/LOG(2)))) -> 0
A9: 12 | B9: 271 | C9: 23 | D9: 280 | E9: 24 | F9: 286 | G9: 23 | H9: 293 | K9: 0 | L9: 1222 | N9: 1121 | O9: =COUNTIF($L$7:$L$500,N9) -> 1 | P9: =O9/$Q$4 -> 0.006060606061 | Q9: =IF(P9=0,0,(P9*((LOG(P9))/LOG(2)))) -> -0.04464437706 | T9: =N9 -> 1121 | U9: =COUNTIF(L7:L34,T9) -> 0 | V9: =U9/(W4-U20) -> 0 | W9: =IF(V9=0,0,(V9*((LOG(V9))/LOG(2)))) -> 0 | Y9: =N9 -> 1121 | Z9: =COUNTIF(L35:L61,Y9) -> 0 | AA9: =Z9/(AB4-Z20) -> 0 | AB9: =IF(AA9=0,0,(AA9*((LOG(AA9))/LOG(2)))) -> 0 | AD9: =N9 -> 1121 | AE9: =COUNTIF(L62:L89,AD9) -> 0 | AF9: =AE9/(AG4-AE20) -> 0 | AG9: =IF(AF9=0,0,(AF9*((LOG(AF9))/LOG(2)))) -> 0 | AI9: =N9 -> 1121 | AJ9: =COUNTIF(L90:L116,AI9) -> 0 | AK9: =AJ9/(AL4-AJ20) -> 0 | AL9: =IF(AK9=0,0,(AK9*((LOG(AK9))/LOG(2)))) -> 0 | AN9: =N9 -> 1121 | AO9: =COUNTIF(L117:L144,AN9) -> 1 | AP9: =AO9/(AQ4-AO20) -> 0.04166666667 | AQ9: =IF(AP9=0,0,(AP9*((LOG(AP9))/LOG(2)))) -> -0.1910401042 | AS9: =N9 -> 1121 | AT9: =COUNTIF(L145:L171,AS9) -> 0 | AU9: =AT9/(AV4-AT20) -> 0 | AV9: =IF(AU9=0,0,(AU9*((LOG(AU9))/LOG(2)))) -> 0
A10: 12 | B10: 391 | C10: 23 | D10: 397 | E10: 24 | F10: 406 | G10: 23 | H10: 414 | K10: 0 | L10: 1222 | N10: 1122 | O10: =COUNTIF($L$7:$L$500,N10) -> 4 | P10: =O10/$Q$4 -> 0.02424242424 | Q10: =IF(P10=0,0,(P10*((LOG(P10))/LOG(2)))) -> -0.1300926597 | T10: =N10 -> 1122 | U10: =COUNTIF(L7:L34,T10) -> 0 | V10: =U10/(W4-U20) -> 0 | W10: =IF(V10=0,0,(V10*((LOG(V10))/LOG(2)))) -> 0 | Y10: =N10 -> 1122 | Z10: =COUNTIF(L35:L61,Y10) -> 1 | AA10: =Z10/(AB4-Z20) -> 0.03846153846 | AB10: =IF(AA10=0,0,(AA10*((LOG(AA10))/LOG(2)))) -> -0.180786143 | AD10: =N10 -> 1122 | AE10: =COUNTIF(L62:L89,AD10) -> 0 | AF10: =AE10/(AG4-AE20) -> 0 | AG10: =IF(AF10=0,0,(AF10*((LOG(AF10))/LOG(2)))) -> 0 | AI10: =N10 -> 1122 | AJ10: =COUNTIF(L90:L116,AI10) -> 0 | AK10: =AJ10/(AL4-AJ20) -> 0 | AL10: =IF(AK10=0,0,(AK10*((LOG(AK10))/LOG(2)))) -> 0 | AN10: =N10 -> 1122 | AO10: =COUNTIF(L117:L144,AN10) -> 2 | AP10: =AO10/(AQ4-AO20) -> 0.08333333333 | AQ10: =IF(AP10=0,0,(AP10*((LOG(AP10))/LOG(2)))) -> -0.2987468751 | AS10: =N10 -> 1122 | AT10: =COUNTIF(L145:L171,AS10) -> 1 | AU10: =AT10/(AV4-AT20) -> 0.04 | AV10: =IF(AU10=0,0,(AU10*((LOG(AU10))/LOG(2)))) -> -0.1857542476
A11: 12 | B11: 520 | C11: 23 | D11: 523 | E11: 24 | F11: 526 | G11: 23 | H11: 531 | K11: 0 | L11: 1222 | N11: 1211 | O11: =COUNTIF($L$7:$L$500,N11) -> 0 | P11: =O11/$Q$4 -> 0 | Q11: =IF(P11=0,0,(P11*((LOG(P11))/LOG(2)))) -> 0 | T11: =N11 -> 1211 | U11: =COUNTIF(L7:L34,T11) -> 0 | V11: =U11/(W4-U20) -> 0 | W11: =IF(V11=0,0,(V11*((LOG(V11))/LOG(2)))) -> 0 | Y11: =N11 -> 1211 | Z11: =COUNTIF(L35:L61,Y11) -> 0 | AA11: =Z11/(AB4-Z20) -> 0 | AB11: =IF(AA11=0,0,(AA11*((LOG(AA11))/LOG(2)))) -> 0 | AD11: =N11 -> 1211 | AE11: =COUNTIF(L62:L89,AD11) -> 0 | AF11: =AE11/(AG4-AE20) -> 0 | AG11: =IF(AF11=0,0,(AF11*((LOG(AF11))/LOG(2)))) -> 0 | AI11: =N11 -> 1211 | AJ11: =COUNTIF(L90:L116,AI11) -> 0 | AK11: =AJ11/(AL4-AJ20) -> 0 | AL11: =IF(AK11=0,0,(AK11*((LOG(AK11))/LOG(2)))) -> 0 | AN11: =N11 -> 1211 | AO11: =COUNTIF(L117:L144,AN11) -> 0 | AP11: =AO11/(AQ4-AO20) -> 0 | AQ11: =IF(AP11=0,0,(AP11*((LOG(AP11))/LOG(2)))) -> 0 | AS11: =N11 -> 1211 | AT11: =COUNTIF(L145:L171,AS11) -> 0 | AU11: =AT11/(AV4-AT20) -> 0 | AV11: =IF(AU11=0,0,(AU11*((LOG(AU11))/LOG(2)))) -> 0
A12: 21 | B12: 627 | C12: 21 | D12: 633 | E12: 22 | F12: 639 | G12: 14 | H12: 644 | K12: 0 | L12: 2221 | N12: 1212 | O12: =COUNTIF($L$7:$L$500,N12) -> 7 | P12: =O12/$Q$4 -> 0.04242424242 | Q12: =IF(P12=0,0,(P12*((LOG(P12))/LOG(2)))) -> -0.1934107336 | T12: =N12 -> 1212 | U12: =COUNTIF(L7:L34,T12) -> 5 | V12: =U12/(W4-U20) -> 0.1785714286 | W12: =IF(V12=0,0,(V12*((LOG(V12))/LOG(2)))) -> -0.4438262191 | Y12: =N12 -> 1212 | Z12: =COUNTIF(L35:L61,Y12) -> 0 | AA12: =Z12/(AB4-Z20) -> 0 | AB12: =IF(AA12=0,0,(AA12*((LOG(AA12))/LOG(2)))) -> 0 | AD12: =N12 -> 1212 | AE12: =COUNTIF(L62:L89,AD12) -> 1 | AF12: =AE12/(AG4-AE20) -> 0.04545454545 | AG12: =IF(AF12=0,0,(AF12*((LOG(AF12))/LOG(2)))) -> -0.2027014372 | AI12: =N12 -> 1212 | AJ12: =COUNTIF(L90:L116,AI12) -> 1 | AK12: =AJ12/(AL4-AJ20) -> 0.04347826087 | AL12: =IF(AK12=0,0,(AK12*((LOG(AK12))/LOG(2)))) -> -0.1966766068 | AN12: =N12 -> 1212 | AO12: =COUNTIF(L117:L144,AN12) -> 0 | AP12: =AO12/(AQ4-AO20) -> 0 | AQ12: =IF(AP12=0,0,(AP12*((LOG(AP12))/LOG(2)))) -> 0 | AS12: =N12 -> 1212 | AT12: =COUNTIF(L145:L171,AS12) -> 0 | AU12: =AT12/(AV4-AT20) -> 0 | AV12: =IF(AU12=0,0,(AU12*((LOG(AU12))/LOG(2)))) -> 0
A13: 12 | B13: 737 | C13: 23 | D13: 751 | E13: 13 | F13: 755 | G13: 23 | H13: 773 | K13: 0 | L13: 1212 | N13: 1221 | O13: =COUNTIF($L$7:$L$500,N13) -> 4 | P13: =O13/$Q$4 -> 0.02424242424 | Q13: =IF(P13=0,0,(P13*((LOG(P13))/LOG(2)))) -> -0.1300926597 | T13: =N13 -> 1221 | U13: =COUNTIF(L7:L34,T13) -> 2 | V13: =U13/(W4-U20) -> 0.07142857143 | W13: =IF(V13=0,0,(V13*((LOG(V13))/LOG(2)))) -> -0.271953923 | Y13: =N13 -> 1221 | Z13: =COUNTIF(L35:L61,Y13) -> 0 | AA13: =Z13/(AB4-Z20) -> 0 | AB13: =IF(AA13=0,0,(AA13*((LOG(AA13))/LOG(2)))) -> 0 | AD13: =N13 -> 1221 | AE13: =COUNTIF(L62:L89,AD13) -> 1 | AF13: =AE13/(AG4-AE20) -> 0.04545454545 | AG13: =IF(AF13=0,0,(AF13*((LOG(AF13))/LOG(2)))) -> -0.2027014372 | AI13: =N13 -> 1221 | AJ13: =COUNTIF(L90:L116,AI13) -> 0 | AK13: =AJ13/(AL4-AJ20) -> 0 | AL13: =IF(AK13=0,0,(AK13*((LOG(AK13))/LOG(2)))) -> 0 | AN13: =N13 -> 1221 | AO13: =COUNTIF(L117:L144,AN13) -> 0 | AP13: =AO13/(AQ4-AO20) -> 0 | AQ13: =IF(AP13=0,0,(AP13*((LOG(AP13))/LOG(2)))) -> 0 | AS13: =N13 -> 1221 | AT13: =COUNTIF(L145:L171,AS13) -> 1 | AU13: =AT13/(AV4-AT20) -> 0.04 | AV13: =IF(AU13=0,0,(AU13*((LOG(AU13))/LOG(2)))) -> -0.1857542476
A14: 12 | B14: 878 | C14: 23 | D14: 884 | E14: 24 | F14: 888 | G14: 23 | H14: 893 | K14: 0 | L14: 1222 | N14: 1222 | O14: =COUNTIF($L$7:$L$500,N14) -> 39 | P14: =O14/$Q$4 -> 0.2363636364 | Q14: =IF(P14=0,0,(P14*((LOG(P14))/LOG(2)))) -> -0.4918538171 | T14: =N14 -> 1222 | U14: =COUNTIF(L7:L34,T14) -> 8 | V14: =U14/(W4-U20) -> 0.2857142857 | W14: =IF(V14=0,0,(V14*((LOG(V14))/LOG(2)))) -> -0.5163871206 | Y14: =N14 -> 1222 | Z14: =COUNTIF(L35:L61,Y14) -> 9 | AA14: =Z14/(AB4-Z20) -> 0.3461538462 | AB14: =IF(AA14=0,0,(AA14*((LOG(AA14))/LOG(2)))) -> -0.5297935558 | AD14: =N14 -> 1222 | AE14: =COUNTIF(L62:L89,AD14) -> 2 | AF14: =AE14/(AG4-AE20) -> 0.09090909091 | AG14: =IF(AF14=0,0,(AF14*((LOG(AF14))/LOG(2)))) -> -0.3144937835 | AI14: =N14 -> 1222 | AJ14: =COUNTIF(L90:L116,AI14) -> 6 | AK14: =AJ14/(AL4-AJ20) -> 0.2608695652 | AL14: =IF(AK14=0,0,(AK14*((LOG(AK14))/LOG(2)))) -> -0.505721597 | AN14: =N14 -> 1222 | AO14: =COUNTIF(L117:L144,AN14) -> 6 | AP14: =AO14/(AQ4-AO20) -> 0.25 | AQ14: =IF(AP14=0,0,(AP14*((LOG(AP14))/LOG(2)))) -> -0.5 | AS14: =N14 -> 1222 | AT14: =COUNTIF(L145:L171,AS14) -> 8 | AU14: =AT14/(AV4-AT20) -> 0.32 | AV14: =IF(AU14=0,0,(AU14*((LOG(AU14))/LOG(2)))) -> -0.5260339807
A15: 12 | B15: 997 | C15: 23 | D15: 1003 | E15: 24 | F15: 1017 | G15: 14 | H15: 1045 | K15: 0 | L15: 1221 | N15: 2111 | O15: =COUNTIF($L$7:$L$500,N15) -> 0 | P15: =O15/$Q$4 -> 0 | Q15: =IF(P15=0,0,(P15*((LOG(P15))/LOG(2)))) -> 0 | T15: =N15 -> 2111 | U15: =COUNTIF(L7:L34,T15) -> 0 | V15: =U15/(W4-U20) -> 0 | W15: =IF(V15=0,0,(V15*((LOG(V15))/LOG(2)))) -> 0 | Y15: =N15 -> 2111 | Z15: =COUNTIF(L35:L61,Y15) -> 0 | AA15: =Z15/(AB4-Z20) -> 0 | AB15: =IF(AA15=0,0,(AA15*((LOG(AA15))/LOG(2)))) -> 0 | AD15: =N15 -> 2111 | AE15: =COUNTIF(L62:L89,AD15) -> 0 | AF15: =AE15/(AG4-AE20) -> 0 | AG15: =IF(AF15=0,0,(AF15*((LOG(AF15))/LOG(2)))) -> 0 | AI15: =N15 -> 2111 | AJ15: =COUNTIF(L90:L116,AI15) -> 0 | AK15: =AJ15/(AL4-AJ20) -> 0 | AL15: =IF(AK15=0,0,(AK15*((LOG(AK15))/LOG(2)))) -> 0 | AN15: =N15 -> 2111 | AO15: =COUNTIF(L117:L144,AN15) -> 0 | AP15: =AO15/(AQ4-AO20) -> 0 | AQ15: =IF(AP15=0,0,(AP15*((LOG(AP15))/LOG(2)))) -> 0 | AS15: =N15 -> 2111 | AT15: =COUNTIF(L145:L171,AS15) -> 0 | AU15: =AT15/(AV4-AT20) -> 0 | AV15: =IF(AU15=0,0,(AU15*((LOG(AU15))/LOG(2)))) -> 0
A16: 12 | B16: 1139 | C16: 23 | D16: 1153 | E16: 13 | F16: 1158 | G16: 23 | H16: 1184 | K16: 0 | L16: 1212 | N16: 2112 | O16: =COUNTIF($L$7:$L$500,N16) -> 0 | P16: =O16/$Q$4 -> 0 | Q16: =IF(P16=0,0,(P16*((LOG(P16))/LOG(2)))) -> 0 | T16: =N16 -> 2112 | U16: =COUNTIF(L7:L34,T16) -> 0 | V16: =U16/(W4-U20) -> 0 | W16: =IF(V16=0,0,(V16*((LOG(V16))/LOG(2)))) -> 0 | Y16: =N16 -> 2112 | Z16: =COUNTIF(L35:L61,Y16) -> 0 | AA16: =Z16/(AB4-Z20) -> 0 | AB16: =IF(AA16=0,0,(AA16*((LOG(AA16))/LOG(2)))) -> 0 | AD16: =N16 -> 2112 | AE16: =COUNTIF(L62:L89,AD16) -> 0 | AF16: =AE16/(AG4-AE20) -> 0 | AG16: =IF(AF16=0,0,(AF16*((LOG(AF16))/LOG(2)))) -> 0 | AI16: =N16 -> 2112 | AJ16: =COUNTIF(L90:L116,AI16) -> 0 | AK16: =AJ16/(AL4-AJ20) -> 0 | AL16: =IF(AK16=0,0,(AK16*((LOG(AK16))/LOG(2)))) -> 0 | AN16: =N16 -> 2112 | AO16: =COUNTIF(L117:L144,AN16) -> 0 | AP16: =AO16/(AQ4-AO20) -> 0 | AQ16: =IF(AP16=0,0,(AP16*((LOG(AP16))/LOG(2)))) -> 0 | AS16: =N16 -> 2112 | AT16: =COUNTIF(L145:L171,AS16) -> 0 | AU16: =AT16/(AV4-AT20) -> 0 | AV16: =IF(AU16=0,0,(AU16*((LOG(AU16))/LOG(2)))) -> 0
A17: 12 | B17: 1277 | C17: 23 | D17: 1279 | E17: 13 | F17: 1283 | G17: 23 | H17: 1288 | K17: 0 | L17: 1212 | N17: 2121 | O17: =COUNTIF($L$7:$L$500,N17) -> 0 | P17: =O17/$Q$4 -> 0 | Q17: =IF(P17=0,0,(P17*((LOG(P17))/LOG(2)))) -> 0 | T17: =N17 -> 2121 | U17: =COUNTIF(L7:L34,T17) -> 0 | V17: =U17/(W4-U20) -> 0 | W17: =IF(V17=0,0,(V17*((LOG(V17))/LOG(2)))) -> 0 | Y17: =N17 -> 2121 | Z17: =COUNTIF(L35:L61,Y17) -> 0 | AA17: =Z17/(AB4-Z20) -> 0 | AB17: =IF(AA17=0,0,(AA17*((LOG(AA17))/LOG(2)))) -> 0 | AD17: =N17 -> 2121 | AE17: =COUNTIF(L62:L89,AD17) -> 0 | AF17: =AE17/(AG4-AE20) -> 0 | AG17: =IF(AF17=0,0,(AF17*((LOG(AF17))/LOG(2)))) -> 0 | AI17: =N17 -> 2121 | AJ17: =COUNTIF(L90:L116,AI17) -> 0 | AK17: =AJ17/(AL4-AJ20) -> 0 | AL17: =IF(AK17=0,0,(AK17*((LOG(AK17))/LOG(2)))) -> 0 | AN17: =N17 -> 2121 | AO17: =COUNTIF(L117:L144,AN17) -> 0 | AP17: =AO17/(AQ4-AO20) -> 0 | AQ17: =IF(AP17=0,0,(AP17*((LOG(AP17))/LOG(2)))) -> 0 | AS17: =N17 -> 2121 | AT17: =COUNTIF(L145:L171,AS17) -> 0 | AU17: =AT17/(AV4-AT20) -> 0 | AV17: =IF(AU17=0,0,(AU17*((LOG(AU17))/LOG(2)))) -> 0
A18: 12 | B18: 1409 | C18: 23 | D18: 1414 | E18: 24 | F18: 1429 | G18: 14 | H18: 1438 | K18: 0 | L18: 1221 | N18: 2122 | O18: =COUNTIF($L$7:$L$500,N18) -> 19 | P18: =O18/$Q$4 -> 0.1151515152 | Q18: =IF(P18=0,0,(P18*((LOG(P18))/LOG(2)))) -> -0.3590878746 | T18: =N18 -> 2122 | U18: =COUNTIF(L7:L34,T18) -> 2 | V18: =U18/(W4-U20) -> 0.07142857143 | W18: =IF(V18=0,0,(V18*((LOG(V18))/LOG(2)))) -> -0.271953923 | Y18: =N18 -> 2122 | Z18: =COUNTIF(L35:L61,Y18) -> 5 | AA18: =Z18/(AB4-Z20) -> 0.1923076923 | AB18: =IF(AA18=0,0,(AA18*((LOG(AA18))/LOG(2)))) -> -0.4574060814 | AD18: =N18 -> 2122 | AE18: =COUNTIF(L62:L89,AD18) -> 2 | AF18: =AE18/(AG4-AE20) -> 0.09090909091 | AG18: =IF(AF18=0,0,(AF18*((LOG(AF18))/LOG(2)))) -> -0.3144937835 | AI18: =N18 -> 2122 | AJ18: =COUNTIF(L90:L116,AI18) -> 3 | AK18: =AJ18/(AL4-AJ20) -> 0.1304347826 | AL18: =IF(AK18=0,0,(AK18*((LOG(AK18))/LOG(2)))) -> -0.3832955811 | AN18: =N18 -> 2122 | AO18: =COUNTIF(L117:L144,AN18) -> 5 | AP18: =AO18/(AQ4-AO20) -> 0.2083333333 | AQ18: =IF(AP18=0,0,(AP18*((LOG(AP18))/LOG(2)))) -> -0.4714655012 | AS18: =N18 -> 2122 | AT18: =COUNTIF(L145:L171,AS18) -> 2 | AU18: =AT18/(AV4-AT20) -> 0.08 | AV18: =IF(AU18=0,0,(AU18*((LOG(AU18))/LOG(2)))) -> -0.2915084952
A19: 12 | B19: 1541 | C19: 23 | D19: 1553 | E19: 24 | F19: 1557 | G19: 23 | H19: 1563 | K19: 0 | L19: 1222 | N19: 2211 | O19: =COUNTIF($L$7:$L$500,N19) -> 0 | P19: =O19/$Q$4 -> 0 | Q19: =IF(P19=0,0,(P19*((LOG(P19))/LOG(2)))) -> 0 | T19: =N19 -> 2211 | U19: =COUNTIF(L7:L34,T19) -> 0 | V19: =U19/(W4-U20) -> 0 | W19: =IF(V19=0,0,(V19*((LOG(V19))/LOG(2)))) -> 0 | Y19: =N19 -> 2211 | Z19: =COUNTIF(L35:L61,Y19) -> 0 | AA19: =Z19/(AB4-Z20) -> 0 | AB19: =IF(AA19=0,0,(AA19*((LOG(AA19))/LOG(2)))) -> 0 | AD19: =N19 -> 2211 | AE19: =COUNTIF(L62:L89,AD19) -> 0 | AF19: =AE19/(AG4-AE20) -> 0 | AG19: =IF(AF19=0,0,(AF19*((LOG(AF19))/LOG(2)))) -> 0 | AI19: =N19 -> 2211 | AJ19: =COUNTIF(L90:L116,AI19) -> 0 | AK19: =AJ19/(AL4-AJ20) -> 0 | AL19: =IF(AK19=0,0,(AK19*((LOG(AK19))/LOG(2)))) -> 0 | AN19: =N19 -> 2211 | AO19: =COUNTIF(L117:L144,AN19) -> 0 | AP19: =AO19/(AQ4-AO20) -> 0 | AQ19: =IF(AP19=0,0,(AP19*((LOG(AP19))/LOG(2)))) -> 0 | AS19: =N19 -> 2211 | AT19: =COUNTIF(L145:L171,AS19) -> 0 | AU19: =AT19/(AV4-AT20) -> 0 | AV19: =IF(AU19=0,0,(AU19*((LOG(AU19))/LOG(2)))) -> 0
A20: 12 | B20: 1661 | C20: 23 | D20: 1677 | E20: 24 | F20: 1683 | G20: 23 | H20: 1688 | K20: 0 | L20: 1222 | N20: 2212 | O20: =COUNTIF($L$7:$L$500,N20) -> 17 | P20: =O20/$Q$4 -> 0.103030303 | Q20: =IF(P20=0,0,(P20*((LOG(P20))/LOG(2)))) -> -0.3378218748 | T20: =N20 -> 2212 | U20: =COUNTIF(L7:L34,T20) -> 0 | Y20: =N20 -> 2212 | Z20: =COUNTIF(L35:L61,Y20) -> 1 | AD20: =N20 -> 2212 | AE20: =COUNTIF(L62:L89,AD20) -> 6 | AI20: =N20 -> 2212 | AJ20: =COUNTIF(L90:L116,AI20) -> 4 | AN20: =N20 -> 2212 | AO20: =COUNTIF(L117:L144,AN20) -> 4 | AS20: =N20 -> 2212 | AT20: =COUNTIF(L145:L171,AS20) -> 2
A21: 21 | B21: 1787 | C21: 21 | D21: 1795 | E21: 22 | F21: 1801 | G21: 23 | H21: 1808 | K21: 0 | L21: 2222 | N21: 2221 | O21: =COUNTIF($L$7:$L$500,N21) -> 6 | P21: =O21/$Q$4 -> 0.03636363636 | Q21: =IF(P21=0,0,(P21*((LOG(P21))/LOG(2)))) -> -0.1738676259 | T21: =N21 -> 2221 | U21: =COUNTIF(L7:L34,T21) -> 2 | V21: =U21/(W4-U20) -> 0.07142857143 | W21: =IF(V21=0,0,(V21*((LOG(V21))/LOG(2)))) -> -0.271953923 | Y21: =N21 -> 2221 | Z21: =COUNTIF(L35:L61,Y21) -> 1 | AA21: =Z21/(AB4-Z20) -> 0.03846153846 | AB21: =IF(AA21=0,0,(AA21*((LOG(AA21))/LOG(2)))) -> -0.180786143 | AD21: =N21 -> 2221 | AE21: =COUNTIF(L62:L89,AD21) -> 2 | AF21: =AE21/(AG4-AE20) -> 0.09090909091 | AG21: =IF(AF21=0,0,(AF21*((LOG(AF21))/LOG(2)))) -> -0.3144937835 | AI21: =N21 -> 2221 | AJ21: =COUNTIF(L90:L116,AI21) -> 1 | AK21: =AJ21/(AL4-AJ20) -> 0.04347826087 | AL21: =IF(AK21=0,0,(AK21*((LOG(AK21))/LOG(2)))) -> -0.1966766068 | AN21: =N21 -> 2221 | AO21: =COUNTIF(L117:L144,AN21) -> 0 | AP21: =AO21/(AQ4-AO20) -> 0 | AQ21: =IF(AP21=0,0,(AP21*((LOG(AP21))/LOG(2)))) -> 0 | AS21: =N21 -> 2221 | AT21: =COUNTIF(L145:L171,AS21) -> 0 | AU21: =AT21/(AV4-AT20) -> 0 | AV21: =IF(AU21=0,0,(AU21*((LOG(AU21))/LOG(2)))) -> 0
A22: 21 | B22: 1905 | C22: 21 | D22: 1910 | E22: 22 | F22: 1915 | G22: 23 | H22: 1925 | K22: 0 | L22: 2222 | N22: 2222 | O22: =COUNTIF($L$7:$L$500,N22) -> 68 | P22: =O22/$Q$4 -> 0.4121212121 | Q22: =IF(P22=0,0,(P22*((LOG(P22))/LOG(2)))) -> -0.5270450749 | T22: =N22 -> 2222 | U22: =COUNTIF(L7:L34,T22) -> 9 | V22: =U22/(W4-U20) -> 0.3214285714 | W22: =IF(V22=0,0,(V22*((LOG(V22))/LOG(2)))) -> -0.5263167602 | Y22: =N22 -> 2222 | Z22: =COUNTIF(L35:L61,Y22) -> 10 | AA22: =Z22/(AB4-Z20) -> 0.3846153846 | AB22: =IF(AA22=0,0,(AA22*((LOG(AA22))/LOG(2)))) -> -0.5301967782 | AD22: =N22 -> 2222 | AE22: =COUNTIF(L62:L89,AD22) -> 14 | AF22: =AE22/(AG4-AE20) -> 0.6363636364 | AG22: =IF(AF22=0,0,(AF22*((LOG(AF22))/LOG(2)))) -> -0.4149578978 | AI22: =N22 -> 2222 | AJ22: =COUNTIF(L90:L116,AI22) -> 12 | AK22: =AJ22/(AL4-AJ20) -> 0.5217391304 | AL22: =IF(AK22=0,0,(AK22*((LOG(AK22))/LOG(2)))) -> -0.4897040637 | AN22: =N22 -> 2222 | AO22: =COUNTIF(L117:L144,AN22) -> 10 | AP22: =AO22/(AQ4-AO20) -> 0.4166666667 | AQ22: =IF(AP22=0,0,(AP22*((LOG(AP22))/LOG(2)))) -> -0.5262643358 | AS22: =N22 -> 2222 | AT22: =COUNTIF(L145:L171,AS22) -> 13 | AU22: =AT22/(AV4-AT20) -> 0.52 | AV22: =IF(AU22=0,0,(AU22*((LOG(AU22))/LOG(2)))) -> -0.4905765652
A23: 21 | B23: 2031 | C23: 12 | D23: 2035 | E23: 24 | F23: 2039 | G23: 23 | H23: 2047 | K23: 0 | L23: 2122 | P23: =SUM(P7:P22) -> 1 | Q23: =-SUM(Q7:Q22) -> 2.387916698 | V23: =SUM(V7:V22) -> 1 | W23: =-SUM(W7:W22) -> 2.302391869 | AA23: =SUM(AA7:AA22) -> 1 | AB23: =-SUM(AB7:AB22) -> 1.878968701 | AF23: =SUM(AF7:AF22) -> 1 | AG23: =-SUM(AG7:AG22) -> 1.763842123 | AK23: =SUM(AK7:AK22) -> 1 | AL23: =-SUM(AL7:AL22) -> 1.772074455 | AP23: =SUM(AP7:AP22) -> 1 | AQ23: =-SUM(AQ7:AQ22) -> 1.987516816 | AU23: =SUM(AU7:AU22) -> 1 | AV23: =-SUM(AV7:AV22) -> 1.679627536
A24: 21 | B24: 2150 | C24: 21 | D24: 2155 | E24: 22 | F24: 2162 | G24: 23 | H24: 2168 | K24: 0 | L24: 2222 | P24: U= | Q24: =Q23/(LOG(Q4)/LOG(2)) -> 0.3241667454 | V24: U1= | W24: =W23/(LOG(W4)/LOG(2)) -> 0.4789311183 | AA24: U2= | AB24: =AB23/(LOG(AB4)/LOG(2)) -> 0.3951657532 | AF24: U3= | AG24: =AG23/(LOG(AG4)/LOG(2)) -> 0.3669049095 | AK24: U4= | AL24: =AL23/(LOG(AL4)/LOG(2)) -> 0.3726848332 | AP24: U5= | AQ24: =AQ23/(LOG(AQ4)/LOG(2)) -> 0.4134325109 | AU24: U6= | AV24: =AV23/(LOG(AV4)/LOG(2)) -> 0.3532423292
A25: 12 | B25: 2261 | C25: 23 | D25: 2271 | E25: 13 | F25: 2276 | G25: 23 | H25: 2283 | K25: 0 | L25: 1212
A26: 21 | B26: 2393 | C26: 21 | D26: 2399 | E26: 22 | F26: 2406 | G26: 23 | H26: 2418 | K26: 0 | L26: 2222
A27: 21 | B27: 2519 | C27: 21 | D27: 2524 | E27: 22 | F27: 2528 | G27: 23 | H27: 2534 | K27: 0 | L27: 2222 | N27: Total Target Seq
A28: 21 | B28: 2631 | C28: 21 | D28: 2638 | E28: 22 | F28: 2646 | G28: 23 | H28: 2653 | K28: 0 | L28: 2222 | N28: =COUNTIF(L7:L171,G3) -> 17 | P28: 28 | Q28: 27 | R28: 28 | S28: 27 | T28: 28 | U28: 27
A29: 12 | B29: 2755 | C29: 23 | D29: 2760 | E29: 24 | F29: 2765 | G29: 23 | H29: 2769 | K29: 0 | L29: 1222 | P29: % of reinforcement given in 6 equal intervals based on number of trials
A30: 21 | B30: 2864 | C30: 21 | D30: 2868 | E30: 22 | F30: 2872 | G30: 14 | H30: 2875 | K30: 0 | L30: 2221 | P30: %_1 | Q30: %_2 | R30: %_3 | S30: %_4 | T30: %_5 | U30: %_6
A31: 12 | B31: 2974 | C31: 23 | D31: 2981 | E31: 13 | F31: 2990 | G31: 23 | H31: 2998 | K31: 0 | L31: 1212 | O31: target sequence | P31: =$G$3 -> 2212 | Q31: =$G$3 -> 2212 | R31: =$G$3 -> 2212 | S31: =$G$3 -> 2212 | T31: =$G$3 -> 2212 | U31: =$G$3 -> 2212
A32: 12 | B32: 3095 | C32: 23 | D32: 3097 | E32: 24 | F32: 3104 | G32: 23 | H32: 3108 | K32: 0 | L32: 1222 | O32: total reinforcement | P32: =U20 -> 0 | Q32: =Z20 -> 1 | R32: =AE20 -> 6 | S32: =AJ20 -> 4 | T32: =AO20 -> 4 | U32: =AT20 -> 2
A33: 21 | B33: 3205 | C33: 12 | D33: 3207 | E33: 24 | F33: 3211 | G33: 23 | H33: 3217 | K33: 0 | L33: 2122 | O33: % target
A34: 21 | B34: 3312 | C34: 21 | D34: 3317 | E34: 22 | F34: 3323 | G34: 23 | H34: 3329 | K34: 0 | L34: 2222 | O34: CCRF
A35: 21 | B35: 3427 | C35: 21 | D35: 3434 | E35: 22 | F35: 3439 | G35: 23 | H35: 3447 | K35: 0 | L35: 2222 | O35: % CCRf
A36: 21 | B36: 3545 | C36: 21 | D36: 3558 | E36: 22 | F36: 3564 | G36: 14 | H36: 3568 | K36: 0 | L36: 2221 | O36: average response rate | P36: =H34/P28 -> 118.8928571 | Q36: =(H61-H34)/Q28 -> 134.3703704 | R36: =(H89-H61)/R28 -> 191.6071429 | S36: =(H116-H89)/S28 -> 159.1851852 | T36: =(H144-H116)/T28 -> 138.3214286 | U36: =(H171-H144)/U28 -> 129.7037037
A37: 21 | B37: 3664 | C37: 21 | D37: 3668 | E37: 22 | F37: 3673 | G37: 23 | H37: 3681 | K37: 0 | L37: 2222
A38: 21 | B38: 3777 | C38: 21 | D38: 3784 | E38: 22 | F38: 3790 | G38: 23 | H38: 3797 | K38: 0 | L38: 2222
A39: 12 | B39: 3889 | C39: 14 | D39: 3891 | E39: 24 | F39: 3904 | G39: 23 | H39: 3910 | K39: 0 | L39: 1122
A40: 12 | B40: 4005 | C40: 23 | D40: 4016 | E40: 24 | F40: 4020 | G40: 23 | H40: 4025 | K40: 0 | L40: 1222
A41: 21 | B41: 4127 | C41: 21 | D41: 4131 | E41: 22 | F41: 4138 | G41: 23 | H41: 4144 | K41: 0 | L41: 2222
A42: 21 | B42: 4303 | C42: 21 | D42: 4308 | E42: 22 | F42: 4314 | G42: 23 | H42: 4319 | K42: 0 | L42: 2222
A43: 12 | B43: 4427 | C43: 23 | D43: 4431 | E43: 24 | F43: 4436 | G43: 23 | H43: 4442 | K43: 0 | L43: 1222
A44: 12 | B44: 4941 | C44: 23 | D44: 4949 | E44: 24 | F44: 4953 | G44: 23 | H44: 4955 | K44: 0 | L44: 1222
A45: 12 | B45: 5049 | C45: 23 | D45: 5060 | E45: 24 | F45: 5066 | G45: 23 | H45: 5073 | K45: 0 | L45: 1222
A46: 12 | B46: 5176 | C46: 23 | D46: 5181 | E46: 24 | F46: 5187 | G46: 23 | H46: 5195 | K46: 0 | L46: 1222
A47: 21 | B47: 5296 | C47: 21 | D47: 5301 | E47: 11 | F47: 5305 | G47: 21 | H47: 5313 | K47: 0 | L47: 2212
A48: 21 | B48: 5450 | C48: 21 | D48: 5457 | E48: 22 | F48: 5463 | G48: 23 | H48: 5470 | K48: 0 | L48: 2222
A49: 12 | B49: 5565 | C49: 23 | D49: 5568 | E49: 24 | F49: 5577 | G49: 23 | H49: 5583 | K49: 0 | L49: 1222
A50: 21 | B50: 5676 | C50: 12 | D50: 5678 | E50: 24 | F50: 5680 | G50: 23 | H50: 5687 | K50: 0 | L50: 2122
A51: 21 | B51: 5789 | C51: 21 | D51: 5798 | E51: 22 | F51: 5804 | G51: 23 | H51: 5811 | K51: 0 | L51: 2222
A52: 21 | B52: 5913 | C52: 21 | D52: 5917 | E52: 22 | F52: 5922 | G52: 23 | H52: 5928 | K52: 0 | L52: 2222
A53: 21 | B53: 6024 | C53: 12 | D53: 6027 | E53: 24 | F53: 6028 | G53: 23 | H53: 6033 | K53: 0 | L53: 2122
A54: 21 | B54: 6135 | C54: 21 | D54: 6140 | E54: 22 | F54: 6145 | G54: 23 | H54: 6151 | K54: 0 | L54: 2222
A55: 12 | B55: 6244 | C55: 23 | D55: 6246 | E55: 24 | F55: 6250 | G55: 23 | H55: 6256 | K55: 0 | L55: 1222
A56: 21 | B56: 6359 | C56: 12 | D56: 6365 | E56: 24 | F56: 6367 | G56: 23 | H56: 6373 | K56: 0 | L56: 2122
A57: 21 | B57: 6468 | C57: 12 | D57: 6470 | E57: 24 | F57: 6475 | G57: 23 | H57: 6480 | K57: 0 | L57: 2122
A58: 21 | B58: 6575 | C58: 12 | D58: 6598 | E58: 24 | F58: 6602 | G58: 23 | H58: 6609 | K58: 0 | L58: 2122
A59: 21 | B59: 6702 | C59: 21 | D59: 6709 | E59: 22 | F59: 6716 | G59: 23 | H59: 6725 | K59: 0 | L59: 2222
A60: 12 | B60: 6819 | C60: 23 | D60: 6831 | E60: 24 | F60: 6836 | G60: 23 | H60: 6842 | K60: 0 | L60: 1222
A61: 12 | B61: 6935 | C61: 23 | D61: 6942 | E61: 24 | F61: 6950 | G61: 23 | H61: 6957 | K61: 0 | L61: 1222
A62: 21 | B62: 7059 | C62: 21 | D62: 7064 | E62: 22 | F62: 7072 | G62: 14 | H62: 7076 | K62: 0 | L62: 2221
A63: 21 | B63: 7174 | C63: 21 | D63: 7178 | E63: 22 | F63: 7184 | G63: 23 | H63: 7190 | K63: 0 | L63: 2222
A64: 21 | B64: 7287 | C64: 21 | D64: 7294 | E64: 22 | F64: 7299 | G64: 23 | H64: 7306 | K64: 0 | L64: 2222
A65: 12 | B65: 7399 | C65: 23 | D65: 7410 | E65: 24 | F65: 7415 | G65: 23 | H65: 7420 | K65: 0 | L65: 1222
A66: 12 | B66: 7515 | C66: 23 | D66: 7518 | E66: 24 | F66: 7528 | G66: 23 | H66: 7533 | K66: 0 | L66: 1222
A67: 21 | B67: 7630 | C67: 21 | D67: 7634 | E67: 11 | F67: 7640 | G67: 21 | H67: 7644 | K67: 0 | L67: 2212
A68: 21 | B68: 8121 | C68: 21 | D68: 8127 | E68: 22 | F68: 8137 | G68: 23 | H68: 8144 | K68: 0 | L68: 2222
A69: 21 | B69: 8278 | C69: 21 | D69: 8291 | E69: 22 | F69: 8296 | G69: 23 | H69: 8303 | K69: 0 | L69: 2222
A70: 21 | B70: 8400 | C70: 12 | D70: 8403 | E70: 24 | F70: 8409 | G70: 23 | H70: 8415 | K70: 0 | L70: 2122
A71: 21 | B71: 8506 | C71: 12 | D71: 8511 | E71: 24 | F71: 8513 | G71: 23 | H71: 8517 | K71: 0 | L71: 2122
A72: 21 | B72: 8612 | C72: 21 | D72: 8615 | E72: 11 | F72: 8617 | G72: 21 | H72: 8621 | K72: 0 | L72: 2212
A73: 21 | B73: 9068 | C73: 21 | D73: 9088 | E73: 22 | F73: 9095 | G73: 23 | H73: 9101 | K73: 0 | L73: 2222
A74: 21 | B74: 9198 | C74: 21 | D74: 9202 | E74: 22 | F74: 9213 | G74: 23 | H74: 9226 | K74: 0 | L74: 2222
A75: 21 | B75: 9321 | C75: 21 | D75: 9326 | E75: 11 | F75: 9330 | G75: 21 | H75: 9332 | K75: 0 | L75: 2212
A76: 21 | B76: 9592 | C76: 21 | D76: 9612 | E76: 22 | F76: 9619 | G76: 23 | H76: 9629 | K76: 0 | L76: 2222
A77: 21 | B77: 9813 | C77: 21 | D77: 9825 | E77: 11 | F77: 9841 | G77: 21 | H77: 9854 | K77: 0 | L77: 2212
A78: 21 | B78: 10366 | C78: 21 | D78: 10371 | E78: 22 | F78: 10375 | G78: 23 | H78: 10381 | K78: 0 | L78: 2222
A79: 21 | B79: 10510 | C79: 21 | D79: 10516 | E79: 22 | F79: 10522 | G79: 23 | H79: 10541 | K79: 0 | L79: 2222
A80: 21 | B80: 10636 | C80: 21 | D80: 10642 | E80: 22 | F80: 10648 | G80: 23 | H80: 10654 | K80: 0 | L80: 2222
A81: 12 | B81: 10750 | C81: 23 | D81: 10758 | E81: 24 | F81: 10762 | G81: 14 | H81: 10767 | K81: 0 | L81: 1221
A82: 21 | B82: 10864 | C82: 21 | D82: 10870 | E82: 22 | F82: 10878 | G82: 14 | H82: 10884 | K82: 0 | L82: 2221
A83: 21 | B83: 10976 | C83: 21 | D83: 10982 | E83: 11 | F83: 10988 | G83: 21 | H83: 10989 | K83: 0 | L83: 2212
A84: 21 | B84: 11489 | C84: 21 | D84: 11493 | E84: 22 | F84: 11504 | G84: 23 | H84: 11510 | K84: 0 | L84: 2222
A85: 21 | B85: 11613 | C85: 21 | D85: 11619 | E85: 22 | F85: 11627 | G85: 23 | H85: 11636 | K85: 0 | L85: 2222
A86: 21 | B86: 11730 | C86: 21 | D86: 11736 | E86: 22 | F86: 11744 | G86: 23 | H86: 11757 | K86: 0 | L86: 2222
A87: 21 | B87: 11850 | C87: 21 | D87: 11855 | E87: 22 | F87: 11862 | G87: 23 | H87: 11867 | K87: 0 | L87: 2222
A88: 21 | B88: 11964 | C88: 21 | D88: 11969 | E88: 11 | F88: 11971 | G88: 21 | H88: 11975 | K88: 0 | L88: 2212
A89: 12 | B89: 12293 | C89: 23 | D89: 12310 | E89: 13 | F89: 12320 | G89: 23 | H89: 12322 | K89: 0 | L89: 1212
A90: 12 | B90: 12453 | C90: 23 | D90: 12465 | E90: 13 | F90: 12476 | G90: 23 | H90: 12489 | K90: 0 | L90: 1212
A91: 21 | B91: 12581 | C91: 21 | D91: 12583 | E91: 22 | F91: 12589 | G91: 23 | H91: 12595 | K91: 0 | L91: 2222
A92: 21 | B92: 12696 | C92: 21 | D92: 12701 | E92: 22 | F92: 12705 | G92: 23 | H92: 12717 | K92: 0 | L92: 2222
A93: 21 | B93: 12809 | C93: 21 | D93: 12815 | E93: 22 | F93: 12822 | G93: 23 | H93: 12828 | K93: 0 | L93: 2222
A94: 21 | B94: 12920 | C94: 21 | D94: 12924 | E94: 22 | F94: 12931 | G94: 23 | H94: 12940 | K94: 0 | L94: 2222
A95: 21 | B95: 13038 | C95: 21 | D95: 13042 | E95: 22 | F95: 13048 | G95: 23 | H95: 13054 | K95: 0 | L95: 2222
A96: 21 | B96: 13151 | C96: 21 | D96: 13154 | E96: 11 | F96: 13156 | G96: 21 | H96: 13160 | K96: 0 | L96: 2212
A97: 12 | B97: 13436 | C97: 23 | D97: 13445 | E97: 24 | F97: 13456 | G97: 23 | H97: 13463 | K97: 0 | L97: 1222
A98: 21 | B98: 13622 | C98: 21 | D98: 13626 | E98: 22 | F98: 13633 | G98: 23 | H98: 13640 | K98: 0 | L98: 2222
A99: 21 | B99: 13738 | C99: 21 | D99: 13744 | E99: 22 | F99: 13752 | G99: 23 | H99: 13760 | K99: 0 | L99: 2222
A100: 21 | B100: 13854 | C100: 21 | D100: 13860 | E100: 11 | F100: 13863 | G100: 21 | H100: 13866 | K100: 0 | L100: 2212
A101: 12 | B101: 14302 | C101: 23 | D101: 14312 | E101: 24 | F101: 14319 | G101: 23 | H101: 14336 | K101: 0 | L101: 1222
A102: 21 | B102: 14430 | C102: 21 | D102: 14436 | E102: 22 | F102: 14444 | G102: 23 | H102: 14451 | K102: 0 | L102: 2222
A103: 21 | B103: 14546 | C103: 21 | D103: 14550 | E103: 22 | F103: 14555 | G103: 23 | H103: 14560 | K103: 0 | L103: 2222
A104: 21 | B104: 14652 | C104: 21 | D104: 14657 | E104: 22 | F104: 14665 | G104: 23 | H104: 14675 | K104: 0 | L104: 2222
A105: 21 | B105: 14771 | C105: 21 | D105: 14776 | E105: 22 | F105: 14783 | G105: 23 | H105: 14789 | K105: 0 | L105: 2222
A106: 12 | B106: 14889 | C106: 23 | D106: 14901 | E106: 24 | F106: 14907 | G106: 23 | H106: 14912 | K106: 0 | L106: 1222
A107: 12 | B107: 15005 | C107: 23 | D107: 15007 | E107: 24 | F107: 15013 | G107: 23 | H107: 15020 | K107: 0 | L107: 1222
A108: 12 | B108: 15112 | C108: 23 | D108: 15116 | E108: 24 | F108: 15121 | G108: 23 | H108: 15129 | K108: 0 | L108: 1222
A109: 21 | B109: 15224 | C109: 21 | D109: 15228 | E109: 11 | F109: 15232 | G109: 21 | H109: 15234 | K109: 0 | L109: 2212
A110: 12 | B110: 15669 | C110: 23 | D110: 15678 | E110: 24 | F110: 15683 | G110: 23 | H110: 15687 | K110: 0 | L110: 1222
A111: 21 | B111: 15788 | C111: 21 | D111: 15796 | E111: 11 | F111: 15799 | G111: 21 | H111: 15801 | K111: 0 | L111: 2212
A112: 21 | B112: 16129 | C112: 21 | D112: 16142 | E112: 22 | F112: 16153 | G112: 23 | H112: 16160 | K112: 0 | L112: 2222
A113: 21 | B113: 16272 | C113: 12 | D113: 16274 | E113: 24 | F113: 16280 | G113: 23 | H113: 16285 | K113: 0 | L113: 2122
A114: 21 | B114: 16378 | C114: 12 | D114: 16383 | E114: 24 | F114: 16385 | G114: 23 | H114: 16392 | K114: 0 | L114: 2122
A115: 21 | B115: 16487 | C115: 21 | D115: 16493 | E115: 22 | F115: 16500 | G115: 14 | H115: 16505 | K115: 0 | L115: 2221
A116: 21 | B116: 16600 | C116: 12 | D116: 16604 | E116: 24 | F116: 16612 | G116: 23 | H116: 16620 | K116: 0 | L116: 2122
A117: 21 | B117: 16715 | C117: 21 | D117: 16722 | E117: 22 | F117: 16728 | G117: 23 | H117: 16734 | K117: 0 | L117: 2222
A118: 21 | B118: 16832 | C118: 21 | D118: 16835 | E118: 11 | F118: 16837 | G118: 21 | H118: 16841 | K118: 0 | L118: 2212
A119: 12 | B119: 17065 | C119: 23 | D119: 17074 | E119: 24 | F119: 17079 | G119: 23 | H119: 17088 | K119: 0 | L119: 1222
A120: 12 | B120: 17180 | C120: 23 | D120: 17191 | E120: 24 | F120: 17202 | G120: 23 | H120: 17210 | K120: 0 | L120: 1222
A121: 21 | B121: 17314 | C121: 21 | D121: 17320 | E121: 22 | F121: 17325 | G121: 23 | H121: 17330 | K121: 0 | L121: 2222
A122: 21 | B122: 17425 | C122: 21 | D122: 17429 | E122: 22 | F122: 17435 | G122: 23 | H122: 17442 | K122: 0 | L122: 2222
A123: 21 | B123: 17535 | C123: 12 | D123: 17537 | E123: 24 | F123: 17540 | G123: 23 | H123: 17547 | K123: 0 | L123: 2122
A124: 21 | B124: 17639 | C124: 12 | D124: 17644 | E124: 24 | F124: 17647 | G124: 23 | H124: 17653 | K124: 0 | L124: 2122
A125: 21 | B125: 17748 | C125: 21 | D125: 17753 | E125: 22 | F125: 17761 | G125: 23 | H125: 17767 | K125: 0 | L125: 2222
A126: 12 | B126: 17861 | C126: 23 | D126: 17878 | E126: 24 | F126: 17882 | G126: 23 | H126: 17887 | K126: 0 | L126: 1222
A127: 21 | B127: 17984 | C127: 21 | D127: 17989 | E127: 22 | F127: 17993 | G127: 23 | H127: 17999 | K127: 0 | L127: 2222
A128: 12 | B128: 18094 | C128: 14 | D128: 18101 | E128: 24 | F128: 18103 | G128: 23 | H128: 18110 | K128: 0 | L128: 1122
A129: 21 | B129: 18202 | C129: 21 | D129: 18207 | E129: 22 | F129: 18214 | G129: 23 | H129: 18223 | K129: 0 | L129: 2222
A130: 12 | B130: 18316 | C130: 23 | D130: 18321 | E130: 24 | F130: 18327 | G130: 23 | H130: 18333 | K130: 0 | L130: 1222
A131: 21 | B131: 18428 | C131: 21 | D131: 18434 | E131: 22 | F131: 18440 | G131: 23 | H131: 18448 | K131: 0 | L131: 2222
A132: 21 | B132: 18540 | C132: 21 | D132: 18545 | E132: 11 | F132: 18549 | G132: 21 | H132: 18552 | K132: 0 | L132: 2212
A133: 12 | B133: 18870 | C133: 23 | D133: 18879 | E133: 24 | F133: 18889 | G133: 23 | H133: 18894 | K133: 0 | L133: 1222
A134: 21 | B134: 18999 | C134: 12 | D134: 19004 | E134: 24 | F134: 19006 | G134: 23 | H134: 19015 | K134: 0 | L134: 2122
A135: 21 | B135: 19114 | C135: 12 | D135: 19119 | E135: 24 | F135: 19123 | G135: 23 | H135: 19129 | K135: 0 | L135: 2122
A136: 21 | B136: 19222 | C136: 12 | D136: 19223 | E136: 24 | F136: 19227 | G136: 23 | H136: 19234 | K136: 0 | L136: 2122
A137: 21 | B137: 19329 | C137: 21 | D137: 19336 | E137: 22 | F137: 19345 | G137: 23 | H137: 19351 | K137: 0 | L137: 2222
A138: 21 | B138: 19443 | C138: 21 | D138: 19446 | E138: 11 | F138: 19448 | G138: 21 | H138: 19452 | K138: 0 | L138: 2212
A139: 12 | B139: 19864 | C139: 14 | D139: 19867 | E139: 24 | F139: 19878 | G139: 23 | H139: 19882 | K139: 0 | L139: 1122
A140: 12 | B140: 20002 | C140: 23 | D140: 20013 | E140: 24 | F140: 20022 | G140: 23 | H140: 20029 | K140: 0 | L140: 1222
A141: 12 | B141: 20127 | C141: 14 | D141: 20142 | E141: 24 | F141: 20151 | G141: 14 | H141: 20155 | K141: 0 | L141: 1121
A142: 21 | B142: 20250 | C142: 21 | D142: 20253 | E142: 22 | F142: 20261 | G142: 23 | H142: 20269 | K142: 0 | L142: 2222
A143: 21 | B143: 20369 | C143: 21 | D143: 20375 | E143: 22 | F143: 20381 | G143: 23 | H143: 20389 | K143: 0 | L143: 2222
A144: 21 | B144: 20483 | C144: 21 | D144: 20487 | E144: 11 | F144: 20489 | G144: 21 | H144: 20493 | K144: 0 | L144: 2212
A145: 12 | B145: 20758 | C145: 23 | D145: 20769 | E145: 24 | F145: 20780 | G145: 23 | H145: 20785 | K145: 0 | L145: 1222
A146: 12 | B146: 20934 | C146: 23 | D146: 20945 | E146: 24 | F146: 20950 | G146: 23 | H146: 20958 | K146: 0 | L146: 1222
A147: 21 | B147: 21061 | C147: 21 | D147: 21069 | E147: 22 | F147: 21075 | G147: 23 | H147: 21082 | K147: 0 | L147: 2222
A148: 21 | B148: 21178 | C148: 12 | D148: 21181 | E148: 24 | F148: 21184 | G148: 23 | H148: 21189 | K148: 0 | L148: 2122
A149: 21 | B149: 21281 | C149: 21 | D149: 21284 | E149: 11 | F149: 21287 | G149: 21 | H149: 21289 | K149: 0 | L149: 2212
A150: 12 | B150: 21566 | C150: 23 | D150: 21579 | E150: 24 | F150: 21583 | G150: 23 | H150: 21591 | K150: 0 | L150: 1222
A151: 21 | B151: 21685 | C151: 21 | D151: 21690 | E151: 22 | F151: 21705 | G151: 23 | H151: 21712 | K151: 0 | L151: 2222
A152: 21 | B152: 21806 | C152: 12 | D152: 21809 | E152: 24 | F152: 21815 | G152: 23 | H152: 21821 | K152: 0 | L152: 2122
A153: 21 | B153: 21918 | C153: 21 | D153: 21923 | E153: 22 | F153: 21928 | G153: 23 | H153: 21934 | K153: 0 | L153: 2222
A154: 12 | B154: 22027 | C154: 23 | D154: 22030 | E154: 24 | F154: 22035 | G154: 23 | H154: 22044 | K154: 0 | L154: 1222
A155: 21 | B155: 22140 | C155: 21 | D155: 22147 | E155: 22 | F155: 22153 | G155: 23 | H155: 22161 | K155: 0 | L155: 2222
A156: 12 | B156: 22254 | C156: 23 | D156: 22263 | E156: 24 | F156: 22268 | G156: 23 | H156: 22273 | K156: 0 | L156: 1222
A157: 21 | B157: 22380 | C157: 21 | D157: 22383 | E157: 22 | F157: 22389 | G157: 23 | H157: 22395 | K157: 0 | L157: 2222
A158: 21 | B158: 22495 | C158: 21 | D158: 22499 | E158: 22 | F158: 22506 | G158: 23 | H158: 22512 | K158: 0 | L158: 2222
A159: 21 | B159: 22606 | C159: 21 | D159: 22611 | E159: 22 | F159: 22617 | G159: 23 | H159: 22623 | K159: 0 | L159: 2222
A160: 12 | B160: 22716 | C160: 23 | D160: 22718 | E160: 24 | F160: 22725 | G160: 23 | H160: 22730 | K160: 0 | L160: 1222
A161: 21 | B161: 22825 | C161: 21 | D161: 22832 | E161: 22 | F161: 22838 | G161: 23 | H161: 22845 | K161: 0 | L161: 2222
A162: 21 | B162: 22940 | C162: 21 | D162: 22945 | E162: 22 | F162: 22952 | G162: 23 | H162: 22957 | K162: 0 | L162: 2222
A163: 21 | B163: 23056 | C163: 21 | D163: 23062 | E163: 22 | F163: 23069 | G163: 23 | H163: 23075 | K163: 0 | L163: 2222
A164: 21 | B164: 23174 | C164: 21 | D164: 23180 | E164: 22 | F164: 23186 | G164: 23 | H164: 23192 | K164: 0 | L164: 2222
A165: 12 | B165: 23284 | C165: 14 | D165: 23290 | E165: 24 | F165: 23296 | G165: 23 | H165: 23301 | K165: 0 | L165: 1122
A166: 12 | B166: 23395 | C166: 23 | D166: 23397 | E166: 24 | F166: 23403 | G166: 23 | H166: 23410 | K166: 0 | L166: 1222
A167: 21 | B167: 23504 | C167: 21 | D167: 23511 | E167: 22 | F167: 23517 | G167: 23 | H167: 23523 | K167: 0 | L167: 2222
A168: 21 | B168: 23618 | C168: 21 | D168: 23625 | E168: 22 | F168: 23634 | G168: 23 | H168: 23640 | K168: 0 | L168: 2222
A169: 12 | B169: 23733 | C169: 23 | D169: 23744 | E169: 24 | F169: 23748 | G169: 23 | H169: 23752 | K169: 0 | L169: 1222
A170: 12 | B170: 23858 | C170: 23 | D170: 23867 | E170: 24 | F170: 23871 | G170: 14 | H170: 23873 | K170: 0 | L170: 1221
A171: 21 | B171: 23974 | C171: 21 | D171: 23978 | E171: 11 | F171: 23987 | G171: 21 | H171: 23995 | K171: 1 | L171: 2212

Sheet !M629A20.Gus
A1: Report for:!M629A20.Gus
A2: Date: | B2: <date>
A3: Hen: | B3: <hen> | F3: Correct Sequence | G3: =Start!J2 -> 2212 | P3: Total Sequences in Data | Q3: =4994-COUNTBLANK(L7:L5000) -> 164 | V3: Total Sequences in Block Data | W3: =COUNTA(L7:L33) -> 27 | AA3: Total Sequences in Block Data | AB3: =COUNTA(L34:L61) -> 28 | AF3: Total Sequences in Block Data | AG3: =COUNTA(L62:L88) -> 27 | AK3: Total Sequences in Block Data | AL3: =COUNTA(L89:L115) -> 27 | AP3: Total Sequences in Block Data | AQ3: =COUNTA(L116:L143) -> 28 | AU3: Total Sequences in Block Data | AV3: =COUNTA(L144:L170) -> 27
P4: Total Sequences in Summary | Q4: =SUM(O7:O22) -> 164 | V4: Total Sequences in Block Summary | W4: =SUM(U7:U22) -> 27 | AA4: Total Sequences in Block Summary | AB4: =SUM(Z7:Z22) -> 28 | AF4: Total Sequences in Block Summary | AG4: =SUM(AE7:AE22) -> 27 | AK4: Total Sequences in Block Summary | AL4: =SUM(AJ7:AJ22) -> 27 | AP4: Total Sequences in Block Summary | AQ4: =SUM(AO7:AO22) -> 28 | AU4: Total Sequences in Block Summary | AV4: =SUM(AT7:AT22) -> 27
T5: Block 1 | Y5: Block 2 | AD5: Block 3 | AI5: Block 4 | AN5: Block 5 | AS5: Block 6
A6: Sequence Component 1 | B6: Time 1 | C6: Sequence Component 2 | D6: Time 2 | E6: Sequence Component 3 | F6: Time 3 | G6: Sequence Component 4 | H6: Time 4 | I6: Sequence Component 5 | J6: Time 5 | K6: Correct? 0=No 1=Yes | L6: Sequence | N6: Frequency | P6: Relative Frequency | Q6: Variability | T6: Frequency | V6: Relative Frequency | W6: Variability | Y6: Frequency | AA6: Relative Frequency | AB6: Variability | AD6: Frequency | AF6: Relative Frequency | AG6: Variability | AI6: Frequency | AK6: Relative Frequency | AL6: Variability | AN6: Frequency | AP6: Relative Frequency | AQ6: Variability | AS6: Frequency | AU6: Relative Frequency | AV6: Variability
A7: 21 | B7: 44 | C7: 21 | D7: 52 | E7: 22 | F7: 60 | G7: 23 | H7: 67 | K7: 0 | L7: 2222 | N7: 1111 | O7: =COUNTIF($L$7:$L$500,N7) -> 0 | P7: =O7/$Q$4 -> 0 | Q7: =IF(P7=0,0,(P7*((LOG(P7))/LOG(2)))) -> 0 | T7: =N7 -> 1111 | U7: =COUNTIF(L7:L33,T7) -> 0 | V7: =U7/(W4-U20) -> 0 | W7: =IF(V7=0,0,(V7*((LOG(V7))/LOG(2)))) -> 0 | Y7: =N7 -> 1111 | Z7: =COUNTIF(L34:L61,Y7) -> 0 | AA7: =Z7/(AB4-Z20) -> 0 | AB7: =IF(AA7=0,0,(AA7*((LOG(AA7))/LOG(2)))) -> 0 | AD7: =N7 -> 1111 | AE7: =COUNTIF(L62:L88,AD7) -> 0 | AF7: =AE7/(AG4-AE20) -> 0 | AG7: =IF(AF7=0,0,(AF7*((LOG(AF7))/LOG(2)))) -> 0 | AI7: =N7 -> 1111 | AJ7: =COUNTIF(L89:L115,AI7) -> 0 | AK7: =AJ7/(AL4-AJ20) -> 0 | AL7: =IF(AK7=0,0,(AK7*((LOG(AK7))/LOG(2)))) -> 0 | AN7: =N7 -> 1111 | AO7: =COUNTIF(L116:L143,AN7) -> 0 | AP7: =AO7/(AQ4-AO20) -> 0 | AQ7: =IF(AP7=0,0,(AP7*((LOG(AP7))/LOG(2)))) -> 0 | AS7: =N7 -> 1111 | AT7: =COUNTIF(L144:L170,AS7) -> 0 | AU7: =AT7/(AV4-AT20) -> 0 | AV7: =IF(AU7=0,0,(AU7*((LOG(AU7))/LOG(2)))) -> 0
A8: 21 | B8: 221 | C8: 21 | D8: 227 | E8: 22 | F8: 234 | G8: 23 | H8: 240 | K8: 0 | L8: 2222 | N8: 1112 | O8: =COUNTIF($L$7:$L$500,N8) -> 1 | P8: =O8/$Q$4 -> 0.006097560976 | Q8: =IF(P8=0,0,(P8*((LOG(P8))/LOG(2)))) -> -0.04486312198 | T8: =N8 -> 1112 | U8: =COUNTIF(L7:L33,T8) -> 1 | V8: =U8/(W4-U20) -> 0.03846153846 | W8: =IF(V8=0,0,(V8*((LOG(V8))/LOG(2)))) -> -0.180786143 | Y8: =N8 -> 1112 | Z8: =COUNTIF(L34:L61,Y8) -> 0 | AA8: =Z8/(AB4-Z20) -> 0 | AB8: =IF(AA8=0,0,(AA8*((LOG(AA8))/LOG(2)))) -> 0 | AD8: =N8 -> 1112 | AE8: =COUNTIF(L62:L88,AD8) -> 0 | AF8: =AE8/(AG4-AE20) -> 0 | AG8: =IF(AF8=0,0,(AF8*((LOG(AF8))/LOG(2)))) -> 0 | AI8: =N8 -> 1112 | AJ8: =COUNTIF(L89:L115,AI8) -> 0 | AK8: =AJ8/(AL4-AJ20) -> 0 | AL8: =IF(AK8=0,0,(AK8*((LOG(AK8))/LOG(2)))) -> 0 | AN8: =N8 -> 1112 | AO8: =COUNTIF(L116:L143,AN8) -> 0 | AP8: =AO8/(AQ4-AO20) -> 0 | AQ8: =IF(AP8=0,0,(AP8*((LOG(AP8))/LOG(2)))) -> 0 | AS8: =N8 -> 1112 | AT8: =COUNTIF(L144:L170,AS8) -> 0 | AU8: =AT8/(AV4-AT20) -> 0 | AV8: =IF(AU8=0,0,(AU8*((LOG(AU8))/LOG(2)))) -> 0
A9: 12 | B9: 336 | C9: 23 | D9: 341 | E9: 24 | F9: 344 | G9: 23 | H9: 351 | K9: 0 | L9: 1222 | N9: 1121 | O9: =COUNTIF($L$7:$L$500,N9) -> 1 | P9: =O9/$Q$4 -> 0.006097560976 | Q9: =IF(P9=0,0,(P9*((LOG(P9))/LOG(2)))) -> -0.04486312198 | T9: =N9 -> 1121 | U9: =COUNTIF(L7:L33,T9) -> 1 | V9: =U9/(W4-U20) -> 0.03846153846 | W9: =IF(V9=0,0,(V9*((LOG(V9))/LOG(2)))) -> -0.180786143 | Y9: =N9 -> 1121 | Z9: =COUNTIF(L34:L61,Y9) -> 0 | AA9: =Z9/(AB4-Z20) -> 0 | AB9: =IF(AA9=0,0,(AA9*((LOG(AA9))/LOG(2)))) -> 0 | AD9: =N9 -> 1121 | AE9: =COUNTIF(L62:L88,AD9) -> 0 | AF9: =AE9/(AG4-AE20) -> 0 | AG9: =IF(AF9=0,0,(AF9*((LOG(AF9))/LOG(2)))) -> 0 | AI9: =N9 -> 1121 | AJ9: =COUNTIF(L89:L115,AI9) -> 0 | AK9: =AJ9/(AL4-AJ20) -> 0 | AL9: =IF(AK9=0,0,(AK9*((LOG(AK9))/LOG(2)))) -> 0 | AN9: =N9 -> 1121 | AO9: =COUNTIF(L116:L143,AN9) -> 0 | AP9: =AO9/(AQ4-AO20) -> 0 | AQ9: =IF(AP9=0,0,(AP9*((LOG(AP9))/LOG(2)))) -> 0 | AS9: =N9 -> 1121 | AT9: =COUNTIF(L144:L170,AS9) -> 0 | AU9: =AT9/(AV4-AT20) -> 0 | AV9: =IF(AU9=0,0,(AU9*((LOG(AU9))/LOG(2)))) -> 0
A10: 21 | B10: 443 | C10: 21 | D10: 446 | E10: 22 | F10: 449 | G10: 23 | H10: 454 | K10: 0 | L10: 2222 | N10: 1122 | O10: =COUNTIF($L$7:$L$500,N10) -> 5 | P10: =O10/$Q$4 -> 0.03048780488 | Q10: =IF(P10=0,0,(P10*((LOG(P10))/LOG(2)))) -> -0.1535251192 | T10: =N10 -> 1122 | U10: =COUNTIF(L7:L33,T10) -> 3 | V10: =U10/(W4-U20) -> 0.1153846154 | W10: =IF(V10=0,0,(V10*((LOG(V10))/LOG(2)))) -> -0.3594781405 | Y10: =N10 -> 1122 | Z10: =COUNTIF(L34:L61,Y10) -> 0 | AA10: =Z10/(AB4-Z20) -> 0 | AB10: =IF(AA10=0,0,(AA10*((LOG(AA10))/LOG(2)))) -> 0 | AD10: =N10 -> 1122 | AE10: =COUNTIF(L62:L88,AD10) -> 0 | AF10: =AE10/(AG4-AE20) -> 0 | AG10: =IF(AF10=0,0,(AF10*((LOG(AF10))/LOG(2)))) -> 0 | AI10: =N10 -> 1122 | AJ10: =COUNTIF(L89:L115,AI10) -> 0 | AK10: =AJ10/(AL4-AJ20) -> 0 | AL10: =IF(AK10=0,0,(AK10*((LOG(AK10))/LOG(2)))) -> 0 | AN10: =N10 -> 1122 | AO10: =COUNTIF(L116:L143,AN10) -> 0 | AP10: =AO10/(AQ4-AO20) -> 0 | AQ10: =IF(AP10=0,0,(AP10*((LOG(AP10))/LOG(2)))) -> 0 | AS10: =N10 -> 1122 | AT10: =COUNTIF(L144:L170,AS10) -> 2 | AU10: =AT10/(AV4-AT20) -> 0.09090909091 | AV10: =IF(AU10=0,0,(AU10*((LOG(AU10))/LOG(2)))) -> -0.3144937835
A11: 12 | B11: 550 | C11: 23 | D11: 561 | E11: 24 | F11: 569 | G11: 23 | H11: 575 | K11: 0 | L11: 1222 | N11: 1211 | O11: =COUNTIF($L$7:$L$500,N11) -> 1 | P11: =O11/$Q$4 -> 0.006097560976 | Q11: =IF(P11=0,0,(P11*((LOG(P11))/LOG(2)))) -> -0.04486312198 | T11: =N11 -> 1211 | U11: =COUNTIF(L7:L33,T11) -> 0 | V11: =U11/(W4-U20) -> 0 | W11: =IF(V11=0,0,(V11*((LOG(V11))/LOG(2)))) -> 0 | Y11: =N11 -> 1211 | Z11: =COUNTIF(L34:L61,Y11) -> 0 | AA11: =Z11/(AB4-Z20) -> 0 | AB11: =IF(AA11=0,0,(AA11*((LOG(AA11))/LOG(2)))) -> 0 | AD11: =N11 -> 1211 | AE11: =COUNTIF(L62:L88,AD11) -> 0 | AF11: =AE11/(AG4-AE20) -> 0 | AG11: =IF(AF11=0,0,(AF11*((LOG(AF11))/LOG(2)))) -> 0 | AI11: =N11 -> 1211 | AJ11: =COUNTIF(L89:L115,AI11) -> 0 | AK11: =AJ11/(AL4-AJ20) -> 0 | AL11: =IF(AK11=0,0,(AK11*((LOG(AK11))/LOG(2)))) -> 0 | AN11: =N11 -> 1211 | AO11: =COUNTIF(L116:L143,AN11) -> 1 | AP11: =AO11/(AQ4-AO20) -> 0.04 | AQ11: =IF(AP11=0,0,(AP11*((LOG(AP11))/LOG(2)))) -> -0.1857542476 | AS11: =N11 -> 1211 | AT11: =COUNTIF(L144:L170,AS11) -> 0 | AU11: =AT11/(AV4-AT20) -> 0 | AV11: =IF(AU11=0,0,(AU11*((LOG(AU11))/LOG(2)))) -> 0
A12: 21 | B12: 673 | C12: 21 | D12: 679 | E12: 22 | F12: 684 | G12: 23 | H12: 691 | K12: 0 | L12: 2222 | N12: 1212 | O12: =COUNTIF($L$7:$L$500,N12) -> 2 | P12: =O12/$Q$4 -> 0.01219512195 | Q12: =IF(P12=0,0,(P12*((LOG(P12))/LOG(2)))) -> -0.07753112201 | T12: =N12 -> 1212 | U12: =COUNTIF(L7:L33,T12) -> 0 | V12: =U12/(W4-U20) -> 0 | W12: =IF(V12=0,0,(V12*((LOG(V12))/LOG(2)))) -> 0 | Y12: =N12 -> 1212 | Z12: =COUNTIF(L34:L61,Y12) -> 0 | AA12: =Z12/(AB4-Z20) -> 0 | AB12: =IF(AA12=0,0,(AA12*((LOG(AA12))/LOG(2)))) -> 0 | AD12: =N12 -> 1212 | AE12: =COUNTIF(L62:L88,AD12) -> 0 | AF12: =AE12/(AG4-AE20) -> 0 | AG12: =IF(AF12=0,0,(AF12*((LOG(AF12))/LOG(2)))) -> 0 | AI12: =N12 -> 1212 | AJ12: =COUNTIF(L89:L115,AI12) -> 1 | AK12: =AJ12/(AL4-AJ20) -> 0.04761904762 | AL12: =IF(AK12=0,0,(AK12*((LOG(AK12))/LOG(2)))) -> -0.2091579725 | AN12: =N12 -> 1212 | AO12: =COUNTIF(L116:L143,AN12) -> 0 | AP12: =AO12/(AQ4-AO20) -> 0 | AQ12: =IF(AP12=0,0,(AP12*((LOG(AP12))/LOG(2)))) -> 0 | AS12: =N12 -> 1212 | AT12: =COUNTIF(L144:L170,AS12) -> 1 | AU12: =AT12/(AV4-AT20) -> 0.04545454545 | AV12: =IF(AU12=0,0,(AU12*((LOG(AU12))/LOG(2)))) -> -0.2027014372
A13: 21 | B13: 798 | C13: 21 | D13: 805 | E13: 22 | F13: 812 | G13: 23 | H13: 818 | K13: 0 | L13: 2222 | N13: 1221 | O13: =COUNTIF($L$7:$L$500,N13) -> 5 | P13: =O13/$Q$4 -> 0.03048780488 | Q13: =IF(P13=0,0,(P13*((LOG(P13))/LOG(2)))) -> -0.1535251192 | T13: =N13 -> 1221 | U13: =COUNTIF(L7:L33,T13) -> 1 | V13: =U13/(W4-U20) -> 0.03846153846 | W13: =IF(V13=0,0,(V13*((LOG(V13))/LOG(2)))) -> -0.180786143 | Y13: =N13 -> 1221 | Z13: =COUNTIF(L34:L61,Y13) -> 0 | AA13: =Z13/(AB4-Z20) -> 0 | AB13: =IF(AA13=0,0,(AA13*((LOG(AA13))/LOG(2)))) -> 0 | AD13: =N13 -> 1221 | AE13: =COUNTIF(L62:L88,AD13) -> 3 | AF13: =AE13/(AG4-AE20) -> 0.1363636364 | AG13: =IF(AF13=0,0,(AF13*((LOG(AF13))/LOG(2)))) -> -0.3919730615 | AI13: =N13 -> 1221 | AJ13: =COUNTIF(L89:L115,AI13) -> 1 | AK13: =AJ13/(AL4-AJ20) -> 0.04761904762 | AL13: =IF(AK13=0,0,(AK13*((LOG(AK13))/LOG(2)))) -> -0.2091579725 | AN13: =N13 -> 1221 | AO13: =COUNTIF(L116:L143,AN13) -> 0 | AP13: =AO13/(AQ4-AO20) -> 0 | AQ13: =IF(AP13=0,0,(AP13*((LOG(AP13))/LOG(2)))) -> 0 | AS13: =N13 -> 1221 | AT13: =COUNTIF(L144:L170,AS13) -> 0 | AU13: =AT13/(AV4-AT20) -> 0 | AV13: =IF(AU13=0,0,(AU13*((LOG(AU13))/LOG(2)))) -> 0
A14: 12 | B14: 921 | C14: 14 | D14: 923 | E14: 24 | F14: 927 | G14: 14 | H14: 935 | K14: 0 | L14: 1121 | N14: 1222 | O14: =COUNTIF($L$7:$L$500,N14) -> 33 | P14: =O14/$Q$4 -> 0.2012195122 | Q14: =IF(P14=0,0,(P14*((LOG(P14))/LOG(2)))) -> -0.4654525013 | T14: =N14 -> 1222 | U14: =COUNTIF(L7:L33,T14) -> 4 | V14: =U14/(W4-U20) -> 0.1538461538 | W14: =IF(V14=0,0,(V14*((LOG(V14))/LOG(2)))) -> -0.4154522643 | Y14: =N14 -> 1222 | Z14: =COUNTIF(L34:L61,Y14) -> 10 | AA14: =Z14/(AB4-Z20) -> 0.4 | AB14: =IF(AA14=0,0,(AA14*((LOG(AA14))/LOG(2)))) -> -0.528771238 | AD14: =N14 -> 1222 | AE14: =COUNTIF(L62:L88,AD14) -> 2 | AF14: =AE14/(AG4-AE20) -> 0.09090909091 | AG14: =IF(AF14=0,0,(AF14*((LOG(AF14))/LOG(2)))) -> -0.3144937835 | AI14: =N14 -> 1222 | AJ14: =COUNTIF(L89:L115,AI14) -> 5 | AK14: =AJ14/(AL4-AJ20) -> 0.2380952381 | AL14: =IF(AK14=0,0,(AK14*((LOG(AK14))/LOG(2)))) -> -0.49294984 | AN14: =N14 -> 1222 | AO14: =COUNTIF(L116:L143,AN14) -> 8 | AP14: =AO14/(AQ4-AO20) -> 0.32 | AQ14: =IF(AP14=0,0,(AP14*((LOG(AP14))/LOG(2)))) -> -0.5260339807 | AS14: =N14 -> 1222 | AT14: =COUNTIF(L144:L170,AS14) -> 4 | AU14: =AT14/(AV4-AT20) -> 0.1818181818 | AV14: =IF(AU14=0,0,(AU14*((LOG(AU14))/LOG(2)))) -> -0.4471693852
A15: 21 | B15: 1040 | C15: 21 | D15: 1042 | E15: 22 | F15: 1047 | G15: 23 | H15: 1060 | K15: 0 | L15: 2222 | N15: 2111 | O15: =COUNTIF($L$7:$L$500,N15) -> 0 | P15: =O15/$Q$4 -> 0 | Q15: =IF(P15=0,0,(P15*((LOG(P15))/LOG(2)))) -> 0 | T15: =N15 -> 2111 | U15: =COUNTIF(L7:L33,T15) -> 0 | V15: =U15/(W4-U20) -> 0 | W15: =IF(V15=0,0,(V15*((LOG(V15))/LOG(2)))) -> 0 | Y15: =N15 -> 2111 | Z15: =COUNTIF(L34:L61,Y15) -> 0 | AA15: =Z15/(AB4-Z20) -> 0 | AB15: =IF(AA15=0,0,(AA15*((LOG(AA15))/LOG(2)))) -> 0 | AD15: =N15 -> 2111 | AE15: =COUNTIF(L62:L88,AD15) -> 0 | AF15: =AE15/(AG4-AE20) -> 0 | AG15: =IF(AF15=0,0,(AF15*((LOG(AF15))/LOG(2)))) -> 0 | AI15: =N15 -> 2111 | AJ15: =COUNTIF(L89:L115,AI15) -> 0 | AK15: =AJ15/(AL4-AJ20) -> 0 | AL15: =IF(AK15=0,0,(AK15*((LOG(AK15))/LOG(2)))) -> 0 | AN15: =N15 -> 2111 | AO15: =COUNTIF(L116:L143,AN15) -> 0 | AP15: =AO15/(AQ4-AO20) -> 0 | AQ15: =IF(AP15=0,0,(AP15*((LOG(AP15))/LOG(2)))) -> 0 | AS15: =N15 -> 2111 | AT15: =COUNTIF(L144:L170,AS15) -> 0 | AU15: =AT15/(AV4-AT20) -> 0 | AV15: =IF(AU15=0,0,(AU15*((LOG(AU15))/LOG(2)))) -> 0
A16: 21 | B16: 1153 | C16: 21 | D16: 1155 | E16: 22 | F16: 1160 | G16: 23 | H16: 1167 | K16: 0 | L16: 2222 | N16: 2112 | O16: =COUNTIF($L$7:$L$500,N16) -> 0 | P16: =O16/$Q$4 -> 0 | Q16: =IF(P16=0,0,(P16*((LOG(P16))/LOG(2)))) -> 0 | T16: =N16 -> 2112 | U16: =COUNTIF(L7:L33,T16) -> 0 | V16: =U16/(W4-U20) -> 0 | W16: =IF(V16=0,0,(V16*((LOG(V16))/LOG(2)))) -> 0 | Y16: =N16 -> 2112 | Z16: =COUNTIF(L34:L61,Y16) -> 0 | AA16: =Z16/(AB4-Z20) -> 0 | AB16: =IF(AA16=0,0,(AA16*((LOG(AA16))/LOG(2)))) -> 0 | AD16: =N16 -> 2112 | AE16: =COUNTIF(L62:L88,AD16) -> 0 | AF16: =AE16/(AG4-AE20) -> 0 | AG16: =IF(AF16=0,0,(AF16*((LOG(AF16))/LOG(2)))) -> 0 | AI16: =N16 -> 2112 | AJ16: =COUNTIF(L89:L115,AI16) -> 0 | AK16: =AJ16/(AL4-AJ20) -> 0 | AL16: =IF(AK16=0,0,(AK16*((LOG(AK16))/LOG(2)))) -> 0 | AN16: =N16 -> 2112 | AO16: =COUNTIF(L116:L143,AN16) -> 0 | AP16: =AO16/(AQ4-AO20) -> 0 | AQ16: =IF(AP16=0,0,(AP16*((LOG(AP16))/LOG(2)))) -> 0 | AS16: =N16 -> 2112 | AT16: =COUNTIF(L144:L170,AS16) -> 0 | AU16: =AT16/(AV4-AT20) -> 0 | AV16: =IF(AU16=0,0,(AU16*((LOG(AU16))/LOG(2)))) -> 0
A17: 21 | B17: 1281 | C17: 21 | D17: 1285 | E17: 22 | F17: 1289 | G17: 14 | H17: 1295 | K17: 0 | L17: 2221 | N17: 2121 | O17: =COUNTIF($L$7:$L$500,N17) -> 1 | P17: =O17/$Q$4 -> 0.006097560976 | Q17: =IF(P17=0,0,(P17*((LOG(P17))/LOG(2)))) -> -0.04486312198 | T17: =N17 -> 2121 | U17: =COUNTIF(L7:L33,T17) -> 0 | V17: =U17/(W4-U20) -> 0 | W17: =IF(V17=0,0,(V17*((LOG(V17))/LOG(2)))) -> 0 | Y17: =N17 -> 2121 | Z17: =COUNTIF(L34:L61,Y17) -> 0 | AA17: =Z17/(AB4-Z20) -> 0 | AB17: =IF(AA17=0,0,(AA17*((LOG(AA17))/LOG(2)))) -> 0 | AD17: =N17 -> 2121 | AE17: =COUNTIF(L62:L88,AD17) -> 0 | AF17: =AE17/(AG4-AE20) -> 0 | AG17: =IF(AF17=0,0,(AF17*((LOG(AF17))/LOG(2)))) -> 0 | AI17: =N17 -> 2121 | AJ17: =COUNTIF(L89:L115,AI17) -> 1 | AK17: =AJ17/(AL4-AJ20) -> 0.04761904762 | AL17: =IF(AK17=0,0,(AK17*((LOG(AK17))/LOG(2)))) -> -0.2091579725 | AN17: =N17 -> 2121 | AO17: =COUNTIF(L116:L143,AN17) -> 0 | AP17: =AO17/(AQ4-AO20) -> 0 | AQ17: =IF(AP17=0,0,(AP17*((LOG(AP17))/LOG(2)))) -> 0 | AS17: =N17 -> 2121 | AT17: =COUNTIF(L144:L170,AS17) -> 0 | AU17: =AT17/(AV4-AT20) -> 0 | AV17: =IF(AU17=0,0,(AU17*((LOG(AU17))/LOG(2)))) -> 0
A18: 12 | B18: 1392 | C18: 23 | D18: 1403 | E18: 24 | F18: 1407 | G18: 23 | H18: 1413 | K18: 0 | L18: 1222 | N18: 2122 | O18: =COUNTIF($L$7:$L$500,N18) -> 24 | P18: =O18/$Q$4 -> 0.1463414634 | Q18: =IF(P18=0,0,(P18*((LOG(P18))/LOG(2)))) -> -0.4057448054 | T18: =N18 -> 2122 | U18: =COUNTIF(L7:L33,T18) -> 1 | V18: =U18/(W4-U20) -> 0.03846153846 | W18: =IF(V18=0,0,(V18*((LOG(V18))/LOG(2)))) -> -0.180786143 | Y18: =N18 -> 2122 | Z18: =COUNTIF(L34:L61,Y18) -> 5 | AA18: =Z18/(AB4-Z20) -> 0.2 | AB18: =IF(AA18=0,0,(AA18*((LOG(AA18))/LOG(2)))) -> -0.464385619 | AD18: =N18 -> 2122 | AE18: =COUNTIF(L62:L88,AD18) -> 6 | AF18: =AE18/(AG4-AE20) -> 0.2727272727 | AG18: =IF(AF18=0,0,(AF18*((LOG(AF18))/LOG(2)))) -> -0.5112188503 | AI18: =N18 -> 2122 | AJ18: =COUNTIF(L89:L115,AI18) -> 2 | AK18: =AJ18/(AL4-AJ20) -> 0.09523809524 | AL18: =IF(AK18=0,0,(AK18*((LOG(AK18))/LOG(2)))) -> -0.3230778498 | AN18: =N18 -> 2122 | AO18: =COUNTIF(L116:L143,AN18) -> 7 | AP18: =AO18/(AQ4-AO20) -> 0.28 | AQ18: =IF(AP18=0,0,(AP18*((LOG(AP18))/LOG(2)))) -> -0.514220355 | AS18: =N18 -> 2122 | AT18: =COUNTIF(L144:L170,AS18) -> 3 | AU18: =AT18/(AV4-AT20) -> 0.1363636364 | AV18: =IF(AU18=0,0,(AU18*((LOG(AU18))/LOG(2)))) -> -0.3919730615
A19: 21 | B19: 1508 | C19: 21 | D19: 1515 | E19: 11 | F19: 1519 | G19: 21 | H19: 1526 | K19: 0 | L19: 2212 | N19: 2211 | O19: =COUNTIF($L$7:$L$500,N19) -> 0 | P19: =O19/$Q$4 -> 0 | Q19: =IF(P19=0,0,(P19*((LOG(P19))/LOG(2)))) -> 0 | T19: =N19 -> 2211 | U19: =COUNTIF(L7:L33,T19) -> 0 | V19: =U19/(W4-U20) -> 0 | W19: =IF(V19=0,0,(V19*((LOG(V19))/LOG(2)))) -> 0 | Y19: =N19 -> 2211 | Z19: =COUNTIF(L34:L61,Y19) -> 0 | AA19: =Z19/(AB4-Z20) -> 0 | AB19: =IF(AA19=0,0,(AA19*((LOG(AA19))/LOG(2)))) -> 0 | AD19: =N19 -> 2211 | AE19: =COUNTIF(L62:L88,AD19) -> 0 | AF19: =AE19/(AG4-AE20) -> 0 | AG19: =IF(AF19=0,0,(AF19*((LOG(AF19))/LOG(2)))) -> 0 | AI19: =N19 -> 2211 | AJ19: =COUNTIF(L89:L115,AI19) -> 0 | AK19: =AJ19/(AL4-AJ20) -> 0 | AL19: =IF(AK19=0,0,(AK19*((LOG(AK19))/LOG(2)))) -> 0 | AN19: =N19 -> 2211 | AO19: =COUNTIF(L116:L143,AN19) -> 0 | AP19: =AO19/(AQ4-AO20) -> 0 | AQ19: =IF(AP19=0,0,(AP19*((LOG(AP19))/LOG(2)))) -> 0 | AS19: =N19 -> 2211 | AT19: =COUNTIF(L144:L170,AS19) -> 0 | AU19: =AT19/(AV4-AT20) -> 0 | AV19: =IF(AU19=0,0,(AU19*((LOG(AU19))/LOG(2)))) -> 0
A20: 12 | B20: 1685 | C20: 23 | D20: 1697 | E20: 24 | F20: 1701 | G20: 23 | H20: 1709 | K20: 0 | L20: 1222 | N20: 2212 | O20: =COUNTIF($L$7:$L$500,N20) -> 23 | P20: =O20/$Q$4 -> 0.1402439024 | Q20: =IF(P20=0,0,(P20*((LOG(P20))/LOG(2)))) -> -0.3974498239 | T20: =N20 -> 2212 | U20: =COUNTIF(L7:L33,T20) -> 1 | Y20: =N20 -> 2212 | Z20: =COUNTIF(L34:L61,Y20) -> 3 | AD20: =N20 -> 2212 | AE20: =COUNTIF(L62:L88,AD20) -> 5 | AI20: =N20 -> 2212 | AJ20: =COUNTIF(L89:L115,AI20) -> 6 | AN20: =N20 -> 2212 | AO20: =COUNTIF(L116:L143,AN20) -> 3 | AS20: =N20 -> 2212 | AT20: =COUNTIF(L144:L170,AS20) -> 5
A21: 21 | B21: 1804 | C21: 21 | D21: 1807 | E21: 22 | F21: 1819 | G21: 23 | H21: 1826 | K21: 0 | L21: 2222 | N21: 2221 | O21: =COUNTIF($L$7:$L$500,N21) -> 7 | P21: =O21/$Q$4 -> 0.04268292683 | Q21: =IF(P21=0,0,(P21*((LOG(P21))/LOG(2)))) -> -0.1942157291 | T21: =N21 -> 2221 | U21: =COUNTIF(L7:L33,T21) -> 1 | V21: =U21/(W4-U20) -> 0.03846153846 | W21: =IF(V21=0,0,(V21*((LOG(V21))/LOG(2)))) -> -0.180786143 | Y21: =N21 -> 2221 | Z21: =COUNTIF(L34:L61,Y21) -> 2 | AA21: =Z21/(AB4-Z20) -> 0.08 | AB21: =IF(AA21=0,0,(AA21*((LOG(AA21))/LOG(2)))) -> -0.2915084952 | AD21: =N21 -> 2221 | AE21: =COUNTIF(L62:L88,AD21) -> 0 | AF21: =AE21/(AG4-AE20) -> 0 | AG21: =IF(AF21=0,0,(AF21*((LOG(AF21))/LOG(2)))) -> 0 | AI21: =N21 -> 2221 | AJ21: =COUNTIF(L89:L115,AI21) -> 2 | AK21: =AJ21/(AL4-AJ20) -> 0.09523809524 | AL21: =IF(AK21=0,0,(AK21*((LOG(AK21))/LOG(2)))) -> -0.3230778498 | AN21: =N21 -> 2221 | AO21: =COUNTIF(L116:L143,AN21) -> 1 | AP21: =AO21/(AQ4-AO20) -> 0.04 | AQ21: =IF(AP21=0,0,(AP21*((LOG(AP21))/LOG(2)))) -> -0.1857542476 | AS21: =N21 -> 2221 | AT21: =COUNTIF(L144:L170,AS21) -> 1 | AU21: =AT21/(AV4-AT20) -> 0.04545454545 | AV21: =IF(AU21=0,0,(AU21*((LOG(AU21))/LOG(2)))) -> -0.2027014372
A22: 21 | B22: 1925 | C22: 21 | D22: 1929 | E22: 22 | F22: 1936 | G22: 23 | H22: 1946 | K22: 0 | L22: 2222 | N22: 2222 | O22: =COUNTIF($L$7:$L$500,N22) -> 61 | P22: =O22/$Q$4 -> 0.3719512195 | Q22: =IF(P22=0,0,(P22*((LOG(P22))/LOG(2)))) -> -0.5307054554 | T22: =N22 -> 2222 | U22: =COUNTIF(L7:L33,T22) -> 14 | V22: =U22/(W4-U20) -> 0.5384615385 | W22: =IF(V22=0,0,(V22*((LOG(V22))/LOG(2)))) -> -0.4808918133 | Y22: =N22 -> 2222 | Z22: =COUNTIF(L34:L61,Y22) -> 8 | AA22: =Z22/(AB4-Z20) -> 0.32 | AB22: =IF(AA22=0,0,(AA22*((LOG(AA22))/LOG(2)))) -> -0.5260339807 | AD22: =N22 -> 2222 | AE22: =COUNTIF(L62:L88,AD22) -> 11 | AF22: =AE22/(AG4-AE20) -> 0.5 | AG22: =IF(AF22=0,0,(AF22*((LOG(AF22))/LOG(2)))) -> -0.5 | AI22: =N22 -> 2222 | AJ22: =COUNTIF(L89:L115,AI22) -> 9 | AK22: =AJ22/(AL4-AJ20) -> 0.4285714286 | AL22: =IF(AK22=0,0,(AK22*((LOG(AK22))/LOG(2)))) -> -0.5238824663 | AN22: =N22 -> 2222 | AO22: =COUNTIF(L116:L143,AN22) -> 8 | AP22: =AO22/(AQ4-AO20) -> 0.32 | AQ22: =IF(AP22=0,0,(AP22*((LOG(AP22))/LOG(2)))) -> -0.5260339807 | AS22: =N22 -> 2222 | AT22: =COUNTIF(L144:L170,AS22) -> 11 | AU22: =AT22/(AV4-AT20) -> 0.5 | AV22: =IF(AU22=0,0,(AU22*((LOG(AU22))/LOG(2)))) -> -0.5
A23: 12 | B23: 2037 | C23: 14 | D23: 2048 | E23: 24 | F23: 2054 | G23: 23 | H23: 2057 | K23: 0 | L23: 1122 | P23: =SUM(P7:P22) -> 1 | Q23: =-SUM(Q7:Q22) -> 2.557602164 | V23: =SUM(V7:V22) -> 1 | W23: =-SUM(W7:W22) -> 2.159752933 | AA23: =SUM(AA7:AA22) -> 1 | AB23: =-SUM(AB7:AB22) -> 1.810699333 | AF23: =SUM(AF7:AF22) -> 1 | AG23: =-SUM(AG7:AG22) -> 1.717685695 | AK23: =SUM(AK7:AK22) -> 1 | AL23: =-SUM(AL7:AL22) -> 2.290461923 | AP23: =SUM(AP7:AP22) -> 1 | AQ23: =-SUM(AQ7:AQ22) -> 1.937796812 | AU23: =SUM(AU7:AU22) -> 1 | AV23: =-SUM(AV7:AV22) -> 2.059039105
A24: 21 | B24: 2152 | C24: 21 | D24: 2157 | E24: 22 | F24: 2164 | G24: 23 | H24: 2172 | K24: 0 | L24: 2222 | P24: U= | Q24: =Q23/(LOG(Q4)/LOG(2)) -> 0.3476159138 | V24: U1= | W24: =W23/(LOG(W4)/LOG(2)) -> 0.454217462 | AA24: U2= | AB24: =AB23/(LOG(AB4)/LOG(2)) -> 0.3766518932 | AF24: U3= | AG24: =AG23/(LOG(AG4)/LOG(2)) -> 0.3612463375 | AK24: U4= | AL24: =AL23/(LOG(AL4)/LOG(2)) -> 0.481706859 | AP24: U5= | AQ24: =AQ23/(LOG(AQ4)/LOG(2)) -> 0.4030900241 | AU24: U6= | AV24: =AV23/(LOG(AV4)/LOG(2)) -> 0.433036345
A25: 21 | B25: 2266 | C25: 21 | D25: 2272 | E25: 22 | F25: 2278 | G25: 23 | H25: 2287 | K25: 0 | L25: 2222
A26: 12 | B26: 2380 | C26: 14 | D26: 2395 | E26: 24 | F26: 2406 | G26: 23 | H26: 2410 | K26: 0 | L26: 1122
A27: 12 | B27: 2506 | C27: 14 | D27: 2515 | E27: 24 | F27: 2519 | G27: 23 | H27: 2524 | K27: 0 | L27: 1122 | N27: Total Target Seq
A28: 12 | B28: 2621 | C28: 14 | D28: 2634 | E28: 13 | F28: 2641 | G28: 23 | H28: 2647 | K28: 0 | L28: 1112 | N28: =COUNTIF(L7:L170,G3) -> 23 | P28: 27 | Q28: 28 | R28: 27 | S28: 27 | T28: 28 | U28: 27
A29: 21 | B29: 2747 | C29: 21 | D29: 2751 | E29: 22 | F29: 2756 | G29: 23 | H29: 2770 | K29: 0 | L29: 2222 | P29: % of reinforcement given in 6 equal intervals based on number of trials
A30: 21 | B30: 2871 | C30: 12 | D30: 2877 | E30: 24 | F30: 2884 | G30: 23 | H30: 2891 | K30: 0 | L30: 2122 | P30: %_1 | Q30: %_2 | R30: %_3 | S30: %_4 | T30: %_5 | U30: %_6
A31: 12 | B31: 2993 | C31: 23 | D31: 2997 | E31: 24 | F31: 3001 | G31: 14 | H31: 3005 | K31: 0 | L31: 1221 | O31: target sequence | P31: =$G$3 -> 2212 | Q31: =$G$3 -> 2212 | R31: =$G$3 -> 2212 | S31: =$G$3 -> 2212 | T31: =$G$3 -> 2212 | U31: =$G$3 -> 2212
A32: 21 | B32: 3104 | C32: 21 | D32: 3108 | E32: 22 | F32: 3115 | G32: 23 | H32: 3121 | K32: 0 | L32: 2222 | O32: total reinforcement | P32: =U20 -> 1 | Q32: =Z20 -> 3 | R32: =AE20 -> 5 | S32: =AJ20 -> 6 | T32: =AO20 -> 3 | U32: =AT20 -> 5
A33: 21 | B33: 3218 | C33: 21 | D33: 3228 | E33: 22 | F33: 3235 | G33: 23 | H33: 3241 | K33: 0 | L33: 2222 | O33: % target
A34: 21 | B34: 3335 | C34: 21 | D34: 3340 | E34: 22 | F34: 3344 | G34: 23 | H34: 3350 | K34: 0 | L34: 2222 | O34: CCRF
A35: 21 | B35: 3442 | C35: 21 | D35: 3445 | E35: 22 | F35: 3451 | G35: 23 | H35: 3459 | K35: 0 | L35: 2222 | O35: % CCRf
A36: 21 | B36: 3554 | C36: 21 | D36: 3559 | E36: 11 | F36: 3561 | G36: 21 | H36: 3564 | K36: 0 | L36: 2212 | O36: average response rate | P36: =H33/P28 -> 120.037037 | Q36: =(H61-H33)/Q28 -> 149.4642857 | R36: =(H88-H61)/R28 -> 160.6296296 | S36: =(H115-H88)/S28 -> 188.3333333 | T36: =(H143-H115)/T28 -> 126.1071429 | U36: =(H170-H143)/U28 -> 130.8518519
A37: 12 | B37: 3946 | C37: 23 | D37: 3959 | E37: 24 | F37: 3974 | G37: 23 | H37: 3980 | K37: 0 | L37: 1222
A38: 21 | B38: 4123 | C38: 21 | D38: 4128 | E38: 11 | F38: 4133 | G38: 21 | H38: 4143 | K38: 0 | L38: 2212
A39: 12 | B39: 4548 | C39: 23 | D39: 4558 | E39: 24 | F39: 4574 | G39: 23 | H39: 4594 | K39: 0 | L39: 1222
A40: 12 | B40: 4691 | C40: 23 | D40: 4693 | E40: 24 | F40: 4697 | G40: 23 | H40: 4702 | K40: 0 | L40: 1222
A41: 21 | B41: 4795 | C41: 12 | D41: 4801 | E41: 24 | F41: 4804 | G41: 23 | H41: 4809 | K41: 0 | L41: 2122
A42: 12 | B42: 4901 | C42: 23 | D42: 4904 | E42: 24 | F42: 4909 | G42: 23 | H42: 4918 | K42: 0 | L42: 1222
A43: 12 | B43: 5011 | C43: 23 | D43: 5022 | E43: 24 | F43: 5025 | G43: 23 | H43: 5029 | K43: 0 | L43: 1222
A44: 21 | B44: 5128 | C44: 21 | D44: 5134 | E44: 22 | F44: 5139 | G44: 23 | H44: 5145 | K44: 0 | L44: 2222
A45: 21 | B45: 5241 | C45: 21 | D45: 5247 | E45: 22 | F45: 5253 | G45: 23 | H45: 5260 | K45: 0 | L45: 2222
A46: 12 | B46: 5353 | C46: 23 | D46: 5358 | E46: 24 | F46: 5369 | G46: 23 | H46: 5381 | K46: 0 | L46: 1222
A47: 21 | B47: 5484 | C47: 21 | D47: 5491 | E47: 22 | F47: 5498 | G47: 14 | H47: 5504 | K47: 0 | L47: 2221
A48: 12 | B48: 5601 | C48: 23 | D48: 5609 | E48: 24 | F48: 5615 | G48: 23 | H48: 5620 | K48: 0 | L48: 1222
A49: 21 | B49: 5720 | C49: 12 | D49: 5724 | E49: 24 | F49: 5731 | G49: 23 | H49: 5739 | K49: 0 | L49: 2122
A50: 21 | B50: 5833 | C50: 12 | D50: 5834 | E50: 24 | F50: 5838 | G50: 23 | H50: 5844 | K50: 0 | L50: 2122
A51: 12 | B51: 5938 | C51: 23 | D51: 5946 | E51: 24 | F51: 5949 | G51: 23 | H51: 5955 | K51: 0 | L51: 1222
A52: 21 | B52: 6059 | C52: 21 | D52: 6061 | E52: 22 | F52: 6065 | G52: 23 | H52: 6071 | K52: 0 | L52: 2222
A53: 21 | B53: 6167 | C53: 12 | D53: 6169 | E53: 24 | F53: 6173 | G53: 23 | H53: 6179 | K53: 0 | L53: 2122
A54: 21 | B54: 6272 | C54: 12 | D54: 6277 | E54: 24 | F54: 6279 | G54: 23 | H54: 6286 | K54: 0 | L54: 2122
A55: 21 | B55: 6378 | C55: 21 | D55: 6386 | E55: 22 | F55: 6390 | G55: 23 | H55: 6395 | K55: 0 | L55: 2222
A56: 21 | B56: 6490 | C56: 21 | D56: 6498 | E56: 22 | F56: 6503 | G56: 23 | H56: 6509 | K56: 0 | L56: 2222
A57: 21 | B57: 6604 | C57: 21 | D57: 6608 | E57: 11 | F57: 6610 | G57: 21 | H57: 6614 | K57: 0 | L57: 2212
A58: 21 | B58: 7064 | C58: 21 | D58: 7070 | E58: 22 | F58: 7076 | G58: 23 | H58: 7084 | K58: 0 | L58: 2222
A59: 12 | B59: 7177 | C59: 23 | D59: 7179 | E59: 24 | F59: 7182 | G59: 23 | H59: 7189 | K59: 0 | L59: 1222
A60: 21 | B60: 7291 | C60: 21 | D60: 7295 | E60: 22 | F60: 7299 | G60: 14 | H60: 7304 | K60: 0 | L60: 2221
A61: 12 | B61: 7398 | C61: 23 | D61: 7415 | E61: 24 | F61: 7420 | G61: 23 | H61: 7426 | K61: 0 | L61: 1222
A62: 12 | B62: 7518 | C62: 23 | D62: 7521 | E62: 24 | F62: 7524 | G62: 14 | H62: 7526 | K62: 0 | L62: 1221
A63: 21 | B63: 7625 | C63: 21 | D63: 7631 | E63: 22 | F63: 7636 | G63: 23 | H63: 7644 | K63: 0 | L63: 2222
A64: 21 | B64: 7751 | C64: 21 | D64: 7754 | E64: 11 | F64: 7757 | G64: 21 | H64: 7759 | K64: 0 | L64: 2212
A65: 12 | B65: 8189 | C65: 23 | D65: 8201 | E65: 24 | F65: 8206 | G65: 14 | H65: 8218 | K65: 0 | L65: 1221
A66: 21 | B66: 8316 | C66: 21 | D66: 8324 | E66: 22 | F66: 8331 | G66: 23 | H66: 8339 | K66: 0 | L66: 2222
A67: 21 | B67: 8431 | C67: 12 | D67: 8435 | E67: 24 | F67: 8442 | G67: 23 | H67: 8449 | K67: 0 | L67: 2122
A68: 21 | B68: 8543 | C68: 12 | D68: 8547 | E68: 24 | F68: 8549 | G68: 23 | H68: 8556 | K68: 0 | L68: 2122
A69: 21 | B69: 8659 | C69: 21 | D69: 8662 | E69: 22 | F69: 8666 | G69: 23 | H69: 8673 | K69: 0 | L69: 2222
A70: 21 | B70: 8769 | C70: 21 | D70: 8774 | E70: 22 | F70: 8791 | G70: 23 | H70: 8798 | K70: 0 | L70: 2222
A71: 21 | B71: 8912 | C71: 21 | D71: 8927 | E71: 11 | F71: 8931 | G71: 21 | H71: 8935 | K71: 0 | L71: 2212
A72: 12 | B72: 9115 | C72: 23 | D72: 9126 | E72: 24 | F72: 9131 | G72: 23 | H72: 9141 | K72: 0 | L72: 1222
A73: 21 | B73: 9236 | C73: 21 | D73: 9239 | E73: 11 | F73: 9248 | G73: 21 | H73: 9250 | K73: 0 | L73: 2212
A74: 21 | B74: 9503 | C74: 21 | D74: 9513 | E74: 22 | F74: 9527 | G74: 23 | H74: 9536 | K74: 0 | L74: 2222
A75: 21 | B75: 9634 | C75: 21 | D75: 9639 | E75: 22 | F75: 9646 | G75: 23 | H75: 9657 | K75: 0 | L75: 2222
A76: 21 | B76: 9752 | C76: 21 | D76: 9759 | E76: 22 | F76: 9766 | G76: 23 | H76: 9772 | K76: 0 | L76: 2222
A77: 12 | B77: 9867 | C77: 23 | D77: 9875 | E77: 24 | F77: 9880 | G77: 23 | H77: 9885 | K77: 0 | L77: 1222
A78: 21 | B78: 9977 | C78: 21 | D78: 9982 | E78: 11 | F78: 9986 | G78: 21 | H78: 9989 | K78: 0 | L78: 2212
A79: 21 | B79: 10191 | C79: 12 | D79: 10194 | E79: 24 | F79: 10197 | G79: 23 | H79: 10209 | K79: 0 | L79: 2122
A80: 21 | B80: 10302 | C80: 21 | D80: 10307 | E80: 22 | F80: 10313 | G80: 23 | H80: 10320 | K80: 0 | L80: 2222
A81: 21 | B81: 10420 | C81: 21 | D81: 10434 | E81: 11 | F81: 10438 | G81: 21 | H81: 10441 | K81: 0 | L81: 2212
A82: 21 | B82: 11056 | C82: 21 | D82: 11064 | E82: 22 | F82: 11075 | G82: 23 | H82: 11081 | K82: 0 | L82: 2222
A83: 21 | B83: 11175 | C83: 21 | D83: 11180 | E83: 22 | F83: 11197 | G83: 23 | H83: 11205 | K83: 0 | L83: 2222
A84: 21 | B84: 11299 | C84: 12 | D84: 11304 | E84: 24 | F84: 11314 | G84: 23 | H84: 11323 | K84: 0 | L84: 2122
A85: 21 | B85: 11422 | C85: 12 | D85: 11425 | E85: 24 | F85: 11428 | G85: 23 | H85: 11433 | K85: 0 | L85: 2122
A86: 21 | B86: 11525 | C86: 12 | D86: 11529 | E86: 24 | F86: 11531 | G86: 23 | H86: 11536 | K86: 0 | L86: 2122
A87: 21 | B87: 11628 | C87: 21 | D87: 11638 | E87: 22 | F87: 11645 | G87: 23 | H87: 11651 | K87: 0 | L87: 2222
A88: 12 | B88: 11743 | C88: 23 | D88: 11755 | E88: 24 | F88: 11760 | G88: 14 | H88: 11763 | K88: 0 | L88: 1221
A89: 21 | B89: 11869 | C89: 21 | D89: 11871 | E89: 22 | F89: 11883 | G89: 23 | H89: 11890 | K89: 0 | L89: 2222
A90: 21 | B90: 11984 | C90: 21 | D90: 11988 | E90: 11 | F90: 11992 | G90: 21 | H90: 12003 | K90: 0 | L90: 2212
A91: 21 | B91: 12279 | C91: 12 | D91: 12281 | E91: 24 | F91: 12283 | G91: 14 | H91: 12286 | K91: 0 | L91: 2121
A92: 12 | B92: 12394 | C92: 23 | D92: 12401 | E92: 24 | F92: 12407 | G92: 23 | H92: 12414 | K92: 0 | L92: 1222
A93: 21 | B93: 12510 | C93: 21 | D93: 12514 | E93: 11 | F93: 12516 | G93: 21 | H93: 12528 | K93: 0 | L93: 2212
A94: 12 | B94: 12640 | C94: 23 | D94: 12644 | E94: 24 | F94: 12648 | G94: 23 | H94: 12654 | K94: 0 | L94: 1222
A95: 21 | B95: 12782 | C95: 12 | D95: 12786 | E95: 24 | F95: 12789 | G95: 23 | H95: 12795 | K95: 0 | L95: 2122
A96: 21 | B96: 12948 | C96: 21 | D96: 12956 | E96: 22 | F96: 12958 | G96: 14 | H96: 12961 | K96: 0 | L96: 2221
A97: 21 | B97: 13590 | C97: 21 | D97: 13595 | E97: 22 | F97: 13602 | G97: 23 | H97: 13608 | K97: 0 | L97: 2222
A98: 21 | B98: 13709 | C98: 21 | D98: 13715 | E98: 22 | F98: 13720 | G98: 23 | H98: 13732 | K98: 0 | L98: 2222
A99: 21 | B99: 13827 | C99: 21 | D99: 13833 | E99: 11 | F99: 13836 | G99: 21 | H99: 13839 | K99: 0 | L99: 2212
A100: 21 | B100: 14089 | C100: 21 | D100: 14108 | E100: 22 | F100: 14114 | G100: 23 | H100: 14120 | K100: 0 | L100: 2222
A101: 12 | B101: 14213 | C101: 23 | D101: 14222 | E101: 24 | F101: 14228 | G101: 23 | H101: 14234 | K101: 0 | L101: 1222
A102: 21 | B102: 14326 | C102: 21 | D102: 14332 | E102: 11 | F102: 14334 | G102: 21 | H102: 14340 | K102: 0 | L102: 2212
A103: 21 | B103: 14854 | C103: 21 | D103: 14869 | E103: 11 | F103: 14873 | G103: 21 | H103: 14883 | K103: 0 | L103: 2212
A104: 12 | B104: 15095 | C104: 23 | D104: 15107 | E104: 24 | F104: 15113 | G104: 23 | H104: 15124 | K104: 0 | L104: 1222
A105: 21 | B105: 15229 | C105: 21 | D105: 15234 | E105: 22 | F105: 15237 | G105: 23 | H105: 15242 | K105: 0 | L105: 2222
A106: 21 | B106: 15337 | C106: 21 | D106: 15342 | E106: 22 | F106: 15349 | G106: 23 | H106: 15356 | K106: 0 | L106: 2222
A107: 21 | B107: 15448 | C107: 21 | D107: 15453 | E107: 22 | F107: 15457 | G107: 14 | H107: 15461 | K107: 0 | L107: 2221
A108: 21 | B108: 15554 | C108: 21 | D108: 15559 | E108: 11 | F108: 15561 | G108: 21 | H108: 15566 | K108: 0 | L108: 2212
A109: 12 | B109: 16103 | C109: 23 | D109: 16126 | E109: 24 | F109: 16138 | G109: 23 | H109: 16147 | K109: 0 | L109: 1222
A110: 12 | B110: 16267 | C110: 23 | D110: 16282 | E110: 13 | F110: 16287 | G110: 23 | H110: 16294 | K110: 0 | L110: 1212
A111: 21 | B111: 16388 | C111: 21 | D111: 16392 | E111: 22 | F111: 16397 | G111: 23 | H111: 16405 | K111: 0 | L111: 2222
A112: 12 | B112: 16499 | C112: 23 | D112: 16504 | E112: 24 | F112: 16508 | G112: 14 | H112: 16511 | K112: 0 | L112: 1221
A113: 21 | B113: 16607 | C113: 21 | D113: 16613 | E113: 22 | F113: 16619 | G113: 23 | H113: 16625 | K113: 0 | L113: 2222
A114: 21 | B114: 16725 | C114: 21 | D114: 16730 | E114: 22 | F114: 16734 | G114: 23 | H114: 16740 | K114: 0 | L114: 2222
A115: 21 | B115: 16833 | C115: 12 | D115: 16839 | E115: 24 | F115: 16841 | G115: 23 | H115: 16848 | K115: 0 | L115: 2122
A116: 21 | B116: 16944 | C116: 21 | D116: 16948 | E116: 22 | F116: 16956 | G116: 23 | H116: 16961 | K116: 0 | L116: 2222
A117: 21 | B117: 17057 | C117: 21 | D117: 17066 | E117: 11 | F117: 17070 | G117: 21 | H117: 17072 | K117: 0 | L117: 2212
A118: 12 | B118: 17222 | C118: 23 | D118: 17226 | E118: 24 | F118: 17252 | G118: 23 | H118: 17259 | K118: 0 | L118: 1222
A119: 21 | B119: 17357 | C119: 12 | D119: 17363 | E119: 24 | F119: 17370 | G119: 23 | H119: 17376 | K119: 0 | L119: 2122
A120: 21 | B120: 17471 | C120: 21 | D120: 17478 | E120: 22 | F120: 17482 | G120: 23 | H120: 17488 | K120: 0 | L120: 2222
A121: 21 | B121: 17584 | C121: 12 | D121: 17590 | E121: 24 | F121: 17595 | G121: 23 | H121: 17601 | K121: 0 | L121: 2122
A122: 21 | B122: 17701 | C122: 21 | D122: 17705 | E122: 11 | F122: 17708 | G122: 21 | H122: 17715 | K122: 0 | L122: 2212
A123: 12 | B123: 17882 | C123: 23 | D123: 17884 | E123: 24 | F123: 17888 | G123: 23 | H123: 17891 | K123: 0 | L123: 1222
A124: 12 | B124: 17984 | C124: 23 | D124: 17987 | E124: 24 | F124: 17992 | G124: 23 | H124: 17999 | K124: 0 | L124: 1222
A125: 21 | B125: 18114 | C125: 12 | D125: 18118 | E125: 24 | F125: 18126 | G125: 23 | H125: 18133 | K125: 0 | L125: 2122
A126: 21 | B126: 18242 | C126: 12 | D126: 18244 | E126: 24 | F126: 18251 | G126: 23 | H126: 18256 | K126: 0 | L126: 2122
A127: 12 | B127: 18349 | C127: 23 | D127: 18351 | E127: 24 | F127: 18357 | G127: 23 | H127: 18362 | K127: 0 | L127: 1222
A128: 21 | B128: 18457 | C128: 21 | D128: 18462 | E128: 11 | F128: 18464 | G128: 21 | H128: 18470 | K128: 0 | L128: 2212
A129: 12 | B129: 18569 | C129: 23 | D129: 18583 | E129: 13 | F129: 18589 | G129: 14 | H129: 18593 | K129: 0 | L129: 1211
A130: 12 | B130: 18792 | C130: 23 | D130: 18800 | E130: 24 | F130: 18805 | G130: 23 | H130: 18810 | K130: 0 | L130: 1222
A131: 21 | B131: 18919 | C131: 21 | D131: 18931 | E131: 22 | F131: 18937 | G131: 23 | H131: 18944 | K131: 0 | L131: 2222
A132: 21 | B132: 19049 | C132: 21 | D132: 19052 | E132: 22 | F132: 19056 | G132: 23 | H132: 19062 | K132: 0 | L132: 2222
A133: 21 | B133: 19157 | C133: 21 | D133: 19163 | E133: 22 | F133: 19168 | G133: 23 | H133: 19175 | K133: 0 | L133: 2222
A134: 21 | B134: 19271 | C134: 12 | D134: 19276 | E134: 24 | F134: 19284 | G134: 23 | H134: 19291 | K134: 0 | L134: 2122
A135: 21 | B135: 19385 | C135: 12 | D135: 19395 | E135: 24 | F135: 19396 | G135: 23 | H135: 19402 | K135: 0 | L135: 2122
A136: 21 | B136: 19580 | C136: 21 | D136: 19584 | E136: 22 | F136: 19589 | G136: 23 | H136: 19594 | K136: 0 | L136: 2222
A137: 21 | B137: 19688 | C137: 12 | D137: 19693 | E137: 24 | F137: 19699 | G137: 23 | H137: 19705 | K137: 0 | L137: 2122
A138: 12 | B138: 19797 | C138: 23 | D138: 19804 | E138: 24 | F138: 19807 | G138: 23 | H138: 19812 | K138: 0 | L138: 1222
A139: 21 | B139: 19918 | C139: 21 | D139: 19921 | E139: 22 | F139: 19924 | G139: 14 | H139: 19927 | K139: 0 | L139: 2221
A140: 12 | B140: 20021 | C140: 23 | D140: 20028 | E140: 24 | F140: 20032 | G140: 23 | H140: 20040 | K140: 0 | L140: 1222
A141: 21 | B141: 20133 | C141: 21 | D141: 20144 | E141: 22 | F141: 20152 | G141: 23 | H141: 20158 | K141: 0 | L141: 2222
A142: 12 | B142: 20258 | C142: 23 | D142: 20261 | E142: 24 | F142: 20265 | G142: 23 | H142: 20271 | K142: 0 | L142: 1222
A143: 21 | B143: 20363 | C143: 21 | D143: 20366 | E143: 22 | F143: 20371 | G143: 23 | H143: 20379 | K143: 0 | L143: 2222
A144: 12 | B144: 20471 | C144: 23 | D144: 20478 | E144: 24 | F144: 20484 | G144: 23 | H144: 20491 | K144: 0 | L144: 1222
A145: 21 | B145: 20705 | C145: 21 | D145: 20711 | E145: 22 | F145: 20718 | G145: 23 | H145: 20724 | K145: 0 | L145: 2222
A146: 21 | B146: 20819 | C146: 21 | D146: 20822 | E146: 11 | F146: 20825 | G146: 21 | H146: 20828 | K146: 0 | L146: 2212
A147: 21 | B147: 21228 | C147: 21 | D147: 21240 | E147: 22 | F147: 21246 | G147: 23 | H147: 21252 | K147: 0 | L147: 2222
A148: 21 | B148: 21345 | C148: 12 | D148: 21347 | E148: 24 | F148: 21350 | G148: 23 | H148: 21357 | K148: 0 | L148: 2122
A149: 21 | B149: 21451 | C149: 21 | D149: 21460 | E149: 22 | F149: 21467 | G149: 23 | H149: 21480 | K149: 0 | L149: 2222
A150: 21 | B150: 21579 | C150: 21 | D150: 21585 | E150: 22 | F150: 21591 | G150: 23 | H150: 21598 | K150: 0 | L150: 2222
A151: 21 | B151: 21697 | C151: 21 | D151: 21701 | E151: 22 | F151: 21705 | G151: 23 | H151: 21711 | K151: 0 | L151: 2222
A152: 12 | B152: 21809 | C152: 23 | D152: 21813 | E152: 24 | F152: 21819 | G152: 23 | H152: 21823 | K152: 0 | L152: 1222
A153: 12 | B153: 21916 | C153: 23 | D153: 21921 | E153: 24 | F153: 21928 | G153: 23 | H153: 21936 | K153: 0 | L153: 1222
A154: 21 | B154: 22028 | C154: 21 | D154: 22032 | E154: 11 | F154: 22034 | G154: 21 | H154: 22037 | K154: 0 | L154: 2212
A155: 21 | B155: 22137 | C155: 21 | D155: 22140 | E155: 22 | F155: 22145 | G155: 14 | H155: 22148 | K155: 0 | L155: 2221
A156: 21 | B156: 22244 | C156: 21 | D156: 22247 | E156: 22 | F156: 22251 | G156: 23 | H156: 22264 | K156: 0 | L156: 2222
A157: 21 | B157: 22359 | C157: 21 | D157: 22363 | E157: 22 | F157: 22368 | G157: 23 | H157: 22376 | K157: 0 | L157: 2222
A158: 21 | B158: 22480 | C158: 21 | D158: 22486 | E158: 22 | F158: 22492 | G158: 23 | H158: 22499 | K158: 0 | L158: 2222
A159: 12 | B159: 22592 | C159: 23 | D159: 22598 | E159: 13 | F159: 22601 | G159: 23 | H159: 22605 | K159: 0 | L159: 1212
A160: 21 | B160: 22699 | C160: 12 | D160: 22701 | E160: 24 | F160: 22703 | G160: 23 | H160: 22709 | K160: 0 | L160: 2122
A161: 12 | B161: 22833 | C161: 14 | D161: 22842 | E161: 24 | F161: 22849 | G161: 23 | H161: 22853 | K161: 0 | L161: 1122
A162: 21 | B162: 22953 | C162: 21 | D162: 22961 | E162: 22 | F162: 22968 | G162: 23 | H162: 22975 | K162: 0 | L162: 2222
